Workbook

Sheet Menu
C7: Worksheet Index
C10: User Worksheets
F12: Hyperlinks | G12: Notes
D14: User Input | F14: Go to User Input
D15: User Working Sheet | F15: Go to User Working Sheet | G15: Blank worksheet for users' other workings
D16: Failure rate over time | F16: Go to Failure rate over time
D17: Calculations | F17: Go to Calculations
D18: Calculations (RIT-D) | F18: Go to Calculations (RIT-D)
D19: Calc (Sensitivities) | F19: Go to Calc (Sensitivities)
D20: Output | F20: Go to Output
D21: Business Case Output | F21: Go to Business Case Output
C23: Administrator Worksheets
F25: Hyperlinks
D27: Version Control | F27: Go to Version Control
D28: Administrator Input | F28: Go to Administrator Input

Sheet User Input
A1: 0.9124772639
A2: =Output!F40 -> 6785.000363 | C2: Project Details
A3: =8503-1038-680 -> 6785
D4: Project Name : | E4: RTS Redevelopment | H4: Internal Reference | I4: UEDO-14-003
D6: Financial Year in which construction begins | E6: 2015 | H6: Regulatory Category | I6: Demand (Reinforcement)
D8: Project Type | E8: 2 | H8: Asset | I8: 1 | M8: Budget Allocation | N8: 2400
C10: Capital Costs
D12: ="Capital Costs ($"&E6&")" -> Capital Costs ($2015) | F12: =E6 -> 2015 | G12: =F12+1 -> 2016 | H12: =G12+1 -> 2017 | I12: =H12+1 -> 2018 | J12: =I12+1 -> 2019 | K12: 2020 | L12: 2021 | M12: 2022 | N12: 2023 | O12: 2024 | P12: 2025 | Q12: 2026 | R12: 2027 | S12: 2028 | T12: =S12+1 -> 2029 | U12: =T12+1 -> 2030 | V12: 2031 | W12: 2032 | X12: 2033 | Y12: 2034 | Z12: 2035
F13: $000 | G13: $000 | H13: $000 | I13: $000 | J13: $000 | K13: $000 | L13: $000 | M13: $000 | N13: $000 | O13: $000 | P13: $000 | Q13: $000 | R13: $000 | S13: $000 | T13: $000 | U13: $000 | V13: $000 | W13: $000 | X13: $000 | Y13: $000 | Z13: $000
E14: Technical Options
D15: Reference Case | E15: Status Quo
C16: =CONCATENATE(D16,": ",E16) -> Option 1: RTS Redevelopment | D16: Option 1 | E16: RTS Redevelopment | F16: 479 | G16: =3642*A1 -> 3323.242195 | H16: =1988*A1^2 -> 1655.238137 | I16: =1394*A1^3 -> 1059.080397
C17: =CONCATENATE(D17,": ",E17) -> Option 2: | D17: Option 2
C18: =CONCATENATE(D18,": ",E18) -> Option 3: | D18: Option 3
C19: =CONCATENATE(D19,": ",E19) -> Option 4: | D19: Option 4
C20: =CONCATENATE(D20,": ",E20) -> Option 5: | D20: Option 5
C22: ="Operating Costs ($"&E6&")" -> Operating Costs ($2015)
D24: "Status Quo" Reference Case
E26: Unit | F26: =G12 -> 2016 | G26: =F26+1 -> 2017 | H26: 2018 | I26: 2019 | J26: 2020 | K26: 2021 | L26: 2022 | M26: 2023 | N26: =M26+1 -> 2024 | O26: 2025 | P26: 2026 | Q26: 2027 | R26: 2028 | S26: 2029 | T26: =S26+1 -> 2030 | U26: 2031 | V26: 2032 | W26: 2033 | X26: 2034 | Y26: 2035 | Z26: =Y26+1 -> 2036
D27: Annual Maintenance Costs | E27: ($000) | F27: 0 | G27: =F27 -> 0 | H27: =G27 -> 0 | I27: 0 | J27: 0 | K27: 0 | L27: 0 | M27: 0 | N27: 0
D29: =IF($I$8=1,"Negative Impact on Revenue (STPIS)",0) -> Negative Impact on Revenue (STPIS) | E29: 5 | F29: =F26 -> 2016 | G29: =G26 -> 2017 | H29: 2018 | I29: 2019 | J29: 2020 | K29: 2021 | L29: 2022 | M29: 2023 | N29: 2024 | O29: 2025 | P29: 2026 | Q29: 2027 | R29: 2028 | S29: 2029 | T29: 2030 | U29: 2031 | V29: 2032 | W29: 2033 | X29: 2034 | Y29: 2035 | Z29: 2036
D30: =IF($I$8=1,"SAIFI sustained",0) -> SAIFI sustained | E30: (no. of Interruption) | F30: =(15157+10878)*(1+1)/670000 -> 0.07771641791 | G30: =IF($E$29=1,0,IF(OR($E$29=2,$E$29=3,$E$29=4,$E$29=5),$F$30)) -> 0.07771641791 | H30: =IF($E$29=1,0,IF(OR($E$29=2,$E$29=3,$E$29=4,$E$29=5),$F$30)) -> 0.07771641791 | I30: =IF($E$29=1,0,IF(OR($E$29=2,$E$29=3,$E$29=4,$E$29=5),$F$30)) -> 0.07771641791 | J30: =IF($E$29=1,0,IF(OR($E$29=2,$E$29=3,$E$29=4,$E$29=5),$F$30)) -> 0.07771641791 | K30: =IF($E$29=1,0,IF(OR($E$29=2,$E$29=3,$E$29=4,$E$29=5),$F$30)) -> 0.07771641791 | L30: =F30 -> 0.07771641791 | M30: =IF(OR($E$29=1,$E$29=2),0,$L$30) -> 0.07771641791 | N30: =IF(OR($E$29=1,$E$29=2),0,$L$30) -> 0.07771641791 | O30: =IF(OR($E$29=1,$E$29=2),0,$L$30) -> 0.07771641791 | P30: =IF(OR($E$29=1,$E$29=2),0,$L$30) -> 0.07771641791 | Q30: =IF(OR($E$29=1,$E$29=2),0,$L$30) -> 0.07771641791 | R30: =L30 -> 0.07771641791 | S30: =IF(OR($E$29=1,$E$29=2,$E$29=3),0,$R$30) -> 0.07771641791 | T30: =IF(OR($E$29=1,$E$29=2,$E$29=3),0,$R$30) -> 0.07771641791 | U30: =IF(OR($E$29=1,$E$29=2,$E$29=3),0,$R$30) -> 0.07771641791 | V30: =IF(OR($E$29=1,$E$29=2,$E$29=3),0,$R$30) -> 0.07771641791 | W30: =IF(OR($E$29=1,$E$29=2,$E$29=3),0,$R$30) -> 0.07771641791 | X30: =R30 -> 0.07771641791 | Y30: =IF($E$29=5,$X$30,0) -> 0.07771641791 | Z30: =IF($E$29=5,$X$30,0) -> 0.07771641791
D31: =IF($I$8=1,"SAIDI accidental",0) -> SAIDI accidental | E31: (minutes) | F31: =(15157+10878)*8*60/670000 -> 18.6519403 | G31: =IF($E$29=1,0,IF(OR($E$29=2,$E$29=3,$E$29=4,$E$29=5),$F$31)) -> 18.6519403 | H31: =IF($E$29=1,0,IF(OR($E$29=2,$E$29=3,$E$29=4,$E$29=5),$F$31)) -> 18.6519403 | I31: =IF($E$29=1,0,IF(OR($E$29=2,$E$29=3,$E$29=4,$E$29=5),$F$31)) -> 18.6519403 | J31: =IF($E$29=1,0,IF(OR($E$29=2,$E$29=3,$E$29=4,$E$29=5),$F$31)) -> 18.6519403 | K31: =IF($E$29=1,0,IF(OR($E$29=2,$E$29=3,$E$29=4,$E$29=5),$F$31)) -> 18.6519403 | L31: =F31 -> 18.6519403 | M31: =IF(OR($E$29=1,$E$29=2),0,$L$31) -> 18.6519403 | N31: =IF(OR($E$29=1,$E$29=2),0,$L$31) -> 18.6519403 | O31: =IF(OR($E$29=1,$E$29=2),0,$L$31) -> 18.6519403 | P31: =IF(OR($E$29=1,$E$29=2),0,$L$31) -> 18.6519403 | Q31: =IF(OR($E$29=1,$E$29=2),0,$L$31) -> 18.6519403 | R31: =L31 -> 18.6519403 | S31: =IF(OR($E$29=1,$E$29=2,$E$29=3),0,$R$31) -> 18.6519403 | T31: =IF(OR($E$29=1,$E$29=2,$E$29=3),0,$R$31) -> 18.6519403 | U31: =IF(OR($E$29=1,$E$29=2,$E$29=3),0,$R$31) -> 18.6519403 | V31: =IF(OR($E$29=1,$E$29=2,$E$29=3),0,$R$31) -> 18.6519403 | W31: =IF(OR($E$29=1,$E$29=2,$E$29=3),0,$R$31) -> 18.6519403 | X31: =R31 -> 18.6519403 | Y31: =IF($E$29=5,$X$31,0) -> 18.6519403 | Z31: =IF($E$29=5,$X$31,0) -> 18.6519403
D32: =IF($I$8=1,"MAIFI momentary",0) -> MAIFI momentary | E32: (no. of Interruption) | G32: =IF($E$29=1,0,IF(OR($E$29=2,$E$29=3,$E$29=4,$E$29=5),$F$32)) -> 0 | H32: =IF($E$29=1,0,IF(OR($E$29=2,$E$29=3,$E$29=4,$E$29=5),$F$32)) -> 0 | I32: =IF($E$29=1,0,IF(OR($E$29=2,$E$29=3,$E$29=4,$E$29=5),$F$32)) -> 0 | J32: =IF($E$29=1,0,IF(OR($E$29=2,$E$29=3,$E$29=4,$E$29=5),$F$32)) -> 0 | K32: =IF($E$29=1,0,IF(OR($E$29=2,$E$29=3,$E$29=4,$E$29=5),$F$32)) -> 0 | M32: =IF(OR($E$29=1,$E$29=2),0,$L$32) -> 0 | N32: =IF(OR($E$29=1,$E$29=2),0,$L$32) -> 0 | O32: =IF(OR($E$29=1,$E$29=2),0,$L$32) -> 0 | P32: =IF(OR($E$29=1,$E$29=2),0,$L$32) -> 0 | Q32: =IF(OR($E$29=1,$E$29=2),0,$L$32) -> 0 | S32: =IF(OR($E$29=1,$E$29=2,$E$29=3),0,$R$32) -> 0 | T32: =IF(OR($E$29=1,$E$29=2,$E$29=3),0,$R$32) -> 0 | U32: =IF(OR($E$29=1,$E$29=2,$E$29=3),0,$R$32) -> 0 | V32: =IF(OR($E$29=1,$E$29=2,$E$29=3),0,$R$32) -> 0 | W32: =IF(OR($E$29=1,$E$29=2,$E$29=3),0,$R$32) -> 0 | Y32: =IF($E$29=5,$X$32,0) -> 0 | Z32: =IF($E$29=5,$X$32,0) -> 0
D33: =IF($I$8=1,"Call centre response",0) -> Call centre response | E33: (percentage) | G33: =IF($E$29=1,0,IF(OR($E$29=2,$E$29=3,$E$29=4,$E$29=5),$F$33)) -> 0 | H33: =IF($E$29=1,0,IF(OR($E$29=2,$E$29=3,$E$29=4,$E$29=5),$F$33)) -> 0 | I33: =IF($E$29=1,0,IF(OR($E$29=2,$E$29=3,$E$29=4,$E$29=5),$F$33)) -> 0 | J33: =IF($E$29=1,0,IF(OR($E$29=2,$E$29=3,$E$29=4,$E$29=5),$F$33)) -> 0 | K33: =IF($E$29=1,0,IF(OR($E$29=2,$E$29=3,$E$29=4,$E$29=5),$F$33)) -> 0 | M33: =IF(OR($E$29=1,$E$29=2),0,$L$33) -> 0 | N33: =IF(OR($E$29=1,$E$29=2),0,$L$33) -> 0 | O33: =IF(OR($E$29=1,$E$29=2),0,$L$33) -> 0 | P33: =IF(OR($E$29=1,$E$29=2),0,$L$33) -> 0 | Q33: =IF(OR($E$29=1,$E$29=2),0,$L$33) -> 0 | S33: =IF(OR($E$29=1,$E$29=2,$E$29=3),0,$R$33) -> 0 | T33: =IF(OR($E$29=1,$E$29=2,$E$29=3),0,$R$33) -> 0 | U33: =IF(OR($E$29=1,$E$29=2,$E$29=3),0,$R$33) -> 0 | V33: =IF(OR($E$29=1,$E$29=2,$E$29=3),0,$R$33) -> 0 | W33: =IF(OR($E$29=1,$E$29=2,$E$29=3),0,$R$33) -> 0 | Y33: =IF($E$29=5,$X$33,0) -> 0 | Z33: =IF($E$29=5,$X$33,0) -> 0
D35: =IF(I8=1,"Network Outage Costs",0) -> Network Outage Costs | F35: =F29 -> 2016 | G35: =G29 -> 2017 | H35: 2018 | I35: 2019 | J35: 2020 | K35: 2021 | L35: 2022 | M35: 2023 | N35: 2024 | O35: 2025 | P35: 2026 | Q35: 2027 | R35: 2028 | S35: 2029 | T35: 2030 | U35: 2031 | V35: 2032 | W35: 2033 | X35: 2034 | Y35: 2035 | Z35: 2036
D36: =IF(I8=1,"Customer off supply",0) -> Customer off supply | E36: (minutes) | F36: =F31 -> 18.6519403 | G36: =G31 -> 18.6519403 | H36: 18.6519403 | I36: 18.6519403 | J36: 18.6519403 | K36: 18.6519403 | L36: 18.6519403 | M36: 18.6519403 | N36: 18.6519403 | O36: 18.6519403 | P36: 18.6519403 | Q36: 18.6519403 | R36: 18.6519403 | S36: 18.6519403 | T36: 18.6519403
D38: =IF(I8=1,"Loss of F Factor Benefit",0) -> Loss of F Factor Benefit | F38: =F35 -> 2016 | G38: =G35 -> 2017 | H38: 2018 | I38: 2019 | J38: 2020 | K38: 2021 | L38: 2022 | M38: 2023 | N38: 2024 | O38: 2025 | P38: 2026 | Q38: 2027 | R38: 2028 | S38: 2029 | T38: 2030 | U38: 2031 | V38: 2032 | W38: 2033 | X38: 2034 | Y38: 2035 | Z38: 2036
D39: =IF(I8=1,"Loss of F Factor Benefit",0) -> Loss of F Factor Benefit | E39: (No. of fire start NOT avoided)
D41: Costs | F41: =F38 -> 2016 | G41: =G38 -> 2017 | H41: 2018 | I41: 2019 | J41: 2020 | K41: 2021 | L41: 2022 | M41: 2023 | N41: 2024 | O41: 2025 | P41: 2026 | Q41: 2027 | R41: 2028 | S41: 2029 | T41: 2030 | U41: 2031 | V41: 2032 | W41: 2033 | X41: 2034 | Y41: 2035 | Z41: 2036
D42: Cost 1 | E42: ($000)
D43: Cost 2 | E43: ($000)
D44: Cost 3 | E44: ($000)
D45: Cost 4 | E45: ($000)
D46: Cost 5 | E46: ($000)
D47: Risk 1 | E47: ($000)
D48: Risk 2 | E48: ($000)
D49: Risk 3 | E49: ($000)
D50: Risk 4 | E50: ($000)
D51: Risk 5 | E51: ($000)
D53: ="Option 1: "&+E16 -> Option 1: RTS Redevelopment
F55: =G12 -> 2016 | G55: =F55+1 -> 2017 | H55: =G55+1 -> 2018 | I55: 2019 | J55: 2020 | K55: 2021 | L55: 2022 | M55: 2023 | N55: 2024 | O55: 2025 | P55: 2026 | Q55: 2027 | R55: 2028 | S55: 2029 | T55: 2030 | U55: 2031 | V55: 2032 | W55: 2033 | X55: 2034 | Y55: 2035 | Z55: 2036
C56: =$C$16 -> Option 1: RTS Redevelopment | D56: =$D$27 -> Annual Maintenance Costs | E56: ($000) | F56: 0 | G56: =F56 -> 0 | H56: =G56 -> 0 | I56: 0 | J56: 0 | K56: 0 | L56: 0 | M56: 0 | N56: 0
D58: =IF($I$8=1,"Negative Impact on Revenue (STPIS)",0) -> Negative Impact on Revenue (STPIS) | E58: 5 | F58: =F55 -> 2016 | G58: =G55 -> 2017 | H58: 2018 | I58: 2019 | J58: 2020 | K58: 2021 | L58: 2022 | M58: 2023 | N58: 2024 | O58: 2025 | P58: 2026 | Q58: 2027 | R58: 2028 | S58: 2029 | T58: 2030 | U58: 2031 | V58: 2032 | W58: 2033 | X58: 2034 | Y58: 2035 | Z58: 2036
C59: =$C$16 -> Option 1: RTS Redevelopment | D59: =IF($I$8=1,"SAIFI sustained",0) -> SAIFI sustained | E59: (no. of Interruption) | F59: =(15157+10878)*1/670000 -> 0.03885820896 | G59: =IF($E$58=1,0,IF(OR($E$58=2,$E$58=3,$E$58=4,$E$58=5),$F$59)) -> 0.03885820896 | H59: =IF($E$58=1,0,IF(OR($E$58=2,$E$58=3,$E$58=4,$E$58=5),$F$59)) -> 0.03885820896 | I59: =IF($E$58=1,0,IF(OR($E$58=2,$E$58=3,$E$58=4,$E$58=5),$F$59)) -> 0.03885820896 | J59: =IF($E$58=1,0,IF(OR($E$58=2,$E$58=3,$E$58=4,$E$58=5),$F$59)) -> 0.03885820896 | K59: =IF($E$58=1,0,IF(OR($E$58=2,$E$58=3,$E$58=4,$E$58=5),$F$59)) -> 0.03885820896 | L59: =F59 -> 0.03885820896 | M59: =IF(OR($E$58=1,$E$58=2),0,$L$59) -> 0.03885820896 | N59: =IF(OR($E$58=1,$E$58=2),0,$L$59) -> 0.03885820896 | O59: =IF(OR($E$58=1,$E$58=2),0,$L$59) -> 0.03885820896 | P59: =IF(OR($E$58=1,$E$58=2),0,$L$59) -> 0.03885820896 | Q59: =IF(OR($E$58=1,$E$58=2),0,$L$59) -> 0.03885820896 | R59: =L59 -> 0.03885820896 | S59: =IF(OR($E$58=1,$E$58=2,$E$58=3),0,$R$59) -> 0.03885820896 | T59: =IF(OR($E$58=1,$E$58=2,$E$58=3),0,$R$59) -> 0.03885820896 | U59: =IF(OR($E$58=1,$E$58=2,$E$58=3),0,$R$59) -> 0.03885820896 | V59: =IF(OR($E$58=1,$E$58=2,$E$58=3),0,$R$59) -> 0.03885820896 | W59: =IF(OR($E$58=1,$E$58=2,$E$58=3),0,$R$59) -> 0.03885820896 | X59: =R59 -> 0.03885820896 | Y59: =IF($E$58=5,$X$59,0) -> 0.03885820896 | Z59: =IF($E$58=5,$X$59,0) -> 0.03885820896
C60: =$C$16 -> Option 1: RTS Redevelopment | D60: =IF($I$8=1,"SAIDI accidental",0) -> SAIDI accidental | E60: (minutes) | F60: =(15157+10878)*80/670000 -> 3.108656716 | G60: =IF($E$58=1,0,IF(OR($E$58=2,$E$58=3,$E$58=4,$E$58=5),$F$60)) -> 3.108656716 | H60: =IF($E$58=1,0,IF(OR($E$58=2,$E$58=3,$E$58=4,$E$58=5),$F$60)) -> 3.108656716 | I60: =IF($E$58=1,0,IF(OR($E$58=2,$E$58=3,$E$58=4,$E$58=5),$F$60)) -> 3.108656716 | J60: =IF($E$58=1,0,IF(OR($E$58=2,$E$58=3,$E$58=4,$E$58=5),$F$60)) -> 3.108656716 | K60: =IF($E$58=1,0,IF(OR($E$58=2,$E$58=3,$E$58=4,$E$58=5),$F$60)) -> 3.108656716 | L60: =F60 -> 3.108656716 | M60: =IF(OR($E$58=1,$E$58=2),0,$L$60) -> 3.108656716 | N60: =IF(OR($E$58=1,$E$58=2),0,$L$60) -> 3.108656716 | O60: =IF(OR($E$58=1,$E$58=2),0,$L$60) -> 3.108656716 | P60: =IF(OR($E$58=1,$E$58=2),0,$L$60) -> 3.108656716 | Q60: =IF(OR($E$58=1,$E$58=2),0,$L$60) -> 3.108656716 | R60: =L60 -> 3.108656716 | S60: =IF(OR($E$58=1,$E$58=2,$E$58=3),0,$R$60) -> 3.108656716 | T60: =IF(OR($E$58=1,$E$58=2,$E$58=3),0,$R$60) -> 3.108656716 | U60: =IF(OR($E$58=1,$E$58=2,$E$58=3),0,$R$60) -> 3.108656716 | V60: =IF(OR($E$58=1,$E$58=2,$E$58=3),0,$R$60) -> 3.108656716 | W60: =IF(OR($E$58=1,$E$58=2,$E$58=3),0,$R$60) -> 3.108656716 | X60: =R60 -> 3.108656716 | Y60: =IF($E$58=5,$X$60,0) -> 3.108656716 | Z60: =IF($E$58=5,$X$60,0) -> 3.108656716
C61: =$C$16 -> Option 1: RTS Redevelopment | D61: =IF($I$8=1,"MAIFI momentary",0) -> MAIFI momentary | E61: (no. of Interruption) | G61: =IF($E$58=1,0,IF(OR($E$58=2,$E$58=3,$E$58=4,$E$58=5),$F$61)) -> 0 | H61: =IF($E$58=1,0,IF(OR($E$58=2,$E$58=3,$E$58=4,$E$58=5),$F$61)) -> 0 | I61: =IF($E$58=1,0,IF(OR($E$58=2,$E$58=3,$E$58=4,$E$58=5),$F$61)) -> 0 | J61: =IF($E$58=1,0,IF(OR($E$58=2,$E$58=3,$E$58=4,$E$58=5),$F$61)) -> 0 | K61: =IF($E$58=1,0,IF(OR($E$58=2,$E$58=3,$E$58=4,$E$58=5),$F$61)) -> 0 | M61: =IF(OR($E$58=1,$E$58=2),0,$L$61) -> 0 | N61: =IF(OR($E$58=1,$E$58=2),0,$L$61) -> 0 | O61: =IF(OR($E$58=1,$E$58=2),0,$L$61) -> 0 | P61: =IF(OR($E$58=1,$E$58=2),0,$L$61) -> 0 | Q61: =IF(OR($E$58=1,$E$58=2),0,$L$61) -> 0 | S61: =IF(OR($E$58=1,$E$58=2,$E$58=3),0,$R$61) -> 0 | T61: =IF(OR($E$58=1,$E$58=2,$E$58=3),0,$R$61) -> 0 | U61: =IF(OR($E$58=1,$E$58=2,$E$58=3),0,$R$61) -> 0 | V61: =IF(OR($E$58=1,$E$58=2,$E$58=3),0,$R$61) -> 0 | W61: =IF(OR($E$58=1,$E$58=2,$E$58=3),0,$R$61) -> 0 | Y61: =IF($E$58=5,$X$61,0) -> 0 | Z61: =IF($E$58=5,$X$61,0) -> 0
C62: =$C$16 -> Option 1: RTS Redevelopment | D62: =IF($I$8=1,"Call centre response",0) -> Call centre response | E62: (percentage) | G62: =IF($E$58=1,0,IF(OR($E$58=2,$E$58=3,$E$58=4,$E$58=5),$F$62)) -> 0 | H62: =IF($E$58=1,0,IF(OR($E$58=2,$E$58=3,$E$58=4,$E$58=5),$F$62)) -> 0 | I62: =IF($E$58=1,0,IF(OR($E$58=2,$E$58=3,$E$58=4,$E$58=5),$F$62)) -> 0 | J62: =IF($E$58=1,0,IF(OR($E$58=2,$E$58=3,$E$58=4,$E$58=5),$F$62)) -> 0 | K62: =IF($E$58=1,0,IF(OR($E$58=2,$E$58=3,$E$58=4,$E$58=5),$F$62)) -> 0 | M62: =IF(OR($E$58=1,$E$58=2),0,$L$62) -> 0 | N62: =IF(OR($E$58=1,$E$58=2),0,$L$62) -> 0 | O62: =IF(OR($E$58=1,$E$58=2),0,$L$62) -> 0 | P62: =IF(OR($E$58=1,$E$58=2),0,$L$62) -> 0 | Q62: =IF(OR($E$58=1,$E$58=2),0,$L$62) -> 0 | S62: =IF(OR($E$58=1,$E$58=2,$E$58=3),0,$R$62) -> 0 | T62: =IF(OR($E$58=1,$E$58=2,$E$58=3),0,$R$62) -> 0 | U62: =IF(OR($E$58=1,$E$58=2,$E$58=3),0,$R$62) -> 0 | V62: =IF(OR($E$58=1,$E$58=2,$E$58=3),0,$R$62) -> 0 | W62: =IF(OR($E$58=1,$E$58=2,$E$58=3),0,$R$62) -> 0 | Y62: =IF($E$58=5,$X$62,0) -> 0 | Z62: =IF($E$58=5,$X$62,0) -> 0
D64: =$D$35 -> Network Outage Costs | F64: =G12 -> 2016 | G64: =F64+1 -> 2017 | H64: 2018 | I64: 2019 | J64: 2020 | K64: 2021 | L64: 2022 | M64: 2023 | N64: 2024 | O64: 2025 | P64: 2026 | Q64: 2027 | R64: 2028 | S64: 2029 | T64: 2030 | U64: 2031 | V64: 2032 | W64: 2033 | X64: 2034 | Y64: 2035 | Z64: 2036
C65: =$C$16 -> Option 1: RTS Redevelopment | D65: =$D$36 -> Customer off supply | E65: (minutes) | F65: =F60 -> 3.108656716 | G65: =G60 -> 3.108656716 | H65: 3.108656716 | I65: 3.108656716 | J65: 3.108656716 | K65: 3.108656716 | L65: 3.108656716 | M65: 3.108656716 | N65: 3.108656716 | O65: 3.108656716 | P65: 3.108656716 | Q65: 3.108656716 | R65: 3.108656716 | S65: 3.108656716 | T65: 3.108656716 | U65: 3.108656716 | V65: 3.108656716 | W65: 3.108656716 | X65: 3.108656716 | Y65: 3.108656716 | Z65: 3.108656716
D67: =D38 -> Loss of F Factor Benefit | F67: =G12 -> 2016 | G67: =F67+1 -> 2017 | H67: 2018 | I67: 2019 | J67: 2020 | K67: 2021 | L67: 2022 | M67: 2023 | N67: 2024 | O67: 2025 | P67: 2026 | Q67: 2027 | R67: 2028 | S67: 2029 | T67: 2030 | U67: 2031 | V67: 2032 | W67: 2033 | X67: 2034 | Y67: 2035 | Z67: 2036
C68: =$C$16 -> Option 1: RTS Redevelopment | D68: =$D$39 -> Loss of F Factor Benefit | E68: =$E$39 -> (No. of fire start NOT avoided)
D70: Costs | F70: =G12 -> 2016 | G70: =F70+1 -> 2017 | H70: 2018 | I70: 2019 | J70: 2020 | K70: 2021 | L70: 2022 | M70: 2023 | N70: 2024 | O70: 2025 | P70: 2026 | Q70: 2027 | R70: 2028 | S70: 2029 | T70: 2030 | U70: 2031 | V70: 2032 | W70: 2033 | X70: 2034 | Y70: 2035 | Z70: 2036
C71: =$C$16 -> Option 1: RTS Redevelopment | D71: =$D$42 -> Cost 1 | E71: ($000)
C72: Option 1: RTS Redevelopment | D72: =$D$43 -> Cost 2 | E72: ($000)
C73: Option 1: RTS Redevelopment | D73: =$D$44 -> Cost 3 | E73: ($000)
C74: Option 1: RTS Redevelopment | D74: =$D$45 -> Cost 4 | E74: ($000)
C75: Option 1: RTS Redevelopment | D75: =$D$46 -> Cost 5 | E75: ($000)
C76: Option 1: RTS Redevelopment | D76: Risk 1 | E76: ($000)
C77: Option 1: RTS Redevelopment | D77: Risk 2 | E77: ($000)
C78: Option 1: RTS Redevelopment | D78: Risk 3 | E78: ($000)
C79: Option 1: RTS Redevelopment | D79: Risk 4 | E79: ($000)
C80: Option 1: RTS Redevelopment | D80: Risk 5 | E80: ($000)
D82: ="Option 2: "&+E17 -> Option 2:
F84: =G12 -> 2016 | G84: =F84+1 -> 2017 | H84: =G84+1 -> 2018 | I84: 2019 | J84: 2020 | K84: 2021 | L84: 2022 | M84: 2023 | N84: 2024 | O84: 2025 | P84: 2026 | Q84: 2027 | R84: 2028 | S84: 2029 | T84: 2030 | U84: 2031 | V84: 2032 | W84: 2033 | X84: 2034 | Y84: 2035 | Z84: 2036
C85: =$C$17 -> Option 2: | D85: =$D$27 -> Annual Maintenance Costs | E85: ($000)
D87: =IF($I$8=1,"Negative Impact on Revenue (STPIS)",0) -> Negative Impact on Revenue (STPIS) | E87: 5 | F87: =G12 -> 2016 | G87: =F87+1 -> 2017 | H87: 2018 | I87: 2019 | J87: 2020 | K87: 2021 | L87: 2022 | M87: 2023 | N87: 2024 | O87: 2025 | P87: 2026 | Q87: 2027 | R87: 2028 | S87: 2029 | T87: 2030 | U87: 2031 | V87: 2032 | W87: 2033 | X87: 2034 | Y87: 2035 | Z87: 2036
C88: =$C$17 -> Option 2: | D88: =IF($I$8=1,"SAIFI sustained",0) -> SAIFI sustained | E88: (no. of Interruption) | F88: 0 | G88: =IF($E$87=1,0,IF(OR($E$87=2,$E$87=3,$E$87=4,$E$87=5),$F$88)) -> 0 | H88: =IF($E$87=1,0,IF(OR($E$87=2,$E$87=3,$E$87=4,$E$87=5),$F$88)) -> 0 | I88: =IF($E$87=1,0,IF(OR($E$87=2,$E$87=3,$E$87=4,$E$87=5),$F$88)) -> 0 | J88: =IF($E$87=1,0,IF(OR($E$87=2,$E$87=3,$E$87=4,$E$87=5),$F$88)) -> 0 | K88: =IF($E$87=1,0,IF(OR($E$87=2,$E$87=3,$E$87=4,$E$87=5),$F$88)) -> 0 | M88: =IF(OR($E$87=1,$E$87=2),0,$L$88) -> 0 | N88: =IF(OR($E$87=1,$E$87=2),0,$L$88) -> 0 | O88: =IF(OR($E$87=1,$E$87=2),0,$L$88) -> 0 | P88: =IF(OR($E$87=1,$E$87=2),0,$L$88) -> 0 | Q88: =IF(OR($E$87=1,$E$87=2),0,$L$88) -> 0 | S88: =IF(OR($E$87=1,$E$87=2,$E$87=3),0,$R$88) -> 0 | T88: =IF(OR($E$87=1,$E$87=2,$E$87=3),0,$R$88) -> 0 | U88: =IF(OR($E$87=1,$E$87=2,$E$87=3),0,$R$88) -> 0 | V88: =IF(OR($E$87=1,$E$87=2,$E$87=3),0,$R$88) -> 0 | W88: =IF(OR($E$87=1,$E$87=2,$E$87=3),0,$R$88) -> 0 | Y88: =IF($E$87=5,$X$88,0) -> 0 | Z88: =IF($E$87=5,$X$88,0) -> 0
C89: =$C$17 -> Option 2: | D89: =IF($I$8=1,"SAIDI accidental",0) -> SAIDI accidental | E89: (minutes) | F89: 0 | G89: =IF($E$87=1,0,IF(OR($E$87=2,$E$87=3,$E$87=4,$E$87=5),$F$89)) -> 0 | H89: =IF($E$87=1,0,IF(OR($E$87=2,$E$87=3,$E$87=4,$E$87=5),$F$89)) -> 0 | I89: =IF($E$87=1,0,IF(OR($E$87=2,$E$87=3,$E$87=4,$E$87=5),$F$89)) -> 0 | J89: =IF($E$87=1,0,IF(OR($E$87=2,$E$87=3,$E$87=4,$E$87=5),$F$89)) -> 0 | K89: =IF($E$87=1,0,IF(OR($E$87=2,$E$87=3,$E$87=4,$E$87=5),$F$89)) -> 0 | M89: =IF(OR($E$87=1,$E$87=2),0,$L$89) -> 0 | N89: =IF(OR($E$87=1,$E$87=2),0,$L$89) -> 0 | O89: =IF(OR($E$87=1,$E$87=2),0,$L$89) -> 0 | P89: =IF(OR($E$87=1,$E$87=2),0,$L$89) -> 0 | Q89: =IF(OR($E$87=1,$E$87=2),0,$L$89) -> 0 | S89: =IF(OR($E$87=1,$E$87=2,$E$87=3),0,$R$89) -> 0 | T89: =IF(OR($E$87=1,$E$87=2,$E$87=3),0,$R$89) -> 0 | U89: =IF(OR($E$87=1,$E$87=2,$E$87=3),0,$R$89) -> 0 | V89: =IF(OR($E$87=1,$E$87=2,$E$87=3),0,$R$89) -> 0 | W89: =IF(OR($E$87=1,$E$87=2,$E$87=3),0,$R$89) -> 0 | Y89: =IF($E$87=5,$X$89,0) -> 0 | Z89: =IF($E$87=5,$X$89,0) -> 0
C90: =$C$17 -> Option 2: | D90: =IF($I$8=1,"MAIFI momentary",0) -> MAIFI momentary | E90: (no. of Interruption) | G90: =IF($E$87=1,0,IF(OR($E$87=2,$E$87=3,$E$87=4,$E$87=5),$F$90)) -> 0 | H90: =IF($E$87=1,0,IF(OR($E$87=2,$E$87=3,$E$87=4,$E$87=5),$F$90)) -> 0 | I90: =IF($E$87=1,0,IF(OR($E$87=2,$E$87=3,$E$87=4,$E$87=5),$F$90)) -> 0 | J90: =IF($E$87=1,0,IF(OR($E$87=2,$E$87=3,$E$87=4,$E$87=5),$F$90)) -> 0 | K90: =IF($E$87=1,0,IF(OR($E$87=2,$E$87=3,$E$87=4,$E$87=5),$F$90)) -> 0 | M90: =IF(OR($E$87=1,$E$87=2),0,$L$90) -> 0 | N90: =IF(OR($E$87=1,$E$87=2),0,$L$90) -> 0 | O90: =IF(OR($E$87=1,$E$87=2),0,$L$90) -> 0 | P90: =IF(OR($E$87=1,$E$87=2),0,$L$90) -> 0 | Q90: =IF(OR($E$87=1,$E$87=2),0,$L$90) -> 0 | S90: =IF(OR($E$87=1,$E$87=2,$E$87=3),0,$R$90) -> 0 | T90: =IF(OR($E$87=1,$E$87=2,$E$87=3),0,$R$90) -> 0 | U90: =IF(OR($E$87=1,$E$87=2,$E$87=3),0,$R$90) -> 0 | V90: =IF(OR($E$87=1,$E$87=2,$E$87=3),0,$R$90) -> 0 | W90: =IF(OR($E$87=1,$E$87=2,$E$87=3),0,$R$90) -> 0 | Y90: =IF($E$87=5,$X$90,0) -> 0 | Z90: =IF($E$87=5,$X$90,0) -> 0
C91: =$C$17 -> Option 2: | D91: =IF($I$8=1,"Call centre response",0) -> Call centre response | E91: (percentage) | G91: =IF($E$87=1,0,IF(OR($E$87=2,$E$87=3,$E$87=4,$E$87=5),$F$91)) -> 0 | H91: =IF($E$87=1,0,IF(OR($E$87=2,$E$87=3,$E$87=4,$E$87=5),$F$91)) -> 0 | I91: =IF($E$87=1,0,IF(OR($E$87=2,$E$87=3,$E$87=4,$E$87=5),$F$91)) -> 0 | J91: =IF($E$87=1,0,IF(OR($E$87=2,$E$87=3,$E$87=4,$E$87=5),$F$91)) -> 0 | K91: =IF($E$87=1,0,IF(OR($E$87=2,$E$87=3,$E$87=4,$E$87=5),$F$91)) -> 0 | M91: =IF(OR($E$87=1,$E$87=2),0,$L$91) -> 0 | N91: =IF(OR($E$87=1,$E$87=2),0,$L$91) -> 0 | O91: =IF(OR($E$87=1,$E$87=2),0,$L$91) -> 0 | P91: =IF(OR($E$87=1,$E$87=2),0,$L$91) -> 0 | Q91: =IF(OR($E$87=1,$E$87=2),0,$L$91) -> 0 | S91: =IF(OR($E$87=1,$E$87=2,$E$87=3),0,$R$91) -> 0 | T91: =IF(OR($E$87=1,$E$87=2,$E$87=3),0,$R$91) -> 0 | U91: =IF(OR($E$87=1,$E$87=2,$E$87=3),0,$R$91) -> 0 | V91: =IF(OR($E$87=1,$E$87=2,$E$87=3),0,$R$91) -> 0 | W91: =IF(OR($E$87=1,$E$87=2,$E$87=3),0,$R$91) -> 0 | Y91: =IF($E$87=5,$X$91,0) -> 0 | Z91: =IF($E$87=5,$X$91,0) -> 0
D93: =$D$35 -> Network Outage Costs | F93: =G12 -> 2016 | G93: =F93+1 -> 2017 | H93: 2018 | I93: 2019 | J93: 2020 | K93: 2021 | L93: 2022 | M93: 2023 | N93: 2024 | O93: 2025 | P93: 2026 | Q93: 2027 | R93: 2028 | S93: 2029 | T93: 2030 | U93: 2031 | V93: 2032 | W93: 2033 | X93: 2034 | Y93: 2035 | Z93: 2036
C94: =$C$17 -> Option 2: | D94: =$D$36 -> Customer off supply | E94: (minutes)
D96: =D97 -> Loss of F Factor Benefit | F96: =G12 -> 2016 | G96: =F96+1 -> 2017 | H96: 2018 | I96: 2019 | J96: 2020 | K96: 2021 | L96: 2022 | M96: 2023 | N96: 2024 | O96: 2025 | P96: 2026 | Q96: 2027 | R96: 2028 | S96: 2029 | T96: 2030 | U96: 2031 | V96: 2032 | W96: 2033 | X96: 2034 | Y96: 2035 | Z96: 2036
C97: =$C$17 -> Option 2: | D97: =$D$39 -> Loss of F Factor Benefit | E97: =$E$39 -> (No. of fire start NOT avoided)
D99: Costs | F99: =G12 -> 2016 | G99: =F99+1 -> 2017 | H99: 2018 | I99: 2019 | J99: 2020 | K99: 2021 | L99: 2022 | M99: 2023 | N99: 2024 | O99: 2025 | P99: 2026 | Q99: 2027 | R99: 2028 | S99: 2029 | T99: 2030 | U99: 2031 | V99: 2032 | W99: 2033 | X99: 2034 | Y99: 2035 | Z99: 2036
C100: =$C$17 -> Option 2: | D100: =$D$42 -> Cost 1 | E100: ($000)
C101: Option 2: | D101: =$D$43 -> Cost 2 | E101: ($000)
C102: Option 2: | D102: =$D$44 -> Cost 3 | E102: ($000)
C103: Option 2: | D103: =$D$45 -> Cost 4 | E103: ($000)
C104: Option 2: | D104: =$D$46 -> Cost 5 | E104: ($000)
C105: Option 2: | D105: Risk 1 | E105: ($000)
C106: Option 2: | D106: Risk 2 | E106: ($000)
C107: Option 2: | D107: Risk 3 | E107: ($000)
C108: Option 2: | D108: Risk 4 | E108: ($000)
C109: Option 2: | D109: Risk 5 | E109: ($000)
D111: ="Option 3: "&+E18 -> Option 3:
F113: =G12 -> 2016 | G113: =F113+1 -> 2017 | H113: =G113+1 -> 2018 | I113: 2019 | J113: 2020 | K113: 2021 | L113: 2022 | M113: 2023 | N113: 2024 | O113: 2025 | P113: 2026 | Q113: 2027 | R113: 2028 | S113: 2029 | T113: 2030 | U113: 2031 | V113: 2032 | W113: 2033 | X113: 2034 | Y113: 2035 | Z113: 2036
C114: =$C$18 -> Option 3: | D114: =$D$27 -> Annual Maintenance Costs | E114: ($000)
D116: =IF($I$8=1,"Negative Impact on Revenue (STPIS)",0) -> Negative Impact on Revenue (STPIS) | E116: 5 | F116: =G12 -> 2016 | G116: =F116+1 -> 2017 | H116: 2018 | I116: 2019 | J116: 2020 | K116: 2021 | L116: 2022 | M116: 2023 | N116: 2024 | O116: 2025 | P116: 2026 | Q116: 2027 | R116: 2028 | S116: 2029 | T116: 2030 | U116: 2031 | V116: 2032 | W116: 2033 | X116: 2034 | Y116: 2035 | Z116: 2036
C117: =$C$18 -> Option 3: | D117: =IF($I$8=1,"SAIFI sustained",0) -> SAIFI sustained | E117: (no. of Interruption) | G117: =IF($E$116=1,0,IF(OR($E$116=2,$E$116=3,$E$116=4,$E$116=5),$F$117)) -> 0 | H117: =IF($E$116=1,0,IF(OR($E$116=2,$E$116=3,$E$116=4,$E$116=5),$F$117)) -> 0 | I117: =IF($E$116=1,0,IF(OR($E$116=2,$E$116=3,$E$116=4,$E$116=5),$F$117)) -> 0 | J117: =IF($E$116=1,0,IF(OR($E$116=2,$E$116=3,$E$116=4,$E$116=5),$F$117)) -> 0 | K117: =IF($E$116=1,0,IF(OR($E$116=2,$E$116=3,$E$116=4,$E$116=5),$F$117)) -> 0 | M117: =IF(OR($E$116=1,$E$116=2),0,$L$117) -> 0 | N117: =IF(OR($E$116=1,$E$116=2),0,$L$117) -> 0 | O117: =IF(OR($E$116=1,$E$116=2),0,$L$117) -> 0 | P117: =IF(OR($E$116=1,$E$116=2),0,$L$117) -> 0 | Q117: =IF(OR($E$116=1,$E$116=2),0,$L$117) -> 0 | S117: =IF(OR($E$116=1,$E$116=2,$E$116=3),0,$R$117) -> 0 | T117: =IF(OR($E$116=1,$E$116=2,$E$116=3),0,$R$117) -> 0 | U117: =IF(OR($E$116=1,$E$116=2,$E$116=3),0,$R$117) -> 0 | V117: =IF(OR($E$116=1,$E$116=2,$E$116=3),0,$R$117) -> 0 | W117: =IF(OR($E$116=1,$E$116=2,$E$116=3),0,$R$117) -> 0 | Y117: =IF($E$116=5,$X$117,0) -> 0 | Z117: =IF($E$116=5,$X$117,0) -> 0
C118: =$C$18 -> Option 3: | D118: =IF($I$8=1,"SAIDI accidental",0) -> SAIDI accidental | E118: (minutes) | G118: =IF($E$116=1,0,IF(OR($E$116=2,$E$116=3,$E$116=4,$E$116=5),$F$118)) -> 0 | H118: =IF($E$116=1,0,IF(OR($E$116=2,$E$116=3,$E$116=4,$E$116=5),$F$118)) -> 0 | I118: =IF($E$116=1,0,IF(OR($E$116=2,$E$116=3,$E$116=4,$E$116=5),$F$118)) -> 0 | J118: =IF($E$116=1,0,IF(OR($E$116=2,$E$116=3,$E$116=4,$E$116=5),$F$118)) -> 0 | K118: =IF($E$116=1,0,IF(OR($E$116=2,$E$116=3,$E$116=4,$E$116=5),$F$118)) -> 0 | M118: =IF(OR($E$116=1,$E$116=2),0,$L$118) -> 0 | N118: =IF(OR($E$116=1,$E$116=2),0,$L$118) -> 0 | O118: =IF(OR($E$116=1,$E$116=2),0,$L$118) -> 0 | P118: =IF(OR($E$116=1,$E$116=2),0,$L$118) -> 0 | Q118: =IF(OR($E$116=1,$E$116=2),0,$L$118) -> 0 | S118: =IF(OR($E$116=1,$E$116=2,$E$116=3),0,$R$118) -> 0 | T118: =IF(OR($E$116=1,$E$116=2,$E$116=3),0,$R$118) -> 0 | U118: =IF(OR($E$116=1,$E$116=2,$E$116=3),0,$R$118) -> 0 | V118: =IF(OR($E$116=1,$E$116=2,$E$116=3),0,$R$118) -> 0 | W118: =IF(OR($E$116=1,$E$116=2,$E$116=3),0,$R$118) -> 0 | Y118: =IF($E$116=5,$X$118,0) -> 0 | Z118: =IF($E$116=5,$X$118,0) -> 0
C119: =$C$18 -> Option 3: | D119: =IF($I$8=1,"MAIFI momentary",0) -> MAIFI momentary | E119: (no. of Interruption) | G119: =IF($E$116=1,0,IF(OR($E$116=2,$E$116=3,$E$116=4,$E$116=5),$F$119)) -> 0 | H119: =IF($E$116=1,0,IF(OR($E$116=2,$E$116=3,$E$116=4,$E$116=5),$F$119)) -> 0 | I119: =IF($E$116=1,0,IF(OR($E$116=2,$E$116=3,$E$116=4,$E$116=5),$F$119)) -> 0 | J119: =IF($E$116=1,0,IF(OR($E$116=2,$E$116=3,$E$116=4,$E$116=5),$F$119)) -> 0 | K119: =IF($E$116=1,0,IF(OR($E$116=2,$E$116=3,$E$116=4,$E$116=5),$F$119)) -> 0 | M119: =IF(OR($E$116=1,$E$116=2),0,$L$119) -> 0 | N119: =IF(OR($E$116=1,$E$116=2),0,$L$119) -> 0 | O119: =IF(OR($E$116=1,$E$116=2),0,$L$119) -> 0 | P119: =IF(OR($E$116=1,$E$116=2),0,$L$119) -> 0 | Q119: =IF(OR($E$116=1,$E$116=2),0,$L$119) -> 0 | S119: =IF(OR($E$116=1,$E$116=2,$E$116=3),0,$R$119) -> 0 | T119: =IF(OR($E$116=1,$E$116=2,$E$116=3),0,$R$119) -> 0 | U119: =IF(OR($E$116=1,$E$116=2,$E$116=3),0,$R$119) -> 0 | V119: =IF(OR($E$116=1,$E$116=2,$E$116=3),0,$R$119) -> 0 | W119: =IF(OR($E$116=1,$E$116=2,$E$116=3),0,$R$119) -> 0 | Y119: =IF($E$116=5,$X$119,0) -> 0 | Z119: =IF($E$116=5,$X$119,0) -> 0
C120: =$C$18 -> Option 3: | D120: =IF($I$8=1,"Call centre response",0) -> Call centre response | E120: (percentage) | G120: =IF($E$116=1,0,IF(OR($E$116=2,$E$116=3,$E$116=4,$E$116=5),$F$120)) -> 0 | H120: =IF($E$116=1,0,IF(OR($E$116=2,$E$116=3,$E$116=4,$E$116=5),$F$120)) -> 0 | I120: =IF($E$116=1,0,IF(OR($E$116=2,$E$116=3,$E$116=4,$E$116=5),$F$120)) -> 0 | J120: =IF($E$116=1,0,IF(OR($E$116=2,$E$116=3,$E$116=4,$E$116=5),$F$120)) -> 0 | K120: =IF($E$116=1,0,IF(OR($E$116=2,$E$116=3,$E$116=4,$E$116=5),$F$120)) -> 0 | M120: =IF(OR($E$116=1,$E$116=2),0,$L$120) -> 0 | N120: =IF(OR($E$116=1,$E$116=2),0,$L$120) -> 0 | O120: =IF(OR($E$116=1,$E$116=2),0,$L$120) -> 0 | P120: =IF(OR($E$116=1,$E$116=2),0,$L$120) -> 0 | Q120: =IF(OR($E$116=1,$E$116=2),0,$L$120) -> 0 | S120: =IF(OR($E$116=1,$E$116=2,$E$116=3),0,$R$120) -> 0 | T120: =IF(OR($E$116=1,$E$116=2,$E$116=3),0,$R$120) -> 0 | U120: =IF(OR($E$116=1,$E$116=2,$E$116=3),0,$R$120) -> 0 | V120: =IF(OR($E$116=1,$E$116=2,$E$116=3),0,$R$120) -> 0 | W120: =IF(OR($E$116=1,$E$116=2,$E$116=3),0,$R$120) -> 0 | Y120: =IF($E$116=5,$X$120,0) -> 0 | Z120: =IF($E$116=5,$X$120,0) -> 0
D122: =$D$35 -> Network Outage Costs | F122: =G12 -> 2016 | G122: =F122+1 -> 2017 | H122: 2018 | I122: 2019 | J122: 2020 | K122: 2021 | L122: 2022 | M122: 2023 | N122: 2024 | O122: 2025 | P122: 2026 | Q122: 2027 | R122: 2028 | S122: 2029 | T122: 2030 | U122: 2031 | V122: 2032 | W122: 2033 | X122: 2034 | Y122: 2035 | Z122: 2036
C123: =$C$18 -> Option 3: | D123: =$D$36 -> Customer off supply | E123: (minutes)
D125: =D126 -> Loss of F Factor Benefit | F125: =G12 -> 2016 | G125: =F125+1 -> 2017 | H125: 2018 | I125: 2019 | J125: 2020 | K125: 2021 | L125: 2022 | M125: 2023 | N125: 2024 | O125: 2025 | P125: 2026 | Q125: 2027 | R125: 2028 | S125: 2029 | T125: 2030 | U125: 2031 | V125: 2032 | W125: 2033 | X125: 2034 | Y125: 2035 | Z125: 2036
C126: =$C$18 -> Option 3: | D126: =$D$39 -> Loss of F Factor Benefit | E126: =$E$39 -> (No. of fire start NOT avoided)
D128: Costs | F128: =G12 -> 2016 | G128: =F128+1 -> 2017 | H128: 2018 | I128: 2019 | J128: 2020 | K128: 2021 | L128: 2022 | M128: 2023 | N128: 2024 | O128: 2025 | P128: 2026 | Q128: 2027 | R128: 2028 | S128: 2029 | T128: 2030 | U128: 2031 | V128: 2032 | W128: 2033 | X128: 2034 | Y128: 2035 | Z128: 2036
C129: =$C$18 -> Option 3: | D129: =$D$42 -> Cost 1 | E129: ($000)
C130: Option 3: | D130: =$D$43 -> Cost 2 | E130: ($000)
C131: Option 3: | D131: =$D$44 -> Cost 3 | E131: ($000)
C132: Option 3: | D132: =$D$45 -> Cost 4 | E132: ($000)
C133: Option 3: | D133: =$D$46 -> Cost 5 | E133: ($000)
C134: Option 3: | D134: Risk 1 | E134: ($000)
C135: Option 3: | D135: Risk 2 | E135: ($000)
C136: Option 3: | D136: Risk 3 | E136: ($000)
C137: Option 3: | D137: Risk 4 | E137: ($000)
C138: Option 3: | D138: Risk 5 | E138: ($000)
D140: ="Option 4: "&+E19 -> Option 4:
F142: =G12 -> 2016 | G142: =F142+1 -> 2017 | H142: =G142+1 -> 2018 | I142: 2019 | J142: 2020 | K142: 2021 | L142: 2022 | M142: 2023 | N142: 2024 | O142: 2025 | P142: 2026 | Q142: 2027 | R142: 2028 | S142: 2029 | T142: 2030 | U142: 2031 | V142: 2032 | W142: 2033 | X142: 2034 | Y142: 2035 | Z142: 2036
C143: =$C$19 -> Option 4: | D143: =$D$27 -> Annual Maintenance Costs | E143: ($000) | F143: 0 | G143: 0 | H143: 0 | I143: 0 | J143: =I143 -> 0 | K143: 0 | L143: 0 | M143: 0 | N143: 0 | O143: 0 | P143: 0
D145: =IF($I$8=1,"Negative Impact on Revenue (STPIS)",0) -> Negative Impact on Revenue (STPIS) | E145: 5 | F145: =G12 -> 2016 | G145: =F145+1 -> 2017 | H145: 2018 | I145: 2019 | J145: 2020 | K145: 2021 | L145: 2022 | M145: 2023 | N145: 2024 | O145: 2025 | P145: 2026 | Q145: 2027 | R145: 2028 | S145: 2029 | T145: 2030 | U145: 2031 | V145: 2032 | W145: 2033 | X145: 2034 | Y145: 2035 | Z145: 2036
C146: =$C$19 -> Option 4: | D146: =IF($I$8=1,"SAIFI sustained",0) -> SAIFI sustained | E146: (no. of Interruption) | F146: 0 | G146: =IF($E$145=1,0,IF(OR($E$145=2,$E$145=3,$E$145=4,$E$145=5),$F$146)) -> 0 | H146: =IF($E$145=1,0,IF(OR($E$145=2,$E$145=3,$E$145=4,$E$145=5),$F$146)) -> 0 | I146: =IF($E$145=1,0,IF(OR($E$145=2,$E$145=3,$E$145=4,$E$145=5),$F$146)) -> 0 | J146: =IF($E$145=1,0,IF(OR($E$145=2,$E$145=3,$E$145=4,$E$145=5),$F$146)) -> 0 | K146: =IF($E$145=1,0,IF(OR($E$145=2,$E$145=3,$E$145=4,$E$145=5),$F$146)) -> 0 | M146: =IF(OR($E$145=1,$E$145=2),0,$L$146) -> 0 | N146: =IF(OR($E$145=1,$E$145=2),0,$L$146) -> 0 | O146: =IF(OR($E$145=1,$E$145=2),0,$L$146) -> 0 | P146: =IF(OR($E$145=1,$E$145=2),0,$L$146) -> 0 | Q146: =IF(OR($E$145=1,$E$145=2),0,$L$146) -> 0 | S146: =IF(OR($E$145=1,$E$145=2,$E$145=3),0,$R$146) -> 0 | T146: =IF(OR($E$145=1,$E$145=2,$E$145=3),0,$R$146) -> 0 | U146: =IF(OR($E$145=1,$E$145=2,$E$145=3),0,$R$146) -> 0 | V146: =IF(OR($E$145=1,$E$145=2,$E$145=3),0,$R$146) -> 0 | W146: =IF(OR($E$145=1,$E$145=2,$E$145=3),0,$R$146) -> 0 | Y146: =IF($E$145=5,$X$146,0) -> 0 | Z146: =IF($E$145=5,$X$146,0) -> 0
C147: =$C$19 -> Option 4: | D147: =IF($I$8=1,"SAIDI accidental",0) -> SAIDI accidental | E147: (minutes) | F147: 0 | G147: =IF($E$145=1,0,IF(OR($E$145=2,$E$145=3,$E$145=4,$E$145=5),$F$147)) -> 0 | H147: =IF($E$145=1,0,IF(OR($E$145=2,$E$145=3,$E$145=4,$E$145=5),$F$147)) -> 0 | I147: =IF($E$145=1,0,IF(OR($E$145=2,$E$145=3,$E$145=4,$E$145=5),$F$147)) -> 0 | J147: =IF($E$145=1,0,IF(OR($E$145=2,$E$145=3,$E$145=4,$E$145=5),$F$147)) -> 0 | K147: =IF($E$145=1,0,IF(OR($E$145=2,$E$145=3,$E$145=4,$E$145=5),$F$147)) -> 0 | M147: =IF(OR($E$145=1,$E$145=2),0,$L$147) -> 0 | N147: =IF(OR($E$145=1,$E$145=2),0,$L$147) -> 0 | O147: =IF(OR($E$145=1,$E$145=2),0,$L$147) -> 0 | P147: =IF(OR($E$145=1,$E$145=2),0,$L$147) -> 0 | Q147: =IF(OR($E$145=1,$E$145=2),0,$L$147) -> 0 | S147: =IF(OR($E$145=1,$E$145=2,$E$145=3),0,$R$147) -> 0 | T147: =IF(OR($E$145=1,$E$145=2,$E$145=3),0,$R$147) -> 0 | U147: =IF(OR($E$145=1,$E$145=2,$E$145=3),0,$R$147) -> 0 | V147: =IF(OR($E$145=1,$E$145=2,$E$145=3),0,$R$147) -> 0 | W147: =IF(OR($E$145=1,$E$145=2,$E$145=3),0,$R$147) -> 0 | Y147: =IF($E$145=5,$X$147,0) -> 0 | Z147: =IF($E$145=5,$X$147,0) -> 0
C148: =$C$19 -> Option 4: | D148: =IF($I$8=1,"MAIFI momentary",0) -> MAIFI momentary | E148: (no. of Interruption) | F148: 0 | G148: =IF($E$116=1,0,IF(OR($E$116=2,$E$116=3,$E$116=4,$E$116=5),$F$148)) -> 0 | H148: =IF($E$116=1,0,IF(OR($E$116=2,$E$116=3,$E$116=4,$E$116=5),$F$148)) -> 0 | I148: =IF($E$116=1,0,IF(OR($E$116=2,$E$116=3,$E$116=4,$E$116=5),$F$148)) -> 0 | J148: =IF($E$116=1,0,IF(OR($E$116=2,$E$116=3,$E$116=4,$E$116=5),$F$148)) -> 0 | K148: =IF($E$116=1,0,IF(OR($E$116=2,$E$116=3,$E$116=4,$E$116=5),$F$148)) -> 0 | M148: =IF(OR($E$116=1,$E$116=2),0,$L$148) -> 0 | N148: =IF(OR($E$116=1,$E$116=2),0,$L$148) -> 0 | O148: =IF(OR($E$116=1,$E$116=2),0,$L$148) -> 0 | P148: =IF(OR($E$116=1,$E$116=2),0,$L$148) -> 0 | Q148: =IF(OR($E$116=1,$E$116=2),0,$L$148) -> 0 | S148: =IF(OR($E$116=1,$E$116=2,$E$116=3),0,$R$148) -> 0 | T148: =IF(OR($E$116=1,$E$116=2,$E$116=3),0,$R$148) -> 0 | U148: =IF(OR($E$116=1,$E$116=2,$E$116=3),0,$R$148) -> 0 | V148: =IF(OR($E$116=1,$E$116=2,$E$116=3),0,$R$148) -> 0 | W148: =IF(OR($E$116=1,$E$116=2,$E$116=3),0,$R$148) -> 0 | Y148: =IF($E$116=5,$X$148,0) -> 0 | Z148: =IF($E$116=5,$X$148,0) -> 0
C149: =$C$19 -> Option 4: | D149: =IF($I$8=1,"Call centre response",0) -> Call centre response | E149: (percentage) | G149: =IF($E$145=1,0,IF(OR($E$145=2,$E$145=3,$E$145=4,$E$145=5),$F$149)) -> 0 | H149: =IF($E$145=1,0,IF(OR($E$145=2,$E$145=3,$E$145=4,$E$145=5),$F$149)) -> 0 | I149: =IF($E$145=1,0,IF(OR($E$145=2,$E$145=3,$E$145=4,$E$145=5),$F$149)) -> 0 | J149: =IF($E$145=1,0,IF(OR($E$145=2,$E$145=3,$E$145=4,$E$145=5),$F$149)) -> 0 | K149: =IF($E$145=1,0,IF(OR($E$145=2,$E$145=3,$E$145=4,$E$145=5),$F$149)) -> 0 | M149: =IF(OR($E$145=1,$E$145=2),0,$L$149) -> 0 | N149: =IF(OR($E$145=1,$E$145=2),0,$L$149) -> 0 | O149: =IF(OR($E$145=1,$E$145=2),0,$L$149) -> 0 | P149: =IF(OR($E$145=1,$E$145=2),0,$L$149) -> 0 | Q149: =IF(OR($E$145=1,$E$145=2),0,$L$149) -> 0 | S149: =IF(OR($E$145=1,$E$145=2,$E$145=3),0,$R$149) -> 0 | T149: =IF(OR($E$145=1,$E$145=2,$E$145=3),0,$R$149) -> 0 | U149: =IF(OR($E$145=1,$E$145=2,$E$145=3),0,$R$149) -> 0 | V149: =IF(OR($E$145=1,$E$145=2,$E$145=3),0,$R$149) -> 0 | W149: =IF(OR($E$145=1,$E$145=2,$E$145=3),0,$R$149) -> 0 | Y149: =IF($E$145=5,$X$149,0) -> 0 | Z149: =IF($E$145=5,$X$149,0) -> 0
D151: =$D$35 -> Network Outage Costs | F151: =G12 -> 2016 | G151: =F151+1 -> 2017 | H151: 2018 | I151: 2019 | J151: 2020 | K151: 2021 | L151: 2022 | M151: 2023 | N151: 2024 | O151: 2025 | P151: 2026 | Q151: 2027 | R151: 2028 | S151: 2029 | T151: 2030 | U151: 2031 | V151: 2032 | W151: 2033 | X151: 2034 | Y151: 2035 | Z151: 2036
C152: =$C$19 -> Option 4: | D152: =$D$36 -> Customer off supply | E152: (minutes) | F152: =F147 -> 0 | G152: =G147 -> 0 | H152: =H147 -> 0
D154: =D155 -> Loss of F Factor Benefit | F154: =G12 -> 2016 | G154: =F154+1 -> 2017 | H154: 2018 | I154: 2019 | J154: 2020 | K154: 2021 | L154: 2022 | M154: 2023 | N154: 2024 | O154: 2025 | P154: 2026 | Q154: 2027 | R154: 2028 | S154: 2029 | T154: 2030 | U154: 2031 | V154: 2032 | W154: 2033 | X154: 2034 | Y154: 2035 | Z154: 2036
C155: =$C$19 -> Option 4: | D155: =$D$39 -> Loss of F Factor Benefit | E155: =$E$39 -> (No. of fire start NOT avoided)
D157: Costs | F157: =G12 -> 2016 | G157: =F157+1 -> 2017 | H157: 2018 | I157: 2019 | J157: 2020 | K157: 2021 | L157: 2022 | M157: 2023 | N157: 2024 | O157: 2025 | P157: 2026 | Q157: 2027 | R157: 2028 | S157: 2029 | T157: 2030 | U157: 2031 | V157: 2032 | W157: 2033 | X157: 2034 | Y157: 2035 | Z157: 2036
C158: =$C$19 -> Option 4: | D158: =$D$42 -> Cost 1 | E158: ($000)
C159: Option 4: | D159: =$D$43 -> Cost 2 | E159: ($000)
C160: Option 4: | D160: =$D$44 -> Cost 3 | E160: ($000)
C161: Option 4: | D161: =$D$45 -> Cost 4 | E161: ($000)
C162: Option 4: | D162: =$D$46 -> Cost 5 | E162: ($000)
C163: Option 4: | D163: Risk 1 | E163: ($000)
C164: Option 4: | D164: Risk 2 | E164: ($000)
C165: Option 4: | D165: Risk 3 | E165: ($000)
C166: Option 4: | D166: Risk 4 | E166: ($000)
C167: Option 4: | D167: Risk 5 | E167: ($000)
D169: ="Option 5: "&+E20 -> Option 5:
F171: =G12 -> 2016 | G171: =F171+1 -> 2017 | H171: =G171+1 -> 2018 | I171: 2019 | J171: 2020 | K171: 2021 | L171: 2022 | M171: 2023 | N171: 2024 | O171: 2025 | P171: 2026 | Q171: 2027 | R171: 2028 | S171: 2029 | T171: 2030 | U171: 2031 | V171: 2032 | W171: 2033 | X171: 2034 | Y171: 2035 | Z171: 2036
C172: =$C$20 -> Option 5: | D172: =$D$27 -> Annual Maintenance Costs | E172: ($000)
D174: =IF($I$8=1,"Negative Impact on Revenue (STPIS)",0) -> Negative Impact on Revenue (STPIS) | E174: 5 | F174: =G12 -> 2016 | G174: =F174+1 -> 2017 | H174: 2018 | I174: 2019 | J174: 2020 | K174: 2021 | L174: 2022 | M174: 2023 | N174: 2024 | O174: 2025 | P174: 2026 | Q174: 2027 | R174: 2028 | S174: 2029 | T174: 2030 | U174: 2031 | V174: 2032 | W174: 2033 | X174: 2034 | Y174: 2035 | Z174: 2036
C175: =$C$20 -> Option 5: | D175: =IF($I$8=1,"SAIFI sustained",0) -> SAIFI sustained | E175: (no. of Interruption) | F175: 0 | G175: =IF($E$174=1,0,IF(OR($E$174=2,$E$174=3,$E$174=4,$E$174=5),$F$175)) -> 0 | H175: =IF($E$174=1,0,IF(OR($E$174=2,$E$174=3,$E$174=4,$E$174=5),$F$175)) -> 0 | I175: =IF($E$174=1,0,IF(OR($E$174=2,$E$174=3,$E$174=4,$E$174=5),$F$175)) -> 0 | J175: =IF($E$174=1,0,IF(OR($E$174=2,$E$174=3,$E$174=4,$E$174=5),$F$175)) -> 0 | K175: =IF($E$174=1,0,IF(OR($E$174=2,$E$174=3,$E$174=4,$E$174=5),$F$175)) -> 0 | M175: =IF(OR($E$174=1,$E$174=2),0,$L$175) -> 0 | N175: =IF(OR($E$174=1,$E$174=2),0,$L$175) -> 0 | O175: =IF(OR($E$174=1,$E$174=2),0,$L$175) -> 0 | P175: =IF(OR($E$174=1,$E$174=2),0,$L$175) -> 0 | Q175: =IF(OR($E$174=1,$E$174=2),0,$L$175) -> 0 | S175: =IF(OR($E$174=1,$E$174=2,$E$174=3),0,$R$175) -> 0 | T175: =IF(OR($E$174=1,$E$174=2,$E$174=3),0,$R$175) -> 0 | U175: =IF(OR($E$174=1,$E$174=2,$E$174=3),0,$R$175) -> 0 | V175: =IF(OR($E$174=1,$E$174=2,$E$174=3),0,$R$175) -> 0 | W175: =IF(OR($E$174=1,$E$174=2,$E$174=3),0,$R$175) -> 0 | Y175: =IF($E$174=5,$X$175,0) -> 0 | Z175: =IF($E$174=5,$X$175,0) -> 0
C176: =$C$20 -> Option 5: | D176: =IF($I$8=1,"SAIDI accidental",0) -> SAIDI accidental | E176: (minutes) | F176: 0 | G176: =IF($E$174=1,0,IF(OR($E$174=2,$E$174=3,$E$174=4,$E$174=5),$F$176)) -> 0 | H176: =IF($E$174=1,0,IF(OR($E$174=2,$E$174=3,$E$174=4,$E$174=5),$F$176)) -> 0 | I176: =IF($E$174=1,0,IF(OR($E$174=2,$E$174=3,$E$174=4,$E$174=5),$F$176)) -> 0 | J176: =IF($E$174=1,0,IF(OR($E$174=2,$E$174=3,$E$174=4,$E$174=5),$F$176)) -> 0 | K176: =IF($E$174=1,0,IF(OR($E$174=2,$E$174=3,$E$174=4,$E$174=5),$F$176)) -> 0 | M176: =IF(OR($E$174=1,$E$174=2),0,$L$176) -> 0 | N176: =IF(OR($E$174=1,$E$174=2),0,$L$176) -> 0 | O176: =IF(OR($E$174=1,$E$174=2),0,$L$176) -> 0 | P176: =IF(OR($E$174=1,$E$174=2),0,$L$176) -> 0 | Q176: =IF(OR($E$174=1,$E$174=2),0,$L$176) -> 0 | S176: =IF(OR($E$174=1,$E$174=2,$E$174=3),0,$R$176) -> 0 | T176: =IF(OR($E$174=1,$E$174=2,$E$174=3),0,$R$176) -> 0 | U176: =IF(OR($E$174=1,$E$174=2,$E$174=3),0,$R$176) -> 0 | V176: =IF(OR($E$174=1,$E$174=2,$E$174=3),0,$R$176) -> 0 | W176: =IF(OR($E$174=1,$E$174=2,$E$174=3),0,$R$176) -> 0 | Y176: =IF($E$174=5,$X$176,0) -> 0 | Z176: =IF($E$174=5,$X$176,0) -> 0
C177: =$C$20 -> Option 5: | D177: =IF($I$8=1,"MAIFI momentary",0) -> MAIFI momentary | E177: (no. of Interruption) | G177: =IF($E$116=1,0,IF(OR($E$116=2,$E$116=3,$E$116=4,$E$116=5),$F$177)) -> 0 | H177: =IF($E$116=1,0,IF(OR($E$116=2,$E$116=3,$E$116=4,$E$116=5),$F$177)) -> 0 | I177: 0 | J177: 0 | K177: 0 | M177: =IF(OR($E$116=1,$E$116=2),0,$L$177) -> 0 | N177: =IF(OR($E$116=1,$E$116=2),0,$L$177) -> 0 | O177: 0 | P177: 0 | Q177: 0 | S177: =IF(OR($E$116=1,$E$116=2,$E$116=3),0,$R$177) -> 0 | T177: =IF(OR($E$116=1,$E$116=2,$E$116=3),0,$R$177) -> 0 | U177: 0 | V177: 0 | W177: 0 | Y177: =IF($E$116=5,$X$177,0) -> 0 | Z177: =IF($E$116=5,$X$177,0) -> 0
C178: =$C$20 -> Option 5: | D178: =IF($I$8=1,"Call centre response",0) -> Call centre response | E178: (percentage) | G178: =IF($E$174=1,0,IF(OR($E$174=2,$E$174=3,$E$174=4,$E$174=5),$F$178)) -> 0 | H178: =IF($E$174=1,0,IF(OR($E$174=2,$E$174=3,$E$174=4,$E$174=5),$F$178)) -> 0 | I178: =IF($E$174=1,0,IF(OR($E$174=2,$E$174=3,$E$174=4,$E$174=5),$F$178)) -> 0 | J178: =IF($E$174=1,0,IF(OR($E$174=2,$E$174=3,$E$174=4,$E$174=5),$F$178)) -> 0 | K178: =IF($E$174=1,0,IF(OR($E$174=2,$E$174=3,$E$174=4,$E$174=5),$F$178)) -> 0 | M178: =IF(OR($E$174=1,$E$174=2),0,$L$178) -> 0 | N178: =IF(OR($E$174=1,$E$174=2),0,$L$178) -> 0 | O178: =IF(OR($E$174=1,$E$174=2),0,$L$178) -> 0 | P178: =IF(OR($E$174=1,$E$174=2),0,$L$178) -> 0 | Q178: =IF(OR($E$174=1,$E$174=2),0,$L$178) -> 0 | S178: =IF(OR($E$174=1,$E$174=2,$E$174=3),0,$R$178) -> 0 | T178: =IF(OR($E$174=1,$E$174=2,$E$174=3),0,$R$178) -> 0 | U178: =IF(OR($E$174=1,$E$174=2,$E$174=3),0,$R$178) -> 0 | V178: =IF(OR($E$174=1,$E$174=2,$E$174=3),0,$R$178) -> 0 | W178: =IF(OR($E$174=1,$E$174=2,$E$174=3),0,$R$178) -> 0 | Y178: =IF($E$174=5,$X$178,0) -> 0 | Z178: =IF($E$174=5,$X$178,0) -> 0
D180: =$D$35 -> Network Outage Costs | F180: =G12 -> 2016 | G180: =F180+1 -> 2017 | H180: 2018 | I180: 2019 | J180: 2020 | K180: 2021 | L180: 2022 | M180: 2023 | N180: 2024 | O180: 2025 | P180: 2026 | Q180: 2027 | R180: 2028 | S180: 2029 | T180: 2030 | U180: 2031 | V180: 2032 | W180: 2033 | X180: 2034 | Y180: 2035 | Z180: 2036
C181: =$C$20 -> Option 5: | D181: =$D$36 -> Customer off supply | E181: (minutes) | F181: =F176 -> 0 | G181: =G176 -> 0
D183: =D184 -> Loss of F Factor Benefit | F183: =G12 -> 2016 | G183: =F183+1 -> 2017 | H183: 2018 | I183: 2019 | J183: 2020 | K183: 2021 | L183: 2022 | M183: 2023 | N183: 2024 | O183: 2025 | P183: 2026 | Q183: 2027 | R183: 2028 | S183: 2029 | T183: 2030 | U183: 2031 | V183: 2032 | W183: 2033 | X183: 2034 | Y183: 2035 | Z183: 2036
C184: =$C$20 -> Option 5: | D184: =$D$39 -> Loss of F Factor Benefit | E184: =$E$39 -> (No. of fire start NOT avoided)
D186: Costs | F186: =G12 -> 2016 | G186: =F186+1 -> 2017 | H186: 2018 | I186: 2019 | J186: 2020 | K186: 2021 | L186: 2022 | M186: 2023 | N186: 2024 | O186: 2025 | P186: 2026 | Q186: 2027 | R186: 2028 | S186: 2029 | T186: 2030 | U186: 2031 | V186: 2032 | W186: 2033 | X186: 2034 | Y186: 2035 | Z186: 2036
C187: =$C$20 -> Option 5: | D187: =$D$42 -> Cost 1 | E187: ($000)
C188: Option 5: | D188: =$D$43 -> Cost 2 | E188: ($000)
C189: Option 5: | D189: =$D$44 -> Cost 3 | E189: ($000)
C190: Option 5: | D190: =$D$45 -> Cost 4 | E190: ($000)
C191: Option 5: | D191: =$D$46 -> Cost 5 | E191: ($000)
C192: Option 5: | D192: Risk 1 | E192: ($000)
C193: Option 5: | D193: Risk 2 | E193: ($000)
C194: Option 5: | D194: Risk 3 | E194: ($000)
C195: Option 5: | D195: Risk 4 | E195: ($000)
C196: Option 5: | D196: Risk 5 | E196: ($000)
C198: =IF(I8=1,"Regulatory Investment Tests - Distribution (RIT-D)","Regulatory Investment Test - NOT APPLICABLE") -> Regulatory Investment Tests - Distribution (RIT-D)
D200: Checklist
D202: Does the project contain augmentation component? | F202: 1
D204: =IF(F202=1,"Is the augmentation component over $5m?",0) -> Is the augmentation component over $5m? | F204: 2
D206: Is this a reliability corrective action? | F206: 2
D207: *Reliability Corrective Action: any augmentation work above $5m required to meet the network service standards stipulated under S5.1 or any other service standards required under the jurisdictional regulatory instruments (the Victorian code).
D208: =IF(AND(F202=1,F204=1),"Regulatory Investment Test is required!!!",0) -> 0
D209: =IF(OR(F202=2,F204=2),"Regulatory Investment Test is not compulsory for this business case, but recommended.",0) -> Regulatory Investment Test is not compulsory for this business case, but recommended.
D212: Benefits
C214: 1 | D214: =IF($F$206=1,"VCR - NOT APPLICABLE","Value of Electricity to Customers (VCR)") -> Value of Electricity to Customers (VCR) | E214: Rule 5.17.1 (c) 4 (ii) | F214: Probability % | G214: =G$186 -> 2017 | H214: 2018 | I214: 2019 | J214: 2020 | K214: 2021 | L214: 2022 | M214: 2023 | N214: 2024 | O214: 2025 | P214: 2026 | Q214: 2027 | R214: 2028 | S214: 2029 | T214: 2030 | U214: 2031 | V214: 2032 | W214: 2033 | X214: 2034 | Y214: 2035 | Z214: 2036
D215: =IF($F$206=1,"VCR - N/A",$D$24) -> "Status Quo" Reference Case | E215: =IF($F$206=1," ","(MWh)") -> (MWh)
D216: =IF($F$206=1,"VCR - N/A",$D$53) -> Option 1: RTS Redevelopment | E216: (MWh)
D217: =IF($F$206=1,"VCR - N/A",$D$82) -> Option 2: | E217: (MWh)
D218: =IF($F$206=1,"VCR - N/A",$D$111) -> Option 3: | E218: (MWh)
D219: =IF($F$206=1,"VCR - N/A",$D$140) -> Option 4: | E219: (MWh)
D220: =IF($F$206=1,"VCR - N/A",$D$169) -> Option 5: | E220: (MWh)
D221: =IF(F206=1,"Reliability corrective actions are not capacity requirements therefore there is zero VCR benefit.",0) -> 0
C222: 2 | D222: Changes in Voluntary Load Curtailment | E222: Rule 5.17.1 (c) 4 (i) | G222: =G$186 -> 2017 | H222: 2018 | I222: 2019 | J222: 2020 | K222: 2021 | L222: 2022 | M222: 2023 | N222: 2024 | O222: 2025 | P222: 2026 | Q222: 2027 | R222: 2028 | S222: 2029 | T222: 2030 | U222: 2031 | V222: 2032 | W222: 2033 | X222: 2034 | Y222: 2035 | Z222: 2036
D223: =$D$24 -> "Status Quo" Reference Case | E223: (MWh)
D224: =$D$53 -> Option 1: RTS Redevelopment | E224: (MWh)
D225: =$D$82 -> Option 2: | E225: (MWh)
D226: =$D$111 -> Option 3: | E226: (MWh)
D227: =$D$140 -> Option 4: | E227: (MWh)
D228: =$D$169 -> Option 5: | E228: (MWh)
C230: 3 | D230: Changes in Costs to Other Parties | E230: Rule 5.17.1 (c) 4 (iii) | G230: =G$186 -> 2017 | H230: 2018 | I230: 2019 | J230: 2020 | K230: 2021 | L230: 2022 | M230: 2023 | N230: 2024 | O230: 2025 | P230: 2026 | Q230: 2027 | R230: 2028 | S230: 2029 | T230: 2030 | U230: 2031 | V230: 2032 | W230: 2033 | X230: 2034 | Y230: 2035 | Z230: 2036
D231: =$D$24 -> "Status Quo" Reference Case | E231: ($000)
D232: =$D$53 -> Option 1: RTS Redevelopment | E232: ($000)
D233: =$D$82 -> Option 2: | E233: ($000)
D234: =$D$111 -> Option 3: | E234: ($000)
D235: =$D$140 -> Option 4: | E235: ($000)
D236: =$D$169 -> Option 5: | E236: ($000)
C238: 4 | D238: Difference in Timing (capex) | E238: Rule 5.17.1 (c) 4 (iv) | G238: =G$186 -> 2017 | H238: 2018 | I238: 2019 | J238: 2020 | K238: 2021 | L238: 2022 | M238: 2023 | N238: 2024 | O238: 2025 | P238: 2026 | Q238: 2027 | R238: 2028 | S238: 2029 | T238: 2030 | U238: 2031 | V238: 2032 | W238: 2033 | X238: 2034 | Y238: 2035 | Z238: 2036
D239: =$D$24 -> "Status Quo" Reference Case | E239: Pending AER guideline
D240: =$D$53 -> Option 1: RTS Redevelopment | E240: =E239 -> Pending AER guideline
D241: =$D$82 -> Option 2: | E241: =E240 -> Pending AER guideline
D242: =$D$111 -> Option 3: | E242: =E241 -> Pending AER guideline
D243: =$D$140 -> Option 4: | E243: =E242 -> Pending AER guideline
D244: =$D$169 -> Option 5: | E244: =E243 -> Pending AER guideline
C246: 5 | D246: Changes in Load Transfer Capacity | E246: Rule 5.17.1 (c) 4 (v) | G246: =G$186 -> 2017 | H246: 2018 | I246: 2019 | J246: 2020 | K246: 2021 | L246: 2022 | M246: 2023 | N246: 2024 | O246: 2025 | P246: 2026 | Q246: 2027 | R246: 2028 | S246: 2029 | T246: 2030 | U246: 2031 | V246: 2032 | W246: 2033 | X246: 2034 | Y246: 2035 | Z246: 2036
D247: =$D$24 -> "Status Quo" Reference Case | E247: (MWh)
D248: =$D$53 -> Option 1: RTS Redevelopment | E248: (MWh)
D249: =$D$82 -> Option 2: | E249: (MWh)
D250: =$D$111 -> Option 3: | E250: (MWh)
D251: =$D$140 -> Option 4: | E251: (MWh)
D252: =$D$169 -> Option 5: | E252: (MWh)
... 84 more rows

Sheet User Working Sheet
D3: $000, nominal
G4: 0 | H4: 1 | I4: 2 | J4: 3 | K4: 4 | L4: 5 | M4: 6 | N4: 7 | O4: 8 | P4: 9 | Q4: 10 | R4: 11 | S4: 12 | T4: 13 | U4: 14 | V4: 15 | W4: 16
G5: ='User Input'!E6 -> 2015 | H5: =G5+1 -> 2016 | I5: =H5+1 -> 2017 | J5: 2018 | K5: 2019 | L5: 2020 | M5: 2021 | N5: 2022 | O5: 2023 | P5: 2024 | Q5: 2025 | R5: 2026 | S5: 2027 | T5: 2028 | U5: 2029 | V5: 2030 | W5: 2031 | X5: 2032 | Y5: 2033 | Z5: 2034 | AA5: 2035

Sheet Failure over time
B3: CB
D4: 0.4787793237
C5: 2016 | D5: 2017 | E5: 2018 | F5: 2019 | G5: 2020 | H5: 2021 | I5: 2022 | J5: 2023 | K5: 2024 | L5: 2025 | M5: 2026 | N5: 2027 | O5: 2028 | P5: 2029 | Q5: 2030 | R5: 2031
B6: Years | C6: 1 | D6: 2 | E6: 3 | F6: 4 | G6: 5 | H6: 6 | I6: 7 | J6: 8 | K6: 9 | L6: 10 | M6: 11 | N6: 12 | O6: 13 | P6: 14 | Q6: 15 | R6: 16
B7: Probability of failure | C7: =1/'User Working Sheet'!J109 ->  | D7: =C7*(1+$D$4) ->  | E7: =D7*(1+$D$4) -> 
B11: 1/2 BUS
D12: 0.3492912518
B14: Years | C14: 1 | D14: 2 | E14: 3 | F14: 4 | G14: 5 | H14: 6 | I14: 7 | J14: 8 | K14: 9 | L14: 10 | M14: 11 | N14: 12 | O14: 13 | P14: 14 | Q14: 15 | R14: 16
B15: Probability of failure | C15: =1/'User Working Sheet'!J110 ->  | D15: =C15*(1+$D$12) ->  | E15: =D15*(1+$D$12) -> 
B21: BUS TRIP
D22: 0.3110226005
B24: Years | C24: 1 | D24: 2 | E24: 3 | F24: 4 | G24: 5 | H24: 6 | I24: 7 | J24: 8 | K24: 9 | L24: 10 | M24: 11 | N24: 12 | O24: 13 | P24: 14 | Q24: 15 | R24: 16
B25: Probability of failure | C25: =1/'User Working Sheet'!J111 ->  | D25: =C25*(1+$D$22) ->  | E25: =D25*(1+$D$22) -> 
B31: ZSS
D32: 0.5849892297
B34: Years | C34: 1 | D34: 2 | E34: 3 | F34: 4 | G34: 5 | H34: 6 | I34: 7 | J34: 8 | K34: 9 | L34: 10 | M34: 11 | N34: 12 | O34: 13 | P34: 14 | Q34: 15 | R34: 16
B35: Probability of failure | C35: =1/'User Working Sheet'!J112 ->  | D35: =C35*(1+$D$32) ->  | E35: =D35*(1+$D$32) -> 
Z44: 24 | AA44: 25 | AB44: 26
Z45: =Y45*(1+$D$42) -> 0 | AA45: 0 | AB45: 0

Sheet Calculations
B2: $000, nominal | E2: CAPITAL EXPENDITURE PROPOSAL
E3: ='User Input'!E4 -> RTS Redevelopment
B4: Discount Rate | D4: =IF('User Input'!I8=1,'Administrator Input'!F6,'Administrator Input'!G6) -> 0.0622
E5: ='User Input'!E6 -> 2015 | F5: =E5+1 -> 2016 | G5: =F5+1 -> 2017 | H5: 2018 | I5: 2019 | J5: 2020 | K5: 2021 | L5: 2022 | M5: 2023 | N5: 2024 | O5: 2025 | P5: 2026 | Q5: 2027 | R5: 2028 | S5: 2029 | T5: 2030 | U5: 2031 | V5: 2032 | W5: 2033 | X5: 2034 | Y5: 2035
D7: t= | E7: 0 | F7: 1 | G7: 2 | H7: 3 | I7: 4 | J7: 5 | K7: 6 | L7: 7 | M7: 8 | N7: 9 | O7: 10 | P7: 11 | Q7: 12 | R7: 13 | S7: 14 | T7: 15 | U7: 16 | V7: 17 | W7: 18 | X7: 19 | Y7: 20
B8: Inflation (%) | F8: ='Administrator Input'!F35 -> 0.027 | G8: =+$F$8 -> 0.027 | H8: 0.027 | I8: 0.027 | J8: 0.027 | K8: 0.027 | L8: 0.027 | M8: 0.027 | N8: 0.027 | O8: 0.027 | P8: 0.027 | Q8: 0.027 | R8: 0.027 | S8: 0.027 | T8: 0.027 | U8: 0.027 | V8: 0.027 | W8: 0.027 | X8: 0.027 | Y8: 0.027
B9: Inflation Index | E9: 1 | F9: =E9+(+E9*F8) -> 1.027 | G9: 1.054729 | H9: 1.083206683 | I9: 1.112453263 | J9: 1.142489502 | K9: 1.173336718 | L9: 1.205016809 | M9: 1.237552263 | N9: 1.270966174 | O9: 1.305282261 | P9: 1.340524882 | Q9: 1.376719054 | R9: 1.413890468 | S9: 1.452065511 | T9: 1.49127128 | U9: 1.531535604 | V9: 1.572887066 | W9: 1.615355017 | X9: 1.658969602 | Y9: 1.703761781
B11: ='User Input'!D24 -> "Status Quo" Reference Case
C13: Capital Costs | D13: =SUM(E13:Y13) -> 0 | E13: ='User Input'!F15 -> 0 | F13: ='User Input'!G15*F$9 -> 0 | G13: ='User Input'!H15*G$9 -> 0 | H13: ='User Input'!I15*H$9 -> 0 | I13: ='User Input'!J15*I$9 -> 0 | J13: ='User Input'!K15*J$9 -> 0 | K13: ='User Input'!L15*K$9 -> 0 | L13: ='User Input'!M15*L$9 -> 0 | M13: ='User Input'!N15*M$9 -> 0 | N13: ='User Input'!O15*N$9 -> 0 | O13: ='User Input'!P15*O$9 -> 0 | P13: ='User Input'!Q15*P$9 -> 0 | Q13: ='User Input'!R15*Q$9 -> 0 | R13: ='User Input'!S15*R$9 -> 0 | S13: ='User Input'!T15*S$9 -> 0 | T13: ='User Input'!U15*T$9 -> 0 | U13: ='User Input'!V15*U$9 -> 0 | V13: ='User Input'!W15*V$9 -> 0 | W13: ='User Input'!X15*W$9 -> 0 | X13: ='User Input'!Y15*X$9 -> 0 | Y13: ='User Input'!Z15*Y$9 -> 0
C14: ='User Input'!D27 -> Annual Maintenance Costs | D14: 0 | E14: ='User Input'!F27 -> 0 | F14: ='User Input'!G27*F$9 -> 0 | G14: ='User Input'!H27*G$9 -> 0 | H14: ='User Input'!I27*H$9 -> 0 | I14: ='User Input'!J27*I$9 -> 0 | J14: ='User Input'!K27*J$9 -> 0 | K14: ='User Input'!L27*K$9 -> 0 | L14: ='User Input'!M27*L$9 -> 0 | M14: ='User Input'!N27*M$9 -> 0 | N14: ='User Input'!O27*N$9 -> 0 | O14: ='User Input'!P27*O$9 -> 0 | P14: ='User Input'!Q27*P$9 -> 0 | Q14: ='User Input'!R27*Q$9 -> 0 | R14: ='User Input'!S27*R$9 -> 0 | S14: ='User Input'!T27*S$9 -> 0 | T14: ='User Input'!U27*T$9 -> 0 | U14: ='User Input'!V27*U$9 -> 0 | V14: ='User Input'!W27*V$9 -> 0 | W14: ='User Input'!X27*W$9 -> 0 | X14: ='User Input'!Y27*X$9 -> 0 | Y14: ='User Input'!Z27*Y$9 -> 0
C15: ='User Input'!D29 -> Negative Impact on Revenue (STPIS)
C16: SAIFI sustained | D16: 72020.77328 | E16: 0 | F16: 0 | G16: =IF('User Input'!$I$8=1,'User Input'!F30*'Administrator Input'!$F$41*G9,0) -> 2950.911351 | H16: =IF('User Input'!$I$8=1,'User Input'!G30*'Administrator Input'!$F$41*H9,0) -> 3030.585957 | I16: =IF('User Input'!$I$8=1,'User Input'!H30*'Administrator Input'!$F$41*I9,0) -> 3112.411778 | J16: =IF('User Input'!$I$8=1,'User Input'!I30*'Administrator Input'!$F$41*J9,0) -> 3196.446896 | K16: =IF('User Input'!$I$8=1,'User Input'!J30*'Administrator Input'!$F$41*K9,0) -> 3282.750962 | L16: =IF('User Input'!$I$8=1,'User Input'!K30*'Administrator Input'!$F$41*L9,0) -> 3371.385238 | M16: =IF('User Input'!$I$8=1,'User Input'!L30*'Administrator Input'!$F$41*M9,0) -> 3462.41264 | N16: =IF('User Input'!$I$8=1,'User Input'!M30*'Administrator Input'!$F$41*N9,0) -> 3555.897781 | O16: =IF('User Input'!$I$8=1,'User Input'!N30*'Administrator Input'!$F$41*O9,0) -> 3651.907021 | P16: =IF('User Input'!$I$8=1,'User Input'!O30*'Administrator Input'!$F$41*P9,0) -> 3750.508511 | Q16: =IF('User Input'!$I$8=1,'User Input'!P30*'Administrator Input'!$F$41*Q9,0) -> 3851.772241 | R16: =IF('User Input'!$I$8=1,'User Input'!Q30*'Administrator Input'!$F$41*R9,0) -> 3955.770091 | S16: =IF('User Input'!$I$8=1,'User Input'!R30*'Administrator Input'!$F$41*S9,0) -> 4062.575883 | T16: =IF('User Input'!$I$8=1,'User Input'!S30*'Administrator Input'!$F$41*T9,0) -> 4172.265432 | U16: =IF('User Input'!$I$8=1,'User Input'!T30*'Administrator Input'!$F$41*U9,0) -> 4284.916599 | V16: =IF('User Input'!$I$8=1,'User Input'!U30*'Administrator Input'!$F$41*V9,0) -> 4400.609347 | W16: =IF('User Input'!$I$8=1,'User Input'!V30*'Administrator Input'!$F$41*W9,0) -> 4519.4258 | X16: =IF('User Input'!$I$8=1,'User Input'!W30*'Administrator Input'!$F$41*X9,0) -> 4641.450296 | Y16: =IF('User Input'!$I$8=1,'User Input'!X30*'Administrator Input'!$F$41*Y9,0) -> 4766.769454
C17: SAIDI accidental | D17: 264076.1687 | E17: 0 | F17: 0 | G17: =IF('User Input'!$I$8=1,'User Input'!F31*'Administrator Input'!$F$42*G9,0) -> 10820.00829 | H17: =IF('User Input'!$I$8=1,'User Input'!G31*'Administrator Input'!$F$42*H9,0) -> 11112.14851 | I17: =IF('User Input'!$I$8=1,'User Input'!H31*'Administrator Input'!$F$42*I9,0) -> 11412.17652 | J17: =IF('User Input'!$I$8=1,'User Input'!I31*'Administrator Input'!$F$42*J9,0) -> 11720.30529 | K17: =IF('User Input'!$I$8=1,'User Input'!J31*'Administrator Input'!$F$42*K9,0) -> 12036.75353 | L17: =IF('User Input'!$I$8=1,'User Input'!K31*'Administrator Input'!$F$42*L9,0) -> 12361.74587 | M17: =IF('User Input'!$I$8=1,'User Input'!L31*'Administrator Input'!$F$42*M9,0) -> 12695.51301 | N17: =IF('User Input'!$I$8=1,'User Input'!M31*'Administrator Input'!$F$42*N9,0) -> 13038.29186 | O17: =IF('User Input'!$I$8=1,'User Input'!N31*'Administrator Input'!$F$42*O9,0) -> 13390.32574 | P17: =IF('User Input'!$I$8=1,'User Input'!O31*'Administrator Input'!$F$42*P9,0) -> 13751.86454 | Q17: =IF('User Input'!$I$8=1,'User Input'!P31*'Administrator Input'!$F$42*Q9,0) -> 14123.16488 | R17: =IF('User Input'!$I$8=1,'User Input'!Q31*'Administrator Input'!$F$42*R9,0) -> 14504.49033 | S17: =IF('User Input'!$I$8=1,'User Input'!R31*'Administrator Input'!$F$42*S9,0) -> 14896.11157 | T17: =IF('User Input'!$I$8=1,'User Input'!S31*'Administrator Input'!$F$42*T9,0) -> 15298.30659 | U17: =IF('User Input'!$I$8=1,'User Input'!T31*'Administrator Input'!$F$42*U9,0) -> 15711.36086 | V17: =IF('User Input'!$I$8=1,'User Input'!U31*'Administrator Input'!$F$42*V9,0) -> 16135.56761 | W17: =IF('User Input'!$I$8=1,'User Input'!V31*'Administrator Input'!$F$42*W9,0) -> 16571.22793 | X17: =IF('User Input'!$I$8=1,'User Input'!W31*'Administrator Input'!$F$42*X9,0) -> 17018.65109 | Y17: =IF('User Input'!$I$8=1,'User Input'!X31*'Administrator Input'!$F$42*Y9,0) -> 17478.15467
C18: MAIFI momentary | D18: 0 | E18: 0 | F18: 0 | G18: =IF('User Input'!$I$8=1,'User Input'!F32*'Administrator Input'!$F$43*G9,0) -> 0 | H18: =IF('User Input'!$I$8=1,'User Input'!G32*'Administrator Input'!$F$43*H9,0) -> 0 | I18: =IF('User Input'!$I$8=1,'User Input'!H32*'Administrator Input'!$F$43*I9,0) -> 0 | J18: =IF('User Input'!$I$8=1,'User Input'!I32*'Administrator Input'!$F$43*J9,0) -> 0 | K18: =IF('User Input'!$I$8=1,'User Input'!J32*'Administrator Input'!$F$43*K9,0) -> 0 | L18: =IF('User Input'!$I$8=1,'User Input'!K32*'Administrator Input'!$F$43*L9,0) -> 0 | M18: =IF('User Input'!$I$8=1,'User Input'!L32*'Administrator Input'!$F$43*M9,0) -> 0 | N18: =IF('User Input'!$I$8=1,'User Input'!M32*'Administrator Input'!$F$43*N9,0) -> 0 | O18: =IF('User Input'!$I$8=1,'User Input'!N32*'Administrator Input'!$F$43*O9,0) -> 0 | P18: =IF('User Input'!$I$8=1,'User Input'!O32*'Administrator Input'!$F$43*P9,0) -> 0 | Q18: =IF('User Input'!$I$8=1,'User Input'!P32*'Administrator Input'!$F$43*Q9,0) -> 0 | R18: =IF('User Input'!$I$8=1,'User Input'!Q32*'Administrator Input'!$F$43*R9,0) -> 0 | S18: =IF('User Input'!$I$8=1,'User Input'!R32*'Administrator Input'!$F$43*S9,0) -> 0 | T18: =IF('User Input'!$I$8=1,'User Input'!S32*'Administrator Input'!$F$43*T9,0) -> 0 | U18: =IF('User Input'!$I$8=1,'User Input'!T32*'Administrator Input'!$F$43*U9,0) -> 0 | V18: =IF('User Input'!$I$8=1,'User Input'!U32*'Administrator Input'!$F$43*V9,0) -> 0 | W18: =IF('User Input'!$I$8=1,'User Input'!V32*'Administrator Input'!$F$43*W9,0) -> 0 | X18: =IF('User Input'!$I$8=1,'User Input'!W32*'Administrator Input'!$F$43*X9,0) -> 0 | Y18: =IF('User Input'!$I$8=1,'User Input'!X32*'Administrator Input'!$F$43*Y9,0) -> 0
C19: Call centre response | D19: 0 | E19: 0 | F19: 0 | G19: =IF('User Input'!$I$8=1,'User Input'!F33*'Administrator Input'!$F$44*G9,0) -> 0 | H19: =IF('User Input'!$I$8=1,'User Input'!G33*'Administrator Input'!$F$44*H9,0) -> 0 | I19: =IF('User Input'!$I$8=1,'User Input'!H33*'Administrator Input'!$F$44*I9,0) -> 0 | J19: =IF('User Input'!$I$8=1,'User Input'!I33*'Administrator Input'!$F$44*J9,0) -> 0 | K19: =IF('User Input'!$I$8=1,'User Input'!J33*'Administrator Input'!$F$44*K9,0) -> 0 | L19: =IF('User Input'!$I$8=1,'User Input'!K33*'Administrator Input'!$F$44*L9,0) -> 0 | M19: =IF('User Input'!$I$8=1,'User Input'!L33*'Administrator Input'!$F$44*M9,0) -> 0 | N19: =IF('User Input'!$I$8=1,'User Input'!M33*'Administrator Input'!$F$44*N9,0) -> 0 | O19: =IF('User Input'!$I$8=1,'User Input'!N33*'Administrator Input'!$F$44*O9,0) -> 0 | P19: =IF('User Input'!$I$8=1,'User Input'!O33*'Administrator Input'!$F$44*P9,0) -> 0 | Q19: =IF('User Input'!$I$8=1,'User Input'!P33*'Administrator Input'!$F$44*Q9,0) -> 0 | R19: =IF('User Input'!$I$8=1,'User Input'!Q33*'Administrator Input'!$F$44*R9,0) -> 0 | S19: =IF('User Input'!$I$8=1,'User Input'!R33*'Administrator Input'!$F$44*S9,0) -> 0 | T19: =IF('User Input'!$I$8=1,'User Input'!S33*'Administrator Input'!$F$44*T9,0) -> 0 | U19: =IF('User Input'!$I$8=1,'User Input'!T33*'Administrator Input'!$F$44*U9,0) -> 0 | V19: =IF('User Input'!$I$8=1,'User Input'!U33*'Administrator Input'!$F$44*V9,0) -> 0 | W19: =IF('User Input'!$I$8=1,'User Input'!V33*'Administrator Input'!$F$44*W9,0) -> 0 | X19: =IF('User Input'!$I$8=1,'User Input'!W33*'Administrator Input'!$F$44*X9,0) -> 0 | Y19: =IF('User Input'!$I$8=1,'User Input'!X33*'Administrator Input'!$F$44*Y9,0) -> 0
C20: ='User Input'!D35 -> Network Outage Costs | D20: 19174.76615 | E20: ='User Input'!F36*'Administrator Input'!$F$49*E9 -> 1053.834627 | F20: ='User Input'!G36*'Administrator Input'!$F$49*F9 -> 1082.288162 | G20: ='User Input'!H36*'Administrator Input'!$F$49*G9 -> 1111.509942 | H20: ='User Input'!I36*'Administrator Input'!$F$49*H9 -> 1141.520711 | I20: ='User Input'!J36*'Administrator Input'!$F$49*I9 -> 1172.34177 | J20: ='User Input'!K36*'Administrator Input'!$F$49*J9 -> 1203.994998 | K20: ='User Input'!L36*'Administrator Input'!$F$49*K9 -> 1236.502863 | L20: ='User Input'!M36*'Administrator Input'!$F$49*L9 -> 1269.88844 | M20: ='User Input'!N36*'Administrator Input'!$F$49*M9 -> 1304.175428 | N20: ='User Input'!O36*'Administrator Input'!$F$49*N9 -> 1339.388164 | O20: ='User Input'!P36*'Administrator Input'!$F$49*O9 -> 1375.551645 | P20: ='User Input'!Q36*'Administrator Input'!$F$49*P9 -> 1412.691539 | Q20: ='User Input'!R36*'Administrator Input'!$F$49*Q9 -> 1450.834211 | R20: ='User Input'!S36*'Administrator Input'!$F$49*R9 -> 1490.006734 | S20: ='User Input'!T36*'Administrator Input'!$F$49*S9 -> 1530.236916 | T20: ='User Input'!U36*'Administrator Input'!$F$49*T9 -> 0 | U20: ='User Input'!V36*'Administrator Input'!$F$49*U9 -> 0 | V20: ='User Input'!W36*'Administrator Input'!$F$49*V9 -> 0 | W20: ='User Input'!X36*'Administrator Input'!$F$49*W9 -> 0 | X20: ='User Input'!Y36*'Administrator Input'!$F$49*X9 -> 0 | Y20: ='User Input'!Z36*'Administrator Input'!$F$49*Y9 -> 0
C21: ='User Input'!D39 -> Loss of F Factor Benefit | D21: 0 | E21: ='User Input'!F39*'Administrator Input'!$F$54 -> 0 | F21: ='User Input'!G39*'Administrator Input'!$F$54 -> 0 | G21: ='User Input'!H39*'Administrator Input'!$F$54 -> 0 | H21: ='User Input'!I39*'Administrator Input'!$F$54 -> 0 | I21: ='User Input'!J39*'Administrator Input'!$F$54 -> 0 | J21: ='User Input'!K39*'Administrator Input'!$F$54 -> 0 | K21: ='User Input'!L39*'Administrator Input'!$F$54 -> 0 | L21: ='User Input'!M39*'Administrator Input'!$F$54 -> 0 | M21: ='User Input'!N39*'Administrator Input'!$F$54 -> 0 | N21: ='User Input'!O39*'Administrator Input'!$F$54 -> 0 | O21: ='User Input'!P39*'Administrator Input'!$F$54 -> 0 | P21: ='User Input'!Q39*'Administrator Input'!$F$54 -> 0 | Q21: ='User Input'!R39*'Administrator Input'!$F$54 -> 0 | R21: ='User Input'!S39*'Administrator Input'!$F$54 -> 0 | S21: ='User Input'!T39*'Administrator Input'!$F$54 -> 0 | T21: ='User Input'!U39*'Administrator Input'!$F$54 -> 0 | U21: ='User Input'!V39*'Administrator Input'!$F$54 -> 0 | V21: ='User Input'!W39*'Administrator Input'!$F$54 -> 0 | W21: ='User Input'!X39*'Administrator Input'!$F$54 -> 0 | X21: ='User Input'!Y39*'Administrator Input'!$F$54 -> 0 | Y21: ='User Input'!Z39*'Administrator Input'!$F$54 -> 0
C22: ='User Input'!D42 -> Cost 1 | D22: 0 | E22: ='User Input'!F42 -> 0 | F22: ='User Input'!G42*F$9 -> 0 | G22: ='User Input'!H42*G$9 -> 0 | H22: ='User Input'!I42*H$9 -> 0 | I22: ='User Input'!J42*I$9 -> 0 | J22: ='User Input'!K42*J$9 -> 0 | K22: ='User Input'!L42*K$9 -> 0 | L22: ='User Input'!M42*L$9 -> 0 | M22: ='User Input'!N42*M$9 -> 0 | N22: ='User Input'!O42*N$9 -> 0 | O22: ='User Input'!P42*O$9 -> 0 | P22: ='User Input'!Q42*P$9 -> 0 | Q22: ='User Input'!R42*Q$9 -> 0 | R22: ='User Input'!S42*R$9 -> 0 | S22: ='User Input'!T42*S$9 -> 0 | T22: ='User Input'!U42*T$9 -> 0 | U22: ='User Input'!V42*U$9 -> 0 | V22: ='User Input'!W42*V$9 -> 0 | W22: ='User Input'!X42*W$9 -> 0 | X22: ='User Input'!Y42*X$9 -> 0 | Y22: ='User Input'!Z42*Y$9 -> 0
C23: ='User Input'!D43 -> Cost 2 | D23: 0 | E23: ='User Input'!F43 -> 0 | F23: ='User Input'!G43*F$9 -> 0 | G23: ='User Input'!H43*G$9 -> 0 | H23: ='User Input'!I43*H$9 -> 0 | I23: ='User Input'!J43*I$9 -> 0 | J23: ='User Input'!K43*J$9 -> 0 | K23: ='User Input'!L43*K$9 -> 0 | L23: ='User Input'!M43*L$9 -> 0 | M23: ='User Input'!N43*M$9 -> 0 | N23: ='User Input'!O43*N$9 -> 0 | O23: ='User Input'!P43*O$9 -> 0 | P23: ='User Input'!Q43*P$9 -> 0 | Q23: ='User Input'!R43*Q$9 -> 0 | R23: ='User Input'!S43*R$9 -> 0 | S23: ='User Input'!T43*S$9 -> 0 | T23: ='User Input'!U43*T$9 -> 0 | U23: ='User Input'!V43*U$9 -> 0 | V23: ='User Input'!W43*V$9 -> 0 | W23: ='User Input'!X43*W$9 -> 0 | X23: ='User Input'!Y43*X$9 -> 0 | Y23: ='User Input'!Z43*Y$9 -> 0
C24: ='User Input'!D44 -> Cost 3 | D24: 0 | E24: ='User Input'!F44 -> 0 | F24: ='User Input'!G44*F$9 -> 0 | G24: ='User Input'!H44*G$9 -> 0 | H24: ='User Input'!I44*H$9 -> 0 | I24: ='User Input'!J44*I$9 -> 0 | J24: ='User Input'!K44*J$9 -> 0 | K24: ='User Input'!L44*K$9 -> 0 | L24: ='User Input'!M44*L$9 -> 0 | M24: ='User Input'!N44*M$9 -> 0 | N24: ='User Input'!O44*N$9 -> 0 | O24: ='User Input'!P44*O$9 -> 0 | P24: ='User Input'!Q44*P$9 -> 0 | Q24: ='User Input'!R44*Q$9 -> 0 | R24: ='User Input'!S44*R$9 -> 0 | S24: ='User Input'!T44*S$9 -> 0 | T24: ='User Input'!U44*T$9 -> 0 | U24: ='User Input'!V44*U$9 -> 0 | V24: ='User Input'!W44*V$9 -> 0 | W24: ='User Input'!X44*W$9 -> 0 | X24: ='User Input'!Y44*X$9 -> 0 | Y24: ='User Input'!Z44*Y$9 -> 0
C25: ='User Input'!D45 -> Cost 4 | D25: 0 | E25: ='User Input'!F45 -> 0 | F25: ='User Input'!G45*F$9 -> 0 | G25: ='User Input'!H45*G$9 -> 0 | H25: ='User Input'!I45*H$9 -> 0 | I25: ='User Input'!J45*I$9 -> 0 | J25: ='User Input'!K45*J$9 -> 0 | K25: ='User Input'!L45*K$9 -> 0 | L25: ='User Input'!M45*L$9 -> 0 | M25: ='User Input'!N45*M$9 -> 0 | N25: ='User Input'!O45*N$9 -> 0 | O25: ='User Input'!P45*O$9 -> 0 | P25: ='User Input'!Q45*P$9 -> 0 | Q25: ='User Input'!R45*Q$9 -> 0 | R25: ='User Input'!S45*R$9 -> 0 | S25: ='User Input'!T45*S$9 -> 0 | T25: ='User Input'!U45*T$9 -> 0 | U25: ='User Input'!V45*U$9 -> 0 | V25: ='User Input'!W45*V$9 -> 0 | W25: ='User Input'!X45*W$9 -> 0 | X25: ='User Input'!Y45*X$9 -> 0 | Y25: ='User Input'!Z45*Y$9 -> 0
C26: ='User Input'!D46 -> Cost 5 | D26: 0 | E26: ='User Input'!F46 -> 0 | F26: ='User Input'!G46*F$9 -> 0 | G26: ='User Input'!H46*G$9 -> 0 | H26: ='User Input'!I46*H$9 -> 0 | I26: ='User Input'!J46*I$9 -> 0 | J26: ='User Input'!K46*J$9 -> 0 | K26: ='User Input'!L46*K$9 -> 0 | L26: ='User Input'!M46*L$9 -> 0 | M26: ='User Input'!N46*M$9 -> 0 | N26: ='User Input'!O46*N$9 -> 0 | O26: ='User Input'!P46*O$9 -> 0 | P26: ='User Input'!Q46*P$9 -> 0 | Q26: ='User Input'!R46*Q$9 -> 0 | R26: ='User Input'!S46*R$9 -> 0 | S26: ='User Input'!T46*S$9 -> 0 | T26: ='User Input'!U46*T$9 -> 0 | U26: ='User Input'!V46*U$9 -> 0 | V26: ='User Input'!W46*V$9 -> 0 | W26: ='User Input'!X46*W$9 -> 0 | X26: ='User Input'!Y46*X$9 -> 0 | Y26: ='User Input'!Z46*Y$9 -> 0
C27: ='User Input'!D47 -> Risk 1 | D27: 0 | E27: ='User Input'!F47 -> 0 | F27: ='User Input'!G47*F$9 -> 0 | G27: ='User Input'!H47*G$9 -> 0 | H27: ='User Input'!I47*H$9 -> 0 | I27: ='User Input'!J47*I$9 -> 0 | J27: ='User Input'!K47*J$9 -> 0 | K27: ='User Input'!L47*K$9 -> 0 | L27: ='User Input'!M47*L$9 -> 0 | M27: ='User Input'!N47*M$9 -> 0 | N27: ='User Input'!O47*N$9 -> 0 | O27: ='User Input'!P47*O$9 -> 0 | P27: ='User Input'!Q47*P$9 -> 0 | Q27: ='User Input'!R47*Q$9 -> 0 | R27: ='User Input'!S47*R$9 -> 0 | S27: ='User Input'!T47*S$9 -> 0 | T27: ='User Input'!U47*T$9 -> 0 | U27: ='User Input'!V47*U$9 -> 0 | V27: ='User Input'!W47*V$9 -> 0 | W27: ='User Input'!X47*W$9 -> 0 | X27: ='User Input'!Y47*X$9 -> 0 | Y27: ='User Input'!Z47*Y$9 -> 0
C28: ='User Input'!D48 -> Risk 2 | D28: 0 | E28: ='User Input'!F48 -> 0 | F28: ='User Input'!G48*F$9 -> 0 | G28: ='User Input'!H48*G$9 -> 0 | H28: ='User Input'!I48*H$9 -> 0 | I28: ='User Input'!J48*I$9 -> 0 | J28: ='User Input'!K48*J$9 -> 0 | K28: ='User Input'!L48*K$9 -> 0 | L28: ='User Input'!M48*L$9 -> 0 | M28: ='User Input'!N48*M$9 -> 0 | N28: ='User Input'!O48*N$9 -> 0 | O28: ='User Input'!P48*O$9 -> 0 | P28: ='User Input'!Q48*P$9 -> 0 | Q28: ='User Input'!R48*Q$9 -> 0 | R28: ='User Input'!S48*R$9 -> 0 | S28: ='User Input'!T48*S$9 -> 0 | T28: ='User Input'!U48*T$9 -> 0 | U28: ='User Input'!V48*U$9 -> 0 | V28: ='User Input'!W48*V$9 -> 0 | W28: ='User Input'!X48*W$9 -> 0 | X28: ='User Input'!Y48*X$9 -> 0 | Y28: ='User Input'!Z48*Y$9 -> 0
C29: ='User Input'!D49 -> Risk 3 | D29: 0 | E29: ='User Input'!F49 -> 0 | F29: ='User Input'!G49*F$9 -> 0 | G29: ='User Input'!H49*G$9 -> 0 | H29: ='User Input'!I49*H$9 -> 0 | I29: ='User Input'!J49*I$9 -> 0 | J29: ='User Input'!K49*J$9 -> 0 | K29: ='User Input'!L49*K$9 -> 0 | L29: ='User Input'!M49*L$9 -> 0 | M29: ='User Input'!N49*M$9 -> 0 | N29: ='User Input'!O49*N$9 -> 0 | O29: ='User Input'!P49*O$9 -> 0 | P29: ='User Input'!Q49*P$9 -> 0 | Q29: ='User Input'!R49*Q$9 -> 0 | R29: ='User Input'!S49*R$9 -> 0 | S29: ='User Input'!T49*S$9 -> 0 | T29: ='User Input'!U49*T$9 -> 0 | U29: ='User Input'!V49*U$9 -> 0 | V29: ='User Input'!W49*V$9 -> 0 | W29: ='User Input'!X49*W$9 -> 0 | X29: ='User Input'!Y49*X$9 -> 0 | Y29: ='User Input'!Z49*Y$9 -> 0
C30: ='User Input'!D50 -> Risk 4 | D30: 0 | E30: ='User Input'!F50 -> 0 | F30: ='User Input'!G50*F$9 -> 0 | G30: ='User Input'!H50*G$9 -> 0 | H30: ='User Input'!I50*H$9 -> 0 | I30: ='User Input'!J50*I$9 -> 0 | J30: ='User Input'!K50*J$9 -> 0 | K30: ='User Input'!L50*K$9 -> 0 | L30: ='User Input'!M50*L$9 -> 0 | M30: ='User Input'!N50*M$9 -> 0 | N30: ='User Input'!O50*N$9 -> 0 | O30: ='User Input'!P50*O$9 -> 0 | P30: ='User Input'!Q50*P$9 -> 0 | Q30: ='User Input'!R50*Q$9 -> 0 | R30: ='User Input'!S50*R$9 -> 0 | S30: ='User Input'!T50*S$9 -> 0 | T30: ='User Input'!U50*T$9 -> 0 | U30: ='User Input'!V50*U$9 -> 0 | V30: ='User Input'!W50*V$9 -> 0 | W30: ='User Input'!X50*W$9 -> 0 | X30: ='User Input'!Y50*X$9 -> 0 | Y30: ='User Input'!Z50*Y$9 -> 0
C31: ='User Input'!D51 -> Risk 5 | D31: 0 | E31: ='User Input'!F51 -> 0 | F31: ='User Input'!G51*F$9 -> 0 | G31: ='User Input'!H51*G$9 -> 0 | H31: ='User Input'!I51*H$9 -> 0 | I31: ='User Input'!J51*I$9 -> 0 | J31: ='User Input'!K51*J$9 -> 0 | K31: ='User Input'!L51*K$9 -> 0 | L31: ='User Input'!M51*L$9 -> 0 | M31: ='User Input'!N51*M$9 -> 0 | N31: ='User Input'!O51*N$9 -> 0 | O31: ='User Input'!P51*O$9 -> 0 | P31: ='User Input'!Q51*P$9 -> 0 | Q31: ='User Input'!R51*Q$9 -> 0 | R31: ='User Input'!S51*R$9 -> 0 | S31: ='User Input'!T51*S$9 -> 0 | T31: ='User Input'!U51*T$9 -> 0 | U31: ='User Input'!V51*U$9 -> 0 | V31: ='User Input'!W51*V$9 -> 0 | W31: ='User Input'!X51*W$9 -> 0 | X31: ='User Input'!Y51*X$9 -> 0 | Y31: ='User Input'!Z51*Y$9 -> 0
C32: Total Costs | D32: =SUM(E32:Y32) -> 355271.7081 | E32: =SUM(E13:E31) -> 1053.834627 | F32: =SUM(F13:F31) -> 1082.288162 | G32: 14882.42958 | H32: 15284.25518 | I32: 15696.93007 | J32: 16120.74718 | K32: 16556.00735 | L32: 17003.01955 | M32: 17462.10108 | N32: 17933.57781 | O32: 18417.78441 | P32: 18915.06459 | Q32: 19425.77133 | R32: 19950.26716 | S32: 20488.92437 | T32: 19470.57202 | U32: 19996.27746 | V32: 20536.17695 | W32: 21090.65373 | X32: 21660.10138 | Y32: 22244.92412
C33: Present Value (PV) of Total Costs | D33: =SUM(E33:Y33) -> 186780.9324 | E33: =E32/(1+$D$4)^E$7 -> 1053.834627 | F33: =F32/(1+$D$4)^F$7 -> 1018.911845 | G33: 13190.49951 | H33: 12753.3826 | I33: 12330.7512 | J33: 11922.12529 | K33: 11527.04074 | L33: =L32/(1+$D$4)^L$7 -> 11145.04881 | M33: 10775.71561 | N33: 10418.62167 | O33: 10073.36137 | P33: 9739.542582 | Q33: 9416.786134 | R33: 9104.725438 | S33: 8803.006048 | T33: 7875.610955 | U33: 7614.622906 | V33: 7362.28368 | W33: 7118.306664 | X33: 6882.414747 | Y33: 6654.339997
B35: ='User Input'!D53 -> Option 1: RTS Redevelopment
C37: Capital Costs | D37: =SUM(E37:Y37) -> 6785.000363 | E37: ='User Input'!F16 -> 479 | F37: ='User Input'!G16*F$9 -> 3412.969734 | G37: ='User Input'!H16*G$9 -> 1745.827665 | H37: ='User Input'!I16*H$9 -> 1147.202964 | I37: ='User Input'!J16*I$9 -> 0 | J37: ='User Input'!K16*J$9 -> 0 | K37: ='User Input'!L16*K$9 -> 0 | L37: ='User Input'!M16*L$9 -> 0 | M37: ='User Input'!N16*M$9 -> 0 | N37: ='User Input'!O16*N$9 -> 0 | O37: ='User Input'!P16*O$9 -> 0 | P37: ='User Input'!Q16*P$9 -> 0 | Q37: ='User Input'!R16*Q$9 -> 0 | R37: ='User Input'!S16*R$9 -> 0 | S37: ='User Input'!T16*S$9 -> 0 | T37: ='User Input'!U16*T$9 -> 0 | U37: ='User Input'!V16*U$9 -> 0 | V37: ='User Input'!W16*V$9 -> 0 | W37: ='User Input'!X16*W$9 -> 0 | X37: ='User Input'!Y16*X$9 -> 0 | Y37: ='User Input'!Z16*Y$9 -> 0
C38: ='User Input'!D56 -> Annual Maintenance Costs | D38: =SUM(E38:Y38) -> 0 | E38: ='User Input'!F56 -> 0 | F38: ='User Input'!G56*F$9 -> 0 | G38: ='User Input'!H56*G$9 -> 0 | H38: ='User Input'!I56*H$9 -> 0 | I38: ='User Input'!J56*I$9 -> 0 | J38: ='User Input'!K56*J$9 -> 0 | K38: ='User Input'!L56*K$9 -> 0 | L38: ='User Input'!M56*L$9 -> 0 | M38: ='User Input'!N56*M$9 -> 0 | N38: ='User Input'!O56*N$9 -> 0 | O38: ='User Input'!P56*O$9 -> 0 | P38: ='User Input'!Q56*P$9 -> 0 | Q38: ='User Input'!R56*Q$9 -> 0 | R38: ='User Input'!S56*R$9 -> 0 | S38: ='User Input'!T56*S$9 -> 0 | T38: ='User Input'!U56*T$9 -> 0 | U38: ='User Input'!V56*U$9 -> 0 | V38: ='User Input'!W56*V$9 -> 0 | W38: ='User Input'!X56*W$9 -> 0 | X38: ='User Input'!Y56*X$9 -> 0 | Y38: ='User Input'!Z56*Y$9 -> 0
C39: ='User Input'!D58 -> Negative Impact on Revenue (STPIS)
C40: ='User Input'!D59 -> SAIFI sustained | D40: 36010.38664 | E40: 0 | F40: 0 | G40: =IF('User Input'!$I$8=1,'User Input'!F59*'Administrator Input'!$F$41*G9,0) -> 1475.455675 | H40: =IF('User Input'!$I$8=1,'User Input'!G59*'Administrator Input'!$F$41*H9,0) -> 1515.292979 | I40: =IF('User Input'!$I$8=1,'User Input'!H59*'Administrator Input'!$F$41*I9,0) -> 1556.205889 | J40: =IF('User Input'!$I$8=1,'User Input'!I59*'Administrator Input'!$F$41*J9,0) -> 1598.223448 | K40: =IF('User Input'!$I$8=1,'User Input'!J59*'Administrator Input'!$F$41*K9,0) -> 1641.375481 | L40: =IF('User Input'!$I$8=1,'User Input'!K59*'Administrator Input'!$F$41*L9,0) -> 1685.692619 | M40: =IF('User Input'!$I$8=1,'User Input'!L59*'Administrator Input'!$F$41*M9,0) -> 1731.20632 | N40: =IF('User Input'!$I$8=1,'User Input'!M59*'Administrator Input'!$F$41*N9,0) -> 1777.948891 | O40: =IF('User Input'!$I$8=1,'User Input'!N59*'Administrator Input'!$F$41*O9,0) -> 1825.953511 | P40: =IF('User Input'!$I$8=1,'User Input'!O59*'Administrator Input'!$F$41*P9,0) -> 1875.254255 | Q40: =IF('User Input'!$I$8=1,'User Input'!P59*'Administrator Input'!$F$41*Q9,0) -> 1925.88612 | R40: =IF('User Input'!$I$8=1,'User Input'!Q59*'Administrator Input'!$F$41*R9,0) -> 1977.885046 | S40: =IF('User Input'!$I$8=1,'User Input'!R59*'Administrator Input'!$F$41*S9,0) -> 2031.287942 | T40: =IF('User Input'!$I$8=1,'User Input'!S59*'Administrator Input'!$F$41*T9,0) -> 2086.132716 | U40: =IF('User Input'!$I$8=1,'User Input'!T59*'Administrator Input'!$F$41*U9,0) -> 2142.4583 | V40: =IF('User Input'!$I$8=1,'User Input'!U59*'Administrator Input'!$F$41*V9,0) -> 2200.304674 | W40: =IF('User Input'!$I$8=1,'User Input'!V59*'Administrator Input'!$F$41*W9,0) -> 2259.7129 | X40: =IF('User Input'!$I$8=1,'User Input'!W59*'Administrator Input'!$F$41*X9,0) -> 2320.725148 | Y40: =IF('User Input'!$I$8=1,'User Input'!X59*'Administrator Input'!$F$41*Y9,0) -> 2383.384727
C41: ='User Input'!D60 -> SAIDI accidental | D41: 44012.69478 | E41: 0 | F41: 0 | G41: =IF('User Input'!$I$8=1,'User Input'!F60*'Administrator Input'!$F$42*G9,0) -> 1803.334714 | H41: =IF('User Input'!$I$8=1,'User Input'!G60*'Administrator Input'!$F$42*H9,0) -> 1852.024752 | I41: =IF('User Input'!$I$8=1,'User Input'!H60*'Administrator Input'!$F$42*I9,0) -> 1902.02942 | J41: =IF('User Input'!$I$8=1,'User Input'!I60*'Administrator Input'!$F$42*J9,0) -> 1953.384214 | K41: =IF('User Input'!$I$8=1,'User Input'!J60*'Administrator Input'!$F$42*K9,0) -> 2006.125588 | L41: =IF('User Input'!$I$8=1,'User Input'!K60*'Administrator Input'!$F$42*L9,0) -> 2060.290979 | M41: =IF('User Input'!$I$8=1,'User Input'!L60*'Administrator Input'!$F$42*M9,0) -> 2115.918835 | N41: =IF('User Input'!$I$8=1,'User Input'!M60*'Administrator Input'!$F$42*N9,0) -> 2173.048644 | O41: =IF('User Input'!$I$8=1,'User Input'!N60*'Administrator Input'!$F$42*O9,0) -> 2231.720957 | P41: =IF('User Input'!$I$8=1,'User Input'!O60*'Administrator Input'!$F$42*P9,0) -> 2291.977423 | Q41: =IF('User Input'!$I$8=1,'User Input'!P60*'Administrator Input'!$F$42*Q9,0) -> 2353.860814 | R41: =IF('User Input'!$I$8=1,'User Input'!Q60*'Administrator Input'!$F$42*R9,0) -> 2417.415056 | S41: =IF('User Input'!$I$8=1,'User Input'!R60*'Administrator Input'!$F$42*S9,0) -> 2482.685262 | T41: =IF('User Input'!$I$8=1,'User Input'!S60*'Administrator Input'!$F$42*T9,0) -> 2549.717764 | U41: =IF('User Input'!$I$8=1,'User Input'!T60*'Administrator Input'!$F$42*U9,0) -> 2618.560144 | V41: =IF('User Input'!$I$8=1,'User Input'!U60*'Administrator Input'!$F$42*V9,0) -> 2689.261268 | W41: =IF('User Input'!$I$8=1,'User Input'!V60*'Administrator Input'!$F$42*W9,0) -> 2761.871322 | X41: =IF('User Input'!$I$8=1,'User Input'!W60*'Administrator Input'!$F$42*X9,0) -> 2836.441848 | Y41: =IF('User Input'!$I$8=1,'User Input'!X60*'Administrator Input'!$F$42*Y9,0) -> 2913.025778
C42: ='User Input'!D61 -> MAIFI momentary | D42: 0 | E42: 0 | F42: 0 | G42: =IF('User Input'!$I$8=1,'User Input'!F61*'Administrator Input'!$F$43*G9,0) -> 0 | H42: =IF('User Input'!$I$8=1,'User Input'!G61*'Administrator Input'!$F$43*H9,0) -> 0 | I42: =IF('User Input'!$I$8=1,'User Input'!H61*'Administrator Input'!$F$43*I9,0) -> 0 | J42: =IF('User Input'!$I$8=1,'User Input'!I61*'Administrator Input'!$F$43*J9,0) -> 0 | K42: =IF('User Input'!$I$8=1,'User Input'!J61*'Administrator Input'!$F$43*K9,0) -> 0 | L42: =IF('User Input'!$I$8=1,'User Input'!K61*'Administrator Input'!$F$43*L9,0) -> 0 | M42: =IF('User Input'!$I$8=1,'User Input'!L61*'Administrator Input'!$F$43*M9,0) -> 0 | N42: =IF('User Input'!$I$8=1,'User Input'!M61*'Administrator Input'!$F$43*N9,0) -> 0 | O42: =IF('User Input'!$I$8=1,'User Input'!N61*'Administrator Input'!$F$43*O9,0) -> 0 | P42: =IF('User Input'!$I$8=1,'User Input'!O61*'Administrator Input'!$F$43*P9,0) -> 0 | Q42: =IF('User Input'!$I$8=1,'User Input'!P61*'Administrator Input'!$F$43*Q9,0) -> 0 | R42: =IF('User Input'!$I$8=1,'User Input'!Q61*'Administrator Input'!$F$43*R9,0) -> 0 | S42: =IF('User Input'!$I$8=1,'User Input'!R61*'Administrator Input'!$F$43*S9,0) -> 0 | T42: =IF('User Input'!$I$8=1,'User Input'!S61*'Administrator Input'!$F$43*T9,0) -> 0 | U42: =IF('User Input'!$I$8=1,'User Input'!T61*'Administrator Input'!$F$43*U9,0) -> 0 | V42: =IF('User Input'!$I$8=1,'User Input'!U61*'Administrator Input'!$F$43*V9,0) -> 0 | W42: =IF('User Input'!$I$8=1,'User Input'!V61*'Administrator Input'!$F$43*W9,0) -> 0 | X42: =IF('User Input'!$I$8=1,'User Input'!W61*'Administrator Input'!$F$43*X9,0) -> 0 | Y42: =IF('User Input'!$I$8=1,'User Input'!X61*'Administrator Input'!$F$43*Y9,0) -> 0
C43: ='User Input'!D62 -> Call centre response | D43: 0 | E43: 0 | F43: 0 | G43: =IF('User Input'!$I$8=1,'User Input'!F62*'Administrator Input'!$F$44*G9,0) -> 0 | H43: =IF('User Input'!$I$8=1,'User Input'!G62*'Administrator Input'!$F$44*H9,0) -> 0 | I43: =IF('User Input'!$I$8=1,'User Input'!H62*'Administrator Input'!$F$44*I9,0) -> 0 | J43: =IF('User Input'!$I$8=1,'User Input'!I62*'Administrator Input'!$F$44*J9,0) -> 0 | K43: =IF('User Input'!$I$8=1,'User Input'!J62*'Administrator Input'!$F$44*K9,0) -> 0 | L43: =IF('User Input'!$I$8=1,'User Input'!K62*'Administrator Input'!$F$44*L9,0) -> 0 | M43: =IF('User Input'!$I$8=1,'User Input'!L62*'Administrator Input'!$F$44*M9,0) -> 0 | N43: =IF('User Input'!$I$8=1,'User Input'!M62*'Administrator Input'!$F$44*N9,0) -> 0 | O43: =IF('User Input'!$I$8=1,'User Input'!N62*'Administrator Input'!$F$44*O9,0) -> 0 | P43: =IF('User Input'!$I$8=1,'User Input'!O62*'Administrator Input'!$F$44*P9,0) -> 0 | Q43: =IF('User Input'!$I$8=1,'User Input'!P62*'Administrator Input'!$F$44*Q9,0) -> 0 | R43: =IF('User Input'!$I$8=1,'User Input'!Q62*'Administrator Input'!$F$44*R9,0) -> 0 | S43: =IF('User Input'!$I$8=1,'User Input'!R62*'Administrator Input'!$F$44*S9,0) -> 0 | T43: =IF('User Input'!$I$8=1,'User Input'!S62*'Administrator Input'!$F$44*T9,0) -> 0 | U43: =IF('User Input'!$I$8=1,'User Input'!T62*'Administrator Input'!$F$44*U9,0) -> 0 | V43: =IF('User Input'!$I$8=1,'User Input'!U62*'Administrator Input'!$F$44*V9,0) -> 0 | W43: =IF('User Input'!$I$8=1,'User Input'!V62*'Administrator Input'!$F$44*W9,0) -> 0 | X43: =IF('User Input'!$I$8=1,'User Input'!W62*'Administrator Input'!$F$44*X9,0) -> 0 | Y43: =IF('User Input'!$I$8=1,'User Input'!X62*'Administrator Input'!$F$44*Y9,0) -> 0
C44: ='User Input'!D64 -> Network Outage Costs | D44: 4877.324565 | E44: ='User Input'!F65*'Administrator Input'!$F$49*E9 -> 175.6391045 | F44: ='User Input'!G65*'Administrator Input'!$F$49*F9 -> 180.3813603 | G44: ='User Input'!H65*'Administrator Input'!$F$49*G9 -> 185.251657 | H44: ='User Input'!I65*'Administrator Input'!$F$49*H9 -> 190.2534518 | I44: ='User Input'!J65*'Administrator Input'!$F$49*I9 -> 195.390295 | J44: ='User Input'!K65*'Administrator Input'!$F$49*J9 -> 200.6658329 | K44: ='User Input'!L65*'Administrator Input'!$F$49*K9 -> 206.0838104 | L44: ='User Input'!M65*'Administrator Input'!$F$49*L9 -> 211.6480733 | M44: ='User Input'!N65*'Administrator Input'!$F$49*M9 -> 217.3625713 | N44: ='User Input'!O65*'Administrator Input'!$F$49*N9 -> 223.2313607 | O44: ='User Input'!P65*'Administrator Input'!$F$49*O9 -> 229.2586074 | P44: ='User Input'!Q65*'Administrator Input'!$F$49*P9 -> 235.4485898 | Q44: ='User Input'!R65*'Administrator Input'!$F$49*Q9 -> 241.8057018 | R44: ='User Input'!S65*'Administrator Input'!$F$49*R9 -> 248.3344557 | S44: ='User Input'!T65*'Administrator Input'!$F$49*S9 -> 255.039486 | T44: ='User Input'!U65*'Administrator Input'!$F$49*T9 -> 261.9255521 | U44: ='User Input'!V65*'Administrator Input'!$F$49*U9 -> 268.997542 | V44: ='User Input'!W65*'Administrator Input'!$F$49*V9 -> 276.2604757 | W44: ='User Input'!X65*'Administrator Input'!$F$49*W9 -> 283.7195085 | X44: ='User Input'!Y65*'Administrator Input'!$F$49*X9 -> 291.3799353 | Y44: ='User Input'!Z65*'Administrator Input'!$F$49*Y9 -> 299.2471935
C45: ='User Input'!D68 -> Loss of F Factor Benefit | D45: 0 | E45: ='User Input'!F68*'Administrator Input'!$F$54 -> 0 | F45: ='User Input'!G68*'Administrator Input'!$F$54 -> 0 | G45: ='User Input'!H68*'Administrator Input'!$F$54 -> 0 | H45: ='User Input'!I68*'Administrator Input'!$F$54 -> 0 | I45: ='User Input'!J68*'Administrator Input'!$F$54 -> 0 | J45: ='User Input'!K68*'Administrator Input'!$F$54 -> 0 | K45: ='User Input'!L68*'Administrator Input'!$F$54 -> 0 | L45: ='User Input'!M68*'Administrator Input'!$F$54 -> 0 | M45: ='User Input'!N68*'Administrator Input'!$F$54 -> 0 | N45: ='User Input'!O68*'Administrator Input'!$F$54 -> 0 | O45: ='User Input'!P68*'Administrator Input'!$F$54 -> 0 | P45: ='User Input'!Q68*'Administrator Input'!$F$54 -> 0 | Q45: ='User Input'!R68*'Administrator Input'!$F$54 -> 0 | R45: ='User Input'!S68*'Administrator Input'!$F$54 -> 0 | S45: ='User Input'!T68*'Administrator Input'!$F$54 -> 0 | T45: ='User Input'!U68*'Administrator Input'!$F$54 -> 0 | U45: ='User Input'!V68*'Administrator Input'!$F$54 -> 0 | V45: ='User Input'!W68*'Administrator Input'!$F$54 -> 0 | W45: ='User Input'!X68*'Administrator Input'!$F$54 -> 0 | X45: ='User Input'!Y68*'Administrator Input'!$F$54 -> 0 | Y45: ='User Input'!Z68*'Administrator Input'!$F$54 -> 0
C46: ='User Input'!D71 -> Cost 1 | D46: 0 | E46: ='User Input'!F71 -> 0 | F46: ='User Input'!G71*F$9 -> 0 | G46: ='User Input'!H71*G$9 -> 0 | H46: ='User Input'!I71*H$9 -> 0 | I46: ='User Input'!J71*I$9 -> 0 | J46: ='User Input'!K71*J$9 -> 0 | K46: ='User Input'!L71*K$9 -> 0 | L46: ='User Input'!M71*L$9 -> 0 | M46: ='User Input'!N71*M$9 -> 0 | N46: ='User Input'!O71*N$9 -> 0 | O46: ='User Input'!P71*O$9 -> 0 | P46: ='User Input'!Q71*P$9 -> 0 | Q46: ='User Input'!R71*Q$9 -> 0 | R46: ='User Input'!S71*R$9 -> 0 | S46: ='User Input'!T71*S$9 -> 0 | T46: ='User Input'!U71*T$9 -> 0 | U46: ='User Input'!V71*U$9 -> 0 | V46: ='User Input'!W71*V$9 -> 0 | W46: ='User Input'!X71*W$9 -> 0 | X46: ='User Input'!Y71*X$9 -> 0 | Y46: ='User Input'!Z71*Y$9 -> 0
C47: ='User Input'!D72 -> Cost 2 | D47: 0 | E47: ='User Input'!F72 -> 0 | F47: ='User Input'!G72*F$9 -> 0 | G47: ='User Input'!H72*G$9 -> 0 | H47: ='User Input'!I72*H$9 -> 0 | I47: ='User Input'!J72*I$9 -> 0 | J47: ='User Input'!K72*J$9 -> 0 | K47: ='User Input'!L72*K$9 -> 0 | L47: ='User Input'!M72*L$9 -> 0 | M47: ='User Input'!N72*M$9 -> 0 | N47: ='User Input'!O72*N$9 -> 0 | O47: ='User Input'!P72*O$9 -> 0 | P47: ='User Input'!Q72*P$9 -> 0 | Q47: ='User Input'!R72*Q$9 -> 0 | R47: ='User Input'!S72*R$9 -> 0 | S47: ='User Input'!T72*S$9 -> 0 | T47: ='User Input'!U72*T$9 -> 0 | U47: ='User Input'!V72*U$9 -> 0 | V47: ='User Input'!W72*V$9 -> 0 | W47: ='User Input'!X72*W$9 -> 0 | X47: ='User Input'!Y72*X$9 -> 0 | Y47: ='User Input'!Z72*Y$9 -> 0
C48: ='User Input'!D73 -> Cost 3 | D48: 0 | E48: ='User Input'!F73 -> 0 | F48: ='User Input'!G73*F$9 -> 0 | G48: ='User Input'!H73*G$9 -> 0 | H48: ='User Input'!I73*H$9 -> 0 | I48: ='User Input'!J73*I$9 -> 0 | J48: ='User Input'!K73*J$9 -> 0 | K48: ='User Input'!L73*K$9 -> 0 | L48: ='User Input'!M73*L$9 -> 0 | M48: ='User Input'!N73*M$9 -> 0 | N48: ='User Input'!O73*N$9 -> 0 | O48: ='User Input'!P73*O$9 -> 0 | P48: ='User Input'!Q73*P$9 -> 0 | Q48: ='User Input'!R73*Q$9 -> 0 | R48: ='User Input'!S73*R$9 -> 0 | S48: ='User Input'!T73*S$9 -> 0 | T48: ='User Input'!U73*T$9 -> 0 | U48: ='User Input'!V73*U$9 -> 0 | V48: ='User Input'!W73*V$9 -> 0 | W48: ='User Input'!X73*W$9 -> 0 | X48: ='User Input'!Y73*X$9 -> 0 | Y48: ='User Input'!Z73*Y$9 -> 0
C49: ='User Input'!D74 -> Cost 4 | D49: 0 | E49: ='User Input'!F74 -> 0 | F49: ='User Input'!G74*F$9 -> 0 | G49: ='User Input'!H74*G$9 -> 0 | H49: ='User Input'!I74*H$9 -> 0 | I49: ='User Input'!J74*I$9 -> 0 | J49: ='User Input'!K74*J$9 -> 0 | K49: ='User Input'!L74*K$9 -> 0 | L49: ='User Input'!M74*L$9 -> 0 | M49: ='User Input'!N74*M$9 -> 0 | N49: ='User Input'!O74*N$9 -> 0 | O49: ='User Input'!P74*O$9 -> 0 | P49: ='User Input'!Q74*P$9 -> 0 | Q49: ='User Input'!R74*Q$9 -> 0 | R49: ='User Input'!S74*R$9 -> 0 | S49: ='User Input'!T74*S$9 -> 0 | T49: ='User Input'!U74*T$9 -> 0 | U49: ='User Input'!V74*U$9 -> 0 | V49: ='User Input'!W74*V$9 -> 0 | W49: ='User Input'!X74*W$9 -> 0 | X49: ='User Input'!Y74*X$9 -> 0 | Y49: ='User Input'!Z74*Y$9 -> 0
C50: ='User Input'!D75 -> Cost 5 | D50: 0 | E50: ='User Input'!F75 -> 0 | F50: ='User Input'!G75*F$9 -> 0 | G50: ='User Input'!H75*G$9 -> 0 | H50: ='User Input'!I75*H$9 -> 0 | I50: ='User Input'!J75*I$9 -> 0 | J50: ='User Input'!K75*J$9 -> 0 | K50: ='User Input'!L75*K$9 -> 0 | L50: ='User Input'!M75*L$9 -> 0 | M50: ='User Input'!N75*M$9 -> 0 | N50: ='User Input'!O75*N$9 -> 0 | O50: ='User Input'!P75*O$9 -> 0 | P50: ='User Input'!Q75*P$9 -> 0 | Q50: ='User Input'!R75*Q$9 -> 0 | R50: ='User Input'!S75*R$9 -> 0 | S50: ='User Input'!T75*S$9 -> 0 | T50: ='User Input'!U75*T$9 -> 0 | U50: ='User Input'!V75*U$9 -> 0 | V50: ='User Input'!W75*V$9 -> 0 | W50: ='User Input'!X75*W$9 -> 0 | X50: ='User Input'!Y75*X$9 -> 0 | Y50: ='User Input'!Z75*Y$9 -> 0
C51: ='User Input'!D76 -> Risk 1 | D51: 0 | E51: ='User Input'!F76 -> 0 | F51: ='User Input'!G76*F$9 -> 0 | G51: ='User Input'!H76*G$9 -> 0 | H51: ='User Input'!I76*H$9 -> 0 | I51: ='User Input'!J76*I$9 -> 0 | J51: ='User Input'!K76*J$9 -> 0 | K51: ='User Input'!L76*K$9 -> 0 | L51: ='User Input'!M76*L$9 -> 0 | M51: ='User Input'!N76*M$9 -> 0 | N51: ='User Input'!O76*N$9 -> 0 | O51: ='User Input'!P76*O$9 -> 0 | P51: ='User Input'!Q76*P$9 -> 0 | Q51: ='User Input'!R76*Q$9 -> 0 | R51: ='User Input'!S76*R$9 -> 0 | S51: ='User Input'!T76*S$9 -> 0 | T51: ='User Input'!U76*T$9 -> 0 | U51: ='User Input'!V76*U$9 -> 0 | V51: ='User Input'!W76*V$9 -> 0 | W51: ='User Input'!X76*W$9 -> 0 | X51: ='User Input'!Y76*X$9 -> 0 | Y51: ='User Input'!Z76*Y$9 -> 0
C52: ='User Input'!D77 -> Risk 2 | D52: 0 | E52: ='User Input'!F77 -> 0 | F52: ='User Input'!G77*F$9 -> 0 | G52: ='User Input'!H77*G$9 -> 0 | H52: ='User Input'!I77*H$9 -> 0 | I52: ='User Input'!J77*I$9 -> 0 | J52: ='User Input'!K77*J$9 -> 0 | K52: ='User Input'!L77*K$9 -> 0 | L52: ='User Input'!M77*L$9 -> 0 | M52: ='User Input'!N77*M$9 -> 0 | N52: ='User Input'!O77*N$9 -> 0 | O52: ='User Input'!P77*O$9 -> 0 | P52: ='User Input'!Q77*P$9 -> 0 | Q52: ='User Input'!R77*Q$9 -> 0 | R52: ='User Input'!S77*R$9 -> 0 | S52: ='User Input'!T77*S$9 -> 0 | T52: ='User Input'!U77*T$9 -> 0 | U52: ='User Input'!V77*U$9 -> 0 | V52: ='User Input'!W77*V$9 -> 0 | W52: ='User Input'!X77*W$9 -> 0 | X52: ='User Input'!Y77*X$9 -> 0 | Y52: ='User Input'!Z77*Y$9 -> 0
C53: ='User Input'!D78 -> Risk 3 | D53: 0 | E53: ='User Input'!F78 -> 0 | F53: ='User Input'!G78*F$9 -> 0 | G53: ='User Input'!H78*G$9 -> 0 | H53: ='User Input'!I78*H$9 -> 0 | I53: ='User Input'!J78*I$9 -> 0 | J53: ='User Input'!K78*J$9 -> 0 | K53: ='User Input'!L78*K$9 -> 0 | L53: ='User Input'!M78*L$9 -> 0 | M53: ='User Input'!N78*M$9 -> 0 | N53: ='User Input'!O78*N$9 -> 0 | O53: ='User Input'!P78*O$9 -> 0 | P53: ='User Input'!Q78*P$9 -> 0 | Q53: ='User Input'!R78*Q$9 -> 0 | R53: ='User Input'!S78*R$9 -> 0 | S53: ='User Input'!T78*S$9 -> 0 | T53: ='User Input'!U78*T$9 -> 0 | U53: ='User Input'!V78*U$9 -> 0 | V53: ='User Input'!W78*V$9 -> 0 | W53: ='User Input'!X78*W$9 -> 0 | X53: ='User Input'!Y78*X$9 -> 0 | Y53: ='User Input'!Z78*Y$9 -> 0
C54: ='User Input'!D79 -> Risk 4 | D54: 0 | E54: ='User Input'!F79 -> 0 | F54: ='User Input'!G79*F$9 -> 0 | G54: ='User Input'!H79*G$9 -> 0 | H54: ='User Input'!I79*H$9 -> 0 | I54: ='User Input'!J79*I$9 -> 0 | J54: ='User Input'!K79*J$9 -> 0 | K54: ='User Input'!L79*K$9 -> 0 | L54: ='User Input'!M79*L$9 -> 0 | M54: ='User Input'!N79*M$9 -> 0 | N54: ='User Input'!O79*N$9 -> 0 | O54: ='User Input'!P79*O$9 -> 0 | P54: ='User Input'!Q79*P$9 -> 0 | Q54: ='User Input'!R79*Q$9 -> 0 | R54: ='User Input'!S79*R$9 -> 0 | S54: ='User Input'!T79*S$9 -> 0 | T54: ='User Input'!U79*T$9 -> 0 | U54: ='User Input'!V79*U$9 -> 0 | V54: ='User Input'!W79*V$9 -> 0 | W54: ='User Input'!X79*W$9 -> 0 | X54: ='User Input'!Y79*X$9 -> 0 | Y54: ='User Input'!Z79*Y$9 -> 0
C55: ='User Input'!D80 -> Risk 5 | D55: 0 | E55: ='User Input'!F80 -> 0 | F55: ='User Input'!G80*F$9 -> 0 | G55: ='User Input'!H80*G$9 -> 0 | H55: ='User Input'!I80*H$9 -> 0 | I55: ='User Input'!J80*I$9 -> 0 | J55: ='User Input'!K80*J$9 -> 0 | K55: ='User Input'!L80*K$9 -> 0 | L55: ='User Input'!M80*L$9 -> 0 | M55: ='User Input'!N80*M$9 -> 0 | N55: ='User Input'!O80*N$9 -> 0 | O55: ='User Input'!P80*O$9 -> 0 | P55: ='User Input'!Q80*P$9 -> 0 | Q55: ='User Input'!R80*Q$9 -> 0 | R55: ='User Input'!S80*R$9 -> 0 | S55: ='User Input'!T80*S$9 -> 0 | T55: ='User Input'!U80*T$9 -> 0 | U55: ='User Input'!V80*U$9 -> 0 | V55: ='User Input'!W80*V$9 -> 0 | W55: ='User Input'!X80*W$9 -> 0 | X55: ='User Input'!Y80*X$9 -> 0 | Y55: ='User Input'!Z80*Y$9 -> 0
C56: Total Costs | D56: =SUM(E56:Y56) -> 91685.40635 | E56: =SUM(E37:E55) -> 654.6391045 | F56: =SUM(F37:F55) -> 3593.351095 | G56: 5209.869712 | H56: 4704.774146 | I56: 3653.625604 | J56: 3752.273495 | K56: 3853.58488 | L56: 3957.631671 | M56: 4064.487727 | N56: 4174.228895 | O56: 4286.933075 | P56: 4402.680268 | Q56: 4521.552636 | R56: 4643.634557 | S56: 4769.01269 | T56: 4897.776033 | U56: 5030.015985 | V56: 5165.826417 | W56: 5305.30373 | X56: 5448.546931 | Y56: 5595.657698
C57: Present Value (PV) of Total Costs | D57: =SUM(E57:Y57) -> 50352.31833 | E57: =E56/(1+$D$4)^E$7 -> 654.6391045 | F57: 3382.932682 | G57: 4617.5783 | H57: 3925.725135 | I57: 2870.112061 | J57: 2775.000082 | K57: 2683.039996 | L57: 2594.127355 | M57: 2508.161169 | N57: 2425.043796 | O57: 2344.680831 | P57: 2266.980995 | Q57: 2191.856037 | R57: 2119.220627 | S57: 2048.992265 | T57: 1981.091184 | U57: 1915.440262 | V57: 1851.96493 | W57: 1790.593093 | X57: 1731.255043 | Y57: 1673.883383
B59: ='User Input'!D82 -> Option 2:
C61: Capital Costs | D61: =SUM(E61:Y61) -> 0 | E61: ='User Input'!F17 -> 0 | F61: ='User Input'!G17*F$9 -> 0 | G61: ='User Input'!H17*G$9 -> 0 | H61: ='User Input'!I17*H$9 -> 0 | I61: ='User Input'!J17*I$9 -> 0 | J61: ='User Input'!K17*J$9 -> 0 | K61: ='User Input'!L17*K$9 -> 0 | L61: ='User Input'!M17*L$9 -> 0 | M61: ='User Input'!N17*M$9 -> 0 | N61: ='User Input'!O17*N$9 -> 0 | O61: ='User Input'!P17*O$9 -> 0 | P61: ='User Input'!Q17*P$9 -> 0 | Q61: ='User Input'!R17*Q$9 -> 0 | R61: ='User Input'!S17*R$9 -> 0 | S61: ='User Input'!T17*S$9 -> 0 | T61: ='User Input'!U17*T$9 -> 0 | U61: ='User Input'!V17*U$9 -> 0 | V61: ='User Input'!W17*V$9 -> 0 | W61: ='User Input'!X17*W$9 -> 0 | X61: ='User Input'!Y17*X$9 -> 0 | Y61: ='User Input'!Z17*Y$9 -> 0
C62: ='User Input'!D85 -> Annual Maintenance Costs | D62: =SUM(E62:Y62) -> 0 | E62: ='User Input'!F85 -> 0 | F62: ='User Input'!G85*F$9 -> 0 | G62: ='User Input'!H85*G$9 -> 0 | H62: ='User Input'!I85*H$9 -> 0 | I62: ='User Input'!J85*I$9 -> 0 | J62: ='User Input'!K85*J$9 -> 0 | K62: ='User Input'!L85*K$9 -> 0 | L62: ='User Input'!M85*L$9 -> 0 | M62: ='User Input'!N85*M$9 -> 0 | N62: ='User Input'!O85*N$9 -> 0 | O62: ='User Input'!P85*O$9 -> 0 | P62: ='User Input'!Q85*P$9 -> 0 | Q62: ='User Input'!R85*Q$9 -> 0 | R62: ='User Input'!S85*R$9 -> 0 | S62: ='User Input'!T85*S$9 -> 0 | T62: ='User Input'!U85*T$9 -> 0 | U62: ='User Input'!V85*U$9 -> 0 | V62: ='User Input'!W85*V$9 -> 0 | W62: ='User Input'!X85*W$9 -> 0 | X62: ='User Input'!Y85*X$9 -> 0 | Y62: ='User Input'!Z85*Y$9 -> 0
C63: ='User Input'!D87 -> Negative Impact on Revenue (STPIS)
C64: ='User Input'!D88 -> SAIFI sustained | D64: 0 | E64: 0 | F64: 0 | G64: =IF('User Input'!$I$8=1,'User Input'!F88*'Administrator Input'!$F$41*G9,0) -> 0 | H64: =IF('User Input'!$I$8=1,'User Input'!G88*'Administrator Input'!$F$41*H9,0) -> 0 | I64: =IF('User Input'!$I$8=1,'User Input'!H88*'Administrator Input'!$F$41*I9,0) -> 0 | J64: =IF('User Input'!$I$8=1,'User Input'!I88*'Administrator Input'!$F$41*J9,0) -> 0 | K64: =IF('User Input'!$I$8=1,'User Input'!J88*'Administrator Input'!$F$41*K9,0) -> 0 | L64: =IF('User Input'!$I$8=1,'User Input'!K88*'Administrator Input'!$F$41*L9,0) -> 0 | M64: =IF('User Input'!$I$8=1,'User Input'!L88*'Administrator Input'!$F$41*M9,0) -> 0 | N64: =IF('User Input'!$I$8=1,'User Input'!M88*'Administrator Input'!$F$41*N9,0) -> 0 | O64: =IF('User Input'!$I$8=1,'User Input'!N88*'Administrator Input'!$F$41*O9,0) -> 0 | P64: =IF('User Input'!$I$8=1,'User Input'!O88*'Administrator Input'!$F$41*P9,0) -> 0 | Q64: =IF('User Input'!$I$8=1,'User Input'!P88*'Administrator Input'!$F$41*Q9,0) -> 0 | R64: =IF('User Input'!$I$8=1,'User Input'!Q88*'Administrator Input'!$F$41*R9,0) -> 0 | S64: =IF('User Input'!$I$8=1,'User Input'!R88*'Administrator Input'!$F$41*S9,0) -> 0 | T64: =IF('User Input'!$I$8=1,'User Input'!S88*'Administrator Input'!$F$41*T9,0) -> 0 | U64: =IF('User Input'!$I$8=1,'User Input'!T88*'Administrator Input'!$F$41*U9,0) -> 0 | V64: =IF('User Input'!$I$8=1,'User Input'!U88*'Administrator Input'!$F$41*V9,0) -> 0 | W64: =IF('User Input'!$I$8=1,'User Input'!V88*'Administrator Input'!$F$41*W9,0) -> 0 | X64: =IF('User Input'!$I$8=1,'User Input'!W88*'Administrator Input'!$F$41*X9,0) -> 0 | Y64: =IF('User Input'!$I$8=1,'User Input'!X88*'Administrator Input'!$F$41*Y9,0) -> 0
C65: ='User Input'!D89 -> SAIDI accidental | D65: 0 | E65: 0 | F65: 0 | G65: =IF('User Input'!$I$8=1,'User Input'!F89*'Administrator Input'!$F$42*G9,0) -> 0 | H65: =IF('User Input'!$I$8=1,'User Input'!G89*'Administrator Input'!$F$42*H9,0) -> 0 | I65: =IF('User Input'!$I$8=1,'User Input'!H89*'Administrator Input'!$F$42*I9,0) -> 0 | J65: =IF('User Input'!$I$8=1,'User Input'!I89*'Administrator Input'!$F$42*J9,0) -> 0 | K65: =IF('User Input'!$I$8=1,'User Input'!J89*'Administrator Input'!$F$42*K9,0) -> 0 | L65: =IF('User Input'!$I$8=1,'User Input'!K89*'Administrator Input'!$F$42*L9,0) -> 0 | M65: =IF('User Input'!$I$8=1,'User Input'!L89*'Administrator Input'!$F$42*M9,0) -> 0 | N65: =IF('User Input'!$I$8=1,'User Input'!M89*'Administrator Input'!$F$42*N9,0) -> 0 | O65: =IF('User Input'!$I$8=1,'User Input'!N89*'Administrator Input'!$F$42*O9,0) -> 0 | P65: =IF('User Input'!$I$8=1,'User Input'!O89*'Administrator Input'!$F$42*P9,0) -> 0 | Q65: =IF('User Input'!$I$8=1,'User Input'!P89*'Administrator Input'!$F$42*Q9,0) -> 0 | R65: =IF('User Input'!$I$8=1,'User Input'!Q89*'Administrator Input'!$F$42*R9,0) -> 0 | S65: =IF('User Input'!$I$8=1,'User Input'!R89*'Administrator Input'!$F$42*S9,0) -> 0 | T65: =IF('User Input'!$I$8=1,'User Input'!S89*'Administrator Input'!$F$42*T9,0) -> 0 | U65: =IF('User Input'!$I$8=1,'User Input'!T89*'Administrator Input'!$F$42*U9,0) -> 0 | V65: =IF('User Input'!$I$8=1,'User Input'!U89*'Administrator Input'!$F$42*V9,0) -> 0 | W65: =IF('User Input'!$I$8=1,'User Input'!V89*'Administrator Input'!$F$42*W9,0) -> 0 | X65: =IF('User Input'!$I$8=1,'User Input'!W89*'Administrator Input'!$F$42*X9,0) -> 0 | Y65: =IF('User Input'!$I$8=1,'User Input'!X89*'Administrator Input'!$F$42*Y9,0) -> 0
C66: ='User Input'!D90 -> MAIFI momentary | D66: 0 | E66: 0 | F66: 0 | G66: =IF('User Input'!$I$8=1,'User Input'!F90*'Administrator Input'!$F$43*G9,0) -> 0 | H66: =IF('User Input'!$I$8=1,'User Input'!G90*'Administrator Input'!$F$43*H9,0) -> 0 | I66: =IF('User Input'!$I$8=1,'User Input'!H90*'Administrator Input'!$F$43*I9,0) -> 0 | J66: =IF('User Input'!$I$8=1,'User Input'!I90*'Administrator Input'!$F$43*J9,0) -> 0 | K66: =IF('User Input'!$I$8=1,'User Input'!J90*'Administrator Input'!$F$43*K9,0) -> 0 | L66: =IF('User Input'!$I$8=1,'User Input'!K90*'Administrator Input'!$F$43*L9,0) -> 0 | M66: =IF('User Input'!$I$8=1,'User Input'!L90*'Administrator Input'!$F$43*M9,0) -> 0 | N66: =IF('User Input'!$I$8=1,'User Input'!M90*'Administrator Input'!$F$43*N9,0) -> 0 | O66: =IF('User Input'!$I$8=1,'User Input'!N90*'Administrator Input'!$F$43*O9,0) -> 0 | P66: =IF('User Input'!$I$8=1,'User Input'!O90*'Administrator Input'!$F$43*P9,0) -> 0 | Q66: =IF('User Input'!$I$8=1,'User Input'!P90*'Administrator Input'!$F$43*Q9,0) -> 0 | R66: =IF('User Input'!$I$8=1,'User Input'!Q90*'Administrator Input'!$F$43*R9,0) -> 0 | S66: =IF('User Input'!$I$8=1,'User Input'!R90*'Administrator Input'!$F$43*S9,0) -> 0 | T66: =IF('User Input'!$I$8=1,'User Input'!S90*'Administrator Input'!$F$43*T9,0) -> 0 | U66: =IF('User Input'!$I$8=1,'User Input'!T90*'Administrator Input'!$F$43*U9,0) -> 0 | V66: =IF('User Input'!$I$8=1,'User Input'!U90*'Administrator Input'!$F$43*V9,0) -> 0 | W66: =IF('User Input'!$I$8=1,'User Input'!V90*'Administrator Input'!$F$43*W9,0) -> 0 | X66: =IF('User Input'!$I$8=1,'User Input'!W90*'Administrator Input'!$F$43*X9,0) -> 0 | Y66: =IF('User Input'!$I$8=1,'User Input'!X90*'Administrator Input'!$F$43*Y9,0) -> 0
C67: ='User Input'!D91 -> Call centre response | D67: 0 | E67: 0 | F67: 0 | G67: =IF('User Input'!$I$8=1,'User Input'!F91*'Administrator Input'!$F$44*G9,0) -> 0 | H67: =IF('User Input'!$I$8=1,'User Input'!G91*'Administrator Input'!$F$44*H9,0) -> 0 | I67: =IF('User Input'!$I$8=1,'User Input'!H91*'Administrator Input'!$F$44*I9,0) -> 0 | J67: =IF('User Input'!$I$8=1,'User Input'!I91*'Administrator Input'!$F$44*J9,0) -> 0 | K67: =IF('User Input'!$I$8=1,'User Input'!J91*'Administrator Input'!$F$44*K9,0) -> 0 | L67: =IF('User Input'!$I$8=1,'User Input'!K91*'Administrator Input'!$F$44*L9,0) -> 0 | M67: =IF('User Input'!$I$8=1,'User Input'!L91*'Administrator Input'!$F$44*M9,0) -> 0 | N67: =IF('User Input'!$I$8=1,'User Input'!M91*'Administrator Input'!$F$44*N9,0) -> 0 | O67: =IF('User Input'!$I$8=1,'User Input'!N91*'Administrator Input'!$F$44*O9,0) -> 0 | P67: =IF('User Input'!$I$8=1,'User Input'!O91*'Administrator Input'!$F$44*P9,0) -> 0 | Q67: =IF('User Input'!$I$8=1,'User Input'!P91*'Administrator Input'!$F$44*Q9,0) -> 0 | R67: =IF('User Input'!$I$8=1,'User Input'!Q91*'Administrator Input'!$F$44*R9,0) -> 0 | S67: =IF('User Input'!$I$8=1,'User Input'!R91*'Administrator Input'!$F$44*S9,0) -> 0 | T67: =IF('User Input'!$I$8=1,'User Input'!S91*'Administrator Input'!$F$44*T9,0) -> 0 | U67: =IF('User Input'!$I$8=1,'User Input'!T91*'Administrator Input'!$F$44*U9,0) -> 0 | V67: =IF('User Input'!$I$8=1,'User Input'!U91*'Administrator Input'!$F$44*V9,0) -> 0 | W67: =IF('User Input'!$I$8=1,'User Input'!V91*'Administrator Input'!$F$44*W9,0) -> 0 | X67: =IF('User Input'!$I$8=1,'User Input'!W91*'Administrator Input'!$F$44*X9,0) -> 0 | Y67: =IF('User Input'!$I$8=1,'User Input'!X91*'Administrator Input'!$F$44*Y9,0) -> 0
C68: ='User Input'!D93 -> Network Outage Costs | D68: 0 | E68: ='User Input'!F94*'Administrator Input'!$F$49*E9 -> 0 | F68: ='User Input'!G94*'Administrator Input'!$F$49*F9 -> 0 | G68: ='User Input'!H94*'Administrator Input'!$F$49*G9 -> 0 | H68: ='User Input'!I94*'Administrator Input'!$F$49*H9 -> 0 | I68: ='User Input'!J94*'Administrator Input'!$F$49*I9 -> 0 | J68: ='User Input'!K94*'Administrator Input'!$F$49*J9 -> 0 | K68: ='User Input'!L94*'Administrator Input'!$F$49*K9 -> 0 | L68: ='User Input'!M94*'Administrator Input'!$F$49*L9 -> 0 | M68: ='User Input'!N94*'Administrator Input'!$F$49*M9 -> 0 | N68: ='User Input'!O94*'Administrator Input'!$F$49*N9 -> 0 | O68: ='User Input'!P94*'Administrator Input'!$F$49*O9 -> 0 | P68: ='User Input'!Q94*'Administrator Input'!$F$49*P9 -> 0 | Q68: ='User Input'!R94*'Administrator Input'!$F$49*Q9 -> 0 | R68: ='User Input'!S94*'Administrator Input'!$F$49*R9 -> 0 | S68: ='User Input'!T94*'Administrator Input'!$F$49*S9 -> 0 | T68: ='User Input'!U94*'Administrator Input'!$F$49*T9 -> 0 | U68: ='User Input'!V94*'Administrator Input'!$F$49*U9 -> 0 | V68: ='User Input'!W94*'Administrator Input'!$F$49*V9 -> 0 | W68: ='User Input'!X94*'Administrator Input'!$F$49*W9 -> 0 | X68: ='User Input'!Y94*'Administrator Input'!$F$49*X9 -> 0 | Y68: ='User Input'!Z94*'Administrator Input'!$F$49*Y9 -> 0
C69: ='User Input'!D97 -> Loss of F Factor Benefit | D69: 0 | E69: ='User Input'!F97*'Administrator Input'!$F$54 -> 0 | F69: ='User Input'!G97*'Administrator Input'!$F$54 -> 0 | G69: ='User Input'!H97*'Administrator Input'!$F$54 -> 0 | H69: ='User Input'!I97*'Administrator Input'!$F$54 -> 0 | I69: ='User Input'!J97*'Administrator Input'!$F$54 -> 0 | J69: ='User Input'!K97*'Administrator Input'!$F$54 -> 0 | K69: ='User Input'!L97*'Administrator Input'!$F$54 -> 0 | L69: ='User Input'!M97*'Administrator Input'!$F$54 -> 0 | M69: ='User Input'!N97*'Administrator Input'!$F$54 -> 0 | N69: ='User Input'!O97*'Administrator Input'!$F$54 -> 0 | O69: ='User Input'!P97*'Administrator Input'!$F$54 -> 0 | P69: ='User Input'!Q97*'Administrator Input'!$F$54 -> 0 | Q69: ='User Input'!R97*'Administrator Input'!$F$54 -> 0 | R69: ='User Input'!S97*'Administrator Input'!$F$54 -> 0 | S69: ='User Input'!T97*'Administrator Input'!$F$54 -> 0 | T69: ='User Input'!U97*'Administrator Input'!$F$54 -> 0 | U69: ='User Input'!V97*'Administrator Input'!$F$54 -> 0 | V69: ='User Input'!W97*'Administrator Input'!$F$54 -> 0 | W69: ='User Input'!X97*'Administrator Input'!$F$54 -> 0 | X69: ='User Input'!Y97*'Administrator Input'!$F$54 -> 0 | Y69: ='User Input'!Z97*'Administrator Input'!$F$54 -> 0
C70: ='User Input'!D100 -> Cost 1 | D70: 0 | E70: ='User Input'!F100 -> 0 | F70: ='User Input'!G100*F$9 -> 0 | G70: ='User Input'!H100*G$9 -> 0 | H70: ='User Input'!I100*H$9 -> 0 | I70: ='User Input'!J100*I$9 -> 0 | J70: ='User Input'!K100*J$9 -> 0 | K70: ='User Input'!L100*K$9 -> 0 | L70: ='User Input'!M100*L$9 -> 0 | M70: ='User Input'!N100*M$9 -> 0 | N70: ='User Input'!O100*N$9 -> 0 | O70: ='User Input'!P100*O$9 -> 0 | P70: ='User Input'!Q100*P$9 -> 0 | Q70: ='User Input'!R100*Q$9 -> 0 | R70: ='User Input'!S100*R$9 -> 0 | S70: ='User Input'!T100*S$9 -> 0 | T70: ='User Input'!U100*T$9 -> 0 | U70: ='User Input'!V100*U$9 -> 0 | V70: ='User Input'!W100*V$9 -> 0 | W70: ='User Input'!X100*W$9 -> 0 | X70: ='User Input'!Y100*X$9 -> 0 | Y70: ='User Input'!Z100*Y$9 -> 0
C71: ='User Input'!D101 -> Cost 2 | D71: 0 | E71: ='User Input'!F101 -> 0 | F71: ='User Input'!G101*F$9 -> 0 | G71: ='User Input'!H101*G$9 -> 0 | H71: ='User Input'!I101*H$9 -> 0 | I71: ='User Input'!J101*I$9 -> 0 | J71: ='User Input'!K101*J$9 -> 0 | K71: ='User Input'!L101*K$9 -> 0 | L71: ='User Input'!M101*L$9 -> 0 | M71: ='User Input'!N101*M$9 -> 0 | N71: ='User Input'!O101*N$9 -> 0 | O71: ='User Input'!P101*O$9 -> 0 | P71: ='User Input'!Q101*P$9 -> 0 | Q71: ='User Input'!R101*Q$9 -> 0 | R71: ='User Input'!S101*R$9 -> 0 | S71: ='User Input'!T101*S$9 -> 0 | T71: ='User Input'!U101*T$9 -> 0 | U71: ='User Input'!V101*U$9 -> 0 | V71: ='User Input'!W101*V$9 -> 0 | W71: ='User Input'!X101*W$9 -> 0 | X71: ='User Input'!Y101*X$9 -> 0 | Y71: ='User Input'!Z101*Y$9 -> 0
C72: ='User Input'!D102 -> Cost 3 | D72: 0 | E72: ='User Input'!F102 -> 0 | F72: ='User Input'!G102*F$9 -> 0 | G72: ='User Input'!H102*G$9 -> 0 | H72: ='User Input'!I102*H$9 -> 0 | I72: ='User Input'!J102*I$9 -> 0 | J72: ='User Input'!K102*J$9 -> 0 | K72: ='User Input'!L102*K$9 -> 0 | L72: ='User Input'!M102*L$9 -> 0 | M72: ='User Input'!N102*M$9 -> 0 | N72: ='User Input'!O102*N$9 -> 0 | O72: ='User Input'!P102*O$9 -> 0 | P72: ='User Input'!Q102*P$9 -> 0 | Q72: ='User Input'!R102*Q$9 -> 0 | R72: ='User Input'!S102*R$9 -> 0 | S72: ='User Input'!T102*S$9 -> 0 | T72: ='User Input'!U102*T$9 -> 0 | U72: ='User Input'!V102*U$9 -> 0 | V72: ='User Input'!W102*V$9 -> 0 | W72: ='User Input'!X102*W$9 -> 0 | X72: ='User Input'!Y102*X$9 -> 0 | Y72: ='User Input'!Z102*Y$9 -> 0
C73: ='User Input'!D103 -> Cost 4 | D73: 0 | E73: ='User Input'!F103 -> 0 | F73: ='User Input'!G103*F$9 -> 0 | G73: ='User Input'!H103*G$9 -> 0 | H73: ='User Input'!I103*H$9 -> 0 | I73: ='User Input'!J103*I$9 -> 0 | J73: ='User Input'!K103*J$9 -> 0 | K73: ='User Input'!L103*K$9 -> 0 | L73: ='User Input'!M103*L$9 -> 0 | M73: ='User Input'!N103*M$9 -> 0 | N73: ='User Input'!O103*N$9 -> 0 | O73: ='User Input'!P103*O$9 -> 0 | P73: ='User Input'!Q103*P$9 -> 0 | Q73: ='User Input'!R103*Q$9 -> 0 | R73: ='User Input'!S103*R$9 -> 0 | S73: ='User Input'!T103*S$9 -> 0 | T73: ='User Input'!U103*T$9 -> 0 | U73: ='User Input'!V103*U$9 -> 0 | V73: ='User Input'!W103*V$9 -> 0 | W73: ='User Input'!X103*W$9 -> 0 | X73: ='User Input'!Y103*X$9 -> 0 | Y73: ='User Input'!Z103*Y$9 -> 0
C74: ='User Input'!D104 -> Cost 5 | D74: 0 | E74: ='User Input'!F104 -> 0 | F74: ='User Input'!G104*F$9 -> 0 | G74: ='User Input'!H104*G$9 -> 0 | H74: ='User Input'!I104*H$9 -> 0 | I74: ='User Input'!J104*I$9 -> 0 | J74: ='User Input'!K104*J$9 -> 0 | K74: ='User Input'!L104*K$9 -> 0 | L74: ='User Input'!M104*L$9 -> 0 | M74: ='User Input'!N104*M$9 -> 0 | N74: ='User Input'!O104*N$9 -> 0 | O74: ='User Input'!P104*O$9 -> 0 | P74: ='User Input'!Q104*P$9 -> 0 | Q74: ='User Input'!R104*Q$9 -> 0 | R74: ='User Input'!S104*R$9 -> 0 | S74: ='User Input'!T104*S$9 -> 0 | T74: ='User Input'!U104*T$9 -> 0 | U74: ='User Input'!V104*U$9 -> 0 | V74: ='User Input'!W104*V$9 -> 0 | W74: ='User Input'!X104*W$9 -> 0 | X74: ='User Input'!Y104*X$9 -> 0 | Y74: ='User Input'!Z104*Y$9 -> 0
C75: ='User Input'!D105 -> Risk 1 | D75: 0 | E75: ='User Input'!F105 -> 0 | F75: ='User Input'!G105*F$9 -> 0 | G75: ='User Input'!H105*G$9 -> 0 | H75: ='User Input'!I105*H$9 -> 0 | I75: ='User Input'!J105*I$9 -> 0 | J75: ='User Input'!K105*J$9 -> 0 | K75: ='User Input'!L105*K$9 -> 0 | L75: ='User Input'!M105*L$9 -> 0 | M75: ='User Input'!N105*M$9 -> 0 | N75: ='User Input'!O105*N$9 -> 0 | O75: ='User Input'!P105*O$9 -> 0 | P75: ='User Input'!Q105*P$9 -> 0 | Q75: ='User Input'!R105*Q$9 -> 0 | R75: ='User Input'!S105*R$9 -> 0 | S75: ='User Input'!T105*S$9 -> 0 | T75: ='User Input'!U105*T$9 -> 0 | U75: ='User Input'!V105*U$9 -> 0 | V75: ='User Input'!W105*V$9 -> 0 | W75: ='User Input'!X105*W$9 -> 0 | X75: ='User Input'!Y105*X$9 -> 0 | Y75: ='User Input'!Z105*Y$9 -> 0
C76: ='User Input'!D106 -> Risk 2 | D76: 0 | E76: ='User Input'!F106 -> 0 | F76: ='User Input'!G106*F$9 -> 0 | G76: ='User Input'!H106*G$9 -> 0 | H76: ='User Input'!I106*H$9 -> 0 | I76: ='User Input'!J106*I$9 -> 0 | J76: ='User Input'!K106*J$9 -> 0 | K76: ='User Input'!L106*K$9 -> 0 | L76: ='User Input'!M106*L$9 -> 0 | M76: ='User Input'!N106*M$9 -> 0 | N76: ='User Input'!O106*N$9 -> 0 | O76: ='User Input'!P106*O$9 -> 0 | P76: ='User Input'!Q106*P$9 -> 0 | Q76: ='User Input'!R106*Q$9 -> 0 | R76: ='User Input'!S106*R$9 -> 0 | S76: ='User Input'!T106*S$9 -> 0 | T76: ='User Input'!U106*T$9 -> 0 | U76: ='User Input'!V106*U$9 -> 0 | V76: ='User Input'!W106*V$9 -> 0 | W76: ='User Input'!X106*W$9 -> 0 | X76: ='User Input'!Y106*X$9 -> 0 | Y76: ='User Input'!Z106*Y$9 -> 0
C77: ='User Input'!D107 -> Risk 3 | D77: 0 | E77: ='User Input'!F107 -> 0 | F77: ='User Input'!G107*F$9 -> 0 | G77: ='User Input'!H107*G$9 -> 0 | H77: ='User Input'!I107*H$9 -> 0 | I77: ='User Input'!J107*I$9 -> 0 | J77: ='User Input'!K107*J$9 -> 0 | K77: ='User Input'!L107*K$9 -> 0 | L77: ='User Input'!M107*L$9 -> 0 | M77: ='User Input'!N107*M$9 -> 0 | N77: ='User Input'!O107*N$9 -> 0 | O77: ='User Input'!P107*O$9 -> 0 | P77: ='User Input'!Q107*P$9 -> 0 | Q77: ='User Input'!R107*Q$9 -> 0 | R77: ='User Input'!S107*R$9 -> 0 | S77: ='User Input'!T107*S$9 -> 0 | T77: ='User Input'!U107*T$9 -> 0 | U77: ='User Input'!V107*U$9 -> 0 | V77: ='User Input'!W107*V$9 -> 0 | W77: ='User Input'!X107*W$9 -> 0 | X77: ='User Input'!Y107*X$9 -> 0 | Y77: ='User Input'!Z107*Y$9 -> 0
C78: ='User Input'!D108 -> Risk 4 | D78: 0 | E78: ='User Input'!F108 -> 0 | F78: ='User Input'!G108*F$9 -> 0 | G78: ='User Input'!H108*G$9 -> 0 | H78: ='User Input'!I108*H$9 -> 0 | I78: ='User Input'!J108*I$9 -> 0 | J78: ='User Input'!K108*J$9 -> 0 | K78: ='User Input'!L108*K$9 -> 0 | L78: ='User Input'!M108*L$9 -> 0 | M78: ='User Input'!N108*M$9 -> 0 | N78: ='User Input'!O108*N$9 -> 0 | O78: ='User Input'!P108*O$9 -> 0 | P78: ='User Input'!Q108*P$9 -> 0 | Q78: ='User Input'!R108*Q$9 -> 0 | R78: ='User Input'!S108*R$9 -> 0 | S78: ='User Input'!T108*S$9 -> 0 | T78: ='User Input'!U108*T$9 -> 0 | U78: ='User Input'!V108*U$9 -> 0 | V78: ='User Input'!W108*V$9 -> 0 | W78: ='User Input'!X108*W$9 -> 0 | X78: ='User Input'!Y108*X$9 -> 0 | Y78: ='User Input'!Z108*Y$9 -> 0
C79: ='User Input'!D109 -> Risk 5 | D79: 0 | E79: ='User Input'!F109 -> 0 | F79: ='User Input'!G109*F$9 -> 0 | G79: ='User Input'!H109*G$9 -> 0 | H79: ='User Input'!I109*H$9 -> 0 | I79: ='User Input'!J109*I$9 -> 0 | J79: ='User Input'!K109*J$9 -> 0 | K79: ='User Input'!L109*K$9 -> 0 | L79: ='User Input'!M109*L$9 -> 0 | M79: ='User Input'!N109*M$9 -> 0 | N79: ='User Input'!O109*N$9 -> 0 | O79: ='User Input'!P109*O$9 -> 0 | P79: ='User Input'!Q109*P$9 -> 0 | Q79: ='User Input'!R109*Q$9 -> 0 | R79: ='User Input'!S109*R$9 -> 0 | S79: ='User Input'!T109*S$9 -> 0 | T79: ='User Input'!U109*T$9 -> 0 | U79: ='User Input'!V109*U$9 -> 0 | V79: ='User Input'!W109*V$9 -> 0 | W79: ='User Input'!X109*W$9 -> 0 | X79: ='User Input'!Y109*X$9 -> 0 | Y79: ='User Input'!Z109*Y$9 -> 0
C80: Total Costs | D80: =SUM(E80:Y80) -> 0 | E80: =SUM(E61:E79) -> 0 | F80: =SUM(F61:F79) -> 0 | G80: 0 | H80: 0 | I80: 0 | J80: 0 | K80: 0 | L80: 0 | M80: 0 | N80: 0 | O80: 0 | P80: 0 | Q80: 0 | R80: 0 | S80: 0 | T80: 0 | U80: 0 | V80: 0 | W80: 0 | X80: 0 | Y80: 0
C81: Present Value (PV) of Total Costs | D81: =SUM(E81:Y81) -> 0 | E81: =E80/(1+$D$4)^E$7 -> 0 | F81: 0 | G81: 0 | H81: 0 | I81: 0 | J81: 0 | K81: 0 | L81: 0 | M81: 0 | N81: 0 | O81: 0 | P81: 0 | Q81: 0 | R81: 0 | S81: 0 | T81: 0 | U81: 0 | V81: 0 | W81: 0 | X81: 0 | Y81: 0
B83: ='User Input'!D111 -> Option 3:
C85: Capital Costs | D85: =SUM(E85:Y85) -> 0 | E85: ='User Input'!F18 -> 0 | F85: ='User Input'!G18*F$9 -> 0 | G85: ='User Input'!H18*G$9 -> 0 | H85: ='User Input'!I18*H$9 -> 0 | I85: ='User Input'!J18*I$9 -> 0 | J85: ='User Input'!K18*J$9 -> 0 | K85: ='User Input'!L18*K$9 -> 0 | L85: ='User Input'!M18*L$9 -> 0 | M85: ='User Input'!N18*M$9 -> 0 | N85: ='User Input'!O18*N$9 -> 0 | O85: ='User Input'!P18*O$9 -> 0 | P85: ='User Input'!Q18*P$9 -> 0 | Q85: ='User Input'!R18*Q$9 -> 0 | R85: ='User Input'!S18*R$9 -> 0 | S85: ='User Input'!T18*S$9 -> 0 | T85: ='User Input'!U18*T$9 -> 0 | U85: ='User Input'!V18*U$9 -> 0 | V85: ='User Input'!W18*V$9 -> 0 | W85: ='User Input'!X18*W$9 -> 0 | X85: ='User Input'!Y18*X$9 -> 0 | Y85: ='User Input'!Z18*Y$9 -> 0
C86: ='User Input'!D114 -> Annual Maintenance Costs | D86: =SUM(E86:Y86) -> 0 | E86: ='User Input'!F114 -> 0 | F86: ='User Input'!G114*F$9 -> 0 | G86: ='User Input'!H114*G$9 -> 0 | H86: ='User Input'!I114*H$9 -> 0 | I86: ='User Input'!J114*I$9 -> 0 | J86: ='User Input'!K114*J$9 -> 0 | K86: ='User Input'!L114*K$9 -> 0 | L86: ='User Input'!M114*L$9 -> 0 | M86: ='User Input'!N114*M$9 -> 0 | N86: ='User Input'!O114*N$9 -> 0 | O86: ='User Input'!P114*O$9 -> 0 | P86: ='User Input'!Q114*P$9 -> 0 | Q86: ='User Input'!R114*Q$9 -> 0 | R86: ='User Input'!S114*R$9 -> 0 | S86: ='User Input'!T114*S$9 -> 0 | T86: ='User Input'!U114*T$9 -> 0 | U86: ='User Input'!V114*U$9 -> 0 | V86: ='User Input'!W114*V$9 -> 0 | W86: ='User Input'!X114*W$9 -> 0 | X86: ='User Input'!Y114*X$9 -> 0 | Y86: ='User Input'!Z114*Y$9 -> 0
C87: ='User Input'!D116 -> Negative Impact on Revenue (STPIS)
C88: ='User Input'!D117 -> SAIFI sustained | D88: 0 | E88: 0 | F88: 0 | G88: =IF('User Input'!$I$8=1,'User Input'!F117*'Administrator Input'!$F$41*G9,0) -> 0 | H88: =IF('User Input'!$I$8=1,'User Input'!G117*'Administrator Input'!$F$41*H9,0) -> 0 | I88: =IF('User Input'!$I$8=1,'User Input'!H117*'Administrator Input'!$F$41*I9,0) -> 0 | J88: =IF('User Input'!$I$8=1,'User Input'!I117*'Administrator Input'!$F$41*J9,0) -> 0 | K88: =IF('User Input'!$I$8=1,'User Input'!J117*'Administrator Input'!$F$41*K9,0) -> 0 | L88: =IF('User Input'!$I$8=1,'User Input'!K117*'Administrator Input'!$F$41*L9,0) -> 0 | M88: =IF('User Input'!$I$8=1,'User Input'!L117*'Administrator Input'!$F$41*M9,0) -> 0 | N88: =IF('User Input'!$I$8=1,'User Input'!M117*'Administrator Input'!$F$41*N9,0) -> 0 | O88: =IF('User Input'!$I$8=1,'User Input'!N117*'Administrator Input'!$F$41*O9,0) -> 0 | P88: =IF('User Input'!$I$8=1,'User Input'!O117*'Administrator Input'!$F$41*P9,0) -> 0 | Q88: =IF('User Input'!$I$8=1,'User Input'!P117*'Administrator Input'!$F$41*Q9,0) -> 0 | R88: =IF('User Input'!$I$8=1,'User Input'!Q117*'Administrator Input'!$F$41*R9,0) -> 0 | S88: =IF('User Input'!$I$8=1,'User Input'!R117*'Administrator Input'!$F$41*S9,0) -> 0 | T88: =IF('User Input'!$I$8=1,'User Input'!S117*'Administrator Input'!$F$41*T9,0) -> 0 | U88: =IF('User Input'!$I$8=1,'User Input'!T117*'Administrator Input'!$F$41*U9,0) -> 0 | V88: =IF('User Input'!$I$8=1,'User Input'!U117*'Administrator Input'!$F$41*V9,0) -> 0 | W88: =IF('User Input'!$I$8=1,'User Input'!V117*'Administrator Input'!$F$41*W9,0) -> 0 | X88: =IF('User Input'!$I$8=1,'User Input'!W117*'Administrator Input'!$F$41*X9,0) -> 0 | Y88: =IF('User Input'!$I$8=1,'User Input'!X117*'Administrator Input'!$F$41*Y9,0) -> 0
C89: ='User Input'!D118 -> SAIDI accidental | D89: 0 | E89: 0 | F89: 0 | G89: =IF('User Input'!$I$8=1,'User Input'!F118*'Administrator Input'!$F$42*G9,0) -> 0 | H89: =IF('User Input'!$I$8=1,'User Input'!G118*'Administrator Input'!$F$42*H9,0) -> 0 | I89: =IF('User Input'!$I$8=1,'User Input'!H118*'Administrator Input'!$F$42*I9,0) -> 0 | J89: =IF('User Input'!$I$8=1,'User Input'!I118*'Administrator Input'!$F$42*J9,0) -> 0 | K89: =IF('User Input'!$I$8=1,'User Input'!J118*'Administrator Input'!$F$42*K9,0) -> 0 | L89: =IF('User Input'!$I$8=1,'User Input'!K118*'Administrator Input'!$F$42*L9,0) -> 0 | M89: =IF('User Input'!$I$8=1,'User Input'!L118*'Administrator Input'!$F$42*M9,0) -> 0 | N89: =IF('User Input'!$I$8=1,'User Input'!M118*'Administrator Input'!$F$42*N9,0) -> 0 | O89: =IF('User Input'!$I$8=1,'User Input'!N118*'Administrator Input'!$F$42*O9,0) -> 0 | P89: =IF('User Input'!$I$8=1,'User Input'!O118*'Administrator Input'!$F$42*P9,0) -> 0 | Q89: =IF('User Input'!$I$8=1,'User Input'!P118*'Administrator Input'!$F$42*Q9,0) -> 0 | R89: =IF('User Input'!$I$8=1,'User Input'!Q118*'Administrator Input'!$F$42*R9,0) -> 0 | S89: =IF('User Input'!$I$8=1,'User Input'!R118*'Administrator Input'!$F$42*S9,0) -> 0 | T89: =IF('User Input'!$I$8=1,'User Input'!S118*'Administrator Input'!$F$42*T9,0) -> 0 | U89: =IF('User Input'!$I$8=1,'User Input'!T118*'Administrator Input'!$F$42*U9,0) -> 0 | V89: =IF('User Input'!$I$8=1,'User Input'!U118*'Administrator Input'!$F$42*V9,0) -> 0 | W89: =IF('User Input'!$I$8=1,'User Input'!V118*'Administrator Input'!$F$42*W9,0) -> 0 | X89: =IF('User Input'!$I$8=1,'User Input'!W118*'Administrator Input'!$F$42*X9,0) -> 0 | Y89: =IF('User Input'!$I$8=1,'User Input'!X118*'Administrator Input'!$F$42*Y9,0) -> 0
C90: ='User Input'!D119 -> MAIFI momentary | D90: 0 | E90: 0 | F90: 0 | G90: =IF('User Input'!$I$8=1,'User Input'!F119*'Administrator Input'!$F$43*G9,0) -> 0 | H90: =IF('User Input'!$I$8=1,'User Input'!G119*'Administrator Input'!$F$43*H9,0) -> 0 | I90: =IF('User Input'!$I$8=1,'User Input'!H119*'Administrator Input'!$F$43*I9,0) -> 0 | J90: =IF('User Input'!$I$8=1,'User Input'!I119*'Administrator Input'!$F$43*J9,0) -> 0 | K90: =IF('User Input'!$I$8=1,'User Input'!J119*'Administrator Input'!$F$43*K9,0) -> 0 | L90: =IF('User Input'!$I$8=1,'User Input'!K119*'Administrator Input'!$F$43*L9,0) -> 0 | M90: =IF('User Input'!$I$8=1,'User Input'!L119*'Administrator Input'!$F$43*M9,0) -> 0 | N90: =IF('User Input'!$I$8=1,'User Input'!M119*'Administrator Input'!$F$43*N9,0) -> 0 | O90: =IF('User Input'!$I$8=1,'User Input'!N119*'Administrator Input'!$F$43*O9,0) -> 0 | P90: =IF('User Input'!$I$8=1,'User Input'!O119*'Administrator Input'!$F$43*P9,0) -> 0 | Q90: =IF('User Input'!$I$8=1,'User Input'!P119*'Administrator Input'!$F$43*Q9,0) -> 0 | R90: =IF('User Input'!$I$8=1,'User Input'!Q119*'Administrator Input'!$F$43*R9,0) -> 0 | S90: =IF('User Input'!$I$8=1,'User Input'!R119*'Administrator Input'!$F$43*S9,0) -> 0 | T90: =IF('User Input'!$I$8=1,'User Input'!S119*'Administrator Input'!$F$43*T9,0) -> 0 | U90: =IF('User Input'!$I$8=1,'User Input'!T119*'Administrator Input'!$F$43*U9,0) -> 0 | V90: =IF('User Input'!$I$8=1,'User Input'!U119*'Administrator Input'!$F$43*V9,0) -> 0 | W90: =IF('User Input'!$I$8=1,'User Input'!V119*'Administrator Input'!$F$43*W9,0) -> 0 | X90: =IF('User Input'!$I$8=1,'User Input'!W119*'Administrator Input'!$F$43*X9,0) -> 0 | Y90: =IF('User Input'!$I$8=1,'User Input'!X119*'Administrator Input'!$F$43*Y9,0) -> 0
C91: ='User Input'!D120 -> Call centre response | D91: 0 | E91: 0 | F91: 0 | G91: =IF('User Input'!$I$8=1,'User Input'!F120*'Administrator Input'!$F$44*G9,0) -> 0 | H91: =IF('User Input'!$I$8=1,'User Input'!G120*'Administrator Input'!$F$44*H9,0) -> 0 | I91: =IF('User Input'!$I$8=1,'User Input'!H120*'Administrator Input'!$F$44*I9,0) -> 0 | J91: =IF('User Input'!$I$8=1,'User Input'!I120*'Administrator Input'!$F$44*J9,0) -> 0 | K91: =IF('User Input'!$I$8=1,'User Input'!J120*'Administrator Input'!$F$44*K9,0) -> 0 | L91: =IF('User Input'!$I$8=1,'User Input'!K120*'Administrator Input'!$F$44*L9,0) -> 0 | M91: =IF('User Input'!$I$8=1,'User Input'!L120*'Administrator Input'!$F$44*M9,0) -> 0 | N91: =IF('User Input'!$I$8=1,'User Input'!M120*'Administrator Input'!$F$44*N9,0) -> 0 | O91: =IF('User Input'!$I$8=1,'User Input'!N120*'Administrator Input'!$F$44*O9,0) -> 0 | P91: =IF('User Input'!$I$8=1,'User Input'!O120*'Administrator Input'!$F$44*P9,0) -> 0 | Q91: =IF('User Input'!$I$8=1,'User Input'!P120*'Administrator Input'!$F$44*Q9,0) -> 0 | R91: =IF('User Input'!$I$8=1,'User Input'!Q120*'Administrator Input'!$F$44*R9,0) -> 0 | S91: =IF('User Input'!$I$8=1,'User Input'!R120*'Administrator Input'!$F$44*S9,0) -> 0 | T91: =IF('User Input'!$I$8=1,'User Input'!S120*'Administrator Input'!$F$44*T9,0) -> 0 | U91: =IF('User Input'!$I$8=1,'User Input'!T120*'Administrator Input'!$F$44*U9,0) -> 0 | V91: =IF('User Input'!$I$8=1,'User Input'!U120*'Administrator Input'!$F$44*V9,0) -> 0 | W91: =IF('User Input'!$I$8=1,'User Input'!V120*'Administrator Input'!$F$44*W9,0) -> 0 | X91: =IF('User Input'!$I$8=1,'User Input'!W120*'Administrator Input'!$F$44*X9,0) -> 0 | Y91: =IF('User Input'!$I$8=1,'User Input'!X120*'Administrator Input'!$F$44*Y9,0) -> 0
C92: ='User Input'!D122 -> Network Outage Costs | D92: 0 | E92: ='User Input'!F123*'Administrator Input'!$F$49*E9 -> 0 | F92: ='User Input'!G123*'Administrator Input'!$F$49*F9 -> 0 | G92: ='User Input'!H123*'Administrator Input'!$F$49*G9 -> 0 | H92: ='User Input'!I123*'Administrator Input'!$F$49*H9 -> 0 | I92: ='User Input'!J123*'Administrator Input'!$F$49*I9 -> 0 | J92: ='User Input'!K123*'Administrator Input'!$F$49*J9 -> 0 | K92: ='User Input'!L123*'Administrator Input'!$F$49*K9 -> 0 | L92: ='User Input'!M123*'Administrator Input'!$F$49*L9 -> 0 | M92: ='User Input'!N123*'Administrator Input'!$F$49*M9 -> 0 | N92: ='User Input'!O123*'Administrator Input'!$F$49*N9 -> 0 | O92: ='User Input'!P123*'Administrator Input'!$F$49*O9 -> 0 | P92: ='User Input'!Q123*'Administrator Input'!$F$49*P9 -> 0 | Q92: ='User Input'!R123*'Administrator Input'!$F$49*Q9 -> 0 | R92: ='User Input'!S123*'Administrator Input'!$F$49*R9 -> 0 | S92: ='User Input'!T123*'Administrator Input'!$F$49*S9 -> 0 | T92: ='User Input'!U123*'Administrator Input'!$F$49*T9 -> 0 | U92: ='User Input'!V123*'Administrator Input'!$F$49*U9 -> 0 | V92: ='User Input'!W123*'Administrator Input'!$F$49*V9 -> 0 | W92: ='User Input'!X123*'Administrator Input'!$F$49*W9 -> 0 | X92: ='User Input'!Y123*'Administrator Input'!$F$49*X9 -> 0 | Y92: ='User Input'!Z123*'Administrator Input'!$F$49*Y9 -> 0
C93: ='User Input'!D126 -> Loss of F Factor Benefit | D93: 0 | E93: ='User Input'!F126*'Administrator Input'!$F$54 -> 0 | F93: ='User Input'!G126*'Administrator Input'!$F$54 -> 0 | G93: ='User Input'!H126*'Administrator Input'!$F$54 -> 0 | H93: ='User Input'!I126*'Administrator Input'!$F$54 -> 0 | I93: ='User Input'!J126*'Administrator Input'!$F$54 -> 0 | J93: ='User Input'!K126*'Administrator Input'!$F$54 -> 0 | K93: ='User Input'!L126*'Administrator Input'!$F$54 -> 0 | L93: ='User Input'!M126*'Administrator Input'!$F$54 -> 0 | M93: ='User Input'!N126*'Administrator Input'!$F$54 -> 0 | N93: ='User Input'!O126*'Administrator Input'!$F$54 -> 0 | O93: ='User Input'!P126*'Administrator Input'!$F$54 -> 0 | P93: ='User Input'!Q126*'Administrator Input'!$F$54 -> 0 | Q93: ='User Input'!R126*'Administrator Input'!$F$54 -> 0 | R93: ='User Input'!S126*'Administrator Input'!$F$54 -> 0 | S93: ='User Input'!T126*'Administrator Input'!$F$54 -> 0 | T93: ='User Input'!U126*'Administrator Input'!$F$54 -> 0 | U93: ='User Input'!V126*'Administrator Input'!$F$54 -> 0 | V93: ='User Input'!W126*'Administrator Input'!$F$54 -> 0 | W93: ='User Input'!X126*'Administrator Input'!$F$54 -> 0 | X93: ='User Input'!Y126*'Administrator Input'!$F$54 -> 0 | Y93: ='User Input'!Z126*'Administrator Input'!$F$54 -> 0
C94: ='User Input'!D129 -> Cost 1 | D94: 0 | E94: ='User Input'!F129 -> 0 | F94: ='User Input'!G129*F$9 -> 0 | G94: ='User Input'!H129*G$9 -> 0 | H94: ='User Input'!I129*H$9 -> 0 | I94: ='User Input'!J129*I$9 -> 0 | J94: ='User Input'!K129*J$9 -> 0 | K94: ='User Input'!L129*K$9 -> 0 | L94: ='User Input'!M129*L$9 -> 0 | M94: ='User Input'!N129*M$9 -> 0 | N94: ='User Input'!O129*N$9 -> 0 | O94: ='User Input'!P129*O$9 -> 0 | P94: ='User Input'!Q129*P$9 -> 0 | Q94: ='User Input'!R129*Q$9 -> 0 | R94: ='User Input'!S129*R$9 -> 0 | S94: ='User Input'!T129*S$9 -> 0 | T94: ='User Input'!U129*T$9 -> 0 | U94: ='User Input'!V129*U$9 -> 0 | V94: ='User Input'!W129*V$9 -> 0 | W94: ='User Input'!X129*W$9 -> 0 | X94: ='User Input'!Y129*X$9 -> 0 | Y94: ='User Input'!Z129*Y$9 -> 0
C95: ='User Input'!D130 -> Cost 2 | D95: 0 | E95: ='User Input'!F130 -> 0 | F95: ='User Input'!G130*F$9 -> 0 | G95: ='User Input'!H130*G$9 -> 0 | H95: ='User Input'!I130*H$9 -> 0 | I95: ='User Input'!J130*I$9 -> 0 | J95: ='User Input'!K130*J$9 -> 0 | K95: ='User Input'!L130*K$9 -> 0 | L95: ='User Input'!M130*L$9 -> 0 | M95: ='User Input'!N130*M$9 -> 0 | N95: ='User Input'!O130*N$9 -> 0 | O95: ='User Input'!P130*O$9 -> 0 | P95: ='User Input'!Q130*P$9 -> 0 | Q95: ='User Input'!R130*Q$9 -> 0 | R95: ='User Input'!S130*R$9 -> 0 | S95: ='User Input'!T130*S$9 -> 0 | T95: ='User Input'!U130*T$9 -> 0 | U95: ='User Input'!V130*U$9 -> 0 | V95: ='User Input'!W130*V$9 -> 0 | W95: ='User Input'!X130*W$9 -> 0 | X95: ='User Input'!Y130*X$9 -> 0 | Y95: ='User Input'!Z130*Y$9 -> 0
C96: ='User Input'!D131 -> Cost 3 | D96: 0 | E96: ='User Input'!F131 -> 0 | F96: ='User Input'!G131*F$9 -> 0 | G96: ='User Input'!H131*G$9 -> 0 | H96: ='User Input'!I131*H$9 -> 0 | I96: ='User Input'!J131*I$9 -> 0 | J96: ='User Input'!K131*J$9 -> 0 | K96: ='User Input'!L131*K$9 -> 0 | L96: ='User Input'!M131*L$9 -> 0 | M96: ='User Input'!N131*M$9 -> 0 | N96: ='User Input'!O131*N$9 -> 0 | O96: ='User Input'!P131*O$9 -> 0 | P96: ='User Input'!Q131*P$9 -> 0 | Q96: ='User Input'!R131*Q$9 -> 0 | R96: ='User Input'!S131*R$9 -> 0 | S96: ='User Input'!T131*S$9 -> 0 | T96: ='User Input'!U131*T$9 -> 0 | U96: ='User Input'!V131*U$9 -> 0 | V96: ='User Input'!W131*V$9 -> 0 | W96: ='User Input'!X131*W$9 -> 0 | X96: ='User Input'!Y131*X$9 -> 0 | Y96: ='User Input'!Z131*Y$9 -> 0
C97: ='User Input'!D132 -> Cost 4 | D97: 0 | E97: ='User Input'!F132 -> 0 | F97: ='User Input'!G132*F$9 -> 0 | G97: ='User Input'!H132*G$9 -> 0 | H97: ='User Input'!I132*H$9 -> 0 | I97: ='User Input'!J132*I$9 -> 0 | J97: ='User Input'!K132*J$9 -> 0 | K97: ='User Input'!L132*K$9 -> 0 | L97: ='User Input'!M132*L$9 -> 0 | M97: ='User Input'!N132*M$9 -> 0 | N97: ='User Input'!O132*N$9 -> 0 | O97: ='User Input'!P132*O$9 -> 0 | P97: ='User Input'!Q132*P$9 -> 0 | Q97: ='User Input'!R132*Q$9 -> 0 | R97: ='User Input'!S132*R$9 -> 0 | S97: ='User Input'!T132*S$9 -> 0 | T97: ='User Input'!U132*T$9 -> 0 | U97: ='User Input'!V132*U$9 -> 0 | V97: ='User Input'!W132*V$9 -> 0 | W97: ='User Input'!X132*W$9 -> 0 | X97: ='User Input'!Y132*X$9 -> 0 | Y97: ='User Input'!Z132*Y$9 -> 0
C98: ='User Input'!D133 -> Cost 5 | D98: 0 | E98: ='User Input'!F133 -> 0 | F98: ='User Input'!G133*F$9 -> 0 | G98: ='User Input'!H133*G$9 -> 0 | H98: ='User Input'!I133*H$9 -> 0 | I98: ='User Input'!J133*I$9 -> 0 | J98: ='User Input'!K133*J$9 -> 0 | K98: ='User Input'!L133*K$9 -> 0 | L98: ='User Input'!M133*L$9 -> 0 | M98: ='User Input'!N133*M$9 -> 0 | N98: ='User Input'!O133*N$9 -> 0 | O98: ='User Input'!P133*O$9 -> 0 | P98: ='User Input'!Q133*P$9 -> 0 | Q98: ='User Input'!R133*Q$9 -> 0 | R98: ='User Input'!S133*R$9 -> 0 | S98: ='User Input'!T133*S$9 -> 0 | T98: ='User Input'!U133*T$9 -> 0 | U98: ='User Input'!V133*U$9 -> 0 | V98: ='User Input'!W133*V$9 -> 0 | W98: ='User Input'!X133*W$9 -> 0 | X98: ='User Input'!Y133*X$9 -> 0 | Y98: ='User Input'!Z133*Y$9 -> 0
C99: ='User Input'!D134 -> Risk 1 | D99: 0 | E99: ='User Input'!F134 -> 0 | F99: ='User Input'!G134*F$9 -> 0 | G99: ='User Input'!H134*G$9 -> 0 | H99: ='User Input'!I134*H$9 -> 0 | I99: ='User Input'!J134*I$9 -> 0 | J99: ='User Input'!K134*J$9 -> 0 | K99: ='User Input'!L134*K$9 -> 0 | L99: ='User Input'!M134*L$9 -> 0 | M99: ='User Input'!N134*M$9 -> 0 | N99: ='User Input'!O134*N$9 -> 0 | O99: ='User Input'!P134*O$9 -> 0 | P99: ='User Input'!Q134*P$9 -> 0 | Q99: ='User Input'!R134*Q$9 -> 0 | R99: ='User Input'!S134*R$9 -> 0 | S99: ='User Input'!T134*S$9 -> 0 | T99: ='User Input'!U134*T$9 -> 0 | U99: ='User Input'!V134*U$9 -> 0 | V99: ='User Input'!W134*V$9 -> 0 | W99: ='User Input'!X134*W$9 -> 0 | X99: ='User Input'!Y134*X$9 -> 0 | Y99: ='User Input'!Z134*Y$9 -> 0
C100: ='User Input'!D135 -> Risk 2 | D100: 0 | E100: ='User Input'!F135 -> 0 | F100: ='User Input'!G135*F$9 -> 0 | G100: ='User Input'!H135*G$9 -> 0 | H100: ='User Input'!I135*H$9 -> 0 | I100: ='User Input'!J135*I$9 -> 0 | J100: ='User Input'!K135*J$9 -> 0 | K100: ='User Input'!L135*K$9 -> 0 | L100: ='User Input'!M135*L$9 -> 0 | M100: ='User Input'!N135*M$9 -> 0 | N100: ='User Input'!O135*N$9 -> 0 | O100: ='User Input'!P135*O$9 -> 0 | P100: ='User Input'!Q135*P$9 -> 0 | Q100: ='User Input'!R135*Q$9 -> 0 | R100: ='User Input'!S135*R$9 -> 0 | S100: ='User Input'!T135*S$9 -> 0 | T100: ='User Input'!U135*T$9 -> 0 | U100: ='User Input'!V135*U$9 -> 0 | V100: ='User Input'!W135*V$9 -> 0 | W100: ='User Input'!X135*W$9 -> 0 | X100: ='User Input'!Y135*X$9 -> 0 | Y100: ='User Input'!Z135*Y$9 -> 0
C101: ='User Input'!D136 -> Risk 3 | D101: 0 | E101: ='User Input'!F136 -> 0 | F101: ='User Input'!G136*F$9 -> 0 | G101: ='User Input'!H136*G$9 -> 0 | H101: ='User Input'!I136*H$9 -> 0 | I101: ='User Input'!J136*I$9 -> 0 | J101: ='User Input'!K136*J$9 -> 0 | K101: ='User Input'!L136*K$9 -> 0 | L101: ='User Input'!M136*L$9 -> 0 | M101: ='User Input'!N136*M$9 -> 0 | N101: ='User Input'!O136*N$9 -> 0 | O101: ='User Input'!P136*O$9 -> 0 | P101: ='User Input'!Q136*P$9 -> 0 | Q101: ='User Input'!R136*Q$9 -> 0 | R101: ='User Input'!S136*R$9 -> 0 | S101: ='User Input'!T136*S$9 -> 0 | T101: ='User Input'!U136*T$9 -> 0 | U101: ='User Input'!V136*U$9 -> 0 | V101: ='User Input'!W136*V$9 -> 0 | W101: ='User Input'!X136*W$9 -> 0 | X101: ='User Input'!Y136*X$9 -> 0 | Y101: ='User Input'!Z136*Y$9 -> 0
C102: ='User Input'!D137 -> Risk 4 | D102: 0 | E102: ='User Input'!F137 -> 0 | F102: ='User Input'!G137*F$9 -> 0 | G102: ='User Input'!H137*G$9 -> 0 | H102: ='User Input'!I137*H$9 -> 0 | I102: ='User Input'!J137*I$9 -> 0 | J102: ='User Input'!K137*J$9 -> 0 | K102: ='User Input'!L137*K$9 -> 0 | L102: ='User Input'!M137*L$9 -> 0 | M102: ='User Input'!N137*M$9 -> 0 | N102: ='User Input'!O137*N$9 -> 0 | O102: ='User Input'!P137*O$9 -> 0 | P102: ='User Input'!Q137*P$9 -> 0 | Q102: ='User Input'!R137*Q$9 -> 0 | R102: ='User Input'!S137*R$9 -> 0 | S102: ='User Input'!T137*S$9 -> 0 | T102: ='User Input'!U137*T$9 -> 0 | U102: ='User Input'!V137*U$9 -> 0 | V102: ='User Input'!W137*V$9 -> 0 | W102: ='User Input'!X137*W$9 -> 0 | X102: ='User Input'!Y137*X$9 -> 0 | Y102: ='User Input'!Z137*Y$9 -> 0
C103: ='User Input'!D138 -> Risk 5 | D103: 0 | E103: ='User Input'!F138 -> 0 | F103: ='User Input'!G138*F$9 -> 0 | G103: ='User Input'!H138*G$9 -> 0 | H103: ='User Input'!I138*H$9 -> 0 | I103: ='User Input'!J138*I$9 -> 0 | J103: ='User Input'!K138*J$9 -> 0 | K103: ='User Input'!L138*K$9 -> 0 | L103: ='User Input'!M138*L$9 -> 0 | M103: ='User Input'!N138*M$9 -> 0 | N103: ='User Input'!O138*N$9 -> 0 | O103: ='User Input'!P138*O$9 -> 0 | P103: ='User Input'!Q138*P$9 -> 0 | Q103: ='User Input'!R138*Q$9 -> 0 | R103: ='User Input'!S138*R$9 -> 0 | S103: ='User Input'!T138*S$9 -> 0 | T103: ='User Input'!U138*T$9 -> 0 | U103: ='User Input'!V138*U$9 -> 0 | V103: ='User Input'!W138*V$9 -> 0 | W103: ='User Input'!X138*W$9 -> 0 | X103: ='User Input'!Y138*X$9 -> 0 | Y103: ='User Input'!Z138*Y$9 -> 0
C104: Total Costs | D104: =SUM(E104:Y104) -> 0 | E104: =SUM(E85:E103) -> 0 | F104: =SUM(F85:F103) -> 0 | G104: 0 | H104: 0 | I104: 0 | J104: 0 | K104: 0 | L104: 0 | M104: 0 | N104: 0 | O104: 0 | P104: 0 | Q104: 0 | R104: 0 | S104: 0 | T104: 0 | U104: 0 | V104: 0 | W104: 0 | X104: 0 | Y104: 0
C105: Present Value (PV) of Total Costs | D105: =SUM(E105:Y105) -> 0 | E105: =E104/(1+$D$4)^E$7 -> 0 | F105: 0 | G105: 0 | H105: 0 | I105: 0 | J105: 0 | K105: 0 | L105: 0 | M105: 0 | N105: 0 | O105: 0 | P105: 0 | Q105: 0 | R105: 0 | S105: 0 | T105: 0 | U105: 0 | V105: 0 | W105: 0 | X105: 0 | Y105: 0
B107: ='User Input'!D140 -> Option 4:
C109: Capital Costs | D109: =SUM(E109:Y109) -> 0 | E109: ='User Input'!F19 -> 0 | F109: ='User Input'!G19*F$9 -> 0 | G109: ='User Input'!H19*G$9 -> 0 | H109: ='User Input'!I19*H$9 -> 0 | I109: ='User Input'!J19*I$9 -> 0 | J109: ='User Input'!K19*J$9 -> 0 | K109: ='User Input'!L19*K$9 -> 0 | L109: ='User Input'!M19*L$9 -> 0 | M109: ='User Input'!N19*M$9 -> 0 | N109: ='User Input'!O19*N$9 -> 0 | O109: ='User Input'!P19*O$9 -> 0 | P109: ='User Input'!Q19*P$9 -> 0 | Q109: ='User Input'!R19*Q$9 -> 0 | R109: ='User Input'!S19*R$9 -> 0 | S109: ='User Input'!T19*S$9 -> 0 | T109: ='User Input'!U19*T$9 -> 0 | U109: ='User Input'!V19*U$9 -> 0 | V109: ='User Input'!W19*V$9 -> 0 | W109: ='User Input'!X19*W$9 -> 0 | X109: ='User Input'!Y19*X$9 -> 0 | Y109: ='User Input'!Z19*Y$9 -> 0
C110: ='User Input'!D143 -> Annual Maintenance Costs | D110: =SUM(E110:Y110) -> 0 | E110: ='User Input'!F143 -> 0 | F110: ='User Input'!G143*F$9 -> 0 | G110: ='User Input'!H143*G$9 -> 0 | H110: ='User Input'!I143*H$9 -> 0 | I110: ='User Input'!J143*I$9 -> 0 | J110: ='User Input'!K143*J$9 -> 0 | K110: ='User Input'!L143*K$9 -> 0 | L110: ='User Input'!M143*L$9 -> 0 | M110: ='User Input'!N143*M$9 -> 0 | N110: ='User Input'!O143*N$9 -> 0 | O110: ='User Input'!P143*O$9 -> 0 | P110: ='User Input'!Q143*P$9 -> 0 | Q110: ='User Input'!R143*Q$9 -> 0 | R110: ='User Input'!S143*R$9 -> 0 | S110: ='User Input'!T143*S$9 -> 0 | T110: ='User Input'!U143*T$9 -> 0 | U110: ='User Input'!V143*U$9 -> 0 | V110: ='User Input'!W143*V$9 -> 0 | W110: ='User Input'!X143*W$9 -> 0 | X110: ='User Input'!Y143*X$9 -> 0 | Y110: ='User Input'!Z143*Y$9 -> 0
C111: ='User Input'!D145 -> Negative Impact on Revenue (STPIS)
C112: ='User Input'!D146 -> SAIFI sustained | D112: 0 | E112: 0 | F112: 0 | G112: =IF('User Input'!$I$8=1,'User Input'!F146*'Administrator Input'!$F$41*G9,0) -> 0 | H112: =IF('User Input'!$I$8=1,'User Input'!G146*'Administrator Input'!$F$41*H9,0) -> 0 | I112: =IF('User Input'!$I$8=1,'User Input'!H146*'Administrator Input'!$F$41*I9,0) -> 0 | J112: =IF('User Input'!$I$8=1,'User Input'!I146*'Administrator Input'!$F$41*J9,0) -> 0 | K112: =IF('User Input'!$I$8=1,'User Input'!J146*'Administrator Input'!$F$41*K9,0) -> 0 | L112: =IF('User Input'!$I$8=1,'User Input'!K146*'Administrator Input'!$F$41*L9,0) -> 0 | M112: =IF('User Input'!$I$8=1,'User Input'!L146*'Administrator Input'!$F$41*M9,0) -> 0 | N112: =IF('User Input'!$I$8=1,'User Input'!M146*'Administrator Input'!$F$41*N9,0) -> 0 | O112: =IF('User Input'!$I$8=1,'User Input'!N146*'Administrator Input'!$F$41*O9,0) -> 0 | P112: =IF('User Input'!$I$8=1,'User Input'!O146*'Administrator Input'!$F$41*P9,0) -> 0 | Q112: =IF('User Input'!$I$8=1,'User Input'!P146*'Administrator Input'!$F$41*Q9,0) -> 0 | R112: =IF('User Input'!$I$8=1,'User Input'!Q146*'Administrator Input'!$F$41*R9,0) -> 0 | S112: =IF('User Input'!$I$8=1,'User Input'!R146*'Administrator Input'!$F$41*S9,0) -> 0 | T112: =IF('User Input'!$I$8=1,'User Input'!S146*'Administrator Input'!$F$41*T9,0) -> 0 | U112: =IF('User Input'!$I$8=1,'User Input'!T146*'Administrator Input'!$F$41*U9,0) -> 0 | V112: =IF('User Input'!$I$8=1,'User Input'!U146*'Administrator Input'!$F$41*V9,0) -> 0 | W112: =IF('User Input'!$I$8=1,'User Input'!V146*'Administrator Input'!$F$41*W9,0) -> 0 | X112: =IF('User Input'!$I$8=1,'User Input'!W146*'Administrator Input'!$F$41*X9,0) -> 0 | Y112: =IF('User Input'!$I$8=1,'User Input'!X146*'Administrator Input'!$F$41*Y9,0) -> 0
C113: ='User Input'!D147 -> SAIDI accidental | D113: 0 | E113: 0 | F113: 0 | G113: =IF('User Input'!$I$8=1,'User Input'!F147*'Administrator Input'!$F$42*G9,0) -> 0 | H113: =IF('User Input'!$I$8=1,'User Input'!G147*'Administrator Input'!$F$42*H9,0) -> 0 | I113: =IF('User Input'!$I$8=1,'User Input'!H147*'Administrator Input'!$F$42*I9,0) -> 0 | J113: =IF('User Input'!$I$8=1,'User Input'!I147*'Administrator Input'!$F$42*J9,0) -> 0 | K113: =IF('User Input'!$I$8=1,'User Input'!J147*'Administrator Input'!$F$42*K9,0) -> 0 | L113: =IF('User Input'!$I$8=1,'User Input'!K147*'Administrator Input'!$F$42*L9,0) -> 0 | M113: =IF('User Input'!$I$8=1,'User Input'!L147*'Administrator Input'!$F$42*M9,0) -> 0 | N113: =IF('User Input'!$I$8=1,'User Input'!M147*'Administrator Input'!$F$42*N9,0) -> 0 | O113: =IF('User Input'!$I$8=1,'User Input'!N147*'Administrator Input'!$F$42*O9,0) -> 0 | P113: =IF('User Input'!$I$8=1,'User Input'!O147*'Administrator Input'!$F$42*P9,0) -> 0 | Q113: =IF('User Input'!$I$8=1,'User Input'!P147*'Administrator Input'!$F$42*Q9,0) -> 0 | R113: =IF('User Input'!$I$8=1,'User Input'!Q147*'Administrator Input'!$F$42*R9,0) -> 0 | S113: =IF('User Input'!$I$8=1,'User Input'!R147*'Administrator Input'!$F$42*S9,0) -> 0 | T113: =IF('User Input'!$I$8=1,'User Input'!S147*'Administrator Input'!$F$42*T9,0) -> 0 | U113: =IF('User Input'!$I$8=1,'User Input'!T147*'Administrator Input'!$F$42*U9,0) -> 0 | V113: =IF('User Input'!$I$8=1,'User Input'!U147*'Administrator Input'!$F$42*V9,0) -> 0 | W113: =IF('User Input'!$I$8=1,'User Input'!V147*'Administrator Input'!$F$42*W9,0) -> 0 | X113: =IF('User Input'!$I$8=1,'User Input'!W147*'Administrator Input'!$F$42*X9,0) -> 0 | Y113: =IF('User Input'!$I$8=1,'User Input'!X147*'Administrator Input'!$F$42*Y9,0) -> 0
C114: ='User Input'!D148 -> MAIFI momentary | D114: 0 | E114: 0 | F114: 0 | G114: =IF('User Input'!$I$8=1,'User Input'!F148*'Administrator Input'!$F$43*G9,0) -> 0 | H114: =IF('User Input'!$I$8=1,'User Input'!G148*'Administrator Input'!$F$43*H9,0) -> 0 | I114: =IF('User Input'!$I$8=1,'User Input'!H148*'Administrator Input'!$F$43*I9,0) -> 0 | J114: =IF('User Input'!$I$8=1,'User Input'!I148*'Administrator Input'!$F$43*J9,0) -> 0 | K114: =IF('User Input'!$I$8=1,'User Input'!J148*'Administrator Input'!$F$43*K9,0) -> 0 | L114: =IF('User Input'!$I$8=1,'User Input'!K148*'Administrator Input'!$F$43*L9,0) -> 0 | M114: =IF('User Input'!$I$8=1,'User Input'!L148*'Administrator Input'!$F$43*M9,0) -> 0 | N114: =IF('User Input'!$I$8=1,'User Input'!M148*'Administrator Input'!$F$43*N9,0) -> 0 | O114: =IF('User Input'!$I$8=1,'User Input'!N148*'Administrator Input'!$F$43*O9,0) -> 0 | P114: =IF('User Input'!$I$8=1,'User Input'!O148*'Administrator Input'!$F$43*P9,0) -> 0 | Q114: =IF('User Input'!$I$8=1,'User Input'!P148*'Administrator Input'!$F$43*Q9,0) -> 0 | R114: =IF('User Input'!$I$8=1,'User Input'!Q148*'Administrator Input'!$F$43*R9,0) -> 0 | S114: =IF('User Input'!$I$8=1,'User Input'!R148*'Administrator Input'!$F$43*S9,0) -> 0 | T114: =IF('User Input'!$I$8=1,'User Input'!S148*'Administrator Input'!$F$43*T9,0) -> 0 | U114: =IF('User Input'!$I$8=1,'User Input'!T148*'Administrator Input'!$F$43*U9,0) -> 0 | V114: =IF('User Input'!$I$8=1,'User Input'!U148*'Administrator Input'!$F$43*V9,0) -> 0 | W114: =IF('User Input'!$I$8=1,'User Input'!V148*'Administrator Input'!$F$43*W9,0) -> 0 | X114: =IF('User Input'!$I$8=1,'User Input'!W148*'Administrator Input'!$F$43*X9,0) -> 0 | Y114: =IF('User Input'!$I$8=1,'User Input'!X148*'Administrator Input'!$F$43*Y9,0) -> 0
C115: ='User Input'!D149 -> Call centre response | D115: 0 | E115: 0 | F115: 0 | G115: =IF('User Input'!$I$8=1,'User Input'!F149*'Administrator Input'!$F$44*G9,0) -> 0 | H115: =IF('User Input'!$I$8=1,'User Input'!G149*'Administrator Input'!$F$44*H9,0) -> 0 | I115: =IF('User Input'!$I$8=1,'User Input'!H149*'Administrator Input'!$F$44*I9,0) -> 0 | J115: =IF('User Input'!$I$8=1,'User Input'!I149*'Administrator Input'!$F$44*J9,0) -> 0 | K115: =IF('User Input'!$I$8=1,'User Input'!J149*'Administrator Input'!$F$44*K9,0) -> 0 | L115: =IF('User Input'!$I$8=1,'User Input'!K149*'Administrator Input'!$F$44*L9,0) -> 0 | M115: =IF('User Input'!$I$8=1,'User Input'!L149*'Administrator Input'!$F$44*M9,0) -> 0 | N115: =IF('User Input'!$I$8=1,'User Input'!M149*'Administrator Input'!$F$44*N9,0) -> 0 | O115: =IF('User Input'!$I$8=1,'User Input'!N149*'Administrator Input'!$F$44*O9,0) -> 0 | P115: =IF('User Input'!$I$8=1,'User Input'!O149*'Administrator Input'!$F$44*P9,0) -> 0 | Q115: =IF('User Input'!$I$8=1,'User Input'!P149*'Administrator Input'!$F$44*Q9,0) -> 0 | R115: =IF('User Input'!$I$8=1,'User Input'!Q149*'Administrator Input'!$F$44*R9,0) -> 0 | S115: =IF('User Input'!$I$8=1,'User Input'!R149*'Administrator Input'!$F$44*S9,0) -> 0 | T115: =IF('User Input'!$I$8=1,'User Input'!S149*'Administrator Input'!$F$44*T9,0) -> 0 | U115: =IF('User Input'!$I$8=1,'User Input'!T149*'Administrator Input'!$F$44*U9,0) -> 0 | V115: =IF('User Input'!$I$8=1,'User Input'!U149*'Administrator Input'!$F$44*V9,0) -> 0 | W115: =IF('User Input'!$I$8=1,'User Input'!V149*'Administrator Input'!$F$44*W9,0) -> 0 | X115: =IF('User Input'!$I$8=1,'User Input'!W149*'Administrator Input'!$F$44*X9,0) -> 0 | Y115: =IF('User Input'!$I$8=1,'User Input'!X149*'Administrator Input'!$F$44*Y9,0) -> 0
C116: ='User Input'!D151 -> Network Outage Costs | D116: 0 | E116: ='User Input'!F152*'Administrator Input'!$F$49*E9 -> 0 | F116: ='User Input'!G152*'Administrator Input'!$F$49*F9 -> 0 | G116: ='User Input'!H152*'Administrator Input'!$F$49*G9 -> 0 | H116: ='User Input'!I152*'Administrator Input'!$F$49*H9 -> 0 | I116: ='User Input'!J152*'Administrator Input'!$F$49*I9 -> 0 | J116: ='User Input'!K152*'Administrator Input'!$F$49*J9 -> 0 | K116: ='User Input'!L152*'Administrator Input'!$F$49*K9 -> 0 | L116: ='User Input'!M152*'Administrator Input'!$F$49*L9 -> 0 | M116: ='User Input'!N152*'Administrator Input'!$F$49*M9 -> 0 | N116: ='User Input'!O152*'Administrator Input'!$F$49*N9 -> 0 | O116: ='User Input'!P152*'Administrator Input'!$F$49*O9 -> 0 | P116: ='User Input'!Q152*'Administrator Input'!$F$49*P9 -> 0 | Q116: ='User Input'!R152*'Administrator Input'!$F$49*Q9 -> 0 | R116: ='User Input'!S152*'Administrator Input'!$F$49*R9 -> 0 | S116: ='User Input'!T152*'Administrator Input'!$F$49*S9 -> 0 | T116: ='User Input'!U152*'Administrator Input'!$F$49*T9 -> 0 | U116: ='User Input'!V152*'Administrator Input'!$F$49*U9 -> 0 | V116: ='User Input'!W152*'Administrator Input'!$F$49*V9 -> 0 | W116: ='User Input'!X152*'Administrator Input'!$F$49*W9 -> 0 | X116: ='User Input'!Y152*'Administrator Input'!$F$49*X9 -> 0 | Y116: ='User Input'!Z152*'Administrator Input'!$F$49*Y9 -> 0
C117: ='User Input'!D155 -> Loss of F Factor Benefit | D117: 0 | E117: ='User Input'!F155*'Administrator Input'!$F$54 -> 0 | F117: ='User Input'!G155*'Administrator Input'!$F$54 -> 0 | G117: ='User Input'!H155*'Administrator Input'!$F$54 -> 0 | H117: ='User Input'!I155*'Administrator Input'!$F$54 -> 0 | I117: ='User Input'!J155*'Administrator Input'!$F$54 -> 0 | J117: ='User Input'!K155*'Administrator Input'!$F$54 -> 0 | K117: ='User Input'!L155*'Administrator Input'!$F$54 -> 0 | L117: ='User Input'!M155*'Administrator Input'!$F$54 -> 0 | M117: ='User Input'!N155*'Administrator Input'!$F$54 -> 0 | N117: ='User Input'!O155*'Administrator Input'!$F$54 -> 0 | O117: ='User Input'!P155*'Administrator Input'!$F$54 -> 0 | P117: ='User Input'!Q155*'Administrator Input'!$F$54 -> 0 | Q117: ='User Input'!R155*'Administrator Input'!$F$54 -> 0 | R117: ='User Input'!S155*'Administrator Input'!$F$54 -> 0 | S117: ='User Input'!T155*'Administrator Input'!$F$54 -> 0 | T117: ='User Input'!U155*'Administrator Input'!$F$54 -> 0 | U117: ='User Input'!V155*'Administrator Input'!$F$54 -> 0 | V117: ='User Input'!W155*'Administrator Input'!$F$54 -> 0 | W117: ='User Input'!X155*'Administrator Input'!$F$54 -> 0 | X117: ='User Input'!Y155*'Administrator Input'!$F$54 -> 0 | Y117: ='User Input'!Z155*'Administrator Input'!$F$54 -> 0
C118: ='User Input'!D158 -> Cost 1 | D118: 0 | E118: ='User Input'!F158 -> 0 | F118: ='User Input'!G158*F$9 -> 0 | G118: ='User Input'!H158*G$9 -> 0 | H118: ='User Input'!I158*H$9 -> 0 | I118: ='User Input'!J158*I$9 -> 0 | J118: ='User Input'!K158*J$9 -> 0 | K118: ='User Input'!L158*K$9 -> 0 | L118: ='User Input'!M158*L$9 -> 0 | M118: ='User Input'!N158*M$9 -> 0 | N118: ='User Input'!O158*N$9 -> 0 | O118: ='User Input'!P158*O$9 -> 0 | P118: ='User Input'!Q158*P$9 -> 0 | Q118: ='User Input'!R158*Q$9 -> 0 | R118: ='User Input'!S158*R$9 -> 0 | S118: ='User Input'!T158*S$9 -> 0 | T118: ='User Input'!U158*T$9 -> 0 | U118: ='User Input'!V158*U$9 -> 0 | V118: ='User Input'!W158*V$9 -> 0 | W118: ='User Input'!X158*W$9 -> 0 | X118: ='User Input'!Y158*X$9 -> 0 | Y118: ='User Input'!Z158*Y$9 -> 0
C119: ='User Input'!D159 -> Cost 2 | D119: 0 | E119: ='User Input'!F159 -> 0 | F119: ='User Input'!G159*F$9 -> 0 | G119: ='User Input'!H159*G$9 -> 0 | H119: ='User Input'!I159*H$9 -> 0 | I119: ='User Input'!J159*I$9 -> 0 | J119: ='User Input'!K159*J$9 -> 0 | K119: ='User Input'!L159*K$9 -> 0 | L119: ='User Input'!M159*L$9 -> 0 | M119: ='User Input'!N159*M$9 -> 0 | N119: ='User Input'!O159*N$9 -> 0 | O119: ='User Input'!P159*O$9 -> 0 | P119: ='User Input'!Q159*P$9 -> 0 | Q119: ='User Input'!R159*Q$9 -> 0 | R119: ='User Input'!S159*R$9 -> 0 | S119: ='User Input'!T159*S$9 -> 0 | T119: ='User Input'!U159*T$9 -> 0 | U119: ='User Input'!V159*U$9 -> 0 | V119: ='User Input'!W159*V$9 -> 0 | W119: ='User Input'!X159*W$9 -> 0 | X119: ='User Input'!Y159*X$9 -> 0 | Y119: ='User Input'!Z159*Y$9 -> 0
C120: ='User Input'!D160 -> Cost 3 | D120: 0 | E120: ='User Input'!F160 -> 0 | F120: ='User Input'!G160*F$9 -> 0 | G120: ='User Input'!H160*G$9 -> 0 | H120: ='User Input'!I160*H$9 -> 0 | I120: ='User Input'!J160*I$9 -> 0 | J120: ='User Input'!K160*J$9 -> 0 | K120: ='User Input'!L160*K$9 -> 0 | L120: ='User Input'!M160*L$9 -> 0 | M120: ='User Input'!N160*M$9 -> 0 | N120: ='User Input'!O160*N$9 -> 0 | O120: ='User Input'!P160*O$9 -> 0 | P120: ='User Input'!Q160*P$9 -> 0 | Q120: ='User Input'!R160*Q$9 -> 0 | R120: ='User Input'!S160*R$9 -> 0 | S120: ='User Input'!T160*S$9 -> 0 | T120: ='User Input'!U160*T$9 -> 0 | U120: ='User Input'!V160*U$9 -> 0 | V120: ='User Input'!W160*V$9 -> 0 | W120: ='User Input'!X160*W$9 -> 0 | X120: ='User Input'!Y160*X$9 -> 0 | Y120: ='User Input'!Z160*Y$9 -> 0
C121: ='User Input'!D161 -> Cost 4 | D121: 0 | E121: ='User Input'!F161 -> 0 | F121: ='User Input'!G161*F$9 -> 0 | G121: ='User Input'!H161*G$9 -> 0 | H121: ='User Input'!I161*H$9 -> 0 | I121: ='User Input'!J161*I$9 -> 0 | J121: ='User Input'!K161*J$9 -> 0 | K121: ='User Input'!L161*K$9 -> 0 | L121: ='User Input'!M161*L$9 -> 0 | M121: ='User Input'!N161*M$9 -> 0 | N121: ='User Input'!O161*N$9 -> 0 | O121: ='User Input'!P161*O$9 -> 0 | P121: ='User Input'!Q161*P$9 -> 0 | Q121: ='User Input'!R161*Q$9 -> 0 | R121: ='User Input'!S161*R$9 -> 0 | S121: ='User Input'!T161*S$9 -> 0 | T121: ='User Input'!U161*T$9 -> 0 | U121: ='User Input'!V161*U$9 -> 0 | V121: ='User Input'!W161*V$9 -> 0 | W121: ='User Input'!X161*W$9 -> 0 | X121: ='User Input'!Y161*X$9 -> 0 | Y121: ='User Input'!Z161*Y$9 -> 0
C122: ='User Input'!D162 -> Cost 5 | D122: 0 | E122: ='User Input'!F162 -> 0 | F122: ='User Input'!G162*F$9 -> 0 | G122: ='User Input'!H162*G$9 -> 0 | H122: ='User Input'!I162*H$9 -> 0 | I122: ='User Input'!J162*I$9 -> 0 | J122: ='User Input'!K162*J$9 -> 0 | K122: ='User Input'!L162*K$9 -> 0 | L122: ='User Input'!M162*L$9 -> 0 | M122: ='User Input'!N162*M$9 -> 0 | N122: ='User Input'!O162*N$9 -> 0 | O122: ='User Input'!P162*O$9 -> 0 | P122: ='User Input'!Q162*P$9 -> 0 | Q122: ='User Input'!R162*Q$9 -> 0 | R122: ='User Input'!S162*R$9 -> 0 | S122: ='User Input'!T162*S$9 -> 0 | T122: ='User Input'!U162*T$9 -> 0 | U122: ='User Input'!V162*U$9 -> 0 | V122: ='User Input'!W162*V$9 -> 0 | W122: ='User Input'!X162*W$9 -> 0 | X122: ='User Input'!Y162*X$9 -> 0 | Y122: ='User Input'!Z162*Y$9 -> 0
C123: ='User Input'!D163 -> Risk 1 | D123: 0 | E123: ='User Input'!F163 -> 0 | F123: ='User Input'!G163*F$9 -> 0 | G123: ='User Input'!H163*G$9 -> 0 | H123: ='User Input'!I163*H$9 -> 0 | I123: ='User Input'!J163*I$9 -> 0 | J123: ='User Input'!K163*J$9 -> 0 | K123: ='User Input'!L163*K$9 -> 0 | L123: ='User Input'!M163*L$9 -> 0 | M123: ='User Input'!N163*M$9 -> 0 | N123: ='User Input'!O163*N$9 -> 0 | O123: ='User Input'!P163*O$9 -> 0 | P123: ='User Input'!Q163*P$9 -> 0 | Q123: ='User Input'!R163*Q$9 -> 0 | R123: ='User Input'!S163*R$9 -> 0 | S123: ='User Input'!T163*S$9 -> 0 | T123: ='User Input'!U163*T$9 -> 0 | U123: ='User Input'!V163*U$9 -> 0 | V123: ='User Input'!W163*V$9 -> 0 | W123: ='User Input'!X163*W$9 -> 0 | X123: ='User Input'!Y163*X$9 -> 0 | Y123: ='User Input'!Z163*Y$9 -> 0
C124: ='User Input'!D164 -> Risk 2 | D124: 0 | E124: ='User Input'!F164 -> 0 | F124: ='User Input'!G164*F$9 -> 0 | G124: ='User Input'!H164*G$9 -> 0 | H124: ='User Input'!I164*H$9 -> 0 | I124: ='User Input'!J164*I$9 -> 0 | J124: ='User Input'!K164*J$9 -> 0 | K124: ='User Input'!L164*K$9 -> 0 | L124: ='User Input'!M164*L$9 -> 0 | M124: ='User Input'!N164*M$9 -> 0 | N124: ='User Input'!O164*N$9 -> 0 | O124: ='User Input'!P164*O$9 -> 0 | P124: ='User Input'!Q164*P$9 -> 0 | Q124: ='User Input'!R164*Q$9 -> 0 | R124: ='User Input'!S164*R$9 -> 0 | S124: ='User Input'!T164*S$9 -> 0 | T124: ='User Input'!U164*T$9 -> 0 | U124: ='User Input'!V164*U$9 -> 0 | V124: ='User Input'!W164*V$9 -> 0 | W124: ='User Input'!X164*W$9 -> 0 | X124: ='User Input'!Y164*X$9 -> 0 | Y124: ='User Input'!Z164*Y$9 -> 0
C125: ='User Input'!D165 -> Risk 3 | D125: 0 | E125: ='User Input'!F165 -> 0 | F125: ='User Input'!G165*F$9 -> 0 | G125: ='User Input'!H165*G$9 -> 0 | H125: ='User Input'!I165*H$9 -> 0 | I125: ='User Input'!J165*I$9 -> 0 | J125: ='User Input'!K165*J$9 -> 0 | K125: ='User Input'!L165*K$9 -> 0 | L125: ='User Input'!M165*L$9 -> 0 | M125: ='User Input'!N165*M$9 -> 0 | N125: ='User Input'!O165*N$9 -> 0 | O125: ='User Input'!P165*O$9 -> 0 | P125: ='User Input'!Q165*P$9 -> 0 | Q125: ='User Input'!R165*Q$9 -> 0 | R125: ='User Input'!S165*R$9 -> 0 | S125: ='User Input'!T165*S$9 -> 0 | T125: ='User Input'!U165*T$9 -> 0 | U125: ='User Input'!V165*U$9 -> 0 | V125: ='User Input'!W165*V$9 -> 0 | W125: ='User Input'!X165*W$9 -> 0 | X125: ='User Input'!Y165*X$9 -> 0 | Y125: ='User Input'!Z165*Y$9 -> 0
C126: ='User Input'!D166 -> Risk 4 | D126: 0 | E126: ='User Input'!F166 -> 0 | F126: ='User Input'!G166*F$9 -> 0 | G126: ='User Input'!H166*G$9 -> 0 | H126: ='User Input'!I166*H$9 -> 0 | I126: ='User Input'!J166*I$9 -> 0 | J126: ='User Input'!K166*J$9 -> 0 | K126: ='User Input'!L166*K$9 -> 0 | L126: ='User Input'!M166*L$9 -> 0 | M126: ='User Input'!N166*M$9 -> 0 | N126: ='User Input'!O166*N$9 -> 0 | O126: ='User Input'!P166*O$9 -> 0 | P126: ='User Input'!Q166*P$9 -> 0 | Q126: ='User Input'!R166*Q$9 -> 0 | R126: ='User Input'!S166*R$9 -> 0 | S126: ='User Input'!T166*S$9 -> 0 | T126: ='User Input'!U166*T$9 -> 0 | U126: ='User Input'!V166*U$9 -> 0 | V126: ='User Input'!W166*V$9 -> 0 | W126: ='User Input'!X166*W$9 -> 0 | X126: ='User Input'!Y166*X$9 -> 0 | Y126: ='User Input'!Z166*Y$9 -> 0
C127: ='User Input'!D167 -> Risk 5 | D127: 0 | E127: ='User Input'!F167 -> 0 | F127: ='User Input'!G167*F$9 -> 0 | G127: ='User Input'!H167*G$9 -> 0 | H127: ='User Input'!I167*H$9 -> 0 | I127: ='User Input'!J167*I$9 -> 0 | J127: ='User Input'!K167*J$9 -> 0 | K127: ='User Input'!L167*K$9 -> 0 | L127: ='User Input'!M167*L$9 -> 0 | M127: ='User Input'!N167*M$9 -> 0 | N127: ='User Input'!O167*N$9 -> 0 | O127: ='User Input'!P167*O$9 -> 0 | P127: ='User Input'!Q167*P$9 -> 0 | Q127: ='User Input'!R167*Q$9 -> 0 | R127: ='User Input'!S167*R$9 -> 0 | S127: ='User Input'!T167*S$9 -> 0 | T127: ='User Input'!U167*T$9 -> 0 | U127: ='User Input'!V167*U$9 -> 0 | V127: ='User Input'!W167*V$9 -> 0 | W127: ='User Input'!X167*W$9 -> 0 | X127: ='User Input'!Y167*X$9 -> 0 | Y127: ='User Input'!Z167*Y$9 -> 0
C128: Total Costs | D128: =SUM(E128:Y128) -> 0 | E128: =SUM(E109:E127) -> 0 | F128: =SUM(F109:F127) -> 0 | G128: 0 | H128: 0 | I128: 0 | J128: 0 | K128: 0 | L128: 0 | M128: 0 | N128: 0 | O128: 0 | P128: 0 | Q128: 0 | R128: 0 | S128: 0 | T128: 0 | U128: 0 | V128: 0 | W128: 0 | X128: 0 | Y128: 0
C129: Present Value (PV) of Total Costs | D129: =SUM(E129:Y129) -> 0 | E129: =E128/(1+$D$4)^E$7 -> 0 | F129: 0 | G129: 0 | H129: 0 | I129: 0 | J129: 0 | K129: 0 | L129: 0 | M129: 0 | N129: 0 | O129: 0 | P129: 0 | Q129: 0 | R129: 0 | S129: 0 | T129: 0 | U129: 0 | V129: 0 | W129: 0 | X129: 0 | Y129: 0
B131: ='User Input'!D169 -> Option 5:
C133: Capital Costs | D133: =SUM(E133:Y133) -> 0 | E133: ='User Input'!F20 -> 0 | F133: ='User Input'!G20*F$9 -> 0 | G133: ='User Input'!H20*G$9 -> 0 | H133: ='User Input'!I20*H$9 -> 0 | I133: ='User Input'!J20*I$9 -> 0 | J133: ='User Input'!K20*J$9 -> 0 | K133: ='User Input'!L20*K$9 -> 0 | L133: ='User Input'!M20*L$9 -> 0 | M133: ='User Input'!N20*M$9 -> 0 | N133: ='User Input'!O20*N$9 -> 0 | O133: ='User Input'!P20*O$9 -> 0 | P133: ='User Input'!Q20*P$9 -> 0 | Q133: ='User Input'!R20*Q$9 -> 0 | R133: ='User Input'!S20*R$9 -> 0 | S133: ='User Input'!T20*S$9 -> 0 | T133: ='User Input'!U20*T$9 -> 0 | U133: ='User Input'!V20*U$9 -> 0 | V133: ='User Input'!W20*V$9 -> 0 | W133: ='User Input'!X20*W$9 -> 0 | X133: ='User Input'!Y20*X$9 -> 0 | Y133: ='User Input'!Z20*Y$9 -> 0
C134: ='User Input'!D172 -> Annual Maintenance Costs | D134: =SUM(E134:Y134) -> 0 | E134: ='User Input'!F172 -> 0 | F134: ='User Input'!G172*F$9 -> 0 | G134: ='User Input'!H172*G$9 -> 0 | H134: ='User Input'!I172*H$9 -> 0 | I134: ='User Input'!J172*I$9 -> 0 | J134: ='User Input'!K172*J$9 -> 0 | K134: ='User Input'!L172*K$9 -> 0 | L134: ='User Input'!M172*L$9 -> 0 | M134: ='User Input'!N172*M$9 -> 0 | N134: ='User Input'!O172*N$9 -> 0 | O134: ='User Input'!P172*O$9 -> 0 | P134: ='User Input'!Q172*P$9 -> 0 | Q134: ='User Input'!R172*Q$9 -> 0 | R134: ='User Input'!S172*R$9 -> 0 | S134: ='User Input'!T172*S$9 -> 0 | T134: ='User Input'!U172*T$9 -> 0 | U134: ='User Input'!V172*U$9 -> 0 | V134: ='User Input'!W172*V$9 -> 0 | W134: ='User Input'!X172*W$9 -> 0 | X134: ='User Input'!Y172*X$9 -> 0 | Y134: ='User Input'!Z172*Y$9 -> 0
C135: ='User Input'!D174 -> Negative Impact on Revenue (STPIS)
C136: ='User Input'!D175 -> SAIFI sustained | D136: 0 | E136: 0 | F136: 0 | G136: =IF('User Input'!$I$8=1,'User Input'!F175*'Administrator Input'!$F$41*G9,0) -> 0 | H136: =IF('User Input'!$I$8=1,'User Input'!G175*'Administrator Input'!$F$41*H9,0) -> 0 | I136: =IF('User Input'!$I$8=1,'User Input'!H175*'Administrator Input'!$F$41*I9,0) -> 0 | J136: =IF('User Input'!$I$8=1,'User Input'!I175*'Administrator Input'!$F$41*J9,0) -> 0 | K136: =IF('User Input'!$I$8=1,'User Input'!J175*'Administrator Input'!$F$41*K9,0) -> 0 | L136: =IF('User Input'!$I$8=1,'User Input'!K175*'Administrator Input'!$F$41*L9,0) -> 0 | M136: =IF('User Input'!$I$8=1,'User Input'!L175*'Administrator Input'!$F$41*M9,0) -> 0 | N136: =IF('User Input'!$I$8=1,'User Input'!M175*'Administrator Input'!$F$41*N9,0) -> 0 | O136: =IF('User Input'!$I$8=1,'User Input'!N175*'Administrator Input'!$F$41*O9,0) -> 0 | P136: =IF('User Input'!$I$8=1,'User Input'!O175*'Administrator Input'!$F$41*P9,0) -> 0 | Q136: =IF('User Input'!$I$8=1,'User Input'!P175*'Administrator Input'!$F$41*Q9,0) -> 0 | R136: =IF('User Input'!$I$8=1,'User Input'!Q175*'Administrator Input'!$F$41*R9,0) -> 0 | S136: =IF('User Input'!$I$8=1,'User Input'!R175*'Administrator Input'!$F$41*S9,0) -> 0 | T136: =IF('User Input'!$I$8=1,'User Input'!S175*'Administrator Input'!$F$41*T9,0) -> 0 | U136: =IF('User Input'!$I$8=1,'User Input'!T175*'Administrator Input'!$F$41*U9,0) -> 0 | V136: =IF('User Input'!$I$8=1,'User Input'!U175*'Administrator Input'!$F$41*V9,0) -> 0 | W136: =IF('User Input'!$I$8=1,'User Input'!V175*'Administrator Input'!$F$41*W9,0) -> 0 | X136: =IF('User Input'!$I$8=1,'User Input'!W175*'Administrator Input'!$F$41*X9,0) -> 0 | Y136: =IF('User Input'!$I$8=1,'User Input'!X175*'Administrator Input'!$F$41*Y9,0) -> 0
C137: ='User Input'!D176 -> SAIDI accidental | D137: =SUM(E137:Y137) -> 0 | E137: 0 | F137: 0 | G137: =IF('User Input'!$I$8=1,'User Input'!F176*'Administrator Input'!$F$42*G9,0) -> 0 | H137: =IF('User Input'!$I$8=1,'User Input'!G176*'Administrator Input'!$F$42*H9,0) -> 0 | I137: =IF('User Input'!$I$8=1,'User Input'!H176*'Administrator Input'!$F$42*I9,0) -> 0 | J137: =IF('User Input'!$I$8=1,'User Input'!I176*'Administrator Input'!$F$42*J9,0) -> 0 | K137: =IF('User Input'!$I$8=1,'User Input'!J176*'Administrator Input'!$F$42*K9,0) -> 0 | L137: =IF('User Input'!$I$8=1,'User Input'!K176*'Administrator Input'!$F$42*L9,0) -> 0 | M137: =IF('User Input'!$I$8=1,'User Input'!L176*'Administrator Input'!$F$42*M9,0) -> 0 | N137: =IF('User Input'!$I$8=1,'User Input'!M176*'Administrator Input'!$F$42*N9,0) -> 0 | O137: =IF('User Input'!$I$8=1,'User Input'!N176*'Administrator Input'!$F$42*O9,0) -> 0 | P137: =IF('User Input'!$I$8=1,'User Input'!O176*'Administrator Input'!$F$42*P9,0) -> 0 | Q137: =IF('User Input'!$I$8=1,'User Input'!P176*'Administrator Input'!$F$42*Q9,0) -> 0 | R137: =IF('User Input'!$I$8=1,'User Input'!Q176*'Administrator Input'!$F$42*R9,0) -> 0 | S137: =IF('User Input'!$I$8=1,'User Input'!R176*'Administrator Input'!$F$42*S9,0) -> 0 | T137: =IF('User Input'!$I$8=1,'User Input'!S176*'Administrator Input'!$F$42*T9,0) -> 0 | U137: =IF('User Input'!$I$8=1,'User Input'!T176*'Administrator Input'!$F$42*U9,0) -> 0 | V137: =IF('User Input'!$I$8=1,'User Input'!U176*'Administrator Input'!$F$42*V9,0) -> 0 | W137: =IF('User Input'!$I$8=1,'User Input'!V176*'Administrator Input'!$F$42*W9,0) -> 0 | X137: =IF('User Input'!$I$8=1,'User Input'!W176*'Administrator Input'!$F$42*X9,0) -> 0 | Y137: =IF('User Input'!$I$8=1,'User Input'!X176*'Administrator Input'!$F$42*Y9,0) -> 0
C138: ='User Input'!D177 -> MAIFI momentary | D138: 0 | E138: 0 | F138: 0 | G138: =IF('User Input'!$I$8=1,'User Input'!F177*'Administrator Input'!$F$43*G9,0) -> 0 | H138: =IF('User Input'!$I$8=1,'User Input'!G177*'Administrator Input'!$F$43*H9,0) -> 0 | I138: =IF('User Input'!$I$8=1,'User Input'!H177*'Administrator Input'!$F$43*I9,0) -> 0 | J138: =IF('User Input'!$I$8=1,'User Input'!I177*'Administrator Input'!$F$43*J9,0) -> 0 | K138: =IF('User Input'!$I$8=1,'User Input'!J177*'Administrator Input'!$F$43*K9,0) -> 0 | L138: =IF('User Input'!$I$8=1,'User Input'!K177*'Administrator Input'!$F$43*L9,0) -> 0 | M138: =IF('User Input'!$I$8=1,'User Input'!L177*'Administrator Input'!$F$43*M9,0) -> 0 | N138: =IF('User Input'!$I$8=1,'User Input'!M177*'Administrator Input'!$F$43*N9,0) -> 0 | O138: =IF('User Input'!$I$8=1,'User Input'!N177*'Administrator Input'!$F$43*O9,0) -> 0 | P138: =IF('User Input'!$I$8=1,'User Input'!O177*'Administrator Input'!$F$43*P9,0) -> 0 | Q138: =IF('User Input'!$I$8=1,'User Input'!P177*'Administrator Input'!$F$43*Q9,0) -> 0 | R138: =IF('User Input'!$I$8=1,'User Input'!Q177*'Administrator Input'!$F$43*R9,0) -> 0 | S138: =IF('User Input'!$I$8=1,'User Input'!R177*'Administrator Input'!$F$43*S9,0) -> 0 | T138: =IF('User Input'!$I$8=1,'User Input'!S177*'Administrator Input'!$F$43*T9,0) -> 0 | U138: =IF('User Input'!$I$8=1,'User Input'!T177*'Administrator Input'!$F$43*U9,0) -> 0 | V138: =IF('User Input'!$I$8=1,'User Input'!U177*'Administrator Input'!$F$43*V9,0) -> 0 | W138: =IF('User Input'!$I$8=1,'User Input'!V177*'Administrator Input'!$F$43*W9,0) -> 0 | X138: =IF('User Input'!$I$8=1,'User Input'!W177*'Administrator Input'!$F$43*X9,0) -> 0 | Y138: =IF('User Input'!$I$8=1,'User Input'!X177*'Administrator Input'!$F$43*Y9,0) -> 0
C139: ='User Input'!D178 -> Call centre response | D139: 0 | E139: 0 | F139: 0 | G139: =IF('User Input'!$I$8=1,'User Input'!F178*'Administrator Input'!$F$44*G9,0) -> 0 | H139: =IF('User Input'!$I$8=1,'User Input'!G178*'Administrator Input'!$F$44*H9,0) -> 0 | I139: =IF('User Input'!$I$8=1,'User Input'!H178*'Administrator Input'!$F$44*I9,0) -> 0 | J139: =IF('User Input'!$I$8=1,'User Input'!I178*'Administrator Input'!$F$44*J9,0) -> 0 | K139: =IF('User Input'!$I$8=1,'User Input'!J178*'Administrator Input'!$F$44*K9,0) -> 0 | L139: =IF('User Input'!$I$8=1,'User Input'!K178*'Administrator Input'!$F$44*L9,0) -> 0 | M139: =IF('User Input'!$I$8=1,'User Input'!L178*'Administrator Input'!$F$44*M9,0) -> 0 | N139: =IF('User Input'!$I$8=1,'User Input'!M178*'Administrator Input'!$F$44*N9,0) -> 0 | O139: =IF('User Input'!$I$8=1,'User Input'!N178*'Administrator Input'!$F$44*O9,0) -> 0 | P139: =IF('User Input'!$I$8=1,'User Input'!O178*'Administrator Input'!$F$44*P9,0) -> 0 | Q139: =IF('User Input'!$I$8=1,'User Input'!P178*'Administrator Input'!$F$44*Q9,0) -> 0 | R139: =IF('User Input'!$I$8=1,'User Input'!Q178*'Administrator Input'!$F$44*R9,0) -> 0 | S139: =IF('User Input'!$I$8=1,'User Input'!R178*'Administrator Input'!$F$44*S9,0) -> 0 | T139: =IF('User Input'!$I$8=1,'User Input'!S178*'Administrator Input'!$F$44*T9,0) -> 0 | U139: =IF('User Input'!$I$8=1,'User Input'!T178*'Administrator Input'!$F$44*U9,0) -> 0 | V139: =IF('User Input'!$I$8=1,'User Input'!U178*'Administrator Input'!$F$44*V9,0) -> 0 | W139: =IF('User Input'!$I$8=1,'User Input'!V178*'Administrator Input'!$F$44*W9,0) -> 0 | X139: =IF('User Input'!$I$8=1,'User Input'!W178*'Administrator Input'!$F$44*X9,0) -> 0 | Y139: =IF('User Input'!$I$8=1,'User Input'!X178*'Administrator Input'!$F$44*Y9,0) -> 0
C140: ='User Input'!D180 -> Network Outage Costs | D140: 0 | E140: ='User Input'!F181*'Administrator Input'!$F$49*E9 -> 0 | F140: ='User Input'!G181*'Administrator Input'!$F$49*F9 -> 0 | G140: ='User Input'!H181*'Administrator Input'!$F$49*G9 -> 0 | H140: ='User Input'!I181*'Administrator Input'!$F$49*H9 -> 0 | I140: ='User Input'!J181*'Administrator Input'!$F$49*I9 -> 0 | J140: ='User Input'!K181*'Administrator Input'!$F$49*J9 -> 0 | K140: ='User Input'!L181*'Administrator Input'!$F$49*K9 -> 0 | L140: ='User Input'!M181*'Administrator Input'!$F$49*L9 -> 0 | M140: ='User Input'!N181*'Administrator Input'!$F$49*M9 -> 0 | N140: ='User Input'!O181*'Administrator Input'!$F$49*N9 -> 0 | O140: ='User Input'!P181*'Administrator Input'!$F$49*O9 -> 0 | P140: ='User Input'!Q181*'Administrator Input'!$F$49*P9 -> 0 | Q140: ='User Input'!R181*'Administrator Input'!$F$49*Q9 -> 0 | R140: ='User Input'!S181*'Administrator Input'!$F$49*R9 -> 0 | S140: ='User Input'!T181*'Administrator Input'!$F$49*S9 -> 0 | T140: ='User Input'!U181*'Administrator Input'!$F$49*T9 -> 0 | U140: ='User Input'!V181*'Administrator Input'!$F$49*U9 -> 0 | V140: ='User Input'!W181*'Administrator Input'!$F$49*V9 -> 0 | W140: ='User Input'!X181*'Administrator Input'!$F$49*W9 -> 0 | X140: ='User Input'!Y181*'Administrator Input'!$F$49*X9 -> 0 | Y140: ='User Input'!Z181*'Administrator Input'!$F$49*Y9 -> 0
C141: ='User Input'!D184 -> Loss of F Factor Benefit | D141: 0 | E141: ='User Input'!F184*'Administrator Input'!$F$54 -> 0 | F141: ='User Input'!G184*'Administrator Input'!$F$54 -> 0 | G141: ='User Input'!H184*'Administrator Input'!$F$54 -> 0 | H141: ='User Input'!I184*'Administrator Input'!$F$54 -> 0 | I141: ='User Input'!J184*'Administrator Input'!$F$54 -> 0 | J141: ='User Input'!K184*'Administrator Input'!$F$54 -> 0 | K141: ='User Input'!L184*'Administrator Input'!$F$54 -> 0 | L141: ='User Input'!M184*'Administrator Input'!$F$54 -> 0 | M141: ='User Input'!N184*'Administrator Input'!$F$54 -> 0 | N141: ='User Input'!O184*'Administrator Input'!$F$54 -> 0 | O141: ='User Input'!P184*'Administrator Input'!$F$54 -> 0 | P141: ='User Input'!Q184*'Administrator Input'!$F$54 -> 0 | Q141: ='User Input'!R184*'Administrator Input'!$F$54 -> 0 | R141: ='User Input'!S184*'Administrator Input'!$F$54 -> 0 | S141: ='User Input'!T184*'Administrator Input'!$F$54 -> 0 | T141: ='User Input'!U184*'Administrator Input'!$F$54 -> 0 | U141: ='User Input'!V184*'Administrator Input'!$F$54 -> 0 | V141: ='User Input'!W184*'Administrator Input'!$F$54 -> 0 | W141: ='User Input'!X184*'Administrator Input'!$F$54 -> 0 | X141: ='User Input'!Y184*'Administrator Input'!$F$54 -> 0 | Y141: ='User Input'!Z184*'Administrator Input'!$F$54 -> 0
C142: ='User Input'!D187 -> Cost 1 | D142: 0 | E142: ='User Input'!F187 -> 0 | F142: ='User Input'!G187*F$9 -> 0 | G142: ='User Input'!H187*G$9 -> 0 | H142: ='User Input'!I187*H$9 -> 0 | I142: ='User Input'!J187*I$9 -> 0 | J142: ='User Input'!K187*J$9 -> 0 | K142: ='User Input'!L187*K$9 -> 0 | L142: ='User Input'!M187*L$9 -> 0 | M142: ='User Input'!N187*M$9 -> 0 | N142: ='User Input'!O187*N$9 -> 0 | O142: ='User Input'!P187*O$9 -> 0 | P142: ='User Input'!Q187*P$9 -> 0 | Q142: ='User Input'!R187*Q$9 -> 0 | R142: ='User Input'!S187*R$9 -> 0 | S142: ='User Input'!T187*S$9 -> 0 | T142: ='User Input'!U187*T$9 -> 0 | U142: ='User Input'!V187*U$9 -> 0 | V142: ='User Input'!W187*V$9 -> 0 | W142: ='User Input'!X187*W$9 -> 0 | X142: ='User Input'!Y187*X$9 -> 0 | Y142: ='User Input'!Z187*Y$9 -> 0
C143: ='User Input'!D188 -> Cost 2 | D143: 0 | E143: ='User Input'!F188 -> 0 | F143: ='User Input'!G188*F$9 -> 0 | G143: ='User Input'!H188*G$9 -> 0 | H143: ='User Input'!I188*H$9 -> 0 | I143: ='User Input'!J188*I$9 -> 0 | J143: ='User Input'!K188*J$9 -> 0 | K143: ='User Input'!L188*K$9 -> 0 | L143: ='User Input'!M188*L$9 -> 0 | M143: ='User Input'!N188*M$9 -> 0 | N143: ='User Input'!O188*N$9 -> 0 | O143: ='User Input'!P188*O$9 -> 0 | P143: ='User Input'!Q188*P$9 -> 0 | Q143: ='User Input'!R188*Q$9 -> 0 | R143: ='User Input'!S188*R$9 -> 0 | S143: ='User Input'!T188*S$9 -> 0 | T143: ='User Input'!U188*T$9 -> 0 | U143: ='User Input'!V188*U$9 -> 0 | V143: ='User Input'!W188*V$9 -> 0 | W143: ='User Input'!X188*W$9 -> 0 | X143: ='User Input'!Y188*X$9 -> 0 | Y143: ='User Input'!Z188*Y$9 -> 0
C144: ='User Input'!D189 -> Cost 3 | D144: 0 | E144: ='User Input'!F189 -> 0 | F144: ='User Input'!G189*F$9 -> 0 | G144: ='User Input'!H189*G$9 -> 0 | H144: ='User Input'!I189*H$9 -> 0 | I144: ='User Input'!J189*I$9 -> 0 | J144: ='User Input'!K189*J$9 -> 0 | K144: ='User Input'!L189*K$9 -> 0 | L144: ='User Input'!M189*L$9 -> 0 | M144: ='User Input'!N189*M$9 -> 0 | N144: ='User Input'!O189*N$9 -> 0 | O144: ='User Input'!P189*O$9 -> 0 | P144: ='User Input'!Q189*P$9 -> 0 | Q144: ='User Input'!R189*Q$9 -> 0 | R144: ='User Input'!S189*R$9 -> 0 | S144: ='User Input'!T189*S$9 -> 0 | T144: ='User Input'!U189*T$9 -> 0 | U144: ='User Input'!V189*U$9 -> 0 | V144: ='User Input'!W189*V$9 -> 0 | W144: ='User Input'!X189*W$9 -> 0 | X144: ='User Input'!Y189*X$9 -> 0 | Y144: ='User Input'!Z189*Y$9 -> 0
C145: ='User Input'!D190 -> Cost 4 | D145: 0 | E145: ='User Input'!F190 -> 0 | F145: ='User Input'!G190*F$9 -> 0 | G145: ='User Input'!H190*G$9 -> 0 | H145: ='User Input'!I190*H$9 -> 0 | I145: ='User Input'!J190*I$9 -> 0 | J145: ='User Input'!K190*J$9 -> 0 | K145: ='User Input'!L190*K$9 -> 0 | L145: ='User Input'!M190*L$9 -> 0 | M145: ='User Input'!N190*M$9 -> 0 | N145: ='User Input'!O190*N$9 -> 0 | O145: ='User Input'!P190*O$9 -> 0 | P145: ='User Input'!Q190*P$9 -> 0 | Q145: ='User Input'!R190*Q$9 -> 0 | R145: ='User Input'!S190*R$9 -> 0 | S145: ='User Input'!T190*S$9 -> 0 | T145: ='User Input'!U190*T$9 -> 0 | U145: ='User Input'!V190*U$9 -> 0 | V145: ='User Input'!W190*V$9 -> 0 | W145: ='User Input'!X190*W$9 -> 0 | X145: ='User Input'!Y190*X$9 -> 0 | Y145: ='User Input'!Z190*Y$9 -> 0
C146: ='User Input'!D191 -> Cost 5 | D146: 0 | E146: ='User Input'!F191 -> 0 | F146: ='User Input'!G191*F$9 -> 0 | G146: ='User Input'!H191*G$9 -> 0 | H146: ='User Input'!I191*H$9 -> 0 | I146: ='User Input'!J191*I$9 -> 0 | J146: ='User Input'!K191*J$9 -> 0 | K146: ='User Input'!L191*K$9 -> 0 | L146: ='User Input'!M191*L$9 -> 0 | M146: ='User Input'!N191*M$9 -> 0 | N146: ='User Input'!O191*N$9 -> 0 | O146: ='User Input'!P191*O$9 -> 0 | P146: ='User Input'!Q191*P$9 -> 0 | Q146: ='User Input'!R191*Q$9 -> 0 | R146: ='User Input'!S191*R$9 -> 0 | S146: ='User Input'!T191*S$9 -> 0 | T146: ='User Input'!U191*T$9 -> 0 | U146: ='User Input'!V191*U$9 -> 0 | V146: ='User Input'!W191*V$9 -> 0 | W146: ='User Input'!X191*W$9 -> 0 | X146: ='User Input'!Y191*X$9 -> 0 | Y146: ='User Input'!Z191*Y$9 -> 0
C147: ='User Input'!D192 -> Risk 1 | D147: 0 | E147: ='User Input'!F192 -> 0 | F147: ='User Input'!G192*F$9 -> 0 | G147: ='User Input'!H192*G$9 -> 0 | H147: ='User Input'!I192*H$9 -> 0 | I147: ='User Input'!J192*I$9 -> 0 | J147: ='User Input'!K192*J$9 -> 0 | K147: ='User Input'!L192*K$9 -> 0 | L147: ='User Input'!M192*L$9 -> 0 | M147: ='User Input'!N192*M$9 -> 0 | N147: ='User Input'!O192*N$9 -> 0 | O147: ='User Input'!P192*O$9 -> 0 | P147: ='User Input'!Q192*P$9 -> 0 | Q147: ='User Input'!R192*Q$9 -> 0 | R147: ='User Input'!S192*R$9 -> 0 | S147: ='User Input'!T192*S$9 -> 0 | T147: ='User Input'!U192*T$9 -> 0 | U147: ='User Input'!V192*U$9 -> 0 | V147: ='User Input'!W192*V$9 -> 0 | W147: ='User Input'!X192*W$9 -> 0 | X147: ='User Input'!Y192*X$9 -> 0 | Y147: ='User Input'!Z192*Y$9 -> 0
C148: ='User Input'!D193 -> Risk 2 | D148: 0 | E148: ='User Input'!F193 -> 0 | F148: ='User Input'!G193*F$9 -> 0 | G148: ='User Input'!H193*G$9 -> 0 | H148: ='User Input'!I193*H$9 -> 0 | I148: ='User Input'!J193*I$9 -> 0 | J148: ='User Input'!K193*J$9 -> 0 | K148: ='User Input'!L193*K$9 -> 0 | L148: ='User Input'!M193*L$9 -> 0 | M148: ='User Input'!N193*M$9 -> 0 | N148: ='User Input'!O193*N$9 -> 0 | O148: ='User Input'!P193*O$9 -> 0 | P148: ='User Input'!Q193*P$9 -> 0 | Q148: ='User Input'!R193*Q$9 -> 0 | R148: ='User Input'!S193*R$9 -> 0 | S148: ='User Input'!T193*S$9 -> 0 | T148: ='User Input'!U193*T$9 -> 0 | U148: ='User Input'!V193*U$9 -> 0 | V148: ='User Input'!W193*V$9 -> 0 | W148: ='User Input'!X193*W$9 -> 0 | X148: ='User Input'!Y193*X$9 -> 0 | Y148: ='User Input'!Z193*Y$9 -> 0
C149: ='User Input'!D194 -> Risk 3 | D149: 0 | E149: ='User Input'!F194 -> 0 | F149: ='User Input'!G194*F$9 -> 0 | G149: ='User Input'!H194*G$9 -> 0 | H149: ='User Input'!I194*H$9 -> 0 | I149: ='User Input'!J194*I$9 -> 0 | J149: ='User Input'!K194*J$9 -> 0 | K149: ='User Input'!L194*K$9 -> 0 | L149: ='User Input'!M194*L$9 -> 0 | M149: ='User Input'!N194*M$9 -> 0 | N149: ='User Input'!O194*N$9 -> 0 | O149: ='User Input'!P194*O$9 -> 0 | P149: ='User Input'!Q194*P$9 -> 0 | Q149: ='User Input'!R194*Q$9 -> 0 | R149: ='User Input'!S194*R$9 -> 0 | S149: ='User Input'!T194*S$9 -> 0 | T149: ='User Input'!U194*T$9 -> 0 | U149: ='User Input'!V194*U$9 -> 0 | V149: ='User Input'!W194*V$9 -> 0 | W149: ='User Input'!X194*W$9 -> 0 | X149: ='User Input'!Y194*X$9 -> 0 | Y149: ='User Input'!Z194*Y$9 -> 0
C150: ='User Input'!D195 -> Risk 4 | D150: 0 | E150: ='User Input'!F195 -> 0 | F150: ='User Input'!G195*F$9 -> 0 | G150: ='User Input'!H195*G$9 -> 0 | H150: ='User Input'!I195*H$9 -> 0 | I150: ='User Input'!J195*I$9 -> 0 | J150: ='User Input'!K195*J$9 -> 0 | K150: ='User Input'!L195*K$9 -> 0 | L150: ='User Input'!M195*L$9 -> 0 | M150: ='User Input'!N195*M$9 -> 0 | N150: ='User Input'!O195*N$9 -> 0 | O150: ='User Input'!P195*O$9 -> 0 | P150: ='User Input'!Q195*P$9 -> 0 | Q150: ='User Input'!R195*Q$9 -> 0 | R150: ='User Input'!S195*R$9 -> 0 | S150: ='User Input'!T195*S$9 -> 0 | T150: ='User Input'!U195*T$9 -> 0 | U150: ='User Input'!V195*U$9 -> 0 | V150: ='User Input'!W195*V$9 -> 0 | W150: ='User Input'!X195*W$9 -> 0 | X150: ='User Input'!Y195*X$9 -> 0 | Y150: ='User Input'!Z195*Y$9 -> 0
C151: ='User Input'!D196 -> Risk 5 | D151: 0 | E151: ='User Input'!F196 -> 0 | F151: ='User Input'!G196*F$9 -> 0 | G151: ='User Input'!H196*G$9 -> 0 | H151: ='User Input'!I196*H$9 -> 0 | I151: ='User Input'!J196*I$9 -> 0 | J151: ='User Input'!K196*J$9 -> 0 | K151: ='User Input'!L196*K$9 -> 0 | L151: ='User Input'!M196*L$9 -> 0 | M151: ='User Input'!N196*M$9 -> 0 | N151: ='User Input'!O196*N$9 -> 0 | O151: ='User Input'!P196*O$9 -> 0 | P151: ='User Input'!Q196*P$9 -> 0 | Q151: ='User Input'!R196*Q$9 -> 0 | R151: ='User Input'!S196*R$9 -> 0 | S151: ='User Input'!T196*S$9 -> 0 | T151: ='User Input'!U196*T$9 -> 0 | U151: ='User Input'!V196*U$9 -> 0 | V151: ='User Input'!W196*V$9 -> 0 | W151: ='User Input'!X196*W$9 -> 0 | X151: ='User Input'!Y196*X$9 -> 0 | Y151: ='User Input'!Z196*Y$9 -> 0
C152: Total Costs | D152: =SUM(E152:Y152) -> 0 | E152: =SUM(E133:E151) -> 0 | F152: =SUM(F133:F151) -> 0 | G152: 0 | H152: 0 | I152: 0 | J152: 0 | K152: 0 | L152: 0 | M152: 0 | N152: 0 | O152: 0 | P152: 0 | Q152: 0 | R152: 0 | S152: 0 | T152: 0 | U152: 0 | V152: 0 | W152: 0 | X152: 0 | Y152: 0
C153: Present Value (PV) of Total Costs | D153: =SUM(E153:Y153) -> 0 | E153: =E152/(1+$D$4)^E$7 -> 0 | F153: 0 | G153: 0 | H153: 0 | I153: 0 | J153: 0 | K153: 0 | L153: 0 | M153: 0 | N153: 0 | O153: 0 | P153: 0 | Q153: 0 | R153: 0 | S153: 0 | T153: 0 | U153: 0 | V153: 0 | W153: 0 | X153: 0 | Y153: 0
B156: Summary
C158: Total Costs
A160: 1 | C160: =B11 -> "Status Quo" Reference Case | E160: =E32 -> 1053.834627 | F160: =F32 -> 1082.288162 | G160: 14882.42958 | H160: 15284.25518 | I160: 15696.93007 | J160: 16120.74718 | K160: 16556.00735 | L160: 17003.01955 | M160: 17462.10108 | N160: 17933.57781 | O160: =O32 -> 18417.78441 | P160: 18915.06459 | Q160: 19425.77133 | R160: 19950.26716 | S160: 20488.92437 | T160: 19470.57202 | U160: 19996.27746 | V160: 20536.17695 | W160: 21090.65373 | X160: 21660.10138 | Y160: 22244.92412
A161: 2 | C161: =B35 -> Option 1: RTS Redevelopment | E161: =E56 -> 654.6391045 | F161: =F56 -> 3593.351095 | G161: 5209.869712 | H161: 4704.774146 | I161: 3653.625604 | J161: 3752.273495 | K161: 3853.58488 | L161: 3957.631671 | M161: 4064.487727 | N161: 4174.228895 | O161: =O56 -> 4286.933075 | P161: 4402.680268 | Q161: 4521.552636 | R161: 4643.634557 | S161: 4769.01269 | T161: 4897.776033 | U161: 5030.015985 | V161: 5165.826417 | W161: 5305.30373 | X161: 5448.546931 | Y161: 5595.657698
A162: 3 | C162: =B59 -> Option 2: | E162: =E80 -> 0 | F162: =F80 -> 0 | G162: 0 | H162: 0 | I162: 0 | J162: 0 | K162: 0 | L162: 0 | M162: 0 | N162: 0 | O162: =O80 -> 0 | P162: 0 | Q162: 0 | R162: 0 | S162: 0 | T162: 0 | U162: 0 | V162: 0 | W162: 0 | X162: 0 | Y162: 0
A163: 4 | C163: =B83 -> Option 3: | E163: =E104 -> 0 | F163: =F104 -> 0 | G163: 0 | H163: 0 | I163: 0 | J163: 0 | K163: 0 | L163: 0 | M163: 0 | N163: 0 | O163: 0 | P163: 0 | Q163: 0 | R163: 0 | S163: 0 | T163: 0 | U163: 0 | V163: 0 | W163: 0 | X163: 0 | Y163: 0
A164: 5 | C164: =B107 -> Option 4: | E164: =E128 -> 0 | F164: =F128 -> 0 | G164: 0 | H164: 0 | I164: 0 | J164: 0 | K164: 0 | L164: 0 | M164: 0 | N164: 0 | O164: 0 | P164: 0 | Q164: 0 | R164: 0 | S164: 0 | T164: 0 | U164: 0 | V164: 0 | W164: 0 | X164: 0 | Y164: 0
A165: 6 | C165: =B131 -> Option 5: | E165: =E152 -> 0 | F165: =F152 -> 0 | G165: 0 | H165: 0 | I165: 0 | J165: 0 | K165: 0 | L165: 0 | M165: 0 | N165: 0 | O165: 0 | P165: 0 | Q165: 0 | R165: 0 | S165: 0 | T165: 0 | U165: 0 | V165: 0 | W165: 0 | X165: 0 | Y165: 0
C167: PV of Total Costs
A169: 1 | C169: =B11 -> "Status Quo" Reference Case | E169: =E33 -> 1053.834627 | F169: =F33 -> 1018.911845 | G169: =G33 -> 13190.49951 | H169: =H33 -> 12753.3826 | I169: =I33 -> 12330.7512 | J169: =J33 -> 11922.12529 | K169: 11527.04074 | L169: 11145.04881 | M169: 10775.71561 | N169: 10418.62167 | O169: 10073.36137 | P169: 9739.542582 | Q169: 9416.786134 | R169: 9104.725438 | S169: 8803.006048 | T169: 7875.610955 | U169: 7614.622906 | V169: 7362.28368 | W169: 7118.306664 | X169: 6882.414747 | Y169: 6654.339997
A170: 2 | C170: =B35 -> Option 1: RTS Redevelopment | E170: =E57 -> 654.6391045 | F170: =F57 -> 3382.932682 | G170: =G57 -> 4617.5783 | H170: =H57 -> 3925.725135 | I170: =I57 -> 2870.112061 | J170: =J57 -> 2775.000082 | K170: 2683.039996 | L170: 2594.127355 | M170: 2508.161169 | N170: 2425.043796 | O170: 2344.680831 | P170: 2266.980995 | Q170: 2191.856037 | R170: 2119.220627 | S170: 2048.992265 | T170: 1981.091184 | U170: 1915.440262 | V170: 1851.96493 | W170: 1790.593093 | X170: 1731.255043 | Y170: 1673.883383
A171: 3 | C171: =B59 -> Option 2: | E171: =E81 -> 0 | F171: =F81 -> 0 | G171: =G81 -> 0 | H171: =H81 -> 0 | I171: =I81 -> 0 | J171: =J81 -> 0 | K171: 0 | L171: 0 | M171: 0 | N171: 0 | O171: 0 | P171: 0 | Q171: 0 | R171: 0 | S171: 0 | T171: 0 | U171: 0 | V171: 0 | W171: 0 | X171: 0 | Y171: 0
A172: 4 | C172: =B83 -> Option 3: | E172: =E105 -> 0 | F172: =F105 -> 0 | G172: =G105 -> 0 | H172: =H105 -> 0 | I172: =I105 -> 0 | J172: =J105 -> 0 | K172: 0 | L172: 0 | M172: 0 | N172: 0 | O172: 0 | P172: 0 | Q172: 0 | R172: 0 | S172: 0 | T172: 0 | U172: 0 | V172: 0 | W172: 0 | X172: 0 | Y172: 0
A173: 5 | C173: =B107 -> Option 4: | E173: =E129 -> 0 | F173: =F129 -> 0 | G173: =G129 -> 0 | H173: =H129 -> 0 | I173: =I129 -> 0 | J173: =J129 -> 0 | K173: 0 | L173: 0 | M173: 0 | N173: 0 | O173: 0 | P173: 0 | Q173: 0 | R173: 0 | S173: 0 | T173: 0 | U173: 0 | V173: 0 | W173: 0 | X173: 0 | Y173: 0
A174: 6 | C174: =B131 -> Option 5: | E174: =E153 -> 0 | F174: =F153 -> 0 | G174: =G153 -> 0 | H174: =H153 -> 0 | I174: =I153 -> 0 | J174: =J153 -> 0 | K174: 0 | L174: 0 | M174: 0 | N174: 0 | O174: 0 | P174: 0 | Q174: 0 | R174: 0 | S174: 0 | T174: 0 | U174: 0 | V174: 0 | W174: 0 | X174: 0 | Y174: 0
C176: Total Capital Costs
A178: 1 | C178: =B11 -> "Status Quo" Reference Case | E178: =E13 -> 0 | F178: =F13 -> 0 | G178: 0 | H178: 0 | I178: 0 | J178: 0 | K178: 0 | L178: 0 | M178: 0 | N178: 0 | O178: 0 | P178: 0 | Q178: 0 | R178: 0 | S178: 0 | T178: 0 | U178: 0 | V178: 0 | W178: 0 | X178: 0 | Y178: 0
A179: 2 | C179: =B35 -> Option 1: RTS Redevelopment | E179: =E37 -> 479 | F179: =F37 -> 3412.969734 | G179: 1745.827665 | H179: 1147.202964 | I179: 0 | J179: 0 | K179: 0 | L179: 0 | M179: 0 | N179: 0 | O179: 0 | P179: 0 | Q179: 0 | R179: 0 | S179: 0 | T179: 0 | U179: 0 | V179: 0 | W179: 0 | X179: 0 | Y179: 0
A180: 3 | C180: =B59 -> Option 2: | E180: =E61 -> 0 | F180: =F61 -> 0 | G180: 0 | H180: 0 | I180: 0 | J180: 0 | K180: 0 | L180: 0 | M180: 0 | N180: 0 | O180: 0 | P180: 0 | Q180: 0 | R180: 0 | S180: 0 | T180: 0 | U180: 0 | V180: 0 | W180: 0 | X180: 0 | Y180: 0
A181: 4 | C181: =B83 -> Option 3: | E181: =E85 -> 0 | F181: =F85 -> 0 | G181: 0 | H181: 0 | I181: 0 | J181: 0 | K181: 0 | L181: 0 | M181: 0 | N181: 0 | O181: 0 | P181: 0 | Q181: 0 | R181: 0 | S181: 0 | T181: 0 | U181: 0 | V181: 0 | W181: 0 | X181: 0 | Y181: 0
A182: 5 | C182: =B107 -> Option 4: | E182: =E109 -> 0 | F182: =F109 -> 0 | G182: 0 | H182: 0 | I182: 0 | J182: 0 | K182: 0 | L182: 0 | M182: 0 | N182: 0 | O182: 0 | P182: 0 | Q182: 0 | R182: 0 | S182: 0 | T182: 0 | U182: 0 | V182: 0 | W182: 0 | X182: 0 | Y182: 0
A183: 6 | C183: =B131 -> Option 5: | E183: =E133 -> 0 | F183: =F133 -> 0 | G183: 0 | H183: 0 | I183: 0 | J183: 0 | K183: 0 | L183: 0 | M183: 0 | N183: 0 | O183: 0 | P183: 0 | Q183: 0 | R183: 0 | S183: 0 | T183: 0 | U183: 0 | V183: 0 | W183: 0 | X183: 0 | Y183: 0
B185: ="Differential Analysis between Status Quo and "&+D221 -> Differential Analysis between Status Quo and Option 1: RTS Redevelopment
C187: ="Cashflow - "&+'User Input'!E15 -> Cashflow - Status Quo | E187: =-E160 -> -1053.834627 | F187: =-F160 -> -1082.288162 | G187: -14882.42958 | H187: -15284.25518 | I187: -15696.93007 | J187: -16120.74718 | K187: -16556.00735 | L187: -17003.01955 | M187: -17462.10108 | N187: -17933.57781 | O187: -18417.78441 | P187: -18915.06459 | Q187: -19425.77133 | R187: -19950.26716 | S187: -20488.92437 | T187: -19470.57202 | U187: -19996.27746 | V187: =-V160 -> -20536.17695 | W187: =-W160 -> -21090.65373 | X187: =-X160 -> -21660.10138 | Y187: =-Y160 -> -22244.92412
C188: ="Cashflow - "&+D221 -> Cashflow - Option 1: RTS Redevelopment | E188: =-E239-E241 -> -654.6391045 | F188: =-F239+E239-F241 -> -3593.351095 | G188: =-G239+F239-G241 -> -5209.869712 | H188: -4704.774146 | I188: -3653.625604 | J188: -3752.273495 | K188: -3853.58488 | L188: -3957.631671 | M188: -4064.487727 | N188: -4174.228895 | O188: -4286.933075 | P188: -4402.680268 | Q188: -4521.552636 | R188: -4643.634557 | S188: -4769.01269 | T188: -4897.776033 | U188: -5030.015985 | V188: -5165.826417 | W188: -5305.30373 | X188: -5448.546931 | Y188: -5595.657698
C189: Difference in Cashflow | E189: =E188-E187 -> 399.1955224 | F189: -2511.062933 | G189: 9672.559868 | H189: 10579.48103 | I189: 12043.30446 | J189: 12368.47368 | K189: 12702.42247 | L189: 13045.38788 | M189: 13397.61335 | N189: 13759.34891 | O189: 14130.85133 | P189: 14512.38432 | Q189: 14904.2187 | R189: 15306.6326 | S189: 15719.91168 | T189: 14572.79599 | U189: 14966.26148 | V189: 15370.35054 | W189: 15785.35 | X189: 16211.55445 | Y189: 16649.26642
C191: ="PV - "&+'User Input'!E15 -> PV - Status Quo | E191: =-E169 -> -1053.834627 | F191: =-F169 -> -1018.911845 | G191: -13190.49951 | H191: -12753.3826 | I191: -12330.7512 | J191: -11922.12529 | K191: -11527.04074 | L191: =-L169 -> -11145.04881 | M191: -10775.71561 | N191: -10418.62167 | O191: -10073.36137 | P191: -9739.542582 | Q191: -9416.786134 | R191: -9104.725438 | S191: -8803.006048 | T191: -7875.610955 | U191: -7614.622906 | V191: -7362.28368 | W191: -7118.306664 | X191: -6882.414747 | Y191: -6654.339997
C192: ="PV - "&+D221 -> PV - Option 1: RTS Redevelopment | E192: =-E230 -> -654.6391045 | F192: -3382.932682 | G192: -4617.5783 | H192: -3925.725135 | I192: -2870.112061 | J192: -2775.000082 | K192: -2683.039996 | L192: -2594.127355 | M192: -2508.161169 | N192: -2425.043796 | O192: -2344.680831 | P192: -2266.980995 | Q192: -2191.856037 | R192: -2119.220627 | S192: -2048.992265 | T192: -1981.091184 | U192: -1915.440262 | V192: -1851.96493 | W192: -1790.593093 | X192: -1731.255043 | Y192: -1673.883383
C193: Difference in PV | E193: =E192-E191 -> 399.1955224 | F193: -2364.020837 | G193: 8572.921209 | H193: 8827.657463 | I193: 9460.639142 | J193: 9147.125211 | K193: 8844.000745 | L193: 8550.921451 | M193: 8267.554444 | N193: 7993.57787 | O193: 7728.680543 | P193: 7472.561587 | Q193: 7224.930097 | R193: 6985.504811 | S193: 6754.013783 | T193: 5894.519771 | U193: 5699.182644 | V193: 5510.318749 | W193: 5327.713571 | X193: 5151.159704 | Y193: 4980.456615
C194: Cumulative difference in PV | E194: =E193 -> 399.1955224 | F194: =E194+F193 -> -1964.825314 | G194: =F194+G193 -> 6608.095894 | H194: 15435.75336 | I194: 24896.3925 | J194: 34043.51771 | K194: 42887.51845 | L194: 51438.4399 | M194: 59705.99435 | N194: 67699.57222 | O194: 75428.25276 | P194: 82900.81435 | Q194: 90125.74445 | R194: 97111.24926 | S194: 103865.263 | T194: 109759.7828 | U194: 115458.9655 | V194: 120969.2842 | W194: 126296.9978 | X194: 131448.1575 | Y194: 136428.6141
C196: Analysis
C197: PV of Difference in Cashflow | D197: =SUM(E193:Y193) -> 136428.6141
C198: Internal Rate of Return | D198: =IRR(E189:Y189) -> 
C199: Discounted payback (years) | D199: =COUNTIF(E194:Y194,"<0") -> 1
B201: Cumulative Table
D203: =B11 -> "Status Quo" Reference Case | E203: =B35 -> Option 1: RTS Redevelopment | F203: =B59 -> Option 2: | G203: =B83 -> Option 3: | H203: =B107 -> Option 4: | I203: =B131 -> Option 5:
C205: =C13 -> Capital Costs | D205: =D13 -> 0 | E205: =D37 -> 6785.000363 | F205: =D61 -> 0 | G205: =D85 -> 0 | H205: =D109 -> 0 | I205: =D133 -> 0
C206: =C14 -> Annual Maintenance Costs | D206: =D14 -> 0 | E206: =D38 -> 0 | F206: =D62 -> 0 | G206: =D86 -> 0 | H206: =D110 -> 0 | I206: =D134 -> 0
C207: =C15 -> Negative Impact on Revenue (STPIS) | D207: =SUM(D16:D19) -> 336096.942 | E207: =SUM(D40:D43) -> 80023.08142 | F207: =SUM(D64:D67) -> 0 | G207: =SUM(D88:D91) -> 0 | H207: =SUM(D112:D115) -> 0 | I207: =SUM(D136:D139) -> 0
C208: =C20 -> Network Outage Costs | D208: 19174.76615 | E208: =D44 -> 4877.324565 | F208: =D68 -> 0 | G208: =D92 -> 0 | H208: =D116 -> 0 | I208: =D140 -> 0
C209: Loss of F Factor Benefit | D209: 0 | E209: 0 | F209: 0 | G209: 0 | H209: 0 | I209: 0
C210: Cost 1 | D210: 0 | E210: 0 | F210: 0 | G210: 0 | H210: 0 | I210: 0
C211: Cost 2 | D211: 0 | E211: 0 | F211: 0 | G211: 0 | H211: 0 | I211: 0
C212: Cost 3 | D212: 0 | E212: 0 | F212: 0 | G212: 0 | H212: 0 | I212: 0
C213: Cost 4 | D213: 0 | E213: 0 | F213: 0 | G213: 0 | H213: 0 | I213: 0
C214: Cost 5 | D214: 0 | E214: 0 | F214: 0 | G214: 0 | H214: 0 | I214: 0
C215: Risk | D215: =SUM(D27:D31) -> 0 | E215: =SUM(D51:D55) -> 0 | F215: =SUM(D75:D79) -> 0 | G215: =SUM(D99:D103) -> 0 | H215: =SUM(D123:D127) -> 0 | I215: =SUM(D147:D151) -> 0
C216: =C32 -> Total Costs | D216: =SUM(D205:D215) -> 355271.7081 | E216: 91685.40635 | F216: 0 | G216: 0 | H216: 0 | I216: 0
C218: PV of Total Costs | D218: =IF(D216=0," ",D33) -> 186780.9324 | E218: =IF(E216=0," ",D57) -> 50352.31833 | F218: =IF(F216=0," ",D81) ->  | G218: =IF(G216=0," ",D105) ->  | H218: =IF(H216=0," ",D129) ->  | I218: =IF(I216=0," ",D153) -> 
C220: Least Cost (PV) | D220: =MIN(D218:I218) -> 50352.31833
C221: Least Cost Option | D221: =IF(D220=D218,D203,IF(D220=E218,E203,IF(D220=F218,F203,IF(D220=G218,G203,IF(D220=H218,H203,IF(D220=I218,I203,"N/A")))))) -> Option 1: RTS Redevelopment
B225: Graph & Working Data
E227: =E5 -> 2015 | F227: 2016 | G227: 2017 | H227: 2018 | I227: 2019 | J227: 2020 | K227: 2021 | L227: 2022 | M227: 2023 | N227: 2024 | O227: 2025
D228: 'Status Quo': annual costs | E228: =E236 -> 1053.834627 | F228: =F236 -> 1082.288162 | G228: 14882.42958 | H228: 15284.25518 | I228: 15696.93007 | J228: 16120.74718 | K228: 16556.00735 | L228: 17003.01955 | M228: 17462.10108 | N228: 17933.57781 | O228: 18417.78441 | P228: 18915.06459 | Q228: 19425.77133 | R228: 19950.26716 | S228: 20488.92437 | T228: 19470.57202 | U228: 19996.27746 | V228: 20536.17695 | W228: 21090.65373 | X228: 21660.10138 | Y228: 22244.92412
D229: =D221&+" annual costs" -> Option 1: RTS Redevelopment annual costs | E229: =E242 -> 205.4329045 | F229: =F242 -> 422.4618778 | G229: 3814.713045 | H229: 3979.598205 | I229: 4075.652627 | J229: 4174.300518 | K229: 4275.611902 | L229: 4379.658694 | M229: 4486.514749 | N229: 4596.255918 | O229: 4708.960098 | P229: 4824.707291 | Q229: 4943.579658 | R229: 5065.661579 | S229: 5191.039713 | T229: 5319.803055 | U229: 5452.043008 | V229: 5587.85344 | W229: 5727.330753 | X229: 5870.573954 | Y229: 6017.684721
D230: =D221&+" PV of costs" -> Option 1: RTS Redevelopment PV of costs | E230: =VLOOKUP($B$238,$A$169:$Y$174,5) -> 654.6391045 | F230: =VLOOKUP($B$238,$A$169:$Y$174,6) -> 3382.932682 | G230: =VLOOKUP($B$238,$A$169:$Y$174,7) -> 4617.5783 | H230: =VLOOKUP($B$238,$A$169:$Y$174,8) -> 3925.725135 | I230: =VLOOKUP($B$238,$A$169:$Y$174,9) -> 2870.112061 | J230: =VLOOKUP($B$238,$A$169:$Y$174,10) -> 2775.000082 | K230: =VLOOKUP($B$238,$A$169:$Y$174,11) -> 2683.039996 | L230: =VLOOKUP($B$238,$A$169:$Y$174,12) -> 2594.127355 | M230: =VLOOKUP($B$238,$A$169:$Y$174,13) -> 2508.161169 | N230: =VLOOKUP($B$238,$A$169:$Y$174,14) -> 2425.043796 | O230: =VLOOKUP($B$238,$A$169:$Y$174,15) -> 2344.680831 | P230: =VLOOKUP($B$238,$A$169:$Y$174,16) -> 2266.980995 | Q230: =VLOOKUP($B$238,$A$169:$Y$174,17) -> 2191.856037 | R230: =VLOOKUP($B$238,$A$169:$Y$174,18) -> 2119.220627 | S230: =VLOOKUP($B$238,$A$169:$Y$174,19) -> 2048.992265 | T230: =VLOOKUP($B$238,$A$169:$Y$174,20) -> 1981.091184 | U230: =VLOOKUP($B$238,$A$169:$Y$174,21) -> 1915.440262 | V230: =VLOOKUP($B$238,$A$169:$Y$174,22) -> 1851.96493 | W230: =VLOOKUP($B$238,$A$169:$Y$174,23) -> 1790.593093 | X230: =VLOOKUP($B$238,$A$169:$Y$174,24) -> 1731.255043 | Y230: =VLOOKUP($B$238,$A$169:$Y$174,25) -> 1673.883383
D232: =B11 -> "Status Quo" Reference Case
D233: Capital Costs | E233: =SUM($E13:E13) -> 0 | F233: =SUM($E13:F13) -> 0 | G233: =SUM($E13:G13) -> 0 | H233: =SUM($E13:H13) -> 0 | I233: =SUM($E13:I13) -> 0 | J233: =SUM($E13:J13) -> 0 | K233: =SUM($E13:K13) -> 0 | L233: =SUM($E13:L13) -> 0 | M233: =SUM($E13:M13) -> 0 | N233: =SUM($E13:N13) -> 0 | O233: =SUM($E13:O13) -> 0 | P233: =SUM($E13:P13) -> 0 | Q233: =SUM($E13:Q13) -> 0 | R233: =SUM($E13:R13) -> 0 | S233: =SUM($E13:S13) -> 0 | T233: =SUM($E13:T13) -> 0 | U233: =SUM($E13:U13) -> 0 | V233: =SUM($E13:V13) -> 0 | W233: =SUM($E13:W13) -> 0 | X233: =SUM($E13:X13) -> 0 | Y233: =SUM($E13:Y13) -> 0
D234: Funding Costs | E234: =E233*'Administrator Input'!$F$22 -> 0 | F234: =F233*'Administrator Input'!$F$22 -> 0 | G234: =G233*'Administrator Input'!$F$22 -> 0 | H234: =H233*'Administrator Input'!$F$22 -> 0 | I234: =I233*'Administrator Input'!$F$22 -> 0 | J234: =J233*'Administrator Input'!$F$22 -> 0 | K234: =K233*'Administrator Input'!$F$22 -> 0 | L234: =L233*'Administrator Input'!$F$22 -> 0 | M234: =M233*'Administrator Input'!$F$22 -> 0 | N234: =N233*'Administrator Input'!$F$22 -> 0 | O234: =O233*'Administrator Input'!$F$22 -> 0 | P234: =P233*'Administrator Input'!$F$22 -> 0 | Q234: =Q233*'Administrator Input'!$F$22 -> 0 | R234: =R233*'Administrator Input'!$F$22 -> 0 | S234: =S233*'Administrator Input'!$F$22 -> 0 | T234: =T233*'Administrator Input'!$F$22 -> 0 | U234: =U233*'Administrator Input'!$F$22 -> 0 | V234: =V233*'Administrator Input'!$F$22 -> 0 | W234: =W233*'Administrator Input'!$F$22 -> 0 | X234: =X233*'Administrator Input'!$F$22 -> 0 | Y234: =Y233*'Administrator Input'!$F$22 -> 0
D235: Annual Costs | E235: =E32-E13 -> 1053.834627 | F235: =F32-F13 -> 1082.288162 | G235: 14882.42958 | H235: 15284.25518 | I235: 15696.93007 | J235: 16120.74718 | K235: 16556.00735 | L235: 17003.01955 | M235: 17462.10108 | N235: 17933.57781 | O235: 18417.78441 | P235: 18915.06459 | Q235: 19425.77133 | R235: 19950.26716 | S235: 20488.92437 | T235: 19470.57202 | U235: 19996.27746 | V235: 20536.17695 | W235: 21090.65373 | X235: 21660.10138 | Y235: 22244.92412
D236: Annualised costs | E236: =E234+E235 -> 1053.834627 | F236: =F234+F235 -> 1082.288162 | G236: 14882.42958 | H236: 15284.25518 | I236: 15696.93007 | J236: 16120.74718 | K236: 16556.00735 | L236: 17003.01955 | M236: 17462.10108 | N236: 17933.57781 | O236: 18417.78441 | P236: 18915.06459 | Q236: 19425.77133 | R236: 19950.26716 | S236: 20488.92437 | T236: 19470.57202 | U236: 19996.27746 | V236: 20536.17695 | W236: 21090.65373 | X236: 21660.10138 | Y236: 22244.92412
... 5 more rows

Sheet Calc (Sensitivities)
C2: Go to Best Case Scenario
C3: Go to Worst Case Scenario
B6: $000, nominal | E6: CAPITAL EXPENDITURE PROPOSAL
E7: ='User Input'!E4 -> RTS Redevelopment
E9: ='User Input'!E6 -> 2015 | F9: =E9+1 -> 2016 | G9: 2017 | H9: 2018 | I9: 2019 | J9: 2020 | K9: 2021 | L9: 2022 | M9: 2023 | N9: 2024 | O9: 2025 | P9: 2026 | Q9: 2027 | R9: 2028 | S9: 2029 | T9: 2030 | U9: 2031 | V9: 2032 | W9: 2033 | X9: 2034 | Y9: 2035
D11: t= | E11: 0 | F11: 1 | G11: 2 | H11: 3 | I11: 4 | J11: 5 | K11: 6 | L11: 7 | M11: 8 | N11: 9 | O11: 10 | P11: 11 | Q11: 12 | R11: 13 | S11: 14 | T11: 15 | U11: 16 | V11: 17 | W11: 18 | X11: 19 | Y11: 20
B12: Inflation (%) | F12: ='Administrator Input'!F35 -> 0.027 | G12: =+$F$12 -> 0.027 | H12: 0.027 | I12: 0.027 | J12: 0.027 | K12: 0.027 | L12: 0.027 | M12: 0.027 | N12: 0.027 | O12: 0.027 | P12: 0.027 | Q12: 0.027 | R12: 0.027 | S12: 0.027 | T12: 0.027 | U12: 0.027 | V12: 0.027 | W12: 0.027 | X12: 0.027 | Y12: 0.027
B13: Inflation Index | E13: 1 | F13: =E13+(+E13*F12) -> 1.027 | G13: 1.054729 | H13: 1.083206683 | I13: 1.112453263 | J13: 1.142489502 | K13: 1.173336718 | L13: 1.205016809 | M13: 1.237552263 | N13: 1.270966174 | O13: 1.305282261 | P13: 1.340524882 | Q13: 1.376719054 | R13: 1.413890468 | S13: 1.452065511 | T13: 1.49127128 | U13: 1.531535604 | V13: 1.572887066 | W13: 1.615355017 | X13: 1.658969602 | Y13: 1.703761781
B15: BEST CASE SCENARIO
B17: Discount Rate | D17: =Calculations!D4+'User Input'!I351 -> 0.0522
B18: Capex movement | D18: ='User Input'!G351 -> -0.1
B19: Opex movement | D19: ='User Input'!H351 -> -0.1
B20: SAIDI | D20: ='User Input'!J351 -> -0.1
B21: SAIFI | D21: ='User Input'!K351 -> -0.1
B22: MAIFI | D22: ='User Input'!L351 -> -0.1
B24: ='User Input'!D24 -> "Status Quo" Reference Case
C26: Capital Costs | D26: =SUM(E26:Y26) -> 0 | E26: =Calculations!E13*(1+$D$18) -> 0 | F26: =Calculations!F13*(1+$D$18) -> 0 | G26: =Calculations!G13*(1+$D$18) -> 0 | H26: =Calculations!H13*(1+$D$18) -> 0 | I26: =Calculations!I13*(1+$D$18) -> 0 | J26: =Calculations!J13*(1+$D$18) -> 0 | K26: =Calculations!K13*(1+$D$18) -> 0 | L26: =Calculations!L13*(1+$D$18) -> 0 | M26: =Calculations!M13*(1+$D$18) -> 0 | N26: =Calculations!N13*(1+$D$18) -> 0 | O26: =Calculations!O13*(1+$D$18) -> 0 | P26: =Calculations!P13*(1+$D$18) -> 0 | Q26: =Calculations!Q13*(1+$D$18) -> 0 | R26: =Calculations!R13*(1+$D$18) -> 0 | S26: =Calculations!S13*(1+$D$18) -> 0 | T26: =Calculations!T13*(1+$D$18) -> 0 | U26: =Calculations!U13*(1+$D$18) -> 0 | V26: =Calculations!V13*(1+$D$18) -> 0 | W26: =Calculations!W13*(1+$D$18) -> 0 | X26: =Calculations!X13*(1+$D$18) -> 0 | Y26: =Calculations!Y13*(1+$D$18) -> 0
C27: ='User Input'!D27 -> Annual Maintenance Costs | D27: =SUM(E27:Y27) -> 0 | E27: =Calculations!E14*(1+$D$19) -> 0 | F27: =Calculations!F14*(1+$D$19) -> 0 | G27: =Calculations!G14*(1+$D$19) -> 0 | H27: =Calculations!H14*(1+$D$19) -> 0 | I27: =Calculations!I14*(1+$D$19) -> 0 | J27: =Calculations!J14*(1+$D$19) -> 0 | K27: =Calculations!K14*(1+$D$19) -> 0 | L27: =Calculations!L14*(1+$D$19) -> 0 | M27: =Calculations!M14*(1+$D$19) -> 0 | N27: =Calculations!N14*(1+$D$19) -> 0 | O27: =Calculations!O14*(1+$D$19) -> 0 | P27: =Calculations!P14*(1+$D$19) -> 0 | Q27: =Calculations!Q14*(1+$D$19) -> 0 | R27: =Calculations!R14*(1+$D$19) -> 0 | S27: =Calculations!S14*(1+$D$19) -> 0 | T27: =Calculations!T14*(1+$D$19) -> 0 | U27: =Calculations!U14*(1+$D$19) -> 0 | V27: =Calculations!V14*(1+$D$19) -> 0 | W27: =Calculations!W14*(1+$D$19) -> 0 | X27: =Calculations!X14*(1+$D$19) -> 0 | Y27: =Calculations!Y14*(1+$D$19) -> 0
C28: ='User Input'!D29 -> Negative Impact on Revenue (STPIS)
C29: SAIFI sustained | D29: =SUM(E29:Y29) -> 64818.69595 | E29: 0 | F29: 0 | G29: =Calculations!G16*(1+$D$21) -> 2655.820216 | H29: =Calculations!H16*(1+$D$21) -> 2727.527362 | I29: =Calculations!I16*(1+$D$21) -> 2801.1706 | J29: =Calculations!J16*(1+$D$21) -> 2876.802207 | K29: =Calculations!K16*(1+$D$21) -> 2954.475866 | L29: =Calculations!L16*(1+$D$21) -> 3034.246715 | M29: =Calculations!M16*(1+$D$21) -> 3116.171376 | N29: =Calculations!N16*(1+$D$21) -> 3200.308003 | O29: =Calculations!O16*(1+$D$21) -> 3286.716319 | P29: =Calculations!P16*(1+$D$21) -> 3375.45766 | Q29: =Calculations!Q16*(1+$D$21) -> 3466.595016 | R29: =Calculations!R16*(1+$D$21) -> 3560.193082 | S29: =Calculations!S16*(1+$D$21) -> 3656.318295 | T29: =Calculations!T16*(1+$D$21) -> 3755.038889 | U29: =Calculations!U16*(1+$D$21) -> 3856.424939 | V29: =Calculations!V16*(1+$D$21) -> 3960.548412 | W29: =Calculations!W16*(1+$D$21) -> 4067.48322 | X29: =Calculations!X16*(1+$D$21) -> 4177.305267 | Y29: =Calculations!Y16*(1+$D$21) -> 4290.092509
C30: SAIDI accidental | D30: 237668.5518 | E30: 0 | F30: 0 | G30: =Calculations!G17*(1+$D$20) -> 9738.007458 | H30: =Calculations!H17*(1+$D$20) -> 10000.93366 | I30: =Calculations!I17*(1+$D$20) -> 10270.95887 | J30: =Calculations!J17*(1+$D$20) -> 10548.27476 | K30: =Calculations!K17*(1+$D$20) -> 10833.07818 | L30: =Calculations!L17*(1+$D$20) -> 11125.57129 | M30: =Calculations!M17*(1+$D$20) -> 11425.96171 | N30: =Calculations!N17*(1+$D$20) -> 11734.46268 | O30: =Calculations!O17*(1+$D$20) -> 12051.29317 | P30: =Calculations!P17*(1+$D$20) -> 12376.67809 | Q30: =Calculations!Q17*(1+$D$20) -> 12710.84839 | R30: =Calculations!R17*(1+$D$20) -> 13054.0413 | S30: =Calculations!S17*(1+$D$20) -> 13406.50042 | T30: =Calculations!T17*(1+$D$20) -> 13768.47593 | U30: =Calculations!U17*(1+$D$20) -> 14140.22478 | V30: =Calculations!V17*(1+$D$20) -> 14522.01085 | W30: =Calculations!W17*(1+$D$20) -> 14914.10514 | X30: =Calculations!X17*(1+$D$20) -> 15316.78598 | Y30: =Calculations!Y17*(1+$D$20) -> 15730.3392
C31: MAIFI momentary | D31: 0 | E31: 0 | F31: 0 | G31: =Calculations!G18*(1+$D$22) -> 0 | H31: =Calculations!H18*(1+$D$22) -> 0 | I31: =Calculations!I18*(1+$D$22) -> 0 | J31: =Calculations!J18*(1+$D$22) -> 0 | K31: =Calculations!K18*(1+$D$22) -> 0 | L31: =Calculations!L18*(1+$D$22) -> 0 | M31: =Calculations!M18*(1+$D$22) -> 0 | N31: =Calculations!N18*(1+$D$22) -> 0 | O31: =Calculations!O18*(1+$D$22) -> 0 | P31: =Calculations!P18*(1+$D$22) -> 0 | Q31: =Calculations!Q18*(1+$D$22) -> 0 | R31: =Calculations!R18*(1+$D$22) -> 0 | S31: =Calculations!S18*(1+$D$22) -> 0 | T31: =Calculations!T18*(1+$D$22) -> 0 | U31: =Calculations!U18*(1+$D$22) -> 0 | V31: =Calculations!V18*(1+$D$22) -> 0 | W31: =Calculations!W18*(1+$D$22) -> 0 | X31: =Calculations!X18*(1+$D$22) -> 0 | Y31: =Calculations!Y18*(1+$D$22) -> 0
C32: Call centre response | D32: 0 | E32: 0 | F32: 0 | G32: =Calculations!G19*(1+$D$19) -> 0 | H32: =Calculations!H19*(1+$D$19) -> 0 | I32: =Calculations!I19*(1+$D$19) -> 0 | J32: =Calculations!J19*(1+$D$19) -> 0 | K32: =Calculations!K19*(1+$D$19) -> 0 | L32: =Calculations!L19*(1+$D$19) -> 0 | M32: =Calculations!M19*(1+$D$19) -> 0 | N32: =Calculations!N19*(1+$D$19) -> 0 | O32: =Calculations!O19*(1+$D$19) -> 0 | P32: =Calculations!P19*(1+$D$19) -> 0 | Q32: =Calculations!Q19*(1+$D$19) -> 0 | R32: =Calculations!R19*(1+$D$19) -> 0 | S32: =Calculations!S19*(1+$D$19) -> 0 | T32: =Calculations!T19*(1+$D$19) -> 0 | U32: =Calculations!U19*(1+$D$19) -> 0 | V32: =Calculations!V19*(1+$D$19) -> 0 | W32: =Calculations!W19*(1+$D$19) -> 0 | X32: =Calculations!X19*(1+$D$19) -> 0 | Y32: =Calculations!Y19*(1+$D$19) -> 0
C33: ='User Input'!D35 -> Network Outage Costs | D33: 17257.28953 | E33: =Calculations!E20*(1+$D$19) -> 948.4511642 | F33: =Calculations!F20*(1+$D$19) -> 974.0593456 | G33: =Calculations!G20*(1+$D$19) -> 1000.358948 | H33: =Calculations!H20*(1+$D$19) -> 1027.36864 | I33: =Calculations!I20*(1+$D$19) -> 1055.107593 | J33: =Calculations!J20*(1+$D$19) -> 1083.595498 | K33: =Calculations!K20*(1+$D$19) -> 1112.852576 | L33: =Calculations!L20*(1+$D$19) -> 1142.899596 | M33: =Calculations!M20*(1+$D$19) -> 1173.757885 | N33: =Calculations!N20*(1+$D$19) -> 1205.449348 | O33: =Calculations!O20*(1+$D$19) -> 1237.99648 | P33: =Calculations!P20*(1+$D$19) -> 1271.422385 | Q33: =Calculations!Q20*(1+$D$19) -> 1305.75079 | R33: =Calculations!R20*(1+$D$19) -> 1341.006061 | S33: =Calculations!S20*(1+$D$19) -> 1377.213225 | T33: =Calculations!T20*(1+$D$19) -> 0 | U33: =Calculations!U20*(1+$D$19) -> 0 | V33: =Calculations!V20*(1+$D$19) -> 0 | W33: =Calculations!W20*(1+$D$19) -> 0 | X33: =Calculations!X20*(1+$D$19) -> 0 | Y33: =Calculations!Y20*(1+$D$19) -> 0
C34: ='User Input'!D39 -> Loss of F Factor Benefit | D34: 0 | E34: =Calculations!E21*(1+$D$19) -> 0 | F34: =Calculations!F21*(1+$D$19) -> 0 | G34: =Calculations!G21*(1+$D$19) -> 0 | H34: =Calculations!H21*(1+$D$19) -> 0 | I34: =Calculations!I21*(1+$D$19) -> 0 | J34: =Calculations!J21*(1+$D$19) -> 0 | K34: =Calculations!K21*(1+$D$19) -> 0 | L34: =Calculations!L21*(1+$D$19) -> 0 | M34: =Calculations!M21*(1+$D$19) -> 0 | N34: =Calculations!N21*(1+$D$19) -> 0 | O34: =Calculations!O21*(1+$D$19) -> 0 | P34: =Calculations!P21*(1+$D$19) -> 0 | Q34: =Calculations!Q21*(1+$D$19) -> 0 | R34: =Calculations!R21*(1+$D$19) -> 0 | S34: =Calculations!S21*(1+$D$19) -> 0 | T34: =Calculations!T21*(1+$D$19) -> 0 | U34: =Calculations!U21*(1+$D$19) -> 0 | V34: =Calculations!V21*(1+$D$19) -> 0 | W34: =Calculations!W21*(1+$D$19) -> 0 | X34: =Calculations!X21*(1+$D$19) -> 0 | Y34: =Calculations!Y21*(1+$D$19) -> 0
C35: ='User Input'!D42 -> Cost 1 | D35: 0 | E35: =Calculations!E22*(1+$D$19) -> 0 | F35: =Calculations!F22*(1+$D$19) -> 0 | G35: =Calculations!G22*(1+$D$19) -> 0 | H35: =Calculations!H22*(1+$D$19) -> 0 | I35: =Calculations!I22*(1+$D$19) -> 0 | J35: =Calculations!J22*(1+$D$19) -> 0 | K35: =Calculations!K22*(1+$D$19) -> 0 | L35: =Calculations!L22*(1+$D$19) -> 0 | M35: =Calculations!M22*(1+$D$19) -> 0 | N35: =Calculations!N22*(1+$D$19) -> 0 | O35: =Calculations!O22*(1+$D$19) -> 0 | P35: =Calculations!P22*(1+$D$19) -> 0 | Q35: =Calculations!Q22*(1+$D$19) -> 0 | R35: =Calculations!R22*(1+$D$19) -> 0 | S35: =Calculations!S22*(1+$D$19) -> 0 | T35: =Calculations!T22*(1+$D$19) -> 0 | U35: =Calculations!U22*(1+$D$19) -> 0 | V35: =Calculations!V22*(1+$D$19) -> 0 | W35: =Calculations!W22*(1+$D$19) -> 0 | X35: =Calculations!X22*(1+$D$19) -> 0 | Y35: =Calculations!Y22*(1+$D$19) -> 0
C36: ='User Input'!D43 -> Cost 2 | D36: 0 | E36: =Calculations!E23*(1+$D$19) -> 0 | F36: =Calculations!F23*(1+$D$19) -> 0 | G36: =Calculations!G23*(1+$D$19) -> 0 | H36: =Calculations!H23*(1+$D$19) -> 0 | I36: =Calculations!I23*(1+$D$19) -> 0 | J36: =Calculations!J23*(1+$D$19) -> 0 | K36: =Calculations!K23*(1+$D$19) -> 0 | L36: =Calculations!L23*(1+$D$19) -> 0 | M36: =Calculations!M23*(1+$D$19) -> 0 | N36: =Calculations!N23*(1+$D$19) -> 0 | O36: =Calculations!O23*(1+$D$19) -> 0 | P36: =Calculations!P23*(1+$D$19) -> 0 | Q36: =Calculations!Q23*(1+$D$19) -> 0 | R36: =Calculations!R23*(1+$D$19) -> 0 | S36: =Calculations!S23*(1+$D$19) -> 0 | T36: =Calculations!T23*(1+$D$19) -> 0 | U36: =Calculations!U23*(1+$D$19) -> 0 | V36: =Calculations!V23*(1+$D$19) -> 0 | W36: =Calculations!W23*(1+$D$19) -> 0 | X36: =Calculations!X23*(1+$D$19) -> 0 | Y36: =Calculations!Y23*(1+$D$19) -> 0
C37: ='User Input'!D44 -> Cost 3 | D37: 0 | E37: =Calculations!E24*(1+$D$19) -> 0 | F37: =Calculations!F24*(1+$D$19) -> 0 | G37: =Calculations!G24*(1+$D$19) -> 0 | H37: =Calculations!H24*(1+$D$19) -> 0 | I37: =Calculations!I24*(1+$D$19) -> 0 | J37: =Calculations!J24*(1+$D$19) -> 0 | K37: =Calculations!K24*(1+$D$19) -> 0 | L37: =Calculations!L24*(1+$D$19) -> 0 | M37: =Calculations!M24*(1+$D$19) -> 0 | N37: =Calculations!N24*(1+$D$19) -> 0 | O37: =Calculations!O24*(1+$D$19) -> 0 | P37: =Calculations!P24*(1+$D$19) -> 0 | Q37: =Calculations!Q24*(1+$D$19) -> 0 | R37: =Calculations!R24*(1+$D$19) -> 0 | S37: =Calculations!S24*(1+$D$19) -> 0 | T37: =Calculations!T24*(1+$D$19) -> 0 | U37: =Calculations!U24*(1+$D$19) -> 0 | V37: =Calculations!V24*(1+$D$19) -> 0 | W37: =Calculations!W24*(1+$D$19) -> 0 | X37: =Calculations!X24*(1+$D$19) -> 0 | Y37: =Calculations!Y24*(1+$D$19) -> 0
C38: ='User Input'!D45 -> Cost 4 | D38: 0 | E38: =Calculations!E25*(1+$D$19) -> 0 | F38: =Calculations!F25*(1+$D$19) -> 0 | G38: =Calculations!G25*(1+$D$19) -> 0 | H38: =Calculations!H25*(1+$D$19) -> 0 | I38: =Calculations!I25*(1+$D$19) -> 0 | J38: =Calculations!J25*(1+$D$19) -> 0 | K38: =Calculations!K25*(1+$D$19) -> 0 | L38: =Calculations!L25*(1+$D$19) -> 0 | M38: =Calculations!M25*(1+$D$19) -> 0 | N38: =Calculations!N25*(1+$D$19) -> 0 | O38: =Calculations!O25*(1+$D$19) -> 0 | P38: =Calculations!P25*(1+$D$19) -> 0 | Q38: =Calculations!Q25*(1+$D$19) -> 0 | R38: =Calculations!R25*(1+$D$19) -> 0 | S38: =Calculations!S25*(1+$D$19) -> 0 | T38: =Calculations!T25*(1+$D$19) -> 0 | U38: =Calculations!U25*(1+$D$19) -> 0 | V38: =Calculations!V25*(1+$D$19) -> 0 | W38: =Calculations!W25*(1+$D$19) -> 0 | X38: =Calculations!X25*(1+$D$19) -> 0 | Y38: =Calculations!Y25*(1+$D$19) -> 0
C39: ='User Input'!D46 -> Cost 5 | D39: 0 | E39: =Calculations!E26*(1+$D$19) -> 0 | F39: =Calculations!F26*(1+$D$19) -> 0 | G39: =Calculations!G26*(1+$D$19) -> 0 | H39: =Calculations!H26*(1+$D$19) -> 0 | I39: =Calculations!I26*(1+$D$19) -> 0 | J39: =Calculations!J26*(1+$D$19) -> 0 | K39: =Calculations!K26*(1+$D$19) -> 0 | L39: =Calculations!L26*(1+$D$19) -> 0 | M39: =Calculations!M26*(1+$D$19) -> 0 | N39: =Calculations!N26*(1+$D$19) -> 0 | O39: =Calculations!O26*(1+$D$19) -> 0 | P39: =Calculations!P26*(1+$D$19) -> 0 | Q39: =Calculations!Q26*(1+$D$19) -> 0 | R39: =Calculations!R26*(1+$D$19) -> 0 | S39: =Calculations!S26*(1+$D$19) -> 0 | T39: =Calculations!T26*(1+$D$19) -> 0 | U39: =Calculations!U26*(1+$D$19) -> 0 | V39: =Calculations!V26*(1+$D$19) -> 0 | W39: =Calculations!W26*(1+$D$19) -> 0 | X39: =Calculations!X26*(1+$D$19) -> 0 | Y39: =Calculations!Y26*(1+$D$19) -> 0
C40: ='User Input'!D47 -> Risk 1 | D40: 0 | E40: =Calculations!E27*(1+$D$19) -> 0 | F40: =Calculations!F27*(1+$D$19) -> 0 | G40: =Calculations!G27*(1+$D$19) -> 0 | H40: =Calculations!H27*(1+$D$19) -> 0 | I40: =Calculations!I27*(1+$D$19) -> 0 | J40: =Calculations!J27*(1+$D$19) -> 0 | K40: =Calculations!K27*(1+$D$19) -> 0 | L40: =Calculations!L27*(1+$D$19) -> 0 | M40: =Calculations!M27*(1+$D$19) -> 0 | N40: =Calculations!N27*(1+$D$19) -> 0 | O40: =Calculations!O27*(1+$D$19) -> 0 | P40: =Calculations!P27*(1+$D$19) -> 0 | Q40: =Calculations!Q27*(1+$D$19) -> 0 | R40: =Calculations!R27*(1+$D$19) -> 0 | S40: =Calculations!S27*(1+$D$19) -> 0 | T40: =Calculations!T27*(1+$D$19) -> 0 | U40: =Calculations!U27*(1+$D$19) -> 0 | V40: =Calculations!V27*(1+$D$19) -> 0 | W40: =Calculations!W27*(1+$D$19) -> 0 | X40: =Calculations!X27*(1+$D$19) -> 0 | Y40: =Calculations!Y27*(1+$D$19) -> 0
C41: ='User Input'!D48 -> Risk 2 | D41: 0 | E41: =Calculations!E28*(1+$D$19) -> 0 | F41: =Calculations!F28*(1+$D$19) -> 0 | G41: =Calculations!G28*(1+$D$19) -> 0 | H41: =Calculations!H28*(1+$D$19) -> 0 | I41: =Calculations!I28*(1+$D$19) -> 0 | J41: =Calculations!J28*(1+$D$19) -> 0 | K41: =Calculations!K28*(1+$D$19) -> 0 | L41: =Calculations!L28*(1+$D$19) -> 0 | M41: =Calculations!M28*(1+$D$19) -> 0 | N41: =Calculations!N28*(1+$D$19) -> 0 | O41: =Calculations!O28*(1+$D$19) -> 0 | P41: =Calculations!P28*(1+$D$19) -> 0 | Q41: =Calculations!Q28*(1+$D$19) -> 0 | R41: =Calculations!R28*(1+$D$19) -> 0 | S41: =Calculations!S28*(1+$D$19) -> 0 | T41: =Calculations!T28*(1+$D$19) -> 0 | U41: =Calculations!U28*(1+$D$19) -> 0 | V41: =Calculations!V28*(1+$D$19) -> 0 | W41: =Calculations!W28*(1+$D$19) -> 0 | X41: =Calculations!X28*(1+$D$19) -> 0 | Y41: =Calculations!Y28*(1+$D$19) -> 0
C42: ='User Input'!D49 -> Risk 3 | D42: 0 | E42: =Calculations!E29*(1+$D$19) -> 0 | F42: =Calculations!F29*(1+$D$19) -> 0 | G42: =Calculations!G29*(1+$D$19) -> 0 | H42: =Calculations!H29*(1+$D$19) -> 0 | I42: =Calculations!I29*(1+$D$19) -> 0 | J42: =Calculations!J29*(1+$D$19) -> 0 | K42: =Calculations!K29*(1+$D$19) -> 0 | L42: =Calculations!L29*(1+$D$19) -> 0 | M42: =Calculations!M29*(1+$D$19) -> 0 | N42: =Calculations!N29*(1+$D$19) -> 0 | O42: =Calculations!O29*(1+$D$19) -> 0 | P42: =Calculations!P29*(1+$D$19) -> 0 | Q42: =Calculations!Q29*(1+$D$19) -> 0 | R42: =Calculations!R29*(1+$D$19) -> 0 | S42: =Calculations!S29*(1+$D$19) -> 0 | T42: =Calculations!T29*(1+$D$19) -> 0 | U42: =Calculations!U29*(1+$D$19) -> 0 | V42: =Calculations!V29*(1+$D$19) -> 0 | W42: =Calculations!W29*(1+$D$19) -> 0 | X42: =Calculations!X29*(1+$D$19) -> 0 | Y42: =Calculations!Y29*(1+$D$19) -> 0
C43: ='User Input'!D50 -> Risk 4 | D43: 0 | E43: =Calculations!E30*(1+$D$19) -> 0 | F43: =Calculations!F30*(1+$D$19) -> 0 | G43: =Calculations!G30*(1+$D$19) -> 0 | H43: =Calculations!H30*(1+$D$19) -> 0 | I43: =Calculations!I30*(1+$D$19) -> 0 | J43: =Calculations!J30*(1+$D$19) -> 0 | K43: =Calculations!K30*(1+$D$19) -> 0 | L43: =Calculations!L30*(1+$D$19) -> 0 | M43: =Calculations!M30*(1+$D$19) -> 0 | N43: =Calculations!N30*(1+$D$19) -> 0 | O43: =Calculations!O30*(1+$D$19) -> 0 | P43: =Calculations!P30*(1+$D$19) -> 0 | Q43: =Calculations!Q30*(1+$D$19) -> 0 | R43: =Calculations!R30*(1+$D$19) -> 0 | S43: =Calculations!S30*(1+$D$19) -> 0 | T43: =Calculations!T30*(1+$D$19) -> 0 | U43: =Calculations!U30*(1+$D$19) -> 0 | V43: =Calculations!V30*(1+$D$19) -> 0 | W43: =Calculations!W30*(1+$D$19) -> 0 | X43: =Calculations!X30*(1+$D$19) -> 0 | Y43: =Calculations!Y30*(1+$D$19) -> 0
C44: ='User Input'!D51 -> Risk 5 | D44: 0 | E44: =Calculations!E31*(1+$D$19) -> 0 | F44: =Calculations!F31*(1+$D$19) -> 0 | G44: =Calculations!G31*(1+$D$19) -> 0 | H44: =Calculations!H31*(1+$D$19) -> 0 | I44: =Calculations!I31*(1+$D$19) -> 0 | J44: =Calculations!J31*(1+$D$19) -> 0 | K44: =Calculations!K31*(1+$D$19) -> 0 | L44: =Calculations!L31*(1+$D$19) -> 0 | M44: =Calculations!M31*(1+$D$19) -> 0 | N44: =Calculations!N31*(1+$D$19) -> 0 | O44: =Calculations!O31*(1+$D$19) -> 0 | P44: =Calculations!P31*(1+$D$19) -> 0 | Q44: =Calculations!Q31*(1+$D$19) -> 0 | R44: =Calculations!R31*(1+$D$19) -> 0 | S44: =Calculations!S31*(1+$D$19) -> 0 | T44: =Calculations!T31*(1+$D$19) -> 0 | U44: =Calculations!U31*(1+$D$19) -> 0 | V44: =Calculations!V31*(1+$D$19) -> 0 | W44: =Calculations!W31*(1+$D$19) -> 0 | X44: =Calculations!X31*(1+$D$19) -> 0 | Y44: =Calculations!Y31*(1+$D$19) -> 0
C45: Total Costs | D45: 319744.5373 | E45: =SUM(E26:E44) -> 948.4511642 | F45: =SUM(F26:F44) -> 974.0593456 | G45: 13394.18662 | H45: 13755.82966 | I45: 14127.23706 | J45: 14508.67246 | K45: 14900.40662 | L45: 15302.7176 | M45: 15715.89097 | N45: 16140.22003 | O45: 16576.00597 | P45: 17023.55813 | Q45: 17483.1942 | R45: 17955.24044 | S45: 18440.03194 | T45: 17523.51482 | U45: 17996.64972 | V45: 18482.55926 | W45: 18981.58836 | X45: 19494.09124 | Y45: 20020.43171
C46: Present Value (PV) of Total Costs | D46: 184589.8094 | E46: =E45/(1+$D$17)^E$11 -> 948.4511642 | F46: 925.7359301 | G46: 12098.17189 | H46: 11808.42286 | I46: 11525.61327 | J46: 11249.57691 | K46: 10980.15157 | L46: 10717.17893 | M46: 10460.50443 | N46: 10209.97723 | O46: 9965.450123 | P46: 9726.779392 | Q46: 9493.824782 | R46: 9266.449393 | S46: 9044.519603 | T46: 8168.583601 | U46: 7972.947499 | V46: 7781.996846 | W46: 7595.619427 | X46: 7413.705713 | Y46: 7236.1488
B48: ='User Input'!D53 -> Option 1: RTS Redevelopment
C50: Capital Costs | D50: =SUM(E50:Y50) -> 6106.500327 | E50: =Calculations!E37*(1+$D$18) -> 431.1 | F50: =Calculations!F37*(1+$D$18) -> 3071.672761 | G50: =Calculations!G37*(1+$D$18) -> 1571.244899 | H50: =Calculations!H37*(1+$D$18) -> 1032.482668 | I50: =Calculations!I37*(1+$D$18) -> 0 | J50: =Calculations!J37*(1+$D$18) -> 0 | K50: =Calculations!K37*(1+$D$18) -> 0 | L50: =Calculations!L37*(1+$D$18) -> 0 | M50: =Calculations!M37*(1+$D$18) -> 0 | N50: =Calculations!N37*(1+$D$18) -> 0 | O50: =Calculations!O37*(1+$D$18) -> 0 | P50: =Calculations!P37*(1+$D$18) -> 0 | Q50: =Calculations!Q37*(1+$D$18) -> 0 | R50: =Calculations!R37*(1+$D$18) -> 0 | S50: =Calculations!S37*(1+$D$18) -> 0 | T50: =Calculations!T37*(1+$D$18) -> 0 | U50: =Calculations!U37*(1+$D$18) -> 0 | V50: =Calculations!V37*(1+$D$18) -> 0 | W50: =Calculations!W37*(1+$D$18) -> 0 | X50: =Calculations!X37*(1+$D$18) -> 0 | Y50: =Calculations!Y37*(1+$D$18) -> 0
C51: ='User Input'!D56 -> Annual Maintenance Costs | D51: =SUM(E51:Y51) -> 0 | E51: =Calculations!E38*(1+$D$19) -> 0 | F51: =Calculations!F38*(1+$D$19) -> 0 | G51: =Calculations!G38*(1+$D$19) -> 0 | H51: =Calculations!H38*(1+$D$19) -> 0 | I51: =Calculations!I38*(1+$D$19) -> 0 | J51: =Calculations!J38*(1+$D$19) -> 0 | K51: =Calculations!K38*(1+$D$19) -> 0 | L51: =Calculations!L38*(1+$D$19) -> 0 | M51: =Calculations!M38*(1+$D$19) -> 0 | N51: =Calculations!N38*(1+$D$19) -> 0 | O51: =Calculations!O38*(1+$D$19) -> 0 | P51: =Calculations!P38*(1+$D$19) -> 0 | Q51: =Calculations!Q38*(1+$D$19) -> 0 | R51: =Calculations!R38*(1+$D$19) -> 0 | S51: =Calculations!S38*(1+$D$19) -> 0 | T51: =Calculations!T38*(1+$D$19) -> 0 | U51: =Calculations!U38*(1+$D$19) -> 0 | V51: =Calculations!V38*(1+$D$19) -> 0 | W51: =Calculations!W38*(1+$D$19) -> 0 | X51: =Calculations!X38*(1+$D$19) -> 0 | Y51: =Calculations!Y38*(1+$D$19) -> 0
C52: ='User Input'!D58 -> Negative Impact on Revenue (STPIS)
C53: ='User Input'!D59 -> SAIFI sustained | D53: =SUM(E53:Y53) -> 32409.34798 | E53: 0 | F53: 0 | G53: =Calculations!G40*(1+$D$21) -> 1327.910108 | H53: =Calculations!H40*(1+$D$21) -> 1363.763681 | I53: =Calculations!I40*(1+$D$21) -> 1400.5853 | J53: =Calculations!J40*(1+$D$21) -> 1438.401103 | K53: =Calculations!K40*(1+$D$21) -> 1477.237933 | L53: =Calculations!L40*(1+$D$21) -> 1517.123357 | M53: =Calculations!M40*(1+$D$21) -> 1558.085688 | N53: =Calculations!N40*(1+$D$21) -> 1600.154001 | O53: =Calculations!O40*(1+$D$21) -> 1643.35816 | P53: =Calculations!P40*(1+$D$21) -> 1687.72883 | Q53: =Calculations!Q40*(1+$D$21) -> 1733.297508 | R53: =Calculations!R40*(1+$D$21) -> 1780.096541 | S53: =Calculations!S40*(1+$D$21) -> 1828.159148 | T53: =Calculations!T40*(1+$D$21) -> 1877.519445 | U53: =Calculations!U40*(1+$D$21) -> 1928.21247 | V53: =Calculations!V40*(1+$D$21) -> 1980.274206 | W53: =Calculations!W40*(1+$D$21) -> 2033.74161 | X53: =Calculations!X40*(1+$D$21) -> 2088.652633 | Y53: =Calculations!Y40*(1+$D$21) -> 2145.046254
C54: ='User Input'!D60 -> SAIDI accidental | D54: 39611.4253 | E54: 0 | F54: 0 | G54: =Calculations!G41*(1+$D$20) -> 1623.001243 | H54: =Calculations!H41*(1+$D$20) -> 1666.822277 | I54: =Calculations!I41*(1+$D$20) -> 1711.826478 | J54: =Calculations!J41*(1+$D$20) -> 1758.045793 | K54: =Calculations!K41*(1+$D$20) -> 1805.513029 | L54: =Calculations!L41*(1+$D$20) -> 1854.261881 | M54: =Calculations!M41*(1+$D$20) -> 1904.326952 | N54: =Calculations!N41*(1+$D$20) -> 1955.74378 | O54: =Calculations!O41*(1+$D$20) -> 2008.548862 | P54: =Calculations!P41*(1+$D$20) -> 2062.779681 | Q54: =Calculations!Q41*(1+$D$20) -> 2118.474732 | R54: =Calculations!R41*(1+$D$20) -> 2175.67355 | S54: =Calculations!S41*(1+$D$20) -> 2234.416736 | T54: =Calculations!T41*(1+$D$20) -> 2294.745988 | U54: =Calculations!U41*(1+$D$20) -> 2356.704129 | V54: =Calculations!V41*(1+$D$20) -> 2420.335141 | W54: =Calculations!W41*(1+$D$20) -> 2485.68419 | X54: =Calculations!X41*(1+$D$20) -> 2552.797663 | Y54: =Calculations!Y41*(1+$D$20) -> 2621.7232
C55: ='User Input'!D61 -> MAIFI momentary | D55: 0 | E55: 0 | F55: 0 | G55: =Calculations!G42*(1+$D$22) -> 0 | H55: =Calculations!H42*(1+$D$22) -> 0 | I55: =Calculations!I42*(1+$D$22) -> 0 | J55: =Calculations!J42*(1+$D$22) -> 0 | K55: =Calculations!K42*(1+$D$22) -> 0 | L55: =Calculations!L42*(1+$D$22) -> 0 | M55: =Calculations!M42*(1+$D$22) -> 0 | N55: =Calculations!N42*(1+$D$22) -> 0 | O55: =Calculations!O42*(1+$D$22) -> 0 | P55: =Calculations!P42*(1+$D$22) -> 0 | Q55: =Calculations!Q42*(1+$D$22) -> 0 | R55: =Calculations!R42*(1+$D$22) -> 0 | S55: =Calculations!S42*(1+$D$22) -> 0 | T55: =Calculations!T42*(1+$D$22) -> 0 | U55: =Calculations!U42*(1+$D$22) -> 0 | V55: =Calculations!V42*(1+$D$22) -> 0 | W55: =Calculations!W42*(1+$D$22) -> 0 | X55: =Calculations!X42*(1+$D$22) -> 0 | Y55: =Calculations!Y42*(1+$D$22) -> 0
C56: ='User Input'!D62 -> Call centre response | D56: 0 | E56: 0 | F56: 0 | G56: =Calculations!G43*(1+$D$19) -> 0 | H56: =Calculations!H43*(1+$D$19) -> 0 | I56: =Calculations!I43*(1+$D$19) -> 0 | J56: =Calculations!J43*(1+$D$19) -> 0 | K56: =Calculations!K43*(1+$D$19) -> 0 | L56: =Calculations!L43*(1+$D$19) -> 0 | M56: =Calculations!M43*(1+$D$19) -> 0 | N56: =Calculations!N43*(1+$D$19) -> 0 | O56: =Calculations!O43*(1+$D$19) -> 0 | P56: =Calculations!P43*(1+$D$19) -> 0 | Q56: =Calculations!Q43*(1+$D$19) -> 0 | R56: =Calculations!R43*(1+$D$19) -> 0 | S56: =Calculations!S43*(1+$D$19) -> 0 | T56: =Calculations!T43*(1+$D$19) -> 0 | U56: =Calculations!U43*(1+$D$19) -> 0 | V56: =Calculations!V43*(1+$D$19) -> 0 | W56: =Calculations!W43*(1+$D$19) -> 0 | X56: =Calculations!X43*(1+$D$19) -> 0 | Y56: =Calculations!Y43*(1+$D$19) -> 0
C57: ='User Input'!D64 -> Network Outage Costs | D57: 4389.592109 | E57: =Calculations!E44*(1+$D$19) -> 158.075194 | F57: =Calculations!F44*(1+$D$19) -> 162.3432243 | G57: =Calculations!G44*(1+$D$19) -> 166.7264913 | H57: =Calculations!H44*(1+$D$19) -> 171.2281066 | I57: =Calculations!I44*(1+$D$19) -> 175.8512655 | J57: =Calculations!J44*(1+$D$19) -> 180.5992496 | K57: =Calculations!K44*(1+$D$19) -> 185.4754294 | L57: =Calculations!L44*(1+$D$19) -> 190.483266 | M57: =Calculations!M44*(1+$D$19) -> 195.6263141 | N57: =Calculations!N44*(1+$D$19) -> 200.9082246 | O57: =Calculations!O44*(1+$D$19) -> 206.3327467 | P57: =Calculations!P44*(1+$D$19) -> 211.9037309 | Q57: =Calculations!Q44*(1+$D$19) -> 217.6251316 | R57: =Calculations!R44*(1+$D$19) -> 223.5010101 | S57: =Calculations!S44*(1+$D$19) -> 229.5355374 | T57: =Calculations!T44*(1+$D$19) -> 235.7329969 | U57: =Calculations!U44*(1+$D$19) -> 242.0977878 | V57: =Calculations!V44*(1+$D$19) -> 248.6344281 | W57: =Calculations!W44*(1+$D$19) -> 255.3475577 | X57: =Calculations!X44*(1+$D$19) -> 262.2419417 | Y57: =Calculations!Y44*(1+$D$19) -> 269.3224742
C58: ='User Input'!D68 -> Loss of F Factor Benefit | D58: 0 | E58: =Calculations!E45*(1+$D$19) -> 0 | F58: =Calculations!F45*(1+$D$19) -> 0 | G58: =Calculations!G45*(1+$D$19) -> 0 | H58: =Calculations!H45*(1+$D$19) -> 0 | I58: =Calculations!I45*(1+$D$19) -> 0 | J58: =Calculations!J45*(1+$D$19) -> 0 | K58: =Calculations!K45*(1+$D$19) -> 0 | L58: =Calculations!L45*(1+$D$19) -> 0 | M58: =Calculations!M45*(1+$D$19) -> 0 | N58: =Calculations!N45*(1+$D$19) -> 0 | O58: =Calculations!O45*(1+$D$19) -> 0 | P58: =Calculations!P45*(1+$D$19) -> 0 | Q58: =Calculations!Q45*(1+$D$19) -> 0 | R58: =Calculations!R45*(1+$D$19) -> 0 | S58: =Calculations!S45*(1+$D$19) -> 0 | T58: =Calculations!T45*(1+$D$19) -> 0 | U58: =Calculations!U45*(1+$D$19) -> 0 | V58: =Calculations!V45*(1+$D$19) -> 0 | W58: =Calculations!W45*(1+$D$19) -> 0 | X58: =Calculations!X45*(1+$D$19) -> 0 | Y58: =Calculations!Y45*(1+$D$19) -> 0
C59: ='User Input'!D71 -> Cost 1 | D59: 0 | E59: =Calculations!E46*(1+$D$19) -> 0 | F59: =Calculations!F46*(1+$D$19) -> 0 | G59: =Calculations!G46*(1+$D$19) -> 0 | H59: =Calculations!H46*(1+$D$19) -> 0 | I59: =Calculations!I46*(1+$D$19) -> 0 | J59: =Calculations!J46*(1+$D$19) -> 0 | K59: =Calculations!K46*(1+$D$19) -> 0 | L59: =Calculations!L46*(1+$D$19) -> 0 | M59: =Calculations!M46*(1+$D$19) -> 0 | N59: =Calculations!N46*(1+$D$19) -> 0 | O59: =Calculations!O46*(1+$D$19) -> 0 | P59: =Calculations!P46*(1+$D$19) -> 0 | Q59: =Calculations!Q46*(1+$D$19) -> 0 | R59: =Calculations!R46*(1+$D$19) -> 0 | S59: =Calculations!S46*(1+$D$19) -> 0 | T59: =Calculations!T46*(1+$D$19) -> 0 | U59: =Calculations!U46*(1+$D$19) -> 0 | V59: =Calculations!V46*(1+$D$19) -> 0 | W59: =Calculations!W46*(1+$D$19) -> 0 | X59: =Calculations!X46*(1+$D$19) -> 0 | Y59: =Calculations!Y46*(1+$D$19) -> 0
C60: ='User Input'!D72 -> Cost 2 | D60: 0 | E60: =Calculations!E47*(1+$D$19) -> 0 | F60: =Calculations!F47*(1+$D$19) -> 0 | G60: =Calculations!G47*(1+$D$19) -> 0 | H60: =Calculations!H47*(1+$D$19) -> 0 | I60: =Calculations!I47*(1+$D$19) -> 0 | J60: =Calculations!J47*(1+$D$19) -> 0 | K60: =Calculations!K47*(1+$D$19) -> 0 | L60: =Calculations!L47*(1+$D$19) -> 0 | M60: =Calculations!M47*(1+$D$19) -> 0 | N60: =Calculations!N47*(1+$D$19) -> 0 | O60: =Calculations!O47*(1+$D$19) -> 0 | P60: =Calculations!P47*(1+$D$19) -> 0 | Q60: =Calculations!Q47*(1+$D$19) -> 0 | R60: =Calculations!R47*(1+$D$19) -> 0 | S60: =Calculations!S47*(1+$D$19) -> 0 | T60: =Calculations!T47*(1+$D$19) -> 0 | U60: =Calculations!U47*(1+$D$19) -> 0 | V60: =Calculations!V47*(1+$D$19) -> 0 | W60: =Calculations!W47*(1+$D$19) -> 0 | X60: =Calculations!X47*(1+$D$19) -> 0 | Y60: =Calculations!Y47*(1+$D$19) -> 0
C61: ='User Input'!D73 -> Cost 3 | D61: 0 | E61: =Calculations!E48*(1+$D$19) -> 0 | F61: =Calculations!F48*(1+$D$19) -> 0 | G61: =Calculations!G48*(1+$D$19) -> 0 | H61: =Calculations!H48*(1+$D$19) -> 0 | I61: =Calculations!I48*(1+$D$19) -> 0 | J61: =Calculations!J48*(1+$D$19) -> 0 | K61: =Calculations!K48*(1+$D$19) -> 0 | L61: =Calculations!L48*(1+$D$19) -> 0 | M61: =Calculations!M48*(1+$D$19) -> 0 | N61: =Calculations!N48*(1+$D$19) -> 0 | O61: =Calculations!O48*(1+$D$19) -> 0 | P61: =Calculations!P48*(1+$D$19) -> 0 | Q61: =Calculations!Q48*(1+$D$19) -> 0 | R61: =Calculations!R48*(1+$D$19) -> 0 | S61: =Calculations!S48*(1+$D$19) -> 0 | T61: =Calculations!T48*(1+$D$19) -> 0 | U61: =Calculations!U48*(1+$D$19) -> 0 | V61: =Calculations!V48*(1+$D$19) -> 0 | W61: =Calculations!W48*(1+$D$19) -> 0 | X61: =Calculations!X48*(1+$D$19) -> 0 | Y61: =Calculations!Y48*(1+$D$19) -> 0
C62: ='User Input'!D74 -> Cost 4 | D62: 0 | E62: =Calculations!E49*(1+$D$19) -> 0 | F62: =Calculations!F49*(1+$D$19) -> 0 | G62: =Calculations!G49*(1+$D$19) -> 0 | H62: =Calculations!H49*(1+$D$19) -> 0 | I62: =Calculations!I49*(1+$D$19) -> 0 | J62: =Calculations!J49*(1+$D$19) -> 0 | K62: =Calculations!K49*(1+$D$19) -> 0 | L62: =Calculations!L49*(1+$D$19) -> 0 | M62: =Calculations!M49*(1+$D$19) -> 0 | N62: =Calculations!N49*(1+$D$19) -> 0 | O62: =Calculations!O49*(1+$D$19) -> 0 | P62: =Calculations!P49*(1+$D$19) -> 0 | Q62: =Calculations!Q49*(1+$D$19) -> 0 | R62: =Calculations!R49*(1+$D$19) -> 0 | S62: =Calculations!S49*(1+$D$19) -> 0 | T62: =Calculations!T49*(1+$D$19) -> 0 | U62: =Calculations!U49*(1+$D$19) -> 0 | V62: =Calculations!V49*(1+$D$19) -> 0 | W62: =Calculations!W49*(1+$D$19) -> 0 | X62: =Calculations!X49*(1+$D$19) -> 0 | Y62: =Calculations!Y49*(1+$D$19) -> 0
C63: ='User Input'!D75 -> Cost 5 | D63: 0 | E63: =Calculations!E50*(1+$D$19) -> 0 | F63: =Calculations!F50*(1+$D$19) -> 0 | G63: =Calculations!G50*(1+$D$19) -> 0 | H63: =Calculations!H50*(1+$D$19) -> 0 | I63: =Calculations!I50*(1+$D$19) -> 0 | J63: =Calculations!J50*(1+$D$19) -> 0 | K63: =Calculations!K50*(1+$D$19) -> 0 | L63: =Calculations!L50*(1+$D$19) -> 0 | M63: =Calculations!M50*(1+$D$19) -> 0 | N63: =Calculations!N50*(1+$D$19) -> 0 | O63: =Calculations!O50*(1+$D$19) -> 0 | P63: =Calculations!P50*(1+$D$19) -> 0 | Q63: =Calculations!Q50*(1+$D$19) -> 0 | R63: =Calculations!R50*(1+$D$19) -> 0 | S63: =Calculations!S50*(1+$D$19) -> 0 | T63: =Calculations!T50*(1+$D$19) -> 0 | U63: =Calculations!U50*(1+$D$19) -> 0 | V63: =Calculations!V50*(1+$D$19) -> 0 | W63: =Calculations!W50*(1+$D$19) -> 0 | X63: =Calculations!X50*(1+$D$19) -> 0 | Y63: =Calculations!Y50*(1+$D$19) -> 0
C64: ='User Input'!D76 -> Risk 1 | D64: =SUM(E64:Y64) -> 0 | E64: =Calculations!E51*(1+$D$19) -> 0 | F64: =Calculations!F51*(1+$D$19) -> 0 | G64: =Calculations!G51*(1+$D$19) -> 0 | H64: =Calculations!H51*(1+$D$19) -> 0 | I64: =Calculations!I51*(1+$D$19) -> 0 | J64: =Calculations!J51*(1+$D$19) -> 0 | K64: =Calculations!K51*(1+$D$19) -> 0 | L64: =Calculations!L51*(1+$D$19) -> 0 | M64: =Calculations!M51*(1+$D$19) -> 0 | N64: =Calculations!N51*(1+$D$19) -> 0 | O64: =Calculations!O51*(1+$D$19) -> 0 | P64: =Calculations!P51*(1+$D$19) -> 0 | Q64: =Calculations!Q51*(1+$D$19) -> 0 | R64: =Calculations!R51*(1+$D$19) -> 0 | S64: =Calculations!S51*(1+$D$19) -> 0 | T64: =Calculations!T51*(1+$D$19) -> 0 | U64: =Calculations!U51*(1+$D$19) -> 0 | V64: =Calculations!V51*(1+$D$19) -> 0 | W64: =Calculations!W51*(1+$D$19) -> 0 | X64: =Calculations!X51*(1+$D$19) -> 0 | Y64: =Calculations!Y51*(1+$D$19) -> 0
C65: ='User Input'!D77 -> Risk 2 | D65: =SUM(E65:Y65) -> 0 | E65: =Calculations!E52*(1+$D$19) -> 0 | F65: =Calculations!F52*(1+$D$19) -> 0 | G65: =Calculations!G52*(1+$D$19) -> 0 | H65: =Calculations!H52*(1+$D$19) -> 0 | I65: =Calculations!I52*(1+$D$19) -> 0 | J65: =Calculations!J52*(1+$D$19) -> 0 | K65: =Calculations!K52*(1+$D$19) -> 0 | L65: =Calculations!L52*(1+$D$19) -> 0 | M65: =Calculations!M52*(1+$D$19) -> 0 | N65: =Calculations!N52*(1+$D$19) -> 0 | O65: =Calculations!O52*(1+$D$19) -> 0 | P65: =Calculations!P52*(1+$D$19) -> 0 | Q65: =Calculations!Q52*(1+$D$19) -> 0 | R65: =Calculations!R52*(1+$D$19) -> 0 | S65: =Calculations!S52*(1+$D$19) -> 0 | T65: =Calculations!T52*(1+$D$19) -> 0 | U65: =Calculations!U52*(1+$D$19) -> 0 | V65: =Calculations!V52*(1+$D$19) -> 0 | W65: =Calculations!W52*(1+$D$19) -> 0 | X65: =Calculations!X52*(1+$D$19) -> 0 | Y65: =Calculations!Y52*(1+$D$19) -> 0
C66: ='User Input'!D78 -> Risk 3 | D66: =SUM(E66:Y66) -> 0 | E66: =Calculations!E53*(1+$D$19) -> 0 | F66: =Calculations!F53*(1+$D$19) -> 0 | G66: =Calculations!G53*(1+$D$19) -> 0 | H66: =Calculations!H53*(1+$D$19) -> 0 | I66: =Calculations!I53*(1+$D$19) -> 0 | J66: =Calculations!J53*(1+$D$19) -> 0 | K66: =Calculations!K53*(1+$D$19) -> 0 | L66: =Calculations!L53*(1+$D$19) -> 0 | M66: =Calculations!M53*(1+$D$19) -> 0 | N66: =Calculations!N53*(1+$D$19) -> 0 | O66: =Calculations!O53*(1+$D$19) -> 0 | P66: =Calculations!P53*(1+$D$19) -> 0 | Q66: =Calculations!Q53*(1+$D$19) -> 0 | R66: =Calculations!R53*(1+$D$19) -> 0 | S66: =Calculations!S53*(1+$D$19) -> 0 | T66: =Calculations!T53*(1+$D$19) -> 0 | U66: =Calculations!U53*(1+$D$19) -> 0 | V66: =Calculations!V53*(1+$D$19) -> 0 | W66: =Calculations!W53*(1+$D$19) -> 0 | X66: =Calculations!X53*(1+$D$19) -> 0 | Y66: =Calculations!Y53*(1+$D$19) -> 0
C67: ='User Input'!D79 -> Risk 4 | D67: =SUM(E67:Y67) -> 0 | E67: =Calculations!E54*(1+$D$19) -> 0 | F67: =Calculations!F54*(1+$D$19) -> 0 | G67: =Calculations!G54*(1+$D$19) -> 0 | H67: =Calculations!H54*(1+$D$19) -> 0 | I67: =Calculations!I54*(1+$D$19) -> 0 | J67: =Calculations!J54*(1+$D$19) -> 0 | K67: =Calculations!K54*(1+$D$19) -> 0 | L67: =Calculations!L54*(1+$D$19) -> 0 | M67: =Calculations!M54*(1+$D$19) -> 0 | N67: =Calculations!N54*(1+$D$19) -> 0 | O67: =Calculations!O54*(1+$D$19) -> 0 | P67: =Calculations!P54*(1+$D$19) -> 0 | Q67: =Calculations!Q54*(1+$D$19) -> 0 | R67: =Calculations!R54*(1+$D$19) -> 0 | S67: =Calculations!S54*(1+$D$19) -> 0 | T67: =Calculations!T54*(1+$D$19) -> 0 | U67: =Calculations!U54*(1+$D$19) -> 0 | V67: =Calculations!V54*(1+$D$19) -> 0 | W67: =Calculations!W54*(1+$D$19) -> 0 | X67: =Calculations!X54*(1+$D$19) -> 0 | Y67: =Calculations!Y54*(1+$D$19) -> 0
C68: ='User Input'!D80 -> Risk 5 | D68: =SUM(E68:Y68) -> 0 | E68: =Calculations!E55*(1+$D$19) -> 0 | F68: =Calculations!F55*(1+$D$19) -> 0 | G68: =Calculations!G55*(1+$D$19) -> 0 | H68: =Calculations!H55*(1+$D$19) -> 0 | I68: =Calculations!I55*(1+$D$19) -> 0 | J68: =Calculations!J55*(1+$D$19) -> 0 | K68: =Calculations!K55*(1+$D$19) -> 0 | L68: =Calculations!L55*(1+$D$19) -> 0 | M68: =Calculations!M55*(1+$D$19) -> 0 | N68: =Calculations!N55*(1+$D$19) -> 0 | O68: =Calculations!O55*(1+$D$19) -> 0 | P68: =Calculations!P55*(1+$D$19) -> 0 | Q68: =Calculations!Q55*(1+$D$19) -> 0 | R68: =Calculations!R55*(1+$D$19) -> 0 | S68: =Calculations!S55*(1+$D$19) -> 0 | T68: =Calculations!T55*(1+$D$19) -> 0 | U68: =Calculations!U55*(1+$D$19) -> 0 | V68: =Calculations!V55*(1+$D$19) -> 0 | W68: =Calculations!W55*(1+$D$19) -> 0 | X68: =Calculations!X55*(1+$D$19) -> 0 | Y68: =Calculations!Y55*(1+$D$19) -> 0
C69: Total Costs | D69: 82516.86572 | E69: =SUM(E50:E68) -> 589.175194 | F69: =SUM(F50:F68) -> 3234.015985 | G69: 4688.882741 | H69: 4234.296732 | I69: 3288.263044 | J69: 3377.046146 | K69: 3468.226392 | L69: 3561.868504 | M69: 3658.038954 | N69: 3756.806006 | O69: 3858.239768 | P69: 3962.412242 | Q69: 4069.397372 | R69: 4179.271101 | S69: 4292.111421 | T69: 4407.998429 | U69: 4527.014387 | V69: 4649.243775 | W69: 4774.773357 | X69: 4903.692238 | Y69: 5036.091928
C70: Present Value (PV) of Total Costs | D70: 49364.64198 | E70: =E69/(1+$D$17)^E$11 -> 589.175194 | F70: 3073.575352 | G70: 4235.188816 | H70: 3634.849192 | I70: 2682.707736 | J70: 2618.45737 | K70: 2555.745789 | L70: 2494.536139 | M70: 2434.792449 | N70: 2376.47961 | O70: 2319.563352 | P70: 2264.010229 | Q70: 2209.787592 | R70: 2156.863579 | S70: 2105.207085 | T70: 2054.787756 | U70: 2005.57596 | V70: 1957.542778 | W70: 1910.659982 | X70: 1864.90002 | Y70: 1820.236002
B72: ='User Input'!D82 -> Option 2:
C74: Capital Costs | D74: =SUM(E74:Y74) -> 0 | E74: =Calculations!E61*(1+$D$18) -> 0 | F74: =Calculations!F61*(1+$D$18) -> 0 | G74: =Calculations!G61*(1+$D$18) -> 0 | H74: =Calculations!H61*(1+$D$18) -> 0 | I74: =Calculations!I61*(1+$D$18) -> 0 | J74: =Calculations!J61*(1+$D$18) -> 0 | K74: =Calculations!K61*(1+$D$18) -> 0 | L74: =Calculations!L61*(1+$D$18) -> 0 | M74: =Calculations!M61*(1+$D$18) -> 0 | N74: =Calculations!N61*(1+$D$18) -> 0 | O74: =Calculations!O61*(1+$D$18) -> 0 | P74: =Calculations!P61*(1+$D$18) -> 0 | Q74: =Calculations!Q61*(1+$D$18) -> 0 | R74: =Calculations!R61*(1+$D$18) -> 0 | S74: =Calculations!S61*(1+$D$18) -> 0 | T74: =Calculations!T61*(1+$D$18) -> 0 | U74: =Calculations!U61*(1+$D$18) -> 0 | V74: =Calculations!V61*(1+$D$18) -> 0 | W74: =Calculations!W61*(1+$D$18) -> 0 | X74: =Calculations!X61*(1+$D$18) -> 0 | Y74: =Calculations!Y61*(1+$D$18) -> 0
C75: ='User Input'!D85 -> Annual Maintenance Costs | D75: =SUM(E75:Y75) -> 0 | E75: =Calculations!E62*(1+$D$19) -> 0 | F75: =Calculations!F62*(1+$D$19) -> 0 | G75: =Calculations!G62*(1+$D$19) -> 0 | H75: =Calculations!H62*(1+$D$19) -> 0 | I75: =Calculations!I62*(1+$D$19) -> 0 | J75: =Calculations!J62*(1+$D$19) -> 0 | K75: =Calculations!K62*(1+$D$19) -> 0 | L75: =Calculations!L62*(1+$D$19) -> 0 | M75: =Calculations!M62*(1+$D$19) -> 0 | N75: =Calculations!N62*(1+$D$19) -> 0 | O75: =Calculations!O62*(1+$D$19) -> 0 | P75: =Calculations!P62*(1+$D$19) -> 0 | Q75: =Calculations!Q62*(1+$D$19) -> 0 | R75: =Calculations!R62*(1+$D$19) -> 0 | S75: =Calculations!S62*(1+$D$19) -> 0 | T75: =Calculations!T62*(1+$D$19) -> 0 | U75: =Calculations!U62*(1+$D$19) -> 0 | V75: =Calculations!V62*(1+$D$19) -> 0 | W75: =Calculations!W62*(1+$D$19) -> 0 | X75: =Calculations!X62*(1+$D$19) -> 0 | Y75: =Calculations!Y62*(1+$D$19) -> 0
C76: ='User Input'!D87 -> Negative Impact on Revenue (STPIS)
C77: ='User Input'!D88 -> SAIFI sustained | D77: =SUM(E77:Y77) -> 0 | E77: 0 | F77: 0 | G77: =Calculations!G64*(1+$D$21) -> 0 | H77: =Calculations!H64*(1+$D$21) -> 0 | I77: =Calculations!I64*(1+$D$21) -> 0 | J77: =Calculations!J64*(1+$D$21) -> 0 | K77: =Calculations!K64*(1+$D$21) -> 0 | L77: =Calculations!L64*(1+$D$21) -> 0 | M77: =Calculations!M64*(1+$D$21) -> 0 | N77: =Calculations!N64*(1+$D$21) -> 0 | O77: =Calculations!O64*(1+$D$21) -> 0 | P77: =Calculations!P64*(1+$D$21) -> 0 | Q77: =Calculations!Q64*(1+$D$21) -> 0 | R77: =Calculations!R64*(1+$D$21) -> 0 | S77: =Calculations!S64*(1+$D$21) -> 0 | T77: =Calculations!T64*(1+$D$21) -> 0 | U77: =Calculations!U64*(1+$D$21) -> 0 | V77: =Calculations!V64*(1+$D$21) -> 0 | W77: =Calculations!W64*(1+$D$21) -> 0 | X77: =Calculations!X64*(1+$D$21) -> 0 | Y77: =Calculations!Y64*(1+$D$21) -> 0
C78: ='User Input'!D89 -> SAIDI accidental | D78: 0 | E78: 0 | F78: 0 | G78: =Calculations!G65*(1+$D$20) -> 0 | H78: =Calculations!H65*(1+$D$20) -> 0 | I78: =Calculations!I65*(1+$D$20) -> 0 | J78: =Calculations!J65*(1+$D$20) -> 0 | K78: =Calculations!K65*(1+$D$20) -> 0 | L78: =Calculations!L65*(1+$D$20) -> 0 | M78: =Calculations!M65*(1+$D$20) -> 0 | N78: =Calculations!N65*(1+$D$20) -> 0 | O78: =Calculations!O65*(1+$D$20) -> 0 | P78: =Calculations!P65*(1+$D$20) -> 0 | Q78: =Calculations!Q65*(1+$D$20) -> 0 | R78: =Calculations!R65*(1+$D$20) -> 0 | S78: =Calculations!S65*(1+$D$20) -> 0 | T78: =Calculations!T65*(1+$D$20) -> 0 | U78: =Calculations!U65*(1+$D$20) -> 0 | V78: =Calculations!V65*(1+$D$20) -> 0 | W78: =Calculations!W65*(1+$D$20) -> 0 | X78: =Calculations!X65*(1+$D$20) -> 0 | Y78: =Calculations!Y65*(1+$D$20) -> 0
C79: ='User Input'!D90 -> MAIFI momentary | D79: 0 | E79: 0 | F79: 0 | G79: =Calculations!G66*(1+$D$22) -> 0 | H79: =Calculations!H66*(1+$D$22) -> 0 | I79: =Calculations!I66*(1+$D$22) -> 0 | J79: =Calculations!J66*(1+$D$22) -> 0 | K79: =Calculations!K66*(1+$D$22) -> 0 | L79: =Calculations!L66*(1+$D$22) -> 0 | M79: =Calculations!M66*(1+$D$22) -> 0 | N79: =Calculations!N66*(1+$D$22) -> 0 | O79: =Calculations!O66*(1+$D$22) -> 0 | P79: =Calculations!P66*(1+$D$22) -> 0 | Q79: =Calculations!Q66*(1+$D$22) -> 0 | R79: =Calculations!R66*(1+$D$22) -> 0 | S79: =Calculations!S66*(1+$D$22) -> 0 | T79: =Calculations!T66*(1+$D$22) -> 0 | U79: =Calculations!U66*(1+$D$22) -> 0 | V79: =Calculations!V66*(1+$D$22) -> 0 | W79: =Calculations!W66*(1+$D$22) -> 0 | X79: =Calculations!X66*(1+$D$22) -> 0 | Y79: =Calculations!Y66*(1+$D$22) -> 0
C80: ='User Input'!D91 -> Call centre response | D80: 0 | E80: 0 | F80: 0 | G80: =Calculations!G67*(1+$D$19) -> 0 | H80: =Calculations!H67*(1+$D$19) -> 0 | I80: =Calculations!I67*(1+$D$19) -> 0 | J80: =Calculations!J67*(1+$D$19) -> 0 | K80: =Calculations!K67*(1+$D$19) -> 0 | L80: =Calculations!L67*(1+$D$19) -> 0 | M80: =Calculations!M67*(1+$D$19) -> 0 | N80: =Calculations!N67*(1+$D$19) -> 0 | O80: =Calculations!O67*(1+$D$19) -> 0 | P80: =Calculations!P67*(1+$D$19) -> 0 | Q80: =Calculations!Q67*(1+$D$19) -> 0 | R80: =Calculations!R67*(1+$D$19) -> 0 | S80: =Calculations!S67*(1+$D$19) -> 0 | T80: =Calculations!T67*(1+$D$19) -> 0 | U80: =Calculations!U67*(1+$D$19) -> 0 | V80: =Calculations!V67*(1+$D$19) -> 0 | W80: =Calculations!W67*(1+$D$19) -> 0 | X80: =Calculations!X67*(1+$D$19) -> 0 | Y80: =Calculations!Y67*(1+$D$19) -> 0
C81: ='User Input'!D93 -> Network Outage Costs | D81: 0 | E81: =Calculations!E68*(1+$D$19) -> 0 | F81: =Calculations!F68*(1+$D$19) -> 0 | G81: =Calculations!G68*(1+$D$19) -> 0 | H81: =Calculations!H68*(1+$D$19) -> 0 | I81: =Calculations!I68*(1+$D$19) -> 0 | J81: =Calculations!J68*(1+$D$19) -> 0 | K81: =Calculations!K68*(1+$D$19) -> 0 | L81: =Calculations!L68*(1+$D$19) -> 0 | M81: =Calculations!M68*(1+$D$19) -> 0 | N81: =Calculations!N68*(1+$D$19) -> 0 | O81: =Calculations!O68*(1+$D$19) -> 0 | P81: =Calculations!P68*(1+$D$19) -> 0 | Q81: =Calculations!Q68*(1+$D$19) -> 0 | R81: =Calculations!R68*(1+$D$19) -> 0 | S81: =Calculations!S68*(1+$D$19) -> 0 | T81: =Calculations!T68*(1+$D$19) -> 0 | U81: =Calculations!U68*(1+$D$19) -> 0 | V81: =Calculations!V68*(1+$D$19) -> 0 | W81: =Calculations!W68*(1+$D$19) -> 0 | X81: =Calculations!X68*(1+$D$19) -> 0 | Y81: =Calculations!Y68*(1+$D$19) -> 0
C82: ='User Input'!D97 -> Loss of F Factor Benefit | D82: 0 | E82: =Calculations!E69*(1+$D$19) -> 0 | F82: =Calculations!F69*(1+$D$19) -> 0 | G82: =Calculations!G69*(1+$D$19) -> 0 | H82: =Calculations!H69*(1+$D$19) -> 0 | I82: =Calculations!I69*(1+$D$19) -> 0 | J82: =Calculations!J69*(1+$D$19) -> 0 | K82: =Calculations!K69*(1+$D$19) -> 0 | L82: =Calculations!L69*(1+$D$19) -> 0 | M82: =Calculations!M69*(1+$D$19) -> 0 | N82: =Calculations!N69*(1+$D$19) -> 0 | O82: =Calculations!O69*(1+$D$19) -> 0 | P82: =Calculations!P69*(1+$D$19) -> 0 | Q82: =Calculations!Q69*(1+$D$19) -> 0 | R82: =Calculations!R69*(1+$D$19) -> 0 | S82: =Calculations!S69*(1+$D$19) -> 0 | T82: =Calculations!T69*(1+$D$19) -> 0 | U82: =Calculations!U69*(1+$D$19) -> 0 | V82: =Calculations!V69*(1+$D$19) -> 0 | W82: =Calculations!W69*(1+$D$19) -> 0 | X82: =Calculations!X69*(1+$D$19) -> 0 | Y82: =Calculations!Y69*(1+$D$19) -> 0
C83: ='User Input'!D100 -> Cost 1 | D83: 0 | E83: =Calculations!E70*(1+$D$19) -> 0 | F83: =Calculations!F70*(1+$D$19) -> 0 | G83: =Calculations!G70*(1+$D$19) -> 0 | H83: =Calculations!H70*(1+$D$19) -> 0 | I83: =Calculations!I70*(1+$D$19) -> 0 | J83: =Calculations!J70*(1+$D$19) -> 0 | K83: =Calculations!K70*(1+$D$19) -> 0 | L83: =Calculations!L70*(1+$D$19) -> 0 | M83: =Calculations!M70*(1+$D$19) -> 0 | N83: =Calculations!N70*(1+$D$19) -> 0 | O83: =Calculations!O70*(1+$D$19) -> 0 | P83: =Calculations!P70*(1+$D$19) -> 0 | Q83: =Calculations!Q70*(1+$D$19) -> 0 | R83: =Calculations!R70*(1+$D$19) -> 0 | S83: =Calculations!S70*(1+$D$19) -> 0 | T83: =Calculations!T70*(1+$D$19) -> 0 | U83: =Calculations!U70*(1+$D$19) -> 0 | V83: =Calculations!V70*(1+$D$19) -> 0 | W83: =Calculations!W70*(1+$D$19) -> 0 | X83: =Calculations!X70*(1+$D$19) -> 0 | Y83: =Calculations!Y70*(1+$D$19) -> 0
C84: ='User Input'!D101 -> Cost 2 | D84: 0 | E84: =Calculations!E71*(1+$D$19) -> 0 | F84: =Calculations!F71*(1+$D$19) -> 0 | G84: =Calculations!G71*(1+$D$19) -> 0 | H84: =Calculations!H71*(1+$D$19) -> 0 | I84: =Calculations!I71*(1+$D$19) -> 0 | J84: =Calculations!J71*(1+$D$19) -> 0 | K84: =Calculations!K71*(1+$D$19) -> 0 | L84: =Calculations!L71*(1+$D$19) -> 0 | M84: =Calculations!M71*(1+$D$19) -> 0 | N84: =Calculations!N71*(1+$D$19) -> 0 | O84: =Calculations!O71*(1+$D$19) -> 0 | P84: =Calculations!P71*(1+$D$19) -> 0 | Q84: =Calculations!Q71*(1+$D$19) -> 0 | R84: =Calculations!R71*(1+$D$19) -> 0 | S84: =Calculations!S71*(1+$D$19) -> 0 | T84: =Calculations!T71*(1+$D$19) -> 0 | U84: =Calculations!U71*(1+$D$19) -> 0 | V84: =Calculations!V71*(1+$D$19) -> 0 | W84: =Calculations!W71*(1+$D$19) -> 0 | X84: =Calculations!X71*(1+$D$19) -> 0 | Y84: =Calculations!Y71*(1+$D$19) -> 0
C85: ='User Input'!D102 -> Cost 3 | D85: 0 | E85: =Calculations!E72*(1+$D$19) -> 0 | F85: =Calculations!F72*(1+$D$19) -> 0 | G85: =Calculations!G72*(1+$D$19) -> 0 | H85: =Calculations!H72*(1+$D$19) -> 0 | I85: =Calculations!I72*(1+$D$19) -> 0 | J85: =Calculations!J72*(1+$D$19) -> 0 | K85: =Calculations!K72*(1+$D$19) -> 0 | L85: =Calculations!L72*(1+$D$19) -> 0 | M85: =Calculations!M72*(1+$D$19) -> 0 | N85: =Calculations!N72*(1+$D$19) -> 0 | O85: =Calculations!O72*(1+$D$19) -> 0 | P85: =Calculations!P72*(1+$D$19) -> 0 | Q85: =Calculations!Q72*(1+$D$19) -> 0 | R85: =Calculations!R72*(1+$D$19) -> 0 | S85: =Calculations!S72*(1+$D$19) -> 0 | T85: =Calculations!T72*(1+$D$19) -> 0 | U85: =Calculations!U72*(1+$D$19) -> 0 | V85: =Calculations!V72*(1+$D$19) -> 0 | W85: =Calculations!W72*(1+$D$19) -> 0 | X85: =Calculations!X72*(1+$D$19) -> 0 | Y85: =Calculations!Y72*(1+$D$19) -> 0
C86: ='User Input'!D103 -> Cost 4 | D86: 0 | E86: =Calculations!E73*(1+$D$19) -> 0 | F86: =Calculations!F73*(1+$D$19) -> 0 | G86: =Calculations!G73*(1+$D$19) -> 0 | H86: =Calculations!H73*(1+$D$19) -> 0 | I86: =Calculations!I73*(1+$D$19) -> 0 | J86: =Calculations!J73*(1+$D$19) -> 0 | K86: =Calculations!K73*(1+$D$19) -> 0 | L86: =Calculations!L73*(1+$D$19) -> 0 | M86: =Calculations!M73*(1+$D$19) -> 0 | N86: =Calculations!N73*(1+$D$19) -> 0 | O86: =Calculations!O73*(1+$D$19) -> 0 | P86: =Calculations!P73*(1+$D$19) -> 0 | Q86: =Calculations!Q73*(1+$D$19) -> 0 | R86: =Calculations!R73*(1+$D$19) -> 0 | S86: =Calculations!S73*(1+$D$19) -> 0 | T86: =Calculations!T73*(1+$D$19) -> 0 | U86: =Calculations!U73*(1+$D$19) -> 0 | V86: =Calculations!V73*(1+$D$19) -> 0 | W86: =Calculations!W73*(1+$D$19) -> 0 | X86: =Calculations!X73*(1+$D$19) -> 0 | Y86: =Calculations!Y73*(1+$D$19) -> 0
C87: ='User Input'!D104 -> Cost 5 | D87: 0 | E87: =Calculations!E74*(1+$D$19) -> 0 | F87: =Calculations!F74*(1+$D$19) -> 0 | G87: =Calculations!G74*(1+$D$19) -> 0 | H87: =Calculations!H74*(1+$D$19) -> 0 | I87: =Calculations!I74*(1+$D$19) -> 0 | J87: =Calculations!J74*(1+$D$19) -> 0 | K87: =Calculations!K74*(1+$D$19) -> 0 | L87: =Calculations!L74*(1+$D$19) -> 0 | M87: =Calculations!M74*(1+$D$19) -> 0 | N87: =Calculations!N74*(1+$D$19) -> 0 | O87: =Calculations!O74*(1+$D$19) -> 0 | P87: =Calculations!P74*(1+$D$19) -> 0 | Q87: =Calculations!Q74*(1+$D$19) -> 0 | R87: =Calculations!R74*(1+$D$19) -> 0 | S87: =Calculations!S74*(1+$D$19) -> 0 | T87: =Calculations!T74*(1+$D$19) -> 0 | U87: =Calculations!U74*(1+$D$19) -> 0 | V87: =Calculations!V74*(1+$D$19) -> 0 | W87: =Calculations!W74*(1+$D$19) -> 0 | X87: =Calculations!X74*(1+$D$19) -> 0 | Y87: =Calculations!Y74*(1+$D$19) -> 0
C88: ='User Input'!D105 -> Risk 1 | D88: =SUM(E88:Y88) -> 0 | E88: =Calculations!E75*(1+$D$19) -> 0 | F88: =Calculations!F75*(1+$D$19) -> 0 | G88: =Calculations!G75*(1+$D$19) -> 0 | H88: =Calculations!H75*(1+$D$19) -> 0 | I88: =Calculations!I75*(1+$D$19) -> 0 | J88: =Calculations!J75*(1+$D$19) -> 0 | K88: =Calculations!K75*(1+$D$19) -> 0 | L88: =Calculations!L75*(1+$D$19) -> 0 | M88: =Calculations!M75*(1+$D$19) -> 0 | N88: =Calculations!N75*(1+$D$19) -> 0 | O88: =Calculations!O75*(1+$D$19) -> 0 | P88: =Calculations!P75*(1+$D$19) -> 0 | Q88: =Calculations!Q75*(1+$D$19) -> 0 | R88: =Calculations!R75*(1+$D$19) -> 0 | S88: =Calculations!S75*(1+$D$19) -> 0 | T88: =Calculations!T75*(1+$D$19) -> 0 | U88: =Calculations!U75*(1+$D$19) -> 0 | V88: =Calculations!V75*(1+$D$19) -> 0 | W88: =Calculations!W75*(1+$D$19) -> 0 | X88: =Calculations!X75*(1+$D$19) -> 0 | Y88: =Calculations!Y75*(1+$D$19) -> 0
C89: ='User Input'!D106 -> Risk 2 | D89: =SUM(E89:Y89) -> 0 | E89: =Calculations!E76*(1+$D$19) -> 0 | F89: =Calculations!F76*(1+$D$19) -> 0 | G89: =Calculations!G76*(1+$D$19) -> 0 | H89: =Calculations!H76*(1+$D$19) -> 0 | I89: =Calculations!I76*(1+$D$19) -> 0 | J89: =Calculations!J76*(1+$D$19) -> 0 | K89: =Calculations!K76*(1+$D$19) -> 0 | L89: =Calculations!L76*(1+$D$19) -> 0 | M89: =Calculations!M76*(1+$D$19) -> 0 | N89: =Calculations!N76*(1+$D$19) -> 0 | O89: =Calculations!O76*(1+$D$19) -> 0 | P89: =Calculations!P76*(1+$D$19) -> 0 | Q89: =Calculations!Q76*(1+$D$19) -> 0 | R89: =Calculations!R76*(1+$D$19) -> 0 | S89: =Calculations!S76*(1+$D$19) -> 0 | T89: =Calculations!T76*(1+$D$19) -> 0 | U89: =Calculations!U76*(1+$D$19) -> 0 | V89: =Calculations!V76*(1+$D$19) -> 0 | W89: =Calculations!W76*(1+$D$19) -> 0 | X89: =Calculations!X76*(1+$D$19) -> 0 | Y89: =Calculations!Y76*(1+$D$19) -> 0
C90: ='User Input'!D107 -> Risk 3 | D90: =SUM(E90:Y90) -> 0 | E90: =Calculations!E77*(1+$D$19) -> 0 | F90: =Calculations!F77*(1+$D$19) -> 0 | G90: =Calculations!G77*(1+$D$19) -> 0 | H90: =Calculations!H77*(1+$D$19) -> 0 | I90: =Calculations!I77*(1+$D$19) -> 0 | J90: =Calculations!J77*(1+$D$19) -> 0 | K90: =Calculations!K77*(1+$D$19) -> 0 | L90: =Calculations!L77*(1+$D$19) -> 0 | M90: =Calculations!M77*(1+$D$19) -> 0 | N90: =Calculations!N77*(1+$D$19) -> 0 | O90: =Calculations!O77*(1+$D$19) -> 0 | P90: =Calculations!P77*(1+$D$19) -> 0 | Q90: =Calculations!Q77*(1+$D$19) -> 0 | R90: =Calculations!R77*(1+$D$19) -> 0 | S90: =Calculations!S77*(1+$D$19) -> 0 | T90: =Calculations!T77*(1+$D$19) -> 0 | U90: =Calculations!U77*(1+$D$19) -> 0 | V90: =Calculations!V77*(1+$D$19) -> 0 | W90: =Calculations!W77*(1+$D$19) -> 0 | X90: =Calculations!X77*(1+$D$19) -> 0 | Y90: =Calculations!Y77*(1+$D$19) -> 0
C91: ='User Input'!D108 -> Risk 4 | D91: =SUM(E91:Y91) -> 0 | E91: =Calculations!E78*(1+$D$19) -> 0 | F91: =Calculations!F78*(1+$D$19) -> 0 | G91: =Calculations!G78*(1+$D$19) -> 0 | H91: =Calculations!H78*(1+$D$19) -> 0 | I91: =Calculations!I78*(1+$D$19) -> 0 | J91: =Calculations!J78*(1+$D$19) -> 0 | K91: =Calculations!K78*(1+$D$19) -> 0 | L91: =Calculations!L78*(1+$D$19) -> 0 | M91: =Calculations!M78*(1+$D$19) -> 0 | N91: =Calculations!N78*(1+$D$19) -> 0 | O91: =Calculations!O78*(1+$D$19) -> 0 | P91: =Calculations!P78*(1+$D$19) -> 0 | Q91: =Calculations!Q78*(1+$D$19) -> 0 | R91: =Calculations!R78*(1+$D$19) -> 0 | S91: =Calculations!S78*(1+$D$19) -> 0 | T91: =Calculations!T78*(1+$D$19) -> 0 | U91: =Calculations!U78*(1+$D$19) -> 0 | V91: =Calculations!V78*(1+$D$19) -> 0 | W91: =Calculations!W78*(1+$D$19) -> 0 | X91: =Calculations!X78*(1+$D$19) -> 0 | Y91: =Calculations!Y78*(1+$D$19) -> 0
C92: ='User Input'!D109 -> Risk 5 | D92: =SUM(E92:Y92) -> 0 | E92: =Calculations!E79*(1+$D$19) -> 0 | F92: =Calculations!F79*(1+$D$19) -> 0 | G92: =Calculations!G79*(1+$D$19) -> 0 | H92: =Calculations!H79*(1+$D$19) -> 0 | I92: =Calculations!I79*(1+$D$19) -> 0 | J92: =Calculations!J79*(1+$D$19) -> 0 | K92: =Calculations!K79*(1+$D$19) -> 0 | L92: =Calculations!L79*(1+$D$19) -> 0 | M92: =Calculations!M79*(1+$D$19) -> 0 | N92: =Calculations!N79*(1+$D$19) -> 0 | O92: =Calculations!O79*(1+$D$19) -> 0 | P92: =Calculations!P79*(1+$D$19) -> 0 | Q92: =Calculations!Q79*(1+$D$19) -> 0 | R92: =Calculations!R79*(1+$D$19) -> 0 | S92: =Calculations!S79*(1+$D$19) -> 0 | T92: =Calculations!T79*(1+$D$19) -> 0 | U92: =Calculations!U79*(1+$D$19) -> 0 | V92: =Calculations!V79*(1+$D$19) -> 0 | W92: =Calculations!W79*(1+$D$19) -> 0 | X92: =Calculations!X79*(1+$D$19) -> 0 | Y92: =Calculations!Y79*(1+$D$19) -> 0
C93: Total Costs | D93: 0 | E93: =SUM(E74:E92) -> 0 | F93: =SUM(F74:F92) -> 0 | G93: 0 | H93: 0 | I93: 0 | J93: 0 | K93: 0 | L93: 0 | M93: 0 | N93: 0 | O93: 0 | P93: 0 | Q93: 0 | R93: 0 | S93: 0 | T93: 0 | U93: 0 | V93: 0 | W93: 0 | X93: 0 | Y93: 0
C94: Present Value (PV) of Total Costs | D94: 0 | E94: =E93/(1+$D$17)^E$11 -> 0 | F94: 0 | G94: 0 | H94: 0 | I94: 0 | J94: 0 | K94: 0 | L94: 0 | M94: 0 | N94: 0 | O94: 0 | P94: 0 | Q94: 0 | R94: 0 | S94: 0 | T94: 0 | U94: 0 | V94: 0 | W94: 0 | X94: 0 | Y94: 0
B96: ='User Input'!D111 -> Option 3:
C98: Capital Costs | D98: =SUM(E98:Y98) -> 0 | E98: =Calculations!E85*(1+$D$18) -> 0 | F98: =Calculations!F85*(1+$D$18) -> 0 | G98: =Calculations!G85*(1+$D$18) -> 0 | H98: =Calculations!H85*(1+$D$18) -> 0 | I98: =Calculations!I85*(1+$D$18) -> 0 | J98: =Calculations!J85*(1+$D$18) -> 0 | K98: =Calculations!K85*(1+$D$18) -> 0 | L98: =Calculations!L85*(1+$D$18) -> 0 | M98: =Calculations!M85*(1+$D$18) -> 0 | N98: =Calculations!N85*(1+$D$18) -> 0 | O98: =Calculations!O85*(1+$D$18) -> 0 | P98: =Calculations!P85*(1+$D$18) -> 0 | Q98: =Calculations!Q85*(1+$D$18) -> 0 | R98: =Calculations!R85*(1+$D$18) -> 0 | S98: =Calculations!S85*(1+$D$18) -> 0 | T98: =Calculations!T85*(1+$D$18) -> 0 | U98: =Calculations!U85*(1+$D$18) -> 0 | V98: =Calculations!V85*(1+$D$18) -> 0 | W98: =Calculations!W85*(1+$D$18) -> 0 | X98: =Calculations!X85*(1+$D$18) -> 0 | Y98: =Calculations!Y85*(1+$D$18) -> 0
C99: ='User Input'!D114 -> Annual Maintenance Costs | D99: =SUM(E99:Y99) -> 0 | E99: =Calculations!E86*(1+$D$19) -> 0 | F99: =Calculations!F86*(1+$D$19) -> 0 | G99: =Calculations!G86*(1+$D$19) -> 0 | H99: =Calculations!H86*(1+$D$19) -> 0 | I99: =Calculations!I86*(1+$D$19) -> 0 | J99: =Calculations!J86*(1+$D$19) -> 0 | K99: =Calculations!K86*(1+$D$19) -> 0 | L99: =Calculations!L86*(1+$D$19) -> 0 | M99: =Calculations!M86*(1+$D$19) -> 0 | N99: =Calculations!N86*(1+$D$19) -> 0 | O99: =Calculations!O86*(1+$D$19) -> 0 | P99: =Calculations!P86*(1+$D$19) -> 0 | Q99: =Calculations!Q86*(1+$D$19) -> 0 | R99: =Calculations!R86*(1+$D$19) -> 0 | S99: =Calculations!S86*(1+$D$19) -> 0 | T99: =Calculations!T86*(1+$D$19) -> 0 | U99: =Calculations!U86*(1+$D$19) -> 0 | V99: =Calculations!V86*(1+$D$19) -> 0 | W99: =Calculations!W86*(1+$D$19) -> 0 | X99: =Calculations!X86*(1+$D$19) -> 0 | Y99: =Calculations!Y86*(1+$D$19) -> 0
C100: ='User Input'!D116 -> Negative Impact on Revenue (STPIS)
C101: ='User Input'!D117 -> SAIFI sustained | D101: =SUM(E101:Y101) -> 0 | E101: 0 | F101: 0 | G101: =Calculations!G88*(1+$D$21) -> 0 | H101: =Calculations!H88*(1+$D$21) -> 0 | I101: =Calculations!I88*(1+$D$21) -> 0 | J101: =Calculations!J88*(1+$D$21) -> 0 | K101: =Calculations!K88*(1+$D$21) -> 0 | L101: =Calculations!L88*(1+$D$21) -> 0 | M101: =Calculations!M88*(1+$D$21) -> 0 | N101: =Calculations!N88*(1+$D$21) -> 0 | O101: =Calculations!O88*(1+$D$21) -> 0 | P101: =Calculations!P88*(1+$D$21) -> 0 | Q101: =Calculations!Q88*(1+$D$21) -> 0 | R101: =Calculations!R88*(1+$D$21) -> 0 | S101: =Calculations!S88*(1+$D$21) -> 0 | T101: =Calculations!T88*(1+$D$21) -> 0 | U101: =Calculations!U88*(1+$D$21) -> 0 | V101: =Calculations!V88*(1+$D$21) -> 0 | W101: =Calculations!W88*(1+$D$21) -> 0 | X101: =Calculations!X88*(1+$D$21) -> 0 | Y101: =Calculations!Y88*(1+$D$21) -> 0
C102: ='User Input'!D118 -> SAIDI accidental | D102: 0 | E102: 0 | F102: 0 | G102: =Calculations!G89*(1+$D$20) -> 0 | H102: =Calculations!H89*(1+$D$20) -> 0 | I102: =Calculations!I89*(1+$D$20) -> 0 | J102: =Calculations!J89*(1+$D$20) -> 0 | K102: =Calculations!K89*(1+$D$20) -> 0 | L102: =Calculations!L89*(1+$D$20) -> 0 | M102: =Calculations!M89*(1+$D$20) -> 0 | N102: =Calculations!N89*(1+$D$20) -> 0 | O102: =Calculations!O89*(1+$D$20) -> 0 | P102: =Calculations!P89*(1+$D$20) -> 0 | Q102: =Calculations!Q89*(1+$D$20) -> 0 | R102: =Calculations!R89*(1+$D$20) -> 0 | S102: =Calculations!S89*(1+$D$20) -> 0 | T102: =Calculations!T89*(1+$D$20) -> 0 | U102: =Calculations!U89*(1+$D$20) -> 0 | V102: =Calculations!V89*(1+$D$20) -> 0 | W102: =Calculations!W89*(1+$D$20) -> 0 | X102: =Calculations!X89*(1+$D$20) -> 0 | Y102: =Calculations!Y89*(1+$D$20) -> 0
C103: ='User Input'!D119 -> MAIFI momentary | D103: 0 | E103: 0 | F103: 0 | G103: =Calculations!G90*(1+$D$22) -> 0 | H103: =Calculations!H90*(1+$D$22) -> 0 | I103: =Calculations!I90*(1+$D$22) -> 0 | J103: =Calculations!J90*(1+$D$22) -> 0 | K103: =Calculations!K90*(1+$D$22) -> 0 | L103: =Calculations!L90*(1+$D$22) -> 0 | M103: =Calculations!M90*(1+$D$22) -> 0 | N103: =Calculations!N90*(1+$D$22) -> 0 | O103: =Calculations!O90*(1+$D$22) -> 0 | P103: =Calculations!P90*(1+$D$22) -> 0 | Q103: =Calculations!Q90*(1+$D$22) -> 0 | R103: =Calculations!R90*(1+$D$22) -> 0 | S103: =Calculations!S90*(1+$D$22) -> 0 | T103: =Calculations!T90*(1+$D$22) -> 0 | U103: =Calculations!U90*(1+$D$22) -> 0 | V103: =Calculations!V90*(1+$D$22) -> 0 | W103: =Calculations!W90*(1+$D$22) -> 0 | X103: =Calculations!X90*(1+$D$22) -> 0 | Y103: =Calculations!Y90*(1+$D$22) -> 0
C104: ='User Input'!D120 -> Call centre response | D104: 0 | E104: 0 | F104: 0 | G104: =Calculations!G91*(1+$D$19) -> 0 | H104: =Calculations!H91*(1+$D$19) -> 0 | I104: =Calculations!I91*(1+$D$19) -> 0 | J104: =Calculations!J91*(1+$D$19) -> 0 | K104: =Calculations!K91*(1+$D$19) -> 0 | L104: =Calculations!L91*(1+$D$19) -> 0 | M104: =Calculations!M91*(1+$D$19) -> 0 | N104: =Calculations!N91*(1+$D$19) -> 0 | O104: =Calculations!O91*(1+$D$19) -> 0 | P104: =Calculations!P91*(1+$D$19) -> 0 | Q104: =Calculations!Q91*(1+$D$19) -> 0 | R104: =Calculations!R91*(1+$D$19) -> 0 | S104: =Calculations!S91*(1+$D$19) -> 0 | T104: =Calculations!T91*(1+$D$19) -> 0 | U104: =Calculations!U91*(1+$D$19) -> 0 | V104: =Calculations!V91*(1+$D$19) -> 0 | W104: =Calculations!W91*(1+$D$19) -> 0 | X104: =Calculations!X91*(1+$D$19) -> 0 | Y104: =Calculations!Y91*(1+$D$19) -> 0
C105: ='User Input'!D122 -> Network Outage Costs | D105: 0 | E105: =Calculations!E92*(1+$D$19) -> 0 | F105: =Calculations!F92*(1+$D$19) -> 0 | G105: =Calculations!G92*(1+$D$19) -> 0 | H105: =Calculations!H92*(1+$D$19) -> 0 | I105: =Calculations!I92*(1+$D$19) -> 0 | J105: =Calculations!J92*(1+$D$19) -> 0 | K105: =Calculations!K92*(1+$D$19) -> 0 | L105: =Calculations!L92*(1+$D$19) -> 0 | M105: =Calculations!M92*(1+$D$19) -> 0 | N105: =Calculations!N92*(1+$D$19) -> 0 | O105: =Calculations!O92*(1+$D$19) -> 0 | P105: =Calculations!P92*(1+$D$19) -> 0 | Q105: =Calculations!Q92*(1+$D$19) -> 0 | R105: =Calculations!R92*(1+$D$19) -> 0 | S105: =Calculations!S92*(1+$D$19) -> 0 | T105: =Calculations!T92*(1+$D$19) -> 0 | U105: =Calculations!U92*(1+$D$19) -> 0 | V105: =Calculations!V92*(1+$D$19) -> 0 | W105: =Calculations!W92*(1+$D$19) -> 0 | X105: =Calculations!X92*(1+$D$19) -> 0 | Y105: =Calculations!Y92*(1+$D$19) -> 0
C106: ='User Input'!D126 -> Loss of F Factor Benefit | D106: 0 | E106: =Calculations!E93*(1+$D$19) -> 0 | F106: =Calculations!F93*(1+$D$19) -> 0 | G106: =Calculations!G93*(1+$D$19) -> 0 | H106: =Calculations!H93*(1+$D$19) -> 0 | I106: =Calculations!I93*(1+$D$19) -> 0 | J106: =Calculations!J93*(1+$D$19) -> 0 | K106: =Calculations!K93*(1+$D$19) -> 0 | L106: =Calculations!L93*(1+$D$19) -> 0 | M106: =Calculations!M93*(1+$D$19) -> 0 | N106: =Calculations!N93*(1+$D$19) -> 0 | O106: =Calculations!O93*(1+$D$19) -> 0 | P106: =Calculations!P93*(1+$D$19) -> 0 | Q106: =Calculations!Q93*(1+$D$19) -> 0 | R106: =Calculations!R93*(1+$D$19) -> 0 | S106: =Calculations!S93*(1+$D$19) -> 0 | T106: =Calculations!T93*(1+$D$19) -> 0 | U106: =Calculations!U93*(1+$D$19) -> 0 | V106: =Calculations!V93*(1+$D$19) -> 0 | W106: =Calculations!W93*(1+$D$19) -> 0 | X106: =Calculations!X93*(1+$D$19) -> 0 | Y106: =Calculations!Y93*(1+$D$19) -> 0
C107: ='User Input'!D129 -> Cost 1 | D107: 0 | E107: =Calculations!E94*(1+$D$19) -> 0 | F107: =Calculations!F94*(1+$D$19) -> 0 | G107: =Calculations!G94*(1+$D$19) -> 0 | H107: =Calculations!H94*(1+$D$19) -> 0 | I107: =Calculations!I94*(1+$D$19) -> 0 | J107: =Calculations!J94*(1+$D$19) -> 0 | K107: =Calculations!K94*(1+$D$19) -> 0 | L107: =Calculations!L94*(1+$D$19) -> 0 | M107: =Calculations!M94*(1+$D$19) -> 0 | N107: =Calculations!N94*(1+$D$19) -> 0 | O107: =Calculations!O94*(1+$D$19) -> 0 | P107: =Calculations!P94*(1+$D$19) -> 0 | Q107: =Calculations!Q94*(1+$D$19) -> 0 | R107: =Calculations!R94*(1+$D$19) -> 0 | S107: =Calculations!S94*(1+$D$19) -> 0 | T107: =Calculations!T94*(1+$D$19) -> 0 | U107: =Calculations!U94*(1+$D$19) -> 0 | V107: =Calculations!V94*(1+$D$19) -> 0 | W107: =Calculations!W94*(1+$D$19) -> 0 | X107: =Calculations!X94*(1+$D$19) -> 0 | Y107: =Calculations!Y94*(1+$D$19) -> 0
C108: ='User Input'!D130 -> Cost 2 | D108: 0 | E108: =Calculations!E95*(1+$D$19) -> 0 | F108: =Calculations!F95*(1+$D$19) -> 0 | G108: =Calculations!G95*(1+$D$19) -> 0 | H108: =Calculations!H95*(1+$D$19) -> 0 | I108: =Calculations!I95*(1+$D$19) -> 0 | J108: =Calculations!J95*(1+$D$19) -> 0 | K108: =Calculations!K95*(1+$D$19) -> 0 | L108: =Calculations!L95*(1+$D$19) -> 0 | M108: =Calculations!M95*(1+$D$19) -> 0 | N108: =Calculations!N95*(1+$D$19) -> 0 | O108: =Calculations!O95*(1+$D$19) -> 0 | P108: =Calculations!P95*(1+$D$19) -> 0 | Q108: =Calculations!Q95*(1+$D$19) -> 0 | R108: =Calculations!R95*(1+$D$19) -> 0 | S108: =Calculations!S95*(1+$D$19) -> 0 | T108: =Calculations!T95*(1+$D$19) -> 0 | U108: =Calculations!U95*(1+$D$19) -> 0 | V108: =Calculations!V95*(1+$D$19) -> 0 | W108: =Calculations!W95*(1+$D$19) -> 0 | X108: =Calculations!X95*(1+$D$19) -> 0 | Y108: =Calculations!Y95*(1+$D$19) -> 0
C109: ='User Input'!D131 -> Cost 3 | D109: 0 | E109: =Calculations!E96*(1+$D$19) -> 0 | F109: =Calculations!F96*(1+$D$19) -> 0 | G109: =Calculations!G96*(1+$D$19) -> 0 | H109: =Calculations!H96*(1+$D$19) -> 0 | I109: =Calculations!I96*(1+$D$19) -> 0 | J109: =Calculations!J96*(1+$D$19) -> 0 | K109: =Calculations!K96*(1+$D$19) -> 0 | L109: =Calculations!L96*(1+$D$19) -> 0 | M109: =Calculations!M96*(1+$D$19) -> 0 | N109: =Calculations!N96*(1+$D$19) -> 0 | O109: =Calculations!O96*(1+$D$19) -> 0 | P109: =Calculations!P96*(1+$D$19) -> 0 | Q109: =Calculations!Q96*(1+$D$19) -> 0 | R109: =Calculations!R96*(1+$D$19) -> 0 | S109: =Calculations!S96*(1+$D$19) -> 0 | T109: =Calculations!T96*(1+$D$19) -> 0 | U109: =Calculations!U96*(1+$D$19) -> 0 | V109: =Calculations!V96*(1+$D$19) -> 0 | W109: =Calculations!W96*(1+$D$19) -> 0 | X109: =Calculations!X96*(1+$D$19) -> 0 | Y109: =Calculations!Y96*(1+$D$19) -> 0
C110: ='User Input'!D132 -> Cost 4 | D110: 0 | E110: =Calculations!E97*(1+$D$19) -> 0 | F110: =Calculations!F97*(1+$D$19) -> 0 | G110: =Calculations!G97*(1+$D$19) -> 0 | H110: =Calculations!H97*(1+$D$19) -> 0 | I110: =Calculations!I97*(1+$D$19) -> 0 | J110: =Calculations!J97*(1+$D$19) -> 0 | K110: =Calculations!K97*(1+$D$19) -> 0 | L110: =Calculations!L97*(1+$D$19) -> 0 | M110: =Calculations!M97*(1+$D$19) -> 0 | N110: =Calculations!N97*(1+$D$19) -> 0 | O110: =Calculations!O97*(1+$D$19) -> 0 | P110: =Calculations!P97*(1+$D$19) -> 0 | Q110: =Calculations!Q97*(1+$D$19) -> 0 | R110: =Calculations!R97*(1+$D$19) -> 0 | S110: =Calculations!S97*(1+$D$19) -> 0 | T110: =Calculations!T97*(1+$D$19) -> 0 | U110: =Calculations!U97*(1+$D$19) -> 0 | V110: =Calculations!V97*(1+$D$19) -> 0 | W110: =Calculations!W97*(1+$D$19) -> 0 | X110: =Calculations!X97*(1+$D$19) -> 0 | Y110: =Calculations!Y97*(1+$D$19) -> 0
C111: ='User Input'!D133 -> Cost 5 | D111: 0 | E111: =Calculations!E98*(1+$D$19) -> 0 | F111: =Calculations!F98*(1+$D$19) -> 0 | G111: =Calculations!G98*(1+$D$19) -> 0 | H111: =Calculations!H98*(1+$D$19) -> 0 | I111: =Calculations!I98*(1+$D$19) -> 0 | J111: =Calculations!J98*(1+$D$19) -> 0 | K111: =Calculations!K98*(1+$D$19) -> 0 | L111: =Calculations!L98*(1+$D$19) -> 0 | M111: =Calculations!M98*(1+$D$19) -> 0 | N111: =Calculations!N98*(1+$D$19) -> 0 | O111: =Calculations!O98*(1+$D$19) -> 0 | P111: =Calculations!P98*(1+$D$19) -> 0 | Q111: =Calculations!Q98*(1+$D$19) -> 0 | R111: =Calculations!R98*(1+$D$19) -> 0 | S111: =Calculations!S98*(1+$D$19) -> 0 | T111: =Calculations!T98*(1+$D$19) -> 0 | U111: =Calculations!U98*(1+$D$19) -> 0 | V111: =Calculations!V98*(1+$D$19) -> 0 | W111: =Calculations!W98*(1+$D$19) -> 0 | X111: =Calculations!X98*(1+$D$19) -> 0 | Y111: =Calculations!Y98*(1+$D$19) -> 0
C112: ='User Input'!D134 -> Risk 1 | D112: =SUM(E112:Y112) -> 0 | E112: =Calculations!E99*(1+$D$19) -> 0 | F112: =Calculations!F99*(1+$D$19) -> 0 | G112: =Calculations!G99*(1+$D$19) -> 0 | H112: =Calculations!H99*(1+$D$19) -> 0 | I112: =Calculations!I99*(1+$D$19) -> 0 | J112: =Calculations!J99*(1+$D$19) -> 0 | K112: =Calculations!K99*(1+$D$19) -> 0 | L112: =Calculations!L99*(1+$D$19) -> 0 | M112: =Calculations!M99*(1+$D$19) -> 0 | N112: =Calculations!N99*(1+$D$19) -> 0 | O112: =Calculations!O99*(1+$D$19) -> 0 | P112: =Calculations!P99*(1+$D$19) -> 0 | Q112: =Calculations!Q99*(1+$D$19) -> 0 | R112: =Calculations!R99*(1+$D$19) -> 0 | S112: =Calculations!S99*(1+$D$19) -> 0 | T112: =Calculations!T99*(1+$D$19) -> 0 | U112: =Calculations!U99*(1+$D$19) -> 0 | V112: =Calculations!V99*(1+$D$19) -> 0 | W112: =Calculations!W99*(1+$D$19) -> 0 | X112: =Calculations!X99*(1+$D$19) -> 0 | Y112: =Calculations!Y99*(1+$D$19) -> 0
C113: ='User Input'!D135 -> Risk 2 | D113: =SUM(E113:Y113) -> 0 | E113: =Calculations!E100*(1+$D$19) -> 0 | F113: =Calculations!F100*(1+$D$19) -> 0 | G113: =Calculations!G100*(1+$D$19) -> 0 | H113: =Calculations!H100*(1+$D$19) -> 0 | I113: =Calculations!I100*(1+$D$19) -> 0 | J113: =Calculations!J100*(1+$D$19) -> 0 | K113: =Calculations!K100*(1+$D$19) -> 0 | L113: =Calculations!L100*(1+$D$19) -> 0 | M113: =Calculations!M100*(1+$D$19) -> 0 | N113: =Calculations!N100*(1+$D$19) -> 0 | O113: =Calculations!O100*(1+$D$19) -> 0 | P113: =Calculations!P100*(1+$D$19) -> 0 | Q113: =Calculations!Q100*(1+$D$19) -> 0 | R113: =Calculations!R100*(1+$D$19) -> 0 | S113: =Calculations!S100*(1+$D$19) -> 0 | T113: =Calculations!T100*(1+$D$19) -> 0 | U113: =Calculations!U100*(1+$D$19) -> 0 | V113: =Calculations!V100*(1+$D$19) -> 0 | W113: =Calculations!W100*(1+$D$19) -> 0 | X113: =Calculations!X100*(1+$D$19) -> 0 | Y113: =Calculations!Y100*(1+$D$19) -> 0
C114: ='User Input'!D136 -> Risk 3 | D114: =SUM(E114:Y114) -> 0 | E114: =Calculations!E101*(1+$D$19) -> 0 | F114: =Calculations!F101*(1+$D$19) -> 0 | G114: =Calculations!G101*(1+$D$19) -> 0 | H114: =Calculations!H101*(1+$D$19) -> 0 | I114: =Calculations!I101*(1+$D$19) -> 0 | J114: =Calculations!J101*(1+$D$19) -> 0 | K114: =Calculations!K101*(1+$D$19) -> 0 | L114: =Calculations!L101*(1+$D$19) -> 0 | M114: =Calculations!M101*(1+$D$19) -> 0 | N114: =Calculations!N101*(1+$D$19) -> 0 | O114: =Calculations!O101*(1+$D$19) -> 0 | P114: =Calculations!P101*(1+$D$19) -> 0 | Q114: =Calculations!Q101*(1+$D$19) -> 0 | R114: =Calculations!R101*(1+$D$19) -> 0 | S114: =Calculations!S101*(1+$D$19) -> 0 | T114: =Calculations!T101*(1+$D$19) -> 0 | U114: =Calculations!U101*(1+$D$19) -> 0 | V114: =Calculations!V101*(1+$D$19) -> 0 | W114: =Calculations!W101*(1+$D$19) -> 0 | X114: =Calculations!X101*(1+$D$19) -> 0 | Y114: =Calculations!Y101*(1+$D$19) -> 0
C115: ='User Input'!D137 -> Risk 4 | D115: =SUM(E115:Y115) -> 0 | E115: =Calculations!E102*(1+$D$19) -> 0 | F115: =Calculations!F102*(1+$D$19) -> 0 | G115: =Calculations!G102*(1+$D$19) -> 0 | H115: =Calculations!H102*(1+$D$19) -> 0 | I115: =Calculations!I102*(1+$D$19) -> 0 | J115: =Calculations!J102*(1+$D$19) -> 0 | K115: =Calculations!K102*(1+$D$19) -> 0 | L115: =Calculations!L102*(1+$D$19) -> 0 | M115: =Calculations!M102*(1+$D$19) -> 0 | N115: =Calculations!N102*(1+$D$19) -> 0 | O115: =Calculations!O102*(1+$D$19) -> 0 | P115: =Calculations!P102*(1+$D$19) -> 0 | Q115: =Calculations!Q102*(1+$D$19) -> 0 | R115: =Calculations!R102*(1+$D$19) -> 0 | S115: =Calculations!S102*(1+$D$19) -> 0 | T115: =Calculations!T102*(1+$D$19) -> 0 | U115: =Calculations!U102*(1+$D$19) -> 0 | V115: =Calculations!V102*(1+$D$19) -> 0 | W115: =Calculations!W102*(1+$D$19) -> 0 | X115: =Calculations!X102*(1+$D$19) -> 0 | Y115: =Calculations!Y102*(1+$D$19) -> 0
C116: ='User Input'!D138 -> Risk 5 | D116: =SUM(E116:Y116) -> 0 | E116: =Calculations!E103*(1+$D$19) -> 0 | F116: =Calculations!F103*(1+$D$19) -> 0 | G116: =Calculations!G103*(1+$D$19) -> 0 | H116: =Calculations!H103*(1+$D$19) -> 0 | I116: =Calculations!I103*(1+$D$19) -> 0 | J116: =Calculations!J103*(1+$D$19) -> 0 | K116: =Calculations!K103*(1+$D$19) -> 0 | L116: =Calculations!L103*(1+$D$19) -> 0 | M116: =Calculations!M103*(1+$D$19) -> 0 | N116: =Calculations!N103*(1+$D$19) -> 0 | O116: =Calculations!O103*(1+$D$19) -> 0 | P116: =Calculations!P103*(1+$D$19) -> 0 | Q116: =Calculations!Q103*(1+$D$19) -> 0 | R116: =Calculations!R103*(1+$D$19) -> 0 | S116: =Calculations!S103*(1+$D$19) -> 0 | T116: =Calculations!T103*(1+$D$19) -> 0 | U116: =Calculations!U103*(1+$D$19) -> 0 | V116: =Calculations!V103*(1+$D$19) -> 0 | W116: =Calculations!W103*(1+$D$19) -> 0 | X116: =Calculations!X103*(1+$D$19) -> 0 | Y116: =Calculations!Y103*(1+$D$19) -> 0
C117: Total Costs | D117: 0 | E117: =SUM(E98:E116) -> 0 | F117: =SUM(F98:F116) -> 0 | G117: 0 | H117: 0 | I117: 0 | J117: 0 | K117: 0 | L117: 0 | M117: 0 | N117: 0 | O117: 0 | P117: 0 | Q117: 0 | R117: 0 | S117: 0 | T117: 0 | U117: 0 | V117: 0 | W117: 0 | X117: 0 | Y117: 0
C118: Present Value (PV) of Total Costs | D118: 0 | E118: =E117/(1+$D$17)^E$11 -> 0 | F118: 0 | G118: 0 | H118: 0 | I118: 0 | J118: 0 | K118: 0 | L118: 0 | M118: 0 | N118: 0 | O118: 0 | P118: 0 | Q118: 0 | R118: 0 | S118: 0 | T118: 0 | U118: 0 | V118: 0 | W118: 0 | X118: 0 | Y118: 0
B120: ='User Input'!D140 -> Option 4:
C122: Capital Costs | D122: =SUM(E122:Y122) -> 0 | E122: =Calculations!E109*(1+$D$18) -> 0 | F122: =Calculations!F109*(1+$D$18) -> 0 | G122: =Calculations!G109*(1+$D$18) -> 0 | H122: =Calculations!H109*(1+$D$18) -> 0 | I122: =Calculations!I109*(1+$D$18) -> 0 | J122: =Calculations!J109*(1+$D$18) -> 0 | K122: =Calculations!K109*(1+$D$18) -> 0 | L122: =Calculations!L109*(1+$D$18) -> 0 | M122: =Calculations!M109*(1+$D$18) -> 0 | N122: =Calculations!N109*(1+$D$18) -> 0 | O122: =Calculations!O109*(1+$D$18) -> 0 | P122: =Calculations!P109*(1+$D$18) -> 0 | Q122: =Calculations!Q109*(1+$D$18) -> 0 | R122: =Calculations!R109*(1+$D$18) -> 0 | S122: =Calculations!S109*(1+$D$18) -> 0 | T122: =Calculations!T109*(1+$D$18) -> 0 | U122: =Calculations!U109*(1+$D$18) -> 0 | V122: =Calculations!V109*(1+$D$18) -> 0 | W122: =Calculations!W109*(1+$D$18) -> 0 | X122: =Calculations!X109*(1+$D$18) -> 0 | Y122: =Calculations!Y109*(1+$D$18) -> 0
C123: ='User Input'!D143 -> Annual Maintenance Costs | D123: =SUM(E123:Y123) -> 0 | E123: =Calculations!E110*(1+$D$19) -> 0 | F123: =Calculations!F110*(1+$D$19) -> 0 | G123: =Calculations!G110*(1+$D$19) -> 0 | H123: =Calculations!H110*(1+$D$19) -> 0 | I123: =Calculations!I110*(1+$D$19) -> 0 | J123: =Calculations!J110*(1+$D$19) -> 0 | K123: =Calculations!K110*(1+$D$19) -> 0 | L123: =Calculations!L110*(1+$D$19) -> 0 | M123: =Calculations!M110*(1+$D$19) -> 0 | N123: =Calculations!N110*(1+$D$19) -> 0 | O123: =Calculations!O110*(1+$D$19) -> 0 | P123: =Calculations!P110*(1+$D$19) -> 0 | Q123: =Calculations!Q110*(1+$D$19) -> 0 | R123: =Calculations!R110*(1+$D$19) -> 0 | S123: =Calculations!S110*(1+$D$19) -> 0 | T123: =Calculations!T110*(1+$D$19) -> 0 | U123: =Calculations!U110*(1+$D$19) -> 0 | V123: =Calculations!V110*(1+$D$19) -> 0 | W123: =Calculations!W110*(1+$D$19) -> 0 | X123: =Calculations!X110*(1+$D$19) -> 0 | Y123: =Calculations!Y110*(1+$D$19) -> 0
C124: ='User Input'!D145 -> Negative Impact on Revenue (STPIS)
C125: ='User Input'!D146 -> SAIFI sustained | D125: =SUM(E125:Y125) -> 0 | E125: 0 | F125: 0 | G125: =Calculations!G112*(1+$D$21) -> 0 | H125: =Calculations!H112*(1+$D$21) -> 0 | I125: =Calculations!I112*(1+$D$21) -> 0 | J125: =Calculations!J112*(1+$D$21) -> 0 | K125: =Calculations!K112*(1+$D$21) -> 0 | L125: =Calculations!L112*(1+$D$21) -> 0 | M125: =Calculations!M112*(1+$D$21) -> 0 | N125: =Calculations!N112*(1+$D$21) -> 0 | O125: =Calculations!O112*(1+$D$21) -> 0 | P125: =Calculations!P112*(1+$D$21) -> 0 | Q125: =Calculations!Q112*(1+$D$21) -> 0 | R125: =Calculations!R112*(1+$D$21) -> 0 | S125: =Calculations!S112*(1+$D$21) -> 0 | T125: =Calculations!T112*(1+$D$21) -> 0 | U125: =Calculations!U112*(1+$D$21) -> 0 | V125: =Calculations!V112*(1+$D$21) -> 0 | W125: =Calculations!W112*(1+$D$21) -> 0 | X125: =Calculations!X112*(1+$D$21) -> 0 | Y125: =Calculations!Y112*(1+$D$21) -> 0
C126: ='User Input'!D147 -> SAIDI accidental | D126: 0 | E126: 0 | F126: 0 | G126: =Calculations!G113*(1+$D$20) -> 0 | H126: =Calculations!H113*(1+$D$20) -> 0 | I126: =Calculations!I113*(1+$D$20) -> 0 | J126: =Calculations!J113*(1+$D$20) -> 0 | K126: =Calculations!K113*(1+$D$20) -> 0 | L126: =Calculations!L113*(1+$D$20) -> 0 | M126: =Calculations!M113*(1+$D$20) -> 0 | N126: =Calculations!N113*(1+$D$20) -> 0 | O126: =Calculations!O113*(1+$D$20) -> 0 | P126: =Calculations!P113*(1+$D$20) -> 0 | Q126: =Calculations!Q113*(1+$D$20) -> 0 | R126: =Calculations!R113*(1+$D$20) -> 0 | S126: =Calculations!S113*(1+$D$20) -> 0 | T126: =Calculations!T113*(1+$D$20) -> 0 | U126: =Calculations!U113*(1+$D$20) -> 0 | V126: =Calculations!V113*(1+$D$20) -> 0 | W126: =Calculations!W113*(1+$D$20) -> 0 | X126: =Calculations!X113*(1+$D$20) -> 0 | Y126: =Calculations!Y113*(1+$D$20) -> 0
C127: ='User Input'!D148 -> MAIFI momentary | D127: 0 | E127: 0 | F127: 0 | G127: =Calculations!G114*(1+$D$22) -> 0 | H127: =Calculations!H114*(1+$D$22) -> 0 | I127: =Calculations!I114*(1+$D$22) -> 0 | J127: =Calculations!J114*(1+$D$22) -> 0 | K127: =Calculations!K114*(1+$D$22) -> 0 | L127: =Calculations!L114*(1+$D$22) -> 0 | M127: =Calculations!M114*(1+$D$22) -> 0 | N127: =Calculations!N114*(1+$D$22) -> 0 | O127: =Calculations!O114*(1+$D$22) -> 0 | P127: =Calculations!P114*(1+$D$22) -> 0 | Q127: =Calculations!Q114*(1+$D$22) -> 0 | R127: =Calculations!R114*(1+$D$22) -> 0 | S127: =Calculations!S114*(1+$D$22) -> 0 | T127: =Calculations!T114*(1+$D$22) -> 0 | U127: =Calculations!U114*(1+$D$22) -> 0 | V127: =Calculations!V114*(1+$D$22) -> 0 | W127: =Calculations!W114*(1+$D$22) -> 0 | X127: =Calculations!X114*(1+$D$22) -> 0 | Y127: =Calculations!Y114*(1+$D$22) -> 0
C128: ='User Input'!D149 -> Call centre response | D128: 0 | E128: 0 | F128: 0 | G128: =Calculations!G115*(1+$D$19) -> 0 | H128: =Calculations!H115*(1+$D$19) -> 0 | I128: =Calculations!I115*(1+$D$19) -> 0 | J128: =Calculations!J115*(1+$D$19) -> 0 | K128: =Calculations!K115*(1+$D$19) -> 0 | L128: =Calculations!L115*(1+$D$19) -> 0 | M128: =Calculations!M115*(1+$D$19) -> 0 | N128: =Calculations!N115*(1+$D$19) -> 0 | O128: =Calculations!O115*(1+$D$19) -> 0 | P128: =Calculations!P115*(1+$D$19) -> 0 | Q128: =Calculations!Q115*(1+$D$19) -> 0 | R128: =Calculations!R115*(1+$D$19) -> 0 | S128: =Calculations!S115*(1+$D$19) -> 0 | T128: =Calculations!T115*(1+$D$19) -> 0 | U128: =Calculations!U115*(1+$D$19) -> 0 | V128: =Calculations!V115*(1+$D$19) -> 0 | W128: =Calculations!W115*(1+$D$19) -> 0 | X128: =Calculations!X115*(1+$D$19) -> 0 | Y128: =Calculations!Y115*(1+$D$19) -> 0
C129: ='User Input'!D151 -> Network Outage Costs | D129: 0 | E129: =Calculations!E116*(1+$D$19) -> 0 | F129: =Calculations!F116*(1+$D$19) -> 0 | G129: =Calculations!G116*(1+$D$19) -> 0 | H129: =Calculations!H116*(1+$D$19) -> 0 | I129: =Calculations!I116*(1+$D$19) -> 0 | J129: =Calculations!J116*(1+$D$19) -> 0 | K129: =Calculations!K116*(1+$D$19) -> 0 | L129: =Calculations!L116*(1+$D$19) -> 0 | M129: =Calculations!M116*(1+$D$19) -> 0 | N129: =Calculations!N116*(1+$D$19) -> 0 | O129: =Calculations!O116*(1+$D$19) -> 0 | P129: =Calculations!P116*(1+$D$19) -> 0 | Q129: =Calculations!Q116*(1+$D$19) -> 0 | R129: =Calculations!R116*(1+$D$19) -> 0 | S129: =Calculations!S116*(1+$D$19) -> 0 | T129: =Calculations!T116*(1+$D$19) -> 0 | U129: =Calculations!U116*(1+$D$19) -> 0 | V129: =Calculations!V116*(1+$D$19) -> 0 | W129: =Calculations!W116*(1+$D$19) -> 0 | X129: =Calculations!X116*(1+$D$19) -> 0 | Y129: =Calculations!Y116*(1+$D$19) -> 0
C130: ='User Input'!D155 -> Loss of F Factor Benefit | D130: 0 | E130: =Calculations!E117*(1+$D$19) -> 0 | F130: =Calculations!F117*(1+$D$19) -> 0 | G130: =Calculations!G117*(1+$D$19) -> 0 | H130: =Calculations!H117*(1+$D$19) -> 0 | I130: =Calculations!I117*(1+$D$19) -> 0 | J130: =Calculations!J117*(1+$D$19) -> 0 | K130: =Calculations!K117*(1+$D$19) -> 0 | L130: =Calculations!L117*(1+$D$19) -> 0 | M130: =Calculations!M117*(1+$D$19) -> 0 | N130: =Calculations!N117*(1+$D$19) -> 0 | O130: =Calculations!O117*(1+$D$19) -> 0 | P130: =Calculations!P117*(1+$D$19) -> 0 | Q130: =Calculations!Q117*(1+$D$19) -> 0 | R130: =Calculations!R117*(1+$D$19) -> 0 | S130: =Calculations!S117*(1+$D$19) -> 0 | T130: =Calculations!T117*(1+$D$19) -> 0 | U130: =Calculations!U117*(1+$D$19) -> 0 | V130: =Calculations!V117*(1+$D$19) -> 0 | W130: =Calculations!W117*(1+$D$19) -> 0 | X130: =Calculations!X117*(1+$D$19) -> 0 | Y130: =Calculations!Y117*(1+$D$19) -> 0
C131: ='User Input'!D158 -> Cost 1 | D131: 0 | E131: =Calculations!E118*(1+$D$19) -> 0 | F131: =Calculations!F118*(1+$D$19) -> 0 | G131: =Calculations!G118*(1+$D$19) -> 0 | H131: =Calculations!H118*(1+$D$19) -> 0 | I131: =Calculations!I118*(1+$D$19) -> 0 | J131: =Calculations!J118*(1+$D$19) -> 0 | K131: =Calculations!K118*(1+$D$19) -> 0 | L131: =Calculations!L118*(1+$D$19) -> 0 | M131: =Calculations!M118*(1+$D$19) -> 0 | N131: =Calculations!N118*(1+$D$19) -> 0 | O131: =Calculations!O118*(1+$D$19) -> 0 | P131: =Calculations!P118*(1+$D$19) -> 0 | Q131: =Calculations!Q118*(1+$D$19) -> 0 | R131: =Calculations!R118*(1+$D$19) -> 0 | S131: =Calculations!S118*(1+$D$19) -> 0 | T131: =Calculations!T118*(1+$D$19) -> 0 | U131: =Calculations!U118*(1+$D$19) -> 0 | V131: =Calculations!V118*(1+$D$19) -> 0 | W131: =Calculations!W118*(1+$D$19) -> 0 | X131: =Calculations!X118*(1+$D$19) -> 0 | Y131: =Calculations!Y118*(1+$D$19) -> 0
C132: ='User Input'!D159 -> Cost 2 | D132: 0 | E132: =Calculations!E119*(1+$D$19) -> 0 | F132: =Calculations!F119*(1+$D$19) -> 0 | G132: =Calculations!G119*(1+$D$19) -> 0 | H132: =Calculations!H119*(1+$D$19) -> 0 | I132: =Calculations!I119*(1+$D$19) -> 0 | J132: =Calculations!J119*(1+$D$19) -> 0 | K132: =Calculations!K119*(1+$D$19) -> 0 | L132: =Calculations!L119*(1+$D$19) -> 0 | M132: =Calculations!M119*(1+$D$19) -> 0 | N132: =Calculations!N119*(1+$D$19) -> 0 | O132: =Calculations!O119*(1+$D$19) -> 0 | P132: =Calculations!P119*(1+$D$19) -> 0 | Q132: =Calculations!Q119*(1+$D$19) -> 0 | R132: =Calculations!R119*(1+$D$19) -> 0 | S132: =Calculations!S119*(1+$D$19) -> 0 | T132: =Calculations!T119*(1+$D$19) -> 0 | U132: =Calculations!U119*(1+$D$19) -> 0 | V132: =Calculations!V119*(1+$D$19) -> 0 | W132: =Calculations!W119*(1+$D$19) -> 0 | X132: =Calculations!X119*(1+$D$19) -> 0 | Y132: =Calculations!Y119*(1+$D$19) -> 0
C133: ='User Input'!D160 -> Cost 3 | D133: 0 | E133: =Calculations!E120*(1+$D$19) -> 0 | F133: =Calculations!F120*(1+$D$19) -> 0 | G133: =Calculations!G120*(1+$D$19) -> 0 | H133: =Calculations!H120*(1+$D$19) -> 0 | I133: =Calculations!I120*(1+$D$19) -> 0 | J133: =Calculations!J120*(1+$D$19) -> 0 | K133: =Calculations!K120*(1+$D$19) -> 0 | L133: =Calculations!L120*(1+$D$19) -> 0 | M133: =Calculations!M120*(1+$D$19) -> 0 | N133: =Calculations!N120*(1+$D$19) -> 0 | O133: =Calculations!O120*(1+$D$19) -> 0 | P133: =Calculations!P120*(1+$D$19) -> 0 | Q133: =Calculations!Q120*(1+$D$19) -> 0 | R133: =Calculations!R120*(1+$D$19) -> 0 | S133: =Calculations!S120*(1+$D$19) -> 0 | T133: =Calculations!T120*(1+$D$19) -> 0 | U133: =Calculations!U120*(1+$D$19) -> 0 | V133: =Calculations!V120*(1+$D$19) -> 0 | W133: =Calculations!W120*(1+$D$19) -> 0 | X133: =Calculations!X120*(1+$D$19) -> 0 | Y133: =Calculations!Y120*(1+$D$19) -> 0
C134: ='User Input'!D161 -> Cost 4 | D134: 0 | E134: =Calculations!E121*(1+$D$19) -> 0 | F134: =Calculations!F121*(1+$D$19) -> 0 | G134: =Calculations!G121*(1+$D$19) -> 0 | H134: =Calculations!H121*(1+$D$19) -> 0 | I134: =Calculations!I121*(1+$D$19) -> 0 | J134: =Calculations!J121*(1+$D$19) -> 0 | K134: =Calculations!K121*(1+$D$19) -> 0 | L134: =Calculations!L121*(1+$D$19) -> 0 | M134: =Calculations!M121*(1+$D$19) -> 0 | N134: =Calculations!N121*(1+$D$19) -> 0 | O134: =Calculations!O121*(1+$D$19) -> 0 | P134: =Calculations!P121*(1+$D$19) -> 0 | Q134: =Calculations!Q121*(1+$D$19) -> 0 | R134: =Calculations!R121*(1+$D$19) -> 0 | S134: =Calculations!S121*(1+$D$19) -> 0 | T134: =Calculations!T121*(1+$D$19) -> 0 | U134: =Calculations!U121*(1+$D$19) -> 0 | V134: =Calculations!V121*(1+$D$19) -> 0 | W134: =Calculations!W121*(1+$D$19) -> 0 | X134: =Calculations!X121*(1+$D$19) -> 0 | Y134: =Calculations!Y121*(1+$D$19) -> 0
C135: ='User Input'!D162 -> Cost 5 | D135: 0 | E135: =Calculations!E122*(1+$D$19) -> 0 | F135: =Calculations!F122*(1+$D$19) -> 0 | G135: =Calculations!G122*(1+$D$19) -> 0 | H135: =Calculations!H122*(1+$D$19) -> 0 | I135: =Calculations!I122*(1+$D$19) -> 0 | J135: =Calculations!J122*(1+$D$19) -> 0 | K135: =Calculations!K122*(1+$D$19) -> 0 | L135: =Calculations!L122*(1+$D$19) -> 0 | M135: =Calculations!M122*(1+$D$19) -> 0 | N135: =Calculations!N122*(1+$D$19) -> 0 | O135: =Calculations!O122*(1+$D$19) -> 0 | P135: =Calculations!P122*(1+$D$19) -> 0 | Q135: =Calculations!Q122*(1+$D$19) -> 0 | R135: =Calculations!R122*(1+$D$19) -> 0 | S135: =Calculations!S122*(1+$D$19) -> 0 | T135: =Calculations!T122*(1+$D$19) -> 0 | U135: =Calculations!U122*(1+$D$19) -> 0 | V135: =Calculations!V122*(1+$D$19) -> 0 | W135: =Calculations!W122*(1+$D$19) -> 0 | X135: =Calculations!X122*(1+$D$19) -> 0 | Y135: =Calculations!Y122*(1+$D$19) -> 0
C136: ='User Input'!D163 -> Risk 1 | D136: =SUM(E136:Y136) -> 0 | E136: =Calculations!E123*(1+$D$19) -> 0 | F136: =Calculations!F123*(1+$D$19) -> 0 | G136: =Calculations!G123*(1+$D$19) -> 0 | H136: =Calculations!H123*(1+$D$19) -> 0 | I136: =Calculations!I123*(1+$D$19) -> 0 | J136: =Calculations!J123*(1+$D$19) -> 0 | K136: =Calculations!K123*(1+$D$19) -> 0 | L136: =Calculations!L123*(1+$D$19) -> 0 | M136: =Calculations!M123*(1+$D$19) -> 0 | N136: =Calculations!N123*(1+$D$19) -> 0 | O136: =Calculations!O123*(1+$D$19) -> 0 | P136: =Calculations!P123*(1+$D$19) -> 0 | Q136: =Calculations!Q123*(1+$D$19) -> 0 | R136: =Calculations!R123*(1+$D$19) -> 0 | S136: =Calculations!S123*(1+$D$19) -> 0 | T136: =Calculations!T123*(1+$D$19) -> 0 | U136: =Calculations!U123*(1+$D$19) -> 0 | V136: =Calculations!V123*(1+$D$19) -> 0 | W136: =Calculations!W123*(1+$D$19) -> 0 | X136: =Calculations!X123*(1+$D$19) -> 0 | Y136: =Calculations!Y123*(1+$D$19) -> 0
C137: ='User Input'!D164 -> Risk 2 | D137: =SUM(E137:Y137) -> 0 | E137: =Calculations!E124*(1+$D$19) -> 0 | F137: =Calculations!F124*(1+$D$19) -> 0 | G137: =Calculations!G124*(1+$D$19) -> 0 | H137: =Calculations!H124*(1+$D$19) -> 0 | I137: =Calculations!I124*(1+$D$19) -> 0 | J137: =Calculations!J124*(1+$D$19) -> 0 | K137: =Calculations!K124*(1+$D$19) -> 0 | L137: =Calculations!L124*(1+$D$19) -> 0 | M137: =Calculations!M124*(1+$D$19) -> 0 | N137: =Calculations!N124*(1+$D$19) -> 0 | O137: =Calculations!O124*(1+$D$19) -> 0 | P137: =Calculations!P124*(1+$D$19) -> 0 | Q137: =Calculations!Q124*(1+$D$19) -> 0 | R137: =Calculations!R124*(1+$D$19) -> 0 | S137: =Calculations!S124*(1+$D$19) -> 0 | T137: =Calculations!T124*(1+$D$19) -> 0 | U137: =Calculations!U124*(1+$D$19) -> 0 | V137: =Calculations!V124*(1+$D$19) -> 0 | W137: =Calculations!W124*(1+$D$19) -> 0 | X137: =Calculations!X124*(1+$D$19) -> 0 | Y137: =Calculations!Y124*(1+$D$19) -> 0
C138: ='User Input'!D165 -> Risk 3 | D138: =SUM(E138:Y138) -> 0 | E138: =Calculations!E125*(1+$D$19) -> 0 | F138: =Calculations!F125*(1+$D$19) -> 0 | G138: =Calculations!G125*(1+$D$19) -> 0 | H138: =Calculations!H125*(1+$D$19) -> 0 | I138: =Calculations!I125*(1+$D$19) -> 0 | J138: =Calculations!J125*(1+$D$19) -> 0 | K138: =Calculations!K125*(1+$D$19) -> 0 | L138: =Calculations!L125*(1+$D$19) -> 0 | M138: =Calculations!M125*(1+$D$19) -> 0 | N138: =Calculations!N125*(1+$D$19) -> 0 | O138: =Calculations!O125*(1+$D$19) -> 0 | P138: =Calculations!P125*(1+$D$19) -> 0 | Q138: =Calculations!Q125*(1+$D$19) -> 0 | R138: =Calculations!R125*(1+$D$19) -> 0 | S138: =Calculations!S125*(1+$D$19) -> 0 | T138: =Calculations!T125*(1+$D$19) -> 0 | U138: =Calculations!U125*(1+$D$19) -> 0 | V138: =Calculations!V125*(1+$D$19) -> 0 | W138: =Calculations!W125*(1+$D$19) -> 0 | X138: =Calculations!X125*(1+$D$19) -> 0 | Y138: =Calculations!Y125*(1+$D$19) -> 0
C139: ='User Input'!D166 -> Risk 4 | D139: =SUM(E139:Y139) -> 0 | E139: =Calculations!E126*(1+$D$19) -> 0 | F139: =Calculations!F126*(1+$D$19) -> 0 | G139: =Calculations!G126*(1+$D$19) -> 0 | H139: =Calculations!H126*(1+$D$19) -> 0 | I139: =Calculations!I126*(1+$D$19) -> 0 | J139: =Calculations!J126*(1+$D$19) -> 0 | K139: =Calculations!K126*(1+$D$19) -> 0 | L139: =Calculations!L126*(1+$D$19) -> 0 | M139: =Calculations!M126*(1+$D$19) -> 0 | N139: =Calculations!N126*(1+$D$19) -> 0 | O139: =Calculations!O126*(1+$D$19) -> 0 | P139: =Calculations!P126*(1+$D$19) -> 0 | Q139: =Calculations!Q126*(1+$D$19) -> 0 | R139: =Calculations!R126*(1+$D$19) -> 0 | S139: =Calculations!S126*(1+$D$19) -> 0 | T139: =Calculations!T126*(1+$D$19) -> 0 | U139: =Calculations!U126*(1+$D$19) -> 0 | V139: =Calculations!V126*(1+$D$19) -> 0 | W139: =Calculations!W126*(1+$D$19) -> 0 | X139: =Calculations!X126*(1+$D$19) -> 0 | Y139: =Calculations!Y126*(1+$D$19) -> 0
C140: ='User Input'!D167 -> Risk 5 | D140: =SUM(E140:Y140) -> 0 | E140: =Calculations!E127*(1+$D$19) -> 0 | F140: =Calculations!F127*(1+$D$19) -> 0 | G140: =Calculations!G127*(1+$D$19) -> 0 | H140: =Calculations!H127*(1+$D$19) -> 0 | I140: =Calculations!I127*(1+$D$19) -> 0 | J140: =Calculations!J127*(1+$D$19) -> 0 | K140: =Calculations!K127*(1+$D$19) -> 0 | L140: =Calculations!L127*(1+$D$19) -> 0 | M140: =Calculations!M127*(1+$D$19) -> 0 | N140: =Calculations!N127*(1+$D$19) -> 0 | O140: =Calculations!O127*(1+$D$19) -> 0 | P140: =Calculations!P127*(1+$D$19) -> 0 | Q140: =Calculations!Q127*(1+$D$19) -> 0 | R140: =Calculations!R127*(1+$D$19) -> 0 | S140: =Calculations!S127*(1+$D$19) -> 0 | T140: =Calculations!T127*(1+$D$19) -> 0 | U140: =Calculations!U127*(1+$D$19) -> 0 | V140: =Calculations!V127*(1+$D$19) -> 0 | W140: =Calculations!W127*(1+$D$19) -> 0 | X140: =Calculations!X127*(1+$D$19) -> 0 | Y140: =Calculations!Y127*(1+$D$19) -> 0
C141: Total Costs | D141: 0 | E141: =SUM(E122:E140) -> 0 | F141: =SUM(F122:F140) -> 0 | G141: 0 | H141: 0 | I141: 0 | J141: 0 | K141: 0 | L141: 0 | M141: 0 | N141: 0 | O141: 0 | P141: 0 | Q141: 0 | R141: 0 | S141: 0 | T141: 0 | U141: 0 | V141: 0 | W141: 0 | X141: 0 | Y141: 0
C142: Present Value (PV) of Total Costs | D142: 0 | E142: =E141/(1+$D$17)^E$11 -> 0 | F142: 0 | G142: 0 | H142: 0 | I142: 0 | J142: 0 | K142: 0 | L142: 0 | M142: 0 | N142: 0 | O142: 0 | P142: 0 | Q142: 0 | R142: 0 | S142: 0 | T142: 0 | U142: 0 | V142: 0 | W142: 0 | X142: 0 | Y142: 0
B144: ='User Input'!D169 -> Option 5:
C146: Capital Costs | D146: =SUM(E146:Y146) -> 0 | E146: =Calculations!E133*(1+$D$18) -> 0 | F146: =Calculations!F133*(1+$D$18) -> 0 | G146: =Calculations!G133*(1+$D$18) -> 0 | H146: =Calculations!H133*(1+$D$18) -> 0 | I146: =Calculations!I133*(1+$D$18) -> 0 | J146: =Calculations!J133*(1+$D$18) -> 0 | K146: =Calculations!K133*(1+$D$18) -> 0 | L146: =Calculations!L133*(1+$D$18) -> 0 | M146: =Calculations!M133*(1+$D$18) -> 0 | N146: =Calculations!N133*(1+$D$18) -> 0 | O146: =Calculations!O133*(1+$D$18) -> 0 | P146: =Calculations!P133*(1+$D$18) -> 0 | Q146: =Calculations!Q133*(1+$D$18) -> 0 | R146: =Calculations!R133*(1+$D$18) -> 0 | S146: =Calculations!S133*(1+$D$18) -> 0 | T146: =Calculations!T133*(1+$D$18) -> 0 | U146: =Calculations!U133*(1+$D$18) -> 0 | V146: =Calculations!V133*(1+$D$18) -> 0 | W146: =Calculations!W133*(1+$D$18) -> 0 | X146: =Calculations!X133*(1+$D$18) -> 0 | Y146: =Calculations!Y133*(1+$D$18) -> 0
C147: ='User Input'!D172 -> Annual Maintenance Costs | D147: =SUM(E147:Y147) -> 0 | E147: =Calculations!E134*(1+$D$19) -> 0 | F147: =Calculations!F134*(1+$D$19) -> 0 | G147: =Calculations!G134*(1+$D$19) -> 0 | H147: =Calculations!H134*(1+$D$19) -> 0 | I147: =Calculations!I134*(1+$D$19) -> 0 | J147: =Calculations!J134*(1+$D$19) -> 0 | K147: =Calculations!K134*(1+$D$19) -> 0 | L147: =Calculations!L134*(1+$D$19) -> 0 | M147: =Calculations!M134*(1+$D$19) -> 0 | N147: =Calculations!N134*(1+$D$19) -> 0 | O147: =Calculations!O134*(1+$D$19) -> 0 | P147: =Calculations!P134*(1+$D$19) -> 0 | Q147: =Calculations!Q134*(1+$D$19) -> 0 | R147: =Calculations!R134*(1+$D$19) -> 0 | S147: =Calculations!S134*(1+$D$19) -> 0 | T147: =Calculations!T134*(1+$D$19) -> 0 | U147: =Calculations!U134*(1+$D$19) -> 0 | V147: =Calculations!V134*(1+$D$19) -> 0 | W147: =Calculations!W134*(1+$D$19) -> 0 | X147: =Calculations!X134*(1+$D$19) -> 0 | Y147: =Calculations!Y134*(1+$D$19) -> 0
C148: ='User Input'!D174 -> Negative Impact on Revenue (STPIS)
C149: ='User Input'!D175 -> SAIFI sustained | D149: =SUM(E149:Y149) -> 0 | E149: 0 | F149: 0 | G149: =Calculations!G136*(1+$D$21) -> 0 | H149: =Calculations!H136*(1+$D$21) -> 0 | I149: =Calculations!I136*(1+$D$21) -> 0 | J149: =Calculations!J136*(1+$D$21) -> 0 | K149: =Calculations!K136*(1+$D$21) -> 0 | L149: =Calculations!L136*(1+$D$21) -> 0 | M149: =Calculations!M136*(1+$D$21) -> 0 | N149: =Calculations!N136*(1+$D$21) -> 0 | O149: =Calculations!O136*(1+$D$21) -> 0 | P149: =Calculations!P136*(1+$D$21) -> 0 | Q149: =Calculations!Q136*(1+$D$21) -> 0 | R149: =Calculations!R136*(1+$D$21) -> 0 | S149: =Calculations!S136*(1+$D$21) -> 0 | T149: =Calculations!T136*(1+$D$21) -> 0 | U149: =Calculations!U136*(1+$D$21) -> 0 | V149: =Calculations!V136*(1+$D$21) -> 0 | W149: =Calculations!W136*(1+$D$21) -> 0 | X149: =Calculations!X136*(1+$D$21) -> 0 | Y149: =Calculations!Y136*(1+$D$21) -> 0
C150: ='User Input'!D176 -> SAIDI accidental | D150: 0 | E150: 0 | F150: 0 | G150: =Calculations!G137*(1+$D$20) -> 0 | H150: =Calculations!H137*(1+$D$20) -> 0 | I150: =Calculations!I137*(1+$D$20) -> 0 | J150: =Calculations!J137*(1+$D$20) -> 0 | K150: =Calculations!K137*(1+$D$20) -> 0 | L150: =Calculations!L137*(1+$D$20) -> 0 | M150: =Calculations!M137*(1+$D$20) -> 0 | N150: =Calculations!N137*(1+$D$20) -> 0 | O150: =Calculations!O137*(1+$D$20) -> 0 | P150: =Calculations!P137*(1+$D$20) -> 0 | Q150: =Calculations!Q137*(1+$D$20) -> 0 | R150: =Calculations!R137*(1+$D$20) -> 0 | S150: =Calculations!S137*(1+$D$20) -> 0 | T150: =Calculations!T137*(1+$D$20) -> 0 | U150: =Calculations!U137*(1+$D$20) -> 0 | V150: =Calculations!V137*(1+$D$20) -> 0 | W150: =Calculations!W137*(1+$D$20) -> 0 | X150: =Calculations!X137*(1+$D$20) -> 0 | Y150: =Calculations!Y137*(1+$D$20) -> 0
C151: ='User Input'!D177 -> MAIFI momentary | D151: 0 | E151: 0 | F151: 0 | G151: =Calculations!G138*(1+$D$22) -> 0 | H151: =Calculations!H138*(1+$D$22) -> 0 | I151: =Calculations!I138*(1+$D$22) -> 0 | J151: =Calculations!J138*(1+$D$22) -> 0 | K151: =Calculations!K138*(1+$D$22) -> 0 | L151: =Calculations!L138*(1+$D$22) -> 0 | M151: =Calculations!M138*(1+$D$22) -> 0 | N151: =Calculations!N138*(1+$D$22) -> 0 | O151: =Calculations!O138*(1+$D$22) -> 0 | P151: =Calculations!P138*(1+$D$22) -> 0 | Q151: =Calculations!Q138*(1+$D$22) -> 0 | R151: =Calculations!R138*(1+$D$22) -> 0 | S151: =Calculations!S138*(1+$D$22) -> 0 | T151: =Calculations!T138*(1+$D$22) -> 0 | U151: =Calculations!U138*(1+$D$22) -> 0 | V151: =Calculations!V138*(1+$D$22) -> 0 | W151: =Calculations!W138*(1+$D$22) -> 0 | X151: =Calculations!X138*(1+$D$22) -> 0 | Y151: =Calculations!Y138*(1+$D$22) -> 0
C152: ='User Input'!D178 -> Call centre response | D152: 0 | E152: 0 | F152: 0 | G152: =Calculations!G139*(1+$D$19) -> 0 | H152: =Calculations!H139*(1+$D$19) -> 0 | I152: =Calculations!I139*(1+$D$19) -> 0 | J152: =Calculations!J139*(1+$D$19) -> 0 | K152: =Calculations!K139*(1+$D$19) -> 0 | L152: =Calculations!L139*(1+$D$19) -> 0 | M152: =Calculations!M139*(1+$D$19) -> 0 | N152: =Calculations!N139*(1+$D$19) -> 0 | O152: =Calculations!O139*(1+$D$19) -> 0 | P152: =Calculations!P139*(1+$D$19) -> 0 | Q152: =Calculations!Q139*(1+$D$19) -> 0 | R152: =Calculations!R139*(1+$D$19) -> 0 | S152: =Calculations!S139*(1+$D$19) -> 0 | T152: =Calculations!T139*(1+$D$19) -> 0 | U152: =Calculations!U139*(1+$D$19) -> 0 | V152: =Calculations!V139*(1+$D$19) -> 0 | W152: =Calculations!W139*(1+$D$19) -> 0 | X152: =Calculations!X139*(1+$D$19) -> 0 | Y152: =Calculations!Y139*(1+$D$19) -> 0
C153: ='User Input'!D180 -> Network Outage Costs | D153: 0 | E153: =Calculations!E140*(1+$D$19) -> 0 | F153: =Calculations!F140*(1+$D$19) -> 0 | G153: =Calculations!G140*(1+$D$19) -> 0 | H153: =Calculations!H140*(1+$D$19) -> 0 | I153: =Calculations!I140*(1+$D$19) -> 0 | J153: =Calculations!J140*(1+$D$19) -> 0 | K153: =Calculations!K140*(1+$D$19) -> 0 | L153: =Calculations!L140*(1+$D$19) -> 0 | M153: =Calculations!M140*(1+$D$19) -> 0 | N153: =Calculations!N140*(1+$D$19) -> 0 | O153: =Calculations!O140*(1+$D$19) -> 0 | P153: =Calculations!P140*(1+$D$19) -> 0 | Q153: =Calculations!Q140*(1+$D$19) -> 0 | R153: =Calculations!R140*(1+$D$19) -> 0 | S153: =Calculations!S140*(1+$D$19) -> 0 | T153: =Calculations!T140*(1+$D$19) -> 0 | U153: =Calculations!U140*(1+$D$19) -> 0 | V153: =Calculations!V140*(1+$D$19) -> 0 | W153: =Calculations!W140*(1+$D$19) -> 0 | X153: =Calculations!X140*(1+$D$19) -> 0 | Y153: =Calculations!Y140*(1+$D$19) -> 0
C154: ='User Input'!D184 -> Loss of F Factor Benefit | D154: 0 | E154: =Calculations!E141*(1+$D$19) -> 0 | F154: =Calculations!F141*(1+$D$19) -> 0 | G154: =Calculations!G141*(1+$D$19) -> 0 | H154: =Calculations!H141*(1+$D$19) -> 0 | I154: =Calculations!I141*(1+$D$19) -> 0 | J154: =Calculations!J141*(1+$D$19) -> 0 | K154: =Calculations!K141*(1+$D$19) -> 0 | L154: =Calculations!L141*(1+$D$19) -> 0 | M154: =Calculations!M141*(1+$D$19) -> 0 | N154: =Calculations!N141*(1+$D$19) -> 0 | O154: =Calculations!O141*(1+$D$19) -> 0 | P154: =Calculations!P141*(1+$D$19) -> 0 | Q154: =Calculations!Q141*(1+$D$19) -> 0 | R154: =Calculations!R141*(1+$D$19) -> 0 | S154: =Calculations!S141*(1+$D$19) -> 0 | T154: =Calculations!T141*(1+$D$19) -> 0 | U154: =Calculations!U141*(1+$D$19) -> 0 | V154: =Calculations!V141*(1+$D$19) -> 0 | W154: =Calculations!W141*(1+$D$19) -> 0 | X154: =Calculations!X141*(1+$D$19) -> 0 | Y154: =Calculations!Y141*(1+$D$19) -> 0
C155: ='User Input'!D187 -> Cost 1 | D155: 0 | E155: =Calculations!E142*(1+$D$19) -> 0 | F155: =Calculations!F142*(1+$D$19) -> 0 | G155: =Calculations!G142*(1+$D$19) -> 0 | H155: =Calculations!H142*(1+$D$19) -> 0 | I155: =Calculations!I142*(1+$D$19) -> 0 | J155: =Calculations!J142*(1+$D$19) -> 0 | K155: =Calculations!K142*(1+$D$19) -> 0 | L155: =Calculations!L142*(1+$D$19) -> 0 | M155: =Calculations!M142*(1+$D$19) -> 0 | N155: =Calculations!N142*(1+$D$19) -> 0 | O155: =Calculations!O142*(1+$D$19) -> 0 | P155: =Calculations!P142*(1+$D$19) -> 0 | Q155: =Calculations!Q142*(1+$D$19) -> 0 | R155: =Calculations!R142*(1+$D$19) -> 0 | S155: =Calculations!S142*(1+$D$19) -> 0 | T155: =Calculations!T142*(1+$D$19) -> 0 | U155: =Calculations!U142*(1+$D$19) -> 0 | V155: =Calculations!V142*(1+$D$19) -> 0 | W155: =Calculations!W142*(1+$D$19) -> 0 | X155: =Calculations!X142*(1+$D$19) -> 0 | Y155: =Calculations!Y142*(1+$D$19) -> 0
C156: ='User Input'!D188 -> Cost 2 | D156: 0 | E156: =Calculations!E143*(1+$D$19) -> 0 | F156: =Calculations!F143*(1+$D$19) -> 0 | G156: =Calculations!G143*(1+$D$19) -> 0 | H156: =Calculations!H143*(1+$D$19) -> 0 | I156: =Calculations!I143*(1+$D$19) -> 0 | J156: =Calculations!J143*(1+$D$19) -> 0 | K156: =Calculations!K143*(1+$D$19) -> 0 | L156: =Calculations!L143*(1+$D$19) -> 0 | M156: =Calculations!M143*(1+$D$19) -> 0 | N156: =Calculations!N143*(1+$D$19) -> 0 | O156: =Calculations!O143*(1+$D$19) -> 0 | P156: =Calculations!P143*(1+$D$19) -> 0 | Q156: =Calculations!Q143*(1+$D$19) -> 0 | R156: =Calculations!R143*(1+$D$19) -> 0 | S156: =Calculations!S143*(1+$D$19) -> 0 | T156: =Calculations!T143*(1+$D$19) -> 0 | U156: =Calculations!U143*(1+$D$19) -> 0 | V156: =Calculations!V143*(1+$D$19) -> 0 | W156: =Calculations!W143*(1+$D$19) -> 0 | X156: =Calculations!X143*(1+$D$19) -> 0 | Y156: =Calculations!Y143*(1+$D$19) -> 0
C157: ='User Input'!D189 -> Cost 3 | D157: 0 | E157: =Calculations!E144*(1+$D$19) -> 0 | F157: =Calculations!F144*(1+$D$19) -> 0 | G157: =Calculations!G144*(1+$D$19) -> 0 | H157: =Calculations!H144*(1+$D$19) -> 0 | I157: =Calculations!I144*(1+$D$19) -> 0 | J157: =Calculations!J144*(1+$D$19) -> 0 | K157: =Calculations!K144*(1+$D$19) -> 0 | L157: =Calculations!L144*(1+$D$19) -> 0 | M157: =Calculations!M144*(1+$D$19) -> 0 | N157: =Calculations!N144*(1+$D$19) -> 0 | O157: =Calculations!O144*(1+$D$19) -> 0 | P157: =Calculations!P144*(1+$D$19) -> 0 | Q157: =Calculations!Q144*(1+$D$19) -> 0 | R157: =Calculations!R144*(1+$D$19) -> 0 | S157: =Calculations!S144*(1+$D$19) -> 0 | T157: =Calculations!T144*(1+$D$19) -> 0 | U157: =Calculations!U144*(1+$D$19) -> 0 | V157: =Calculations!V144*(1+$D$19) -> 0 | W157: =Calculations!W144*(1+$D$19) -> 0 | X157: =Calculations!X144*(1+$D$19) -> 0 | Y157: =Calculations!Y144*(1+$D$19) -> 0
C158: ='User Input'!D190 -> Cost 4 | D158: 0 | E158: =Calculations!E145*(1+$D$19) -> 0 | F158: =Calculations!F145*(1+$D$19) -> 0 | G158: =Calculations!G145*(1+$D$19) -> 0 | H158: =Calculations!H145*(1+$D$19) -> 0 | I158: =Calculations!I145*(1+$D$19) -> 0 | J158: =Calculations!J145*(1+$D$19) -> 0 | K158: =Calculations!K145*(1+$D$19) -> 0 | L158: =Calculations!L145*(1+$D$19) -> 0 | M158: =Calculations!M145*(1+$D$19) -> 0 | N158: =Calculations!N145*(1+$D$19) -> 0 | O158: =Calculations!O145*(1+$D$19) -> 0 | P158: =Calculations!P145*(1+$D$19) -> 0 | Q158: =Calculations!Q145*(1+$D$19) -> 0 | R158: =Calculations!R145*(1+$D$19) -> 0 | S158: =Calculations!S145*(1+$D$19) -> 0 | T158: =Calculations!T145*(1+$D$19) -> 0 | U158: =Calculations!U145*(1+$D$19) -> 0 | V158: =Calculations!V145*(1+$D$19) -> 0 | W158: =Calculations!W145*(1+$D$19) -> 0 | X158: =Calculations!X145*(1+$D$19) -> 0 | Y158: =Calculations!Y145*(1+$D$19) -> 0
C159: ='User Input'!D191 -> Cost 5 | D159: 0 | E159: =Calculations!E146*(1+$D$19) -> 0 | F159: =Calculations!F146*(1+$D$19) -> 0 | G159: =Calculations!G146*(1+$D$19) -> 0 | H159: =Calculations!H146*(1+$D$19) -> 0 | I159: =Calculations!I146*(1+$D$19) -> 0 | J159: =Calculations!J146*(1+$D$19) -> 0 | K159: =Calculations!K146*(1+$D$19) -> 0 | L159: =Calculations!L146*(1+$D$19) -> 0 | M159: =Calculations!M146*(1+$D$19) -> 0 | N159: =Calculations!N146*(1+$D$19) -> 0 | O159: =Calculations!O146*(1+$D$19) -> 0 | P159: =Calculations!P146*(1+$D$19) -> 0 | Q159: =Calculations!Q146*(1+$D$19) -> 0 | R159: =Calculations!R146*(1+$D$19) -> 0 | S159: =Calculations!S146*(1+$D$19) -> 0 | T159: =Calculations!T146*(1+$D$19) -> 0 | U159: =Calculations!U146*(1+$D$19) -> 0 | V159: =Calculations!V146*(1+$D$19) -> 0 | W159: =Calculations!W146*(1+$D$19) -> 0 | X159: =Calculations!X146*(1+$D$19) -> 0 | Y159: =Calculations!Y146*(1+$D$19) -> 0
C160: ='User Input'!D192 -> Risk 1 | D160: =SUM(E160:Y160) -> 0 | E160: =Calculations!E147*(1+$D$19) -> 0 | F160: =Calculations!F147*(1+$D$19) -> 0 | G160: =Calculations!G147*(1+$D$19) -> 0 | H160: =Calculations!H147*(1+$D$19) -> 0 | I160: =Calculations!I147*(1+$D$19) -> 0 | J160: =Calculations!J147*(1+$D$19) -> 0 | K160: =Calculations!K147*(1+$D$19) -> 0 | L160: =Calculations!L147*(1+$D$19) -> 0 | M160: =Calculations!M147*(1+$D$19) -> 0 | N160: =Calculations!N147*(1+$D$19) -> 0 | O160: =Calculations!O147*(1+$D$19) -> 0 | P160: =Calculations!P147*(1+$D$19) -> 0 | Q160: =Calculations!Q147*(1+$D$19) -> 0 | R160: =Calculations!R147*(1+$D$19) -> 0 | S160: =Calculations!S147*(1+$D$19) -> 0 | T160: =Calculations!T147*(1+$D$19) -> 0 | U160: =Calculations!U147*(1+$D$19) -> 0 | V160: =Calculations!V147*(1+$D$19) -> 0 | W160: =Calculations!W147*(1+$D$19) -> 0 | X160: =Calculations!X147*(1+$D$19) -> 0 | Y160: =Calculations!Y147*(1+$D$19) -> 0
C161: ='User Input'!D193 -> Risk 2 | D161: =SUM(E161:Y161) -> 0 | E161: =Calculations!E148*(1+$D$19) -> 0 | F161: =Calculations!F148*(1+$D$19) -> 0 | G161: =Calculations!G148*(1+$D$19) -> 0 | H161: =Calculations!H148*(1+$D$19) -> 0 | I161: =Calculations!I148*(1+$D$19) -> 0 | J161: =Calculations!J148*(1+$D$19) -> 0 | K161: =Calculations!K148*(1+$D$19) -> 0 | L161: =Calculations!L148*(1+$D$19) -> 0 | M161: =Calculations!M148*(1+$D$19) -> 0 | N161: =Calculations!N148*(1+$D$19) -> 0 | O161: =Calculations!O148*(1+$D$19) -> 0 | P161: =Calculations!P148*(1+$D$19) -> 0 | Q161: =Calculations!Q148*(1+$D$19) -> 0 | R161: =Calculations!R148*(1+$D$19) -> 0 | S161: =Calculations!S148*(1+$D$19) -> 0 | T161: =Calculations!T148*(1+$D$19) -> 0 | U161: =Calculations!U148*(1+$D$19) -> 0 | V161: =Calculations!V148*(1+$D$19) -> 0 | W161: =Calculations!W148*(1+$D$19) -> 0 | X161: =Calculations!X148*(1+$D$19) -> 0 | Y161: =Calculations!Y148*(1+$D$19) -> 0
C162: ='User Input'!D194 -> Risk 3 | D162: =SUM(E162:Y162) -> 0 | E162: =Calculations!E149*(1+$D$19) -> 0 | F162: =Calculations!F149*(1+$D$19) -> 0 | G162: =Calculations!G149*(1+$D$19) -> 0 | H162: =Calculations!H149*(1+$D$19) -> 0 | I162: =Calculations!I149*(1+$D$19) -> 0 | J162: =Calculations!J149*(1+$D$19) -> 0 | K162: =Calculations!K149*(1+$D$19) -> 0 | L162: =Calculations!L149*(1+$D$19) -> 0 | M162: =Calculations!M149*(1+$D$19) -> 0 | N162: =Calculations!N149*(1+$D$19) -> 0 | O162: =Calculations!O149*(1+$D$19) -> 0 | P162: =Calculations!P149*(1+$D$19) -> 0 | Q162: =Calculations!Q149*(1+$D$19) -> 0 | R162: =Calculations!R149*(1+$D$19) -> 0 | S162: =Calculations!S149*(1+$D$19) -> 0 | T162: =Calculations!T149*(1+$D$19) -> 0 | U162: =Calculations!U149*(1+$D$19) -> 0 | V162: =Calculations!V149*(1+$D$19) -> 0 | W162: =Calculations!W149*(1+$D$19) -> 0 | X162: =Calculations!X149*(1+$D$19) -> 0 | Y162: =Calculations!Y149*(1+$D$19) -> 0
C163: ='User Input'!D195 -> Risk 4 | D163: =SUM(E163:Y163) -> 0 | E163: =Calculations!E150*(1+$D$19) -> 0 | F163: =Calculations!F150*(1+$D$19) -> 0 | G163: =Calculations!G150*(1+$D$19) -> 0 | H163: =Calculations!H150*(1+$D$19) -> 0 | I163: =Calculations!I150*(1+$D$19) -> 0 | J163: =Calculations!J150*(1+$D$19) -> 0 | K163: =Calculations!K150*(1+$D$19) -> 0 | L163: =Calculations!L150*(1+$D$19) -> 0 | M163: =Calculations!M150*(1+$D$19) -> 0 | N163: =Calculations!N150*(1+$D$19) -> 0 | O163: =Calculations!O150*(1+$D$19) -> 0 | P163: =Calculations!P150*(1+$D$19) -> 0 | Q163: =Calculations!Q150*(1+$D$19) -> 0 | R163: =Calculations!R150*(1+$D$19) -> 0 | S163: =Calculations!S150*(1+$D$19) -> 0 | T163: =Calculations!T150*(1+$D$19) -> 0 | U163: =Calculations!U150*(1+$D$19) -> 0 | V163: =Calculations!V150*(1+$D$19) -> 0 | W163: =Calculations!W150*(1+$D$19) -> 0 | X163: =Calculations!X150*(1+$D$19) -> 0 | Y163: =Calculations!Y150*(1+$D$19) -> 0
C164: ='User Input'!D196 -> Risk 5 | D164: =SUM(E164:Y164) -> 0 | E164: =Calculations!E151*(1+$D$19) -> 0 | F164: =Calculations!F151*(1+$D$19) -> 0 | G164: =Calculations!G151*(1+$D$19) -> 0 | H164: =Calculations!H151*(1+$D$19) -> 0 | I164: =Calculations!I151*(1+$D$19) -> 0 | J164: =Calculations!J151*(1+$D$19) -> 0 | K164: =Calculations!K151*(1+$D$19) -> 0 | L164: =Calculations!L151*(1+$D$19) -> 0 | M164: =Calculations!M151*(1+$D$19) -> 0 | N164: =Calculations!N151*(1+$D$19) -> 0 | O164: =Calculations!O151*(1+$D$19) -> 0 | P164: =Calculations!P151*(1+$D$19) -> 0 | Q164: =Calculations!Q151*(1+$D$19) -> 0 | R164: =Calculations!R151*(1+$D$19) -> 0 | S164: =Calculations!S151*(1+$D$19) -> 0 | T164: =Calculations!T151*(1+$D$19) -> 0 | U164: =Calculations!U151*(1+$D$19) -> 0 | V164: =Calculations!V151*(1+$D$19) -> 0 | W164: =Calculations!W151*(1+$D$19) -> 0 | X164: =Calculations!X151*(1+$D$19) -> 0 | Y164: =Calculations!Y151*(1+$D$19) -> 0
C165: Total Costs | D165: 0 | E165: =SUM(E146:E164) -> 0 | F165: =SUM(F146:F164) -> 0 | G165: 0 | H165: 0 | I165: 0 | J165: 0 | K165: 0 | L165: 0 | M165: 0 | N165: 0 | O165: 0 | P165: 0 | Q165: 0 | R165: 0 | S165: 0 | T165: 0 | U165: 0 | V165: 0 | W165: 0 | X165: 0 | Y165: 0
C166: Present Value (PV) of Total Costs | D166: 0 | E166: =E165/(1+$D$17)^E$11 -> 0 | F166: 0 | G166: 0 | H166: 0 | I166: 0 | J166: 0 | K166: 0 | L166: 0 | M166: 0 | N166: 0 | O166: 0 | P166: 0 | Q166: 0 | R166: 0 | S166: 0 | T166: 0 | U166: 0 | V166: 0 | W166: 0 | X166: 0 | Y166: 0
B169: Summary
C171: Total Costs
A173: 1 | C173: =B24 -> "Status Quo" Reference Case | E173: =E45 -> 948.4511642 | F173: 974.0593456 | G173: 13394.18662 | H173: 13755.82966 | I173: 14127.23706 | J173: 14508.67246 | K173: 14900.40662 | L173: 15302.7176 | M173: 15715.89097 | N173: 16140.22003 | O173: 16576.00597 | P173: 17023.55813 | Q173: 17483.1942 | R173: 17955.24044 | S173: 18440.03194 | T173: 17523.51482 | U173: 17996.64972 | V173: 18482.55926 | W173: 18981.58836 | X173: 19494.09124 | Y173: 20020.43171
A174: 2 | C174: =B48 -> Option 1: RTS Redevelopment | E174: =E69 -> 589.175194 | F174: 3234.015985 | G174: 4688.882741 | H174: 4234.296732 | I174: 3288.263044 | J174: 3377.046146 | K174: 3468.226392 | L174: 3561.868504 | M174: 3658.038954 | N174: 3756.806006 | O174: 3858.239768 | P174: 3962.412242 | Q174: 4069.397372 | R174: 4179.271101 | S174: 4292.111421 | T174: 4407.998429 | U174: 4527.014387 | V174: 4649.243775 | W174: 4774.773357 | X174: 4903.692238 | Y174: 5036.091928
A175: 3 | C175: =B72 -> Option 2: | E175: =E93 -> 0 | F175: 0 | G175: 0 | H175: 0 | I175: 0 | J175: 0 | K175: 0 | L175: 0 | M175: 0 | N175: 0 | O175: 0 | P175: 0 | Q175: 0 | R175: 0 | S175: 0 | T175: 0 | U175: 0 | V175: 0 | W175: 0 | X175: 0 | Y175: 0
A176: 4 | C176: =B96 -> Option 3: | E176: =E117 -> 0 | F176: 0 | G176: 0 | H176: 0 | I176: 0 | J176: 0 | K176: 0 | L176: 0 | M176: 0 | N176: 0 | O176: 0 | P176: 0 | Q176: 0 | R176: 0 | S176: 0 | T176: 0 | U176: 0 | V176: 0 | W176: 0 | X176: 0 | Y176: 0
A177: 5 | C177: =B120 -> Option 4: | E177: =E141 -> 0 | F177: 0 | G177: 0 | H177: 0 | I177: 0 | J177: 0 | K177: 0 | L177: 0 | M177: 0 | N177: 0 | O177: 0 | P177: 0 | Q177: 0 | R177: 0 | S177: 0 | T177: 0 | U177: 0 | V177: 0 | W177: 0 | X177: 0 | Y177: 0
A178: 6 | C178: =B144 -> Option 5: | E178: =E165 -> 0 | F178: 0 | G178: 0 | H178: 0 | I178: 0 | J178: 0 | K178: 0 | L178: 0 | M178: 0 | N178: 0 | O178: 0 | P178: 0 | Q178: 0 | R178: 0 | S178: 0 | T178: 0 | U178: 0 | V178: 0 | W178: 0 | X178: 0 | Y178: 0
C180: PV of Total Costs
A182: 1 | C182: =B24 -> "Status Quo" Reference Case | E182: =E46 -> 948.4511642 | F182: 925.7359301 | G182: 12098.17189 | H182: 11808.42286 | I182: 11525.61327 | J182: 11249.57691 | K182: 10980.15157 | L182: 10717.17893 | M182: 10460.50443 | N182: 10209.97723 | O182: 9965.450123 | P182: 9726.779392 | Q182: 9493.824782 | R182: 9266.449393 | S182: 9044.519603 | T182: 8168.583601 | U182: 7972.947499 | V182: 7781.996846 | W182: 7595.619427 | X182: 7413.705713 | Y182: 7236.1488
A183: 2 | C183: =B48 -> Option 1: RTS Redevelopment | E183: =E70 -> 589.175194 | F183: 3073.575352 | G183: 4235.188816 | H183: 3634.849192 | I183: 2682.707736 | J183: 2618.45737 | K183: 2555.745789 | L183: 2494.536139 | M183: 2434.792449 | N183: 2376.47961 | O183: 2319.563352 | P183: 2264.010229 | Q183: 2209.787592 | R183: 2156.863579 | S183: 2105.207085 | T183: 2054.787756 | U183: 2005.57596 | V183: 1957.542778 | W183: 1910.659982 | X183: 1864.90002 | Y183: 1820.236002
A184: 3 | C184: =B72 -> Option 2: | E184: =E94 -> 0 | F184: 0 | G184: 0 | H184: 0 | I184: 0 | J184: 0 | K184: 0 | L184: 0 | M184: 0 | N184: 0 | O184: 0 | P184: 0 | Q184: 0 | R184: 0 | S184: 0 | T184: 0 | U184: 0 | V184: 0 | W184: 0 | X184: 0 | Y184: 0
A185: 4 | C185: =B96 -> Option 3: | E185: =E118 -> 0 | F185: 0 | G185: 0 | H185: 0 | I185: 0 | J185: 0 | K185: 0 | L185: 0 | M185: 0 | N185: 0 | O185: 0 | P185: 0 | Q185: 0 | R185: 0 | S185: 0 | T185: 0 | U185: 0 | V185: 0 | W185: 0 | X185: 0 | Y185: 0
A186: 5 | C186: =B120 -> Option 4: | E186: =E142 -> 0 | F186: 0 | G186: 0 | H186: 0 | I186: 0 | J186: 0 | K186: 0 | L186: 0 | M186: 0 | N186: 0 | O186: 0 | P186: 0 | Q186: 0 | R186: 0 | S186: 0 | T186: 0 | U186: 0 | V186: 0 | W186: 0 | X186: 0 | Y186: 0
A187: 6 | C187: =B144 -> Option 5: | E187: =E166 -> 0 | F187: 0 | G187: 0 | H187: 0 | I187: 0 | J187: 0 | K187: 0 | L187: 0 | M187: 0 | N187: 0 | O187: 0 | P187: 0 | Q187: 0 | R187: 0 | S187: 0 | T187: 0 | U187: 0 | V187: 0 | W187: 0 | X187: 0 | Y187: 0
D190: =B24 -> "Status Quo" Reference Case | E190: =B48 -> Option 1: RTS Redevelopment | F190: =B72 -> Option 2: | G190: =B96 -> Option 3: | H190: =B120 -> Option 4: | I190: =B144 -> Option 5:
C192: =C26 -> Capital Costs | D192: =D26 -> 0 | E192: =D50 -> 6106.500327 | F192: =D74 -> 0 | G192: =D98 -> 0 | H192: =D122 -> 0 | I192: =D146 -> 0
C193: =C27 -> Annual Maintenance Costs | D193: =D27 -> 0 | E193: =D51 -> 0 | F193: =D75 -> 0 | G193: =D99 -> 0 | H193: =D123 -> 0 | I193: =D147 -> 0
C194: =C28 -> Negative Impact on Revenue (STPIS) | D194: =SUM(D29:D32) -> 302487.2478 | E194: =SUM(D53:D56) -> 72020.77328 | F194: =SUM(D77:D80) -> 0 | G194: =SUM(D101:D104) -> 0 | H194: =SUM(D125:D128) -> 0 | I194: =SUM(D149:D152) -> 0
C195: =C33 -> Network Outage Costs | D195: =D33 -> 17257.28953 | E195: =D57 -> 4389.592109 | F195: =D81 -> 0 | G195: =D105 -> 0 | H195: =D129 -> 0 | I195: =D153 -> 0
C196: =C34 -> Loss of F Factor Benefit | D196: =D34 -> 0 | E196: 0 | F196: 0 | G196: 0 | H196: 0 | I196: 0
C197: =C35 -> Cost 1 | D197: 0 | E197: 0 | F197: 0 | G197: 0 | H197: 0 | I197: 0
C198: Cost 2 | D198: 0 | E198: 0 | F198: 0 | G198: 0 | H198: 0 | I198: 0
C199: Cost 3 | D199: 0 | E199: 0 | F199: 0 | G199: 0 | H199: 0 | I199: 0
C200: Cost 4 | D200: 0 | E200: 0 | F200: 0 | G200: 0 | H200: 0 | I200: 0
C201: Cost 5 | D201: 0 | E201: 0 | F201: 0 | G201: 0 | H201: 0 | I201: 0
C202: Other Costs | D202: =SUM(D40:D44) -> 0 | E202: =SUM(D64:D68) -> 0 | F202: =SUM(D88:D92) -> 0 | G202: =SUM(D112:D116) -> 0 | H202: =SUM(D136:D140) -> 0 | I202: =SUM(D160:D164) -> 0
C203: =C45 -> Total Costs | D203: =SUM(D192:D202) -> 319744.5373 | E203: 82516.86572 | F203: 0 | G203: 0 | H203: 0 | I203: 0
